Workbook

Sheet Sommaire
K14: Toutes les informations et cout doivent etre réactualisées avant le départ
K16: Synthèse Global
K18: Domaine | L18: Poste | M18: Unité | N18: Quantité | O18: Cout U | P18: Cout Total Ligne | Q18: % Ligne | R18: Cout Total Domaine | S18: % Domaine
K19: Navigation | L19: Jour de Nav | M19: Jour | N19: =tab_Navigation[[#Totals],[J Navig]] -> 309.125
K20: Navigation | L20: Carburant | M20: Litre | N20: =Carburant!J2 -> 2503.37041 | P20: =Carburant!N2 -> 3254.381533 | Q20: =tab_Synthese_Glob[[#This Row],[Cout Total Ligne]]/tab_Synthese_Glob[[#Totals],[Cout Total Ligne]] -> 0.07407301023 | R20: =tab_Synthese_Glob[[#This Row],[Cout Total Ligne]] -> 3254.381533 | S20: =tab_Synthese_Glob[[#This Row],[Cout Total Domaine]]/tab_Synthese_Glob[[#Totals],[Cout Total Ligne]] -> 0.07407301023
K22: Voilier | L22: Reparation Estimation | M22: Euros | N22: 15 | O22: 500 | P22: =tab_Synthese_Glob[[#This Row],[Cout U]]*tab_Synthese_Glob[[#This Row],[Quantité]] -> 7500 | Q22: =tab_Synthese_Glob[[#This Row],[Cout Total Ligne]]/tab_Synthese_Glob[[#Totals],[Cout Total Ligne]] -> 0.1707075741 | R22: =tab_Synthese_Glob[[#This Row],[Cout Total Ligne]] -> 7500 | S22: =tab_Synthese_Glob[[#This Row],[Cout Total Domaine]]/tab_Synthese_Glob[[#Totals],[Cout Total Ligne]] -> 0.1707075741
K24: Nourriture | L24: Caisse de Bord | M24: Euros | P24: =N33*500 -> 13192.75 | Q24: =tab_Synthese_Glob[[#This Row],[Cout Total Ligne]]/tab_Synthese_Glob[[#Totals],[Cout Total Ligne]] -> 0.3002803131 | R24: =tab_Synthese_Glob[[#This Row],[Cout Total Ligne]] -> 13192.75 | S24: =tab_Synthese_Glob[[#This Row],[Cout Total Domaine]]/tab_Synthese_Glob[[#Totals],[Cout Total Ligne]] -> 0.3002803131
K26: Escale | L26: Nuit en escale | M26: Jour | N26: =tab_Escale[[#Totals],[J Escale]] -> 482.44 | P26: =tab_Escale[[#Totals],[Cout T Nuit Escale]] -> 3766.133333 | Q26: =tab_Synthese_Glob[[#This Row],[Cout Total Ligne]]/tab_Synthese_Glob[[#Totals],[Cout Total Ligne]] -> 0.08572099801
K27: Escale | L27: Visa Douane | M27: Euros | N27: - | P27: =tab_Escale[[#Totals],[Cout Visa Douane]] -> 3271.51682 | Q27: =tab_Synthese_Glob[[#This Row],[Cout Total Ligne]]/tab_Synthese_Glob[[#Totals],[Cout Total Ligne]] -> 0.07446302666
K28: Escale | L28: Dépense Activité | M28: Euros | N28: - | P28: =tab_Escale[[#Totals],[Depense Activité Escale]] -> 12950 | Q28: =tab_Synthese_Glob[[#This Row],[Cout Total Ligne]]/tab_Synthese_Glob[[#Totals],[Cout Total Ligne]] -> 0.2947550779
K29: Escale | L29: Nombre Port | N29: =tab_Port_Mouillage[[#Totals],[Nom Princ]] -> 118
K30: Escale | L30: Nombre de Pays | N30: =tab_Pays[[#Totals],[Nom Pays]] -> 31 | R30: =SUM(P26:P28) -> 19987.65015 | S30: =tab_Synthese_Glob[[#This Row],[Cout Total Domaine]]/tab_Synthese_Glob[[#Totals],[Cout Total Ligne]] -> 0.4549391026
K32: Voyage | L32: Nombre Jour | M32: Jour | N32: =tab_Escale[[#Totals],[J Total]] -> 791.565
K33: Voyage | L33: Nombre Mois | M33: Mois | N33: =N32/30 -> 26.3855
P34: =SUBTOTAL(109,tab_Synthese_Glob[Cout Total Ligne]) -> 43934.78169 | Q34: =SUBTOTAL(109,tab_Synthese_Glob[% Ligne]) -> 1 | R34: =SUBTOTAL(109,tab_Synthese_Glob[Cout Total Domaine]) -> 43934.78169 | S34: =SUBTOTAL(109,tab_Synthese_Glob[% Ligne]) -> 1
L37: Moy Jour : | M37: =tab_Synthese_Glob[[#Totals],[Cout Total Ligne]]/N32 -> 55.50369418
L38: Moy Mois : | M38: =M37*30 -> 1665.110826 | N38: 1665 | O38: Avant modification

Sheet Etat Info
A2: Etat de l'avancement | N2: Valider ces informations pour que la prevision soit le plus réaliste
A4: Mavigation | I4: Escale | N4: Port Mouillage
A6: Nombre de N° Nav | B6: Étiquettes de colonnes | I6: Nombre de Conca | J6: Étiquettes de colonnes | N6: Nombre de Nom Princ | O6: Étiquettes de colonnes | W6: Nombre de Nom Pays | X6: Étiquettes de colonnes
A7: Étiquettes de lignes | B7: 1 | C7: 2 | D7: 2.1 | E7: 2.5 | F7: 2.9 | I7: Étiquettes de lignes | J7: 1 | K7: 3 | N7: Étiquettes de lignes | O7: -0.5 | P7: 0 | Q7: 0.1 | R7: 0.8 | S7: 0.9 | T7: 1 | W7: Étiquettes de lignes | X7: -1 | Y7: 0 | Z7: 1 | AA7: 2 | AB7: 2.5 | AC7: 3
A8: 001 - Port Louis > Port Louis | D8: 23 | F8: 4 | I8: 001 - Port Louis > Port Louis | K8: 27 | N8: A Faire | P8: 9 | W8: Affrique | Z8: 2
A9: Ecosse | D9: 14 | I9: Ecosse | K9: 14 | N9: A Faire | P9: 9 | W9: Affrique du Sud | Z9: 1
A10: 0008 - Belfast > Craighouse | D10: 1 | I10: 0008 Craighouse | K10: 1 | N10: 0102 Apia Harbour - - Upolu Island | P10: 1 | W10: Maroc | Z10: 1
A11: 0009 - Craighouse > Crinan | D11: 1 | I11: 0009 Crinan | K11: 1 | N11: 0103 Savai'i - - ile Savai'i | P11: 1 | W11: Amerique Centrale | AA11: 1
A12: 0010 - Craobh Haven > Oban Marina | D12: 1 | I12: 0010 Oban Marina | K12: 1 | N12: 0106 Copra Shed Marina - - ile Vanua Levu | P12: 1 | W12: Panama | AA12: 1
A13: 0011 - Oban Marina > Fort William | D13: 1 | I13: 0011 Fort William | K13: 1 | N13: 0107 West Minig - - ile Viti Levu | P13: 1 | W13: Amerique Sud | Y13: 1 | AA13: 1
A14: 0012 - Fort William > Laggan Pier | D14: 1 | I14: 0012 Laggan Pier | K14: 1 | N14: 0108 Hwaadrila - - ile Ouvea | P14: 1 | W14: Brésil | Y14: 1
A15: 0013 - Laggan Pier > Fort Augustus | D15: 1 | I15: 0013 Fort Augustus | K15: 1 | N15: 0109 Chepenehe - - ile Wedrumel | P15: 1 | W15: Venezuela | AA15: 1
A16: 0014 - Fort Augustus > Muir Town marina | D16: 1 | I16: 0014 Muir Town marina | K16: 1 | N16: 0110 Tadine - - Ile Nece | P16: 1 | W16: Caraibe | Z16: 1 | AA16: 1 | AC16: 2
A17: 0015 - Muir Town marina > Stromness | D17: 1 | I17: 0015 Stromness | K17: 1 | N17: 0111 Kuto - - Ile des Pins | P17: 1 | W17: Barbade | Z17: 1
A18: 0016 - Stromness > Kinlochbervie | D18: 1 | I18: 0016 Kinlochbervie | K18: 1 | N18: 0112 Bantam - Coco Island - | P18: 1 | W18: Fr Guadeloupe | AC18: 1
A19: 0017 - Kinlochbervie > Steornabhagh | D19: 1 | I19: 0017 Steornabhagh | K19: 1 | N19: Affrique du Sud | P19: 2 | W19: Fr Martinique | AC19: 1
A20: 0060 - Crinan > Craobh Haven | D20: 1 | I20: 0059 Craobh Haven | K20: 1 | N20: - | P20: 2 | W20: Saint Vincent et les Grenadines | AA20: 1
A21: 0061 - Steornabhagh > Stornoway | D21: 1 | I21: 0060 Stornoway | K21: 1 | N21: 0115 Durban - - | P21: 1 | W21: Europe | Y21: 1 | Z21: 2 | AA21: 5 | AB21: 1 | AC21: 3
A22: 0062 - Stornoway > Lochboisdale | D22: 1 | I22: 0061 Lochboisdale | K22: 1 | N22: 0116 Cape Town - - | P22: 1 | W22: Canaris | Z22: 1
A23: 0063 - Lochboisdale > Port Ellen | D23: 1 | I23: 0062 Port Ellen | K23: 1 | N23: Australie | P23: 3 | W23: Cap Vert | AC23: 1
A24: Fr Metro | D24: 1 | F24: 2 | I24: Fr Metro | K24: 3 | N24: - | P24: 3 | W24: Ecosse | AA24: 1
A25: 0001 - Port Louis > Les Glenans | F25: 1 | I25: 0001 Les Glenans | K25: 1 | N25: 0009 Cairns - - | P25: 1 | W25: Fr Metro | AC25: 1
A26: 0002 - Les Glenans > Brest | F26: 1 | I26: 0002 Brest | K26: 1 | N26: 0016 Darwin - - | P26: 1 | W26: Gibraltar Angleterre | AA26: 1
A27: 0025 - Archipel Scilly > Port Louis | D27: 1 | I27: 0025 Port Louis | K27: 1 | N27: 0053 Sydney - - | P27: 1 | W27: Irlande Nord | AA27: 1
A28: Irlande Nord | D28: 2 | I28: Irlande Nord | K28: 2 | N28: Barbade | T28: 2 | W28: Irlande Sud | AA28: 1
A29: 0006 - Dublin > Ardglass | D29: 1 | I29: 0006 Ardglass | K29: 1 | N29: - | T29: 2 | W29: Les Assores | Y29: 1
A30: 0007 - Ardglass > Belfast | D30: 1 | I30: 0007 Belfast | K30: 1 | N30: 0046 Port Saint Charles - - | T30: 1 | W30: Madère | AA30: 1
A31: Irlande Sud | D31: 1 | F31: 1 | I31: Irlande Sud | K31: 2 | N31: 0082 LittleGood Harbour - Port Saint Charles - SpeightStown | T31: 1 | W31: Portugal | AC31: 1
A32: 0004 - Archipel Scilly > Kilmore | F32: 1 | I32: 0004 Kilmore | K32: 1 | N32: Brésil | P32: 1 | W32: Royaume Uni | AB32: 1
A33: 0005 - Kilmore > Dublin | D33: 1 | I33: 0005 Dublin | K33: 1 | N33: - | P33: 1 | W33: Sainte Helene | Z33: 1
A34: Royaume Uni | D34: 5 | F34: 1 | I34: Royaume Uni | K34: 6 | N34: 0120 Baia de Sant Antonio - ilha de fernando de noronha - | P34: 1 | W34: Indien | Z34: 1 | AA34: 1 | AC34: 1
A35: 0003 - Brest > Archipel Scilly | F35: 1 | I35: 0003 Archipel Scilly | K35: 1 | N35: Canaris | R35: 1 | S35: 1 | T35: 2 | W35: Fr Réunion | AC35: 1
A36: 0020 - Port Ellen > Peel | D36: 1 | I36: 0020 Peel | K36: 1 | N36: Espagne | R36: 1 | S36: 1 | T36: 2 | W36: Maurice | Z36: 1
A37: 0021 - Peel > Holyhead | D37: 1 | I37: 0021 Holyhead | K37: 1 | N37: 0078 Marina Lanzarote - - ile Lanzarote | T37: 1 | W37: Rodrigues | AA37: 1
A38: 0022 - Holyhead > Porthmadog | D38: 1 | I38: 0022 Porthmadog | K38: 1 | N38: 0079 Paliarte - - Ile Gran Canarie | R38: 1 | W38: Océanie | Y38: 1 | Z38: 1 | AA38: 1 | AC38: 1
A39: 0023 - Porthmadog > Dale | D39: 1 | I39: 0023 Dale | K39: 1 | N39: 0080 Marina Santa Cruz - - Ile Tenerife | S39: 1 | W39: Australie | Z39: 1
A40: 0024 - Dale > Archipel Scilly | D40: 1 | I40: 0024 Archipel Scilly | K40: 1 | N40: 0081 Marina La Palma - - Ile La Plama | T40: 1 | W40: Fr Nouméa | AC40: 1
A41: 001 agd - > | D41: 1 | I41: 001 agd - > | K41: 1 | N41: Cap Vert | T41: 4 | W41: New Zeelande | AA41: 1
A42: Fr Metro | D42: 1 | I42: Fr Metro | K42: 1 | N42: - | T42: 4 | W42: Samoa Americaine | Y42: 1
A43: 0026 - Port Louis > Port Louis | D43: 1 | I43: 0026 Port Louis | K43: 1 | N43: 0074 Mindelo - Porto Grande San Vincente - Ile Saint Vincent | T43: 1 | W43: Pacifique | Z43: 1 | AC43: 1
A44: 002 - Port Louis > Lisbonne | D44: 1 | I44: 002 - Port Louis > Lisbonne | K44: 1 | N44: 0075 Porto de Palmeira - ile de Sel - | T44: 1 | W44: Fr Polynésie | AC44: 1
A45: Portugal | D45: 1 | I45: Portugal | K45: 1 | N45: 0076 Porto Sal Rei - ile Boa Vista - | T45: 1 | W45: Galapagos | Z45: 1
A46: 0027 - Port Louis > Oeiras Marina | D46: 1 | I46: 0027 Oeiras Marina | K46: 1 | N46: 0077 Porto de Praia - Priaia - ile Santiago | T46: 1 | W46: z | X46: 1
A47: 003 - Lisbonne > Cap Vert | D47: 10 | I47: 003 - Lisbonne > Cap Vert | K47: 10 | N47: Ecosse | O47: 1 | R47: 5 | T47: 21 | W47: A Faire | X47: 1
A48: Canaris | D48: 4 | I48: Canaris | K48: 4 | N48: Royaume Uni | O48: 1 | R48: 5 | T48: 21 | W48: Total général | X48: 1 | Y48: 3 | Z48: 8 | AA48: 10 | AB48: 1 | AC48: 8
A49: 0031 - Madère > Marina Lanzarote | D49: 1 | I49: 0031 Marina Lanzarote | K49: 1 | N49: 0014 Craighouse - - | T49: 1
A50: 0069 - Marina Lanzarote > Paliarte | D50: 1 | I50: 0069 Paliarte | K50: 1 | N50: 0015 Crinan - Crinan Boatyard - | R50: 1
A51: 0070 - Paliarte > Marina Santa Cruz | D51: 1 | I51: 0070 Marina Santa Cruz | K51: 1 | N51: 0019 Port Ellen - - | R51: 1
A52: 0071 - Marina Santa Cruz > Marina La Palma | D52: 1 | I52: 0071 Marina La Palma | K52: 1 | N52: 0020 Fort Augustus - - | T52: 1
A53: Cap Vert | D53: 4 | I53: Cap Vert | K53: 4 | N53: 0021 Fort William - - | T53: 1
A54: 0032 - Marina La Palma > Porto de Palmeira | D54: 1 | I54: 0065 Porto de Palmeira | K54: 1 | N54: 0025 Kinlochbervie - - | T54: 1
A55: 0066 - Porto de Palmeira > Porto Sal Rei | D55: 1 | I55: 0066 Porto Sal Rei | K55: 1 | N55: 0026 Kyleakin - - | O55: 1
A56: 0067 - Porto Sal Rei > Mindelo | D56: 1 | I56: 0067 Mindelo | K56: 1 | N56: 0027 Laggan Pier - - | T56: 1
A57: 0068 - Mindelo > Porto de Praia | D57: 1 | I57: 0068 Porto de Praia | K57: 1 | N57: 0036 Muir Town marina - - | R57: 1
A58: Madère | D58: 2 | I58: Madère | K58: 2 | N58: 0038 Oban Marina - Ardantrive Bay - Oban | R58: 1
A59: 0064 - Oeiras Marina > Porto Santo Port | D59: 1 | I59: 0063 Porto Santo Port | K59: 1 | N59: 0051 Steornabhagh - Stornoway - | T59: 1
A60: 0065 - Porto Santo Port > Machico | D60: 1 | I60: 0064 Machico | K60: 1 | N60: 0052 Stromness - Stromness Marina - | R60: 1
A61: 004 - Cap Vert > Le Marin | D61: 1 | I61: 004 - Cap Vert > Le Marin | K61: 1 | N61: 0054 Craobh Haven - Craobh Marina - | T61: 1
A62: Fr Martinique | D62: 1 | I62: Fr Martinique | K62: 1 | N62: 0055 Oban North - - Oban | T62: 1
A63: 0033 - Porto de Praia > Le Marin | D63: 1 | I63: 0033 Le Marin | K63: 1 | N63: 0056 Stornoway - Ancre - | T63: 1
A64: 006 - Le Marin > Panama | D64: 10 | I64: 006 - Le Marin > Panama | K64: 10 | N64: 0057 Kyle Harbor - Kyle of Lochalsh - | T64: 1
A65: Barbade | D65: 1 | I65: Barbade | K65: 1 | N65: 0058 Lochboisdale - - | T65: 1
A66: 0053 - Port Louis (Guadeloupe) Port > LittleGood Harbour | D66: 1 | I66: 0052 LittleGood Harbour | K66: 1 | N66: 0059 Loch Sealg - - | T66: 1
A67: Fr Guadeloupe | D67: 3 | I67: Fr Guadeloupe | K67: 3 | N67: 0060 Loch Bhrollum - - | T67: 1
A68: 0050 - Le Marin > Saint Louis | D68: 1 | I68: 0049 Saint Louis | K68: 1 | N68: 0061 The Sound - - | T68: 1
A69: 0051 - Saint Louis > Pointe a Pitre | D69: 1 | I69: 0050 Pointe a Pitre | K69: 1 | N69: 0062 Loch A' Bhraige - - | T69: 1
A70: 0052 - Pointe a Pitre > Port Louis (Guadeloupe) Port | D70: 1 | I70: 0051 Port Louis (Guadeloupe) Port | K70: 1 | N70: 0063 Loch Snizort Beag - - | T70: 1
A71: Panama | D71: 1 | I71: Panama | K71: 1 | N71: 0064 An Tairbeart - - | T71: 1
A72: 0059 - Bonaire > Bahia Shelter Marina | D72: 1 | I72: 0058 Bahia Shelter Marina | K72: 1 | N72: 0065 Bo Na Famachd - - | T72: 1
A73: Saint Vincent et les Grenadines | D73: 2 | I73: Saint Vincent et les Grenadines | K73: 2 | N73: 0066 Loch Maddy - - | T73: 1
A74: 0055 - Calliaqua Bay > Egmont | D74: 1 | I74: 0053 Calliaqua Bay | K74: 1 | N74: 0067 Port Nan Long - - | T74: 1
A75: 0054 - LittleGood Harbour > Calliaqua Bay | D75: 1 | I75: 0054 Egmont | K75: 1 | N75: 0068 Sandwick - - | T75: 1
A76: Venezuela | D76: 3 | I76: Venezuela | K76: 3 | N76: Fr Guadeloupe | T76: 4
A77: 0056 - Egmont > Aves de Barlovento | D77: 1 | I77: 0055 Aves de Barlovento | K77: 1 | N77: France | T77: 4
A78: 0057 - Aves de Barlovento > Ave de Sotavento | D78: 1 | I78: 0056 Ave de Sotavento | K78: 1 | N78: 0043 Pointe a Pitre - - Ile Guadeloupe | T78: 1
A79: 0058 - Ave de Sotavento > Bonaire | D79: 1 | I79: 0057 Bonaire | K79: 1 | N79: 0045 Port Louis (Guadeloupe) Mouil - - Ile Guadeloupe | T79: 1
A80: 007 - Panama > Panama | E80: 1 | I80: 007 - Panama > Panama | K80: 1 | N80: 0083 Port Louis (Guadeloupe) Port - - Ile Guadeloupe | T80: 1
A81: Panama | E81: 1 | I81: Panama | K81: 1 | N81: 0050 Saint Louis - - ile Marie Galante | T81: 1
A82: 0035 - Bahia Shelter Marina > La Playita | E82: 1 | I82: 0035 La Playita | K82: 1 | N82: Fr Martinique | T82: 1
A83: 016 - Darwin > Rodrigues | B83: 2 | I83: 016 - Darwin > Rodrigues | J83: 2 | N83: France | T83: 1
A84: Rodrigues | B84: 1 | I84: Rodrigues | J84: 1 | N84: 0029 Le Marin - - | T84: 1
A85: 0102 - Bantam > Port Mathurin | B85: 1 | I85: 0103 Port Mathurin | J85: 1 | N85: Fr Metro | T85: 3
A86: A Faire | B86: 1 | I86: A Faire | J86: 1 | N86: France | T86: 3
A87: 0101 - Darwin > Bantam | B87: 1 | I87: 0102 Bantam | J87: 1 | N87: 0008 Brest - - | T87: 1
A88: 017 - Rodrigues > Le Cap | B88: 4 | I88: 017 - Rodrigues > Le Cap | J88: 3 | N88: 0030 Les Glenans - - | T88: 1
A89: Affrique du Sud | B89: 2 | I89: Maurice | J89: 1 | N89: 0044 Port Louis - - | T89: 1
A90: 0105 - Port Mathurin > Durban | B90: 1 | I90: 0104 Port Louis (Maurice) | J90: 1 | N90: Fr Nouméa | P90: 1
A91: 0106 - Durban > Cape Town | B91: 1 | I91: Fr Réunion | J91: 1 | N91: France | P91: 1
A92: Maurice | B92: 1 | I92: 0105 Le Port | J92: 1 | N92: 0037 Nouméa - - | P92: 1
A93: 0103 - Port Mathurin > Port Louis (Maurice) | B93: 1 | I93: Affrique du Sud | J93: 1 | N93: Fr Polynésie | P93: 4 | R93: 1 | T93: 14
A94: Fr Réunion | B94: 1 | I94: 0106 Durban | J94: 1 | N94: France | P94: 4 | R94: 1 | T94: 14
A95: 0104 - Port Louis (Maurice) > Le Port | B95: 1 | I95: 018 - Le Cap > Cap Vert | J95: 5 | N95: 0034 Maupiti - - | P95: 1
A96: 018 - Le Cap > Cap Vert | B96: 4 | I96: Cap Vert | J96: 1 | N96: 0039 Ouvea - - | P96: 1
A97: Cap Vert | B97: 1 | I97: 0111 Porto de Praia | J97: 1 | N97: 0086 Rikitea Village - Gambier - ile mangareva | T97: 1
A98: 0110 - Baia de Sant Antonio > Porto de Praia | B98: 1 | I98: Royaume Uni | J98: 1 | N98: 0087 Amanu - Tuamotu - | T98: 1
A99: Royaume Uni | B99: 1 | I99: 0108 James Town | J99: 1 | N99: 0088 Raroia - Tuamotu - | T99: 1
A100: 0107 - Cape Town > James Town | B100: 1 | I100: Affrique du Sud | J100: 1 | N100: 0089 Makemo - Tuamotu - | T100: 1
A101: Sainte Helene | B101: 1 | I101: 0107 Cape Town | J101: 1 | N101: 0090 Tahanea - Tuamotu - | T101: 1
A102: 0108 - James Town > Cearence Bay | B102: 1 | I102: Sainte Helene | J102: 1 | N102: 0091 Toau - Tuamotu - | T102: 1
A103: Brésil | B103: 1 | I103: 0109 Cearence Bay | J103: 1 | N103: 0092 Manihi - Tuamotu - | T103: 1
A104: 0109 - Cearence Bay > Baia de Sant Antonio | B104: 1 | I104: Brésil | J104: 1 | N104: 0093 Tikehau - Tuamotu - | T104: 1
A105: 019 - Cap Vert > Port Louis | B105: 2 | I105: 0110 Baia de Sant Antonio | J105: 1 | N105: 0094 Tetiaroa - Tuamotu - Ile de la Societé | T105: 1
A106: Fr Metro | B106: 1 | I106: 019 - Cap Vert > Port Louis | J106: 2 | N106: 0095 Papeete - Tahiti - Ile de la Societé | R106: 1
A107: 0112 - Baia da Horta > Port Louis | B107: 1 | I107: Fr Metro | J107: 1 | N107: 0096 Baie d'opunohu - Moorea - Ile de la Societé | T107: 1
A108: Les Assores | B108: 1 | I108: 0113 Port Louis | J108: 1 | N108: 0097 Huahine - - Ile sous le Vent | T108: 1
A109: 0111 - Porto de Praia > Baia da Horta | B109: 1 | I109: Les Assores | J109: 1 | N109: 0098 Tahaa Raiatea - - Ile sous le Vent | T109: 1
A110: 008 - Panama > Polynésie Est | D110: 1 | I110: 0112 Baia da Horta | J110: 1 | N110: 0099 Bora Bora - - Ile sous le Vent | T110: 1
A111: Fr Polynésie | D111: 1 | I111: 008 - Panama > Polynésie Est | K111: 1 | N111: 0100 Rangiroa - Tuamotu - | T111: 1
A112: 0072 - La Playita > Rikitea Village | D112: 1 | I112: Fr Polynésie | K112: 1 | N112: 0104 Mata utu - - ile de Waulis | P112: 1
A113: 009 - Polynésie Est > Maupiti | D113: 15 | I113: 0072 Rikitea Village | K113: 1 | N113: 0105 Leava - - ile de futuna | P113: 1
A114: Fr Polynésie | D114: 15 | I114: 009 - Polynésie Est > Maupiti | K114: 15 | N114: Fr Réunion | P114: 1
A115: 0073 - Rikitea Village > Amanu | D115: 1 | I115: Fr Polynésie | K115: 15 | N115: France | P115: 1
A116: 0074 - Amanu > Raroia | D116: 1 | I116: 0038 Maupiti | K116: 1 | N116: 0114 Le Port - La Réunion - | P116: 1
A117: 0075 - Raroia > Makemo | D117: 1 | I117: 0073 Amanu | K117: 1 | N117: Galapagos | P117: 1
A118: 0076 - Makemo > Tahanea | D118: 1 | I118: 0074 Raroia | K118: 1 | N118: Equateur | P118: 1
A119: 0077 - Tahanea > Toau | D119: 1 | I119: 0075 Makemo | K119: 1 | N119: 0022 Galapagos - - | P119: 1
A120: 0078 - Toau > Manihi | D120: 1 | I120: 0076 Tahanea | K120: 1 | N120: Gibraltar Angleterre | P120: 1
A121: 0079 - Manihi > Rangiroa | D121: 1 | I121: 0077 Toau | K121: 1 | N121: Royaume Uni | P121: 1
A122: 0080 - Rangiroa > Tikehau | D122: 1 | I122: 0078 Manihi | K122: 1 | N122: 0023 Gibraltar - - | P122: 1
A123: 0081 - Tikehau > Tetiaroa | D123: 1 | I123: 0079 Rangiroa | K123: 1 | N123: Irlande Nord | R123: 1 | T123: 1
A124: 0082 - Tetiaroa > Papeete | D124: 1 | I124: 0080 Tikehau | K124: 1 | N124: Royaume Uni | R124: 1 | T124: 1
A125: 0083 - Papeete > Baie d'opunohu | D125: 1 | I125: 0081 Tetiaroa | K125: 1 | N125: 0002 Ardglass - Marina - | R125: 1
A126: 0084 - Baie d'opunohu > Huahine | D126: 1 | I126: 0082 Papeete | K126: 1 | N126: 0006 Belfast - Marina - | T126: 1
A127: 0085 - Huahine > Tahaa Raiatea | D127: 1 | I127: 0083 Baie d'opunohu | K127: 1 | N127: Irlande Sud | T127: 2
A128: 0086 - Tahaa Raiatea > Bora Bora | D128: 1 | I128: 0084 Huahine | K128: 1 | N128: - | T128: 2
A129: 0087 - Bora Bora > Maupiti | D129: 1 | I129: 0085 Tahaa Raiatea | K129: 1 | N129: 0017 Dublin - Dun Laoghaire - | T129: 1
A130: 010 - Maupiti > Nouméa | C130: 9 | D130: 3 | I130: 0086 Bora Bora | K130: 1 | N130: 0024 Kilmore - Kilmore Quay - | T130: 1
A131: Fr Nouméa | D131: 1 | I131: 010 - Maupiti > Nouméa | K131: 12 | N131: Les Assores | P131: 1
A132: 0099 - Kuto > Nouméa | D132: 1 | I132: Fr Nouméa | K132: 1 | N132: Portugal | P132: 1
A133: Fr Polynésie | C133: 2 | I133: 0100 Nouméa | K133: 1 | N133: 0121 Baia da Horta - Ilha do Faial - Horta | P133: 1
A134: 0091 - Savai'i > Mata utu | C134: 1 | I134: Fr Polynésie | K134: 2 | N134: Madère | P134: 1 | Q134: 2 | T134: 1
A135: 0092 - Mata utu > Leava | C135: 1 | I135: 0092 Mata utu | K135: 1 | N135: Portugal | P135: 1 | Q135: 2 | T135: 1
A136: Samoa Americaine | C136: 1 | I136: 0093 Leava | K136: 1 | N136: 0033 Madère - - Madère | P136: 1
A137: 0088 - Maupiti > Pago Pago Harbour | C137: 1 | I137: Samoa Americaine | K137: 1 | N137: 0071 Porto Santo Port - Porto Santo - Madère | Q137: 1
A138: A Faire | C138: 6 | D138: 2 | I138: 0089 Pago Pago Harbour | K138: 1 | N138: 0072 Porto Santo Mouil - Porto Santo - Madère | T138: 1
A139: 0089 - Pago Pago Harbour > Apia Harbour | C139: 1 | I139: A Faire | K139: 8 | N139: 0073 Machico - - Madère | Q139: 1
A140: 0090 - Apia Harbour > Savai'i | C140: 1 | I140: 0090 Apia Harbour | K140: 1 | N140: Maroc | O140: 1
A141: 0093 - Leava > Copra Shed Marina | C141: 1 | I141: 0091 Savai'i | K141: 1 | N141: - | O141: 1
A142: 0094 - Copra Shed Marina > West Minig | D142: 1 | I142: 0094 Copra Shed Marina | K142: 1 | N142: 0048 Rabat - - | O142: 1
A143: 0095 - West Minig > Hwaadrila | C143: 1 | I143: 0095 West Minig | K143: 1 | N143: Maurice | P143: 1
A144: 0096 - Hwaadrila > Chepenehe | D144: 1 | I144: 0096 Hwaadrila | K144: 1 | N144: ? | P144: 1
A145: 0097 - Chepenehe > Tadine | C145: 1 | I145: 0097 Chepenehe | K145: 1 | N145: 0117 Port Louis (Maurice) - - | P145: 1
A146: 0098 - Tadine > Kuto | C146: 1 | I146: 0098 Tadine | K146: 1 | N146: New Zeelande | P146: 1
A147: 015 - Sydney > Darwin | B147: 2 | I147: 0099 Kuto | K147: 1 | N147: - | P147: 1
A148: Australie | B148: 2 | I148: 015 - Sydney > Darwin | J148: 2 | N148: 0003 Auckland - - | P148: 1
A149: 0043 - Sydney > Cairns | B149: 1 | I149: Australie | J149: 2 | N149: Panama | O149: 1 | P149: 1 | T149: 3
A150: 0044 - Cairns > Darwin | B150: 1 | I150: 0043 Cairns | J150: 1 | N150: - | O150: 1 | P150: 1 | T150: 3
A151: 012 - Nouméa > Sydney | B151: 1 | I151: 0044 Darwin | J151: 1 | N151: 0040 Panama - - | P151: 1
A152: Australie | B152: 1 | I152: 012 - Nouméa > Sydney | J152: 1 | N152: 0041 Panama Entree - - | O152: 1
A153: 0100 - Nouméa > Sydney | B153: 1 | I153: Australie | J153: 1 | N153: 0083 Bahia Shelter - - | T153: 1
A154: Total général | B154: 15 | C154: 9 | D154: 65 | E154: 1 | F154: 4 | I154: 0101 Sydney | J154: 1 | N154: 0084 Bahia Shelter Marina - - | T154: 1
I155: Total général | J155: 15 | K155: 79 | N155: 0085 La Playita - Isla Perico - | T155: 1
N156: Portugal | T156: 1
N157: - | T157: 1
N158: 0032 Oeiras Marina - Oeiras - Lisbone | T158: 1
N159: Rodrigues | P159: 2
N160: Maurice | P160: 2
N161: 0049 Rodrigues - - | P161: 1
N162: 0113 Port Mathurin - Rodrigues - | P162: 1
N163: Royaume Uni | P163: 3 | R163: 2 | T163: 3
N164: - | P164: 3 | R164: 2 | T164: 3
N165: 0001 Archipel Scilly - Hugh Town - St Mary's Harbour | T165: 1
N166: 0013 Conwy - - | P166: 1
N167: 0035 Milford Gaven - - | P167: 1
N168: 0042 Peel - - | R168: 1
N169: 0047 Porthmadog - - | R169: 1
N170: 0069 Dale - - | T170: 1
N171: 0070 Holyhead - - | T171: 1
N172: 0118 James Town - Sainte Helene - | P172: 1
N173: Saint Vincent et les Grenadines | T173: 2
N174: - | T174: 2
N175: 0010 Calliaqua Bay - - | T175: 1
N176: 0018 Egmont - - | T176: 1
N177: Sainte Helene | P177: 1
N178: Royaume Uni | P178: 1
N179: 0119 Cearence Bay - Ascension Island - George Town | P179: 1
N180: Samoa Americaine | P180: 1
N181: USA | P181: 1
N182: 0101 Pago Pago Harbour - - Ile Samoa Americaine | P182: 1
N183: Venezuela | T183: 3
N184: - | T184: 3
N185: 0004 Ave de Sotavento - - | T185: 1
N186: 0005 Aves de Barlovento - - | T186: 1
N187: 0007 Bonaire - - | T187: 1
N188: Total général | O188: 3 | P188: 35 | Q188: 2 | R188: 10 | S188: 1 | T188: 67

Sheet Section
K1: Jours et nombre de Nav / Mois
G2: Na pas dépasser
G3: a revoir | J3: Étiquettes de colonnes
A4: Section Navigation | J4: 2022 | T4: 2023 | AR4: 2024 | BH4: Total j Nav | BI4: Total nb Nav
J5: Août | L5: Sept | N5: Oct | P5: Nov | R5: Déc | T5: Janv | V5: Févr | X5: Mars | Z5: Avr | AB5: Mai | AD5: Juin | AF5: Juil | AH5: Août | AJ5: Sept | AL5: Oct | AN5: Nov | AP5: Déc | AR5: Janv | AT5: Févr | AV5: Mars | AX5: Avr | AZ5: Mai | BB5: Juin | BD5: Juil | BF5: Août
A6: Conca Sect | B6: N° Section | C6: Description | D6: Depart | E6: Arrivée | F6: Date Depart | G6: Date Arrivé | I6: Étiquettes de lignes | J6: j Nav | K6: nb Nav | L6: j Nav | M6: nb Nav | N6: j Nav | O6: nb Nav | P6: j Nav | Q6: nb Nav | R6: j Nav | S6: nb Nav | T6: j Nav | U6: nb Nav | V6: j Nav | W6: nb Nav | X6: j Nav | Y6: nb Nav | Z6: j Nav | AA6: nb Nav | AB6: j Nav | AC6: nb Nav | AD6: j Nav | AE6: nb Nav | AF6: j Nav | AG6: nb Nav | AH6: j Nav | AI6: nb Nav | AJ6: j Nav | AK6: nb Nav | AL6: j Nav | AM6: nb Nav | AN6: j Nav | AO6: nb Nav | AP6: j Nav | AQ6: nb Nav | AR6: j Nav | AS6: nb Nav | AT6: j Nav | AU6: nb Nav | AV6: j Nav | AW6: nb Nav | AX6: j Nav | AY6: nb Nav | AZ6: j Nav | BA6: nb Nav | BB6: j Nav | BC6: nb Nav | BD6: j Nav | BE6: nb Nav | BF6: j Nav | BG6: nb Nav
A7: =_xlfn.CONCAT(tab_Section[[#This Row],[N° Section]]," - ",tab_Section[[#This Row],[Depart]], " > ",tab_Section[[#This Row],[Arrivée]]) -> 001 - Port Louis > Port Louis | B7: 001 | C7: Qualification | D7: Port Louis | E7: Port Louis | F7: Mi Mai 1 | G7: Fin Juin 1 | I7: 001 - Port Louis > Port Louis | J7: 11.265 | K7: 17 | L7: 8.78 | M7: 10 | BH7: 20.045 | BI7: 27
A8: =_xlfn.CONCAT(tab_Section[[#This Row],[N° Section]]," - ",tab_Section[[#This Row],[Depart]], " > ",tab_Section[[#This Row],[Arrivée]]) -> 001 agd - > | B8: 001 agd | C8: Avant Grd Depart | I8: 001 agd - > | L8: 0.03 | M8: 1 | BH8: 0.03 | BI8: 1
A9: =_xlfn.CONCAT(tab_Section[[#This Row],[N° Section]]," - ",tab_Section[[#This Row],[Depart]], " > ",tab_Section[[#This Row],[Arrivée]]) -> 002 - Port Louis > Lisbonne | B9: 002 | C9: Lisbonne | D9: Port Louis | E9: Lisbonne | F9: Mi Juillet 1 | G9: Sep 1 | I9: 002 - Port Louis > Lisbonne | N9: 5 | O9: 1 | BH9: 5 | BI9: 1
A10: =_xlfn.CONCAT(tab_Section[[#This Row],[N° Section]]," - ",tab_Section[[#This Row],[Depart]], " > ",tab_Section[[#This Row],[Arrivée]]) -> 003 - Lisbonne > Cap Vert | B10: 003 | C10: Cap Vert | D10: Lisbonne | E10: Cap Vert | F10: Oct 1 | G10: Novembre 1 | I10: 003 - Lisbonne > Cap Vert | N10: 4.4 | O10: 2 | P10: 12.95 | Q10: 7 | R10: 1.4 | S10: 1 | BH10: 18.75 | BI10: 10
A11: =_xlfn.CONCAT(tab_Section[[#This Row],[N° Section]]," - ",tab_Section[[#This Row],[Depart]], " > ",tab_Section[[#This Row],[Arrivée]]) -> 004 - Cap Vert > Le Marin | B11: 004 | C11: Martinique | D11: Cap Vert | E11: Le Marin | F11: Descembre 1 | G11: Fin Descembre 1 | I11: 004 - Cap Vert > Le Marin | R11: 17 | S11: 1 | BH11: 17 | BI11: 1
A12: =_xlfn.CONCAT(tab_Section[[#This Row],[N° Section]]," - ",tab_Section[[#This Row],[Depart]], " > ",tab_Section[[#This Row],[Arrivée]]) -> 006 - Le Marin > Panama | B12: 006 | C12: Acr Caraibein court | D12: Le Marin | E12: Panama | F12: Janvier 2 | G12: Fin Fevrier 2 | I12: 006 - Le Marin > Panama | T12: 1.725 | U12: 3 | V12: 8.025 | W12: 6 | X12: 7 | Y12: 1 | BH12: 16.75 | BI12: 10
A13: =_xlfn.CONCAT(tab_Section[[#This Row],[N° Section]]," - ",tab_Section[[#This Row],[Depart]], " > ",tab_Section[[#This Row],[Arrivée]]) -> 007 - Panama > Panama | B13: 007 | C13: Le Canal | D13: Panama | E13: Panama | F13: Mi Mars 2 | G13: Fin Mars Max 2 | I13: 007 - Panama > Panama | X13: 0.4 | Y13: 1 | BH13: 0.4 | BI13: 1
A14: =_xlfn.CONCAT(tab_Section[[#This Row],[N° Section]]," - ",tab_Section[[#This Row],[Depart]], " > ",tab_Section[[#This Row],[Arrivée]]) -> 008 - Panama > Polynésie Est | B14: 008 | C14: Les Gambiers | D14: Panama | E14: Polynésie Est | F14: Fin Mars Max 2 | G14: Mi Avril Max 2 | I14: 008 - Panama > Polynésie Est | Z14: 30 | AA14: 1 | BH14: 30 | BI14: 1
A15: =_xlfn.CONCAT(tab_Section[[#This Row],[N° Section]]," - ",tab_Section[[#This Row],[Depart]], " > ",tab_Section[[#This Row],[Arrivée]]) -> 009 - Polynésie Est > Maupiti | B15: 009 | C15: Polynésie Francaise | D15: Polynésie Est | E15: Maupiti | F15: Avril - Mai 2 | G15: Fin Juillet 2 | I15: 009 - Polynésie Est > Maupiti | AB15: 7.8 | AC15: 4 | AD15: 5.55 | AE15: 8 | AF15: 0.7 | AG15: 3 | BH15: 14.05 | BI15: 15
A16: =_xlfn.CONCAT(tab_Section[[#This Row],[N° Section]]," - ",tab_Section[[#This Row],[Depart]], " > ",tab_Section[[#This Row],[Arrivée]]) -> 010 - Maupiti > Nouméa | B16: 010 | C16: Nouvelle Caledonie | D16: Maupiti | E16: Nouméa | F16: Fin Juillet 2 | G16: Fin Aout 2 | I16: 010 - Maupiti > Nouméa | AH16: 20.3 | AI16: 4 | AJ16: 4.2 | AK16: 3 | AL16: 7.9 | AM16: 5 | BH16: 32.4 | BI16: 12
A17: =_xlfn.CONCAT(tab_Section[[#This Row],[N° Section]]," - ",tab_Section[[#This Row],[Depart]], " > ",tab_Section[[#This Row],[Arrivée]]) -> 012 - Nouméa > Sydney | B17: 012 | C17: Sydnez | D17: Nouméa | E17: Sydney | F17: Nombre 2 | G17: Fin Novembre 2 | I17: 012 - Nouméa > Sydney | AN17: 10 | AO17: 1 | BH17: 10 | BI17: 1
A18: =_xlfn.CONCAT(tab_Section[[#This Row],[N° Section]]," - ",tab_Section[[#This Row],[Depart]], " > ",tab_Section[[#This Row],[Arrivée]]) -> 015 - Sydney > Darwin | B18: 015 | C18: Darwin | D18: Sydney | E18: Darwin | F18: Avril 3 | G18: Fin Avril 3 | I18: 015 - Sydney > Darwin | AP18: 10 | AQ18: 1 | AR18: 10 | AS18: 1 | BH18: 20 | BI18: 2
A19: =_xlfn.CONCAT(tab_Section[[#This Row],[N° Section]]," - ",tab_Section[[#This Row],[Depart]], " > ",tab_Section[[#This Row],[Arrivée]]) -> 016 - Darwin > Rodrigues | B19: 016 | C19: Rodrigues | D19: Darwin | E19: Rodrigues | F19: Mai 3 | G19: Fin Juin 3 | I19: 016 - Darwin > Rodrigues | AR19: 16 | AS19: 1 | AT19: 15 | AU19: 1 | BH19: 31 | BI19: 2
A20: =_xlfn.CONCAT(tab_Section[[#This Row],[N° Section]]," - ",tab_Section[[#This Row],[Depart]], " > ",tab_Section[[#This Row],[Arrivée]]) -> 017 - Rodrigues > Le Cap | B20: 017 | C20: Le Cap | D20: Rodrigues | E20: Le Cap | F20: Fin Juin 3 | G20: Fin Aout 3 | I20: 017 - Rodrigues > Le Cap | AV20: 4.2 | AW20: 2 | AX20: 12 | AY20: 1 | BH20: 16.2 | BI20: 3
A21: =_xlfn.CONCAT(tab_Section[[#This Row],[N° Section]]," - ",tab_Section[[#This Row],[Depart]], " > ",tab_Section[[#This Row],[Arrivée]]) -> 018 - Le Cap > Cap Vert | B21: 018 | C21: Cap Vert | D21: Le Cap | E21: Cap Vert | I21: 018 - Le Cap > Cap Vert | AZ21: 7 | BA21: 1 | BB21: 19.5 | BC21: 2 | BD21: 24 | BE21: 2 | BH21: 50.5 | BI21: 5
A22: =_xlfn.CONCAT(tab_Section[[#This Row],[N° Section]]," - ",tab_Section[[#This Row],[Depart]], " > ",tab_Section[[#This Row],[Arrivée]]) -> 019 - Cap Vert > Port Louis | B22: 019 | C22: Port Louis | D22: Cap Vert | E22: Port Louis | I22: 019 - Cap Vert > Port Louis | BF22: 27 | BG22: 2 | BH22: 27 | BI22: 2
I23: Total général | J23: 11.265 | K23: 17 | L23: 8.81 | M23: 11 | N23: 9.4 | O23: 3 | P23: 12.95 | Q23: 7 | R23: 18.4 | S23: 2 | T23: 1.725 | U23: 3 | V23: 8.025 | W23: 6 | X23: 7.4 | Y23: 2 | Z23: 30 | AA23: 1 | AB23: 7.8 | AC23: 4 | AD23: 5.55 | AE23: 8 | AF23: 0.7 | AG23: 3 | AH23: 20.3 | AI23: 4 | AJ23: 4.2 | AK23: 3 | AL23: 7.9 | AM23: 5 | AN23: 10 | AO23: 1 | AP23: 10 | AQ23: 1 | AR23: 26 | AS23: 2 | AT23: 15 | AU23: 1 | AV23: 4.2 | AW23: 2 | AX23: 12 | AY23: 1 | AZ23: 7 | BA23: 1 | BB23: 19.5 | BC23: 2 | BD23: 24 | BE23: 2 | BF23: 27 | BG23: 2 | BH23: 309.125 | BI23: 94
A26: Archives
A27: =_xlfn.CONCAT(tab_Section[[#This Row],[N° Section]]," - ",tab_Section[[#This Row],[Depart]], " > ",tab_Section[[#This Row],[Arrivée]]) ->  | B27: 005 | C27: Acr Caraibein long | D27: Le Marin | E27: Panama
A28: =_xlfn.CONCAT(tab_Section[[#This Row],[N° Section]]," - ",tab_Section[[#This Row],[Depart]], " > ",tab_Section[[#This Row],[Arrivée]]) ->  | B28: 011 | C28: Nouvelle Caledonie | D28: Ouvea | E28: Nouméa | F28: Septembre 2 | G28: Fin Octobre 2
A29: =_xlfn.CONCAT(tab_Section[[#This Row],[N° Section]]," - ",tab_Section[[#This Row],[Depart]], " > ",tab_Section[[#This Row],[Arrivée]]) ->  | B29: 012 | C29: Nouvelle zeelande | D29: Nouméa | E29: Auckland | F29: Nombre 2 | G29: Fin Novembre 2
A30: =_xlfn.CONCAT(tab_Section[[#This Row],[N° Section]]," - ",tab_Section[[#This Row],[Depart]], " > ",tab_Section[[#This Row],[Arrivée]]) ->  | B30: 013 | C30: Sydney | D30: Auckland | E30: Sydney | F30: Descembre 2 | G30: Fevrier 3
A31: =_xlfn.CONCAT(tab_Section[[#This Row],[N° Section]]," - ",tab_Section[[#This Row],[Depart]], " > ",tab_Section[[#This Row],[Arrivée]]) ->  | B31: 014 | C31: Australie | D31: Sydney | E31: Cairns | F31: Mars 3 | G31: Mars 3

Sheet Navigation
A1: 1 | B1: 2 | C1: 3 | D1: 4 | E1: 5 | F1: 6 | G1: 7 | H1: 8 | I1: 9 | J1: 10 | K1: 11 | L1: 12 | M1: 13 | N1: 14 | O1: 15 | P1: 16 | Q1: 17 | R1: 18 | S1: 19 | T1: 20 | U1: 21 | V1: 22 | W1: 23 | X1: 24 | Y1: 25 | Z1: 26 | AA1: 27 | AB1: 28 | AC1: 29 | AD1: 31 | AE1: 33 | AF1: 34 | AG1: 35
A2: Navigation | D2: Navigation | AB2: Mouillage
G3: Départ | I3: Nav | K3: Arrivée | P3: 1er date en dure | U3: Voile | W3: Moteur
A4: Conca Nav | B4: Section | C4: N° Nav | D4: Départ | E4: Arrivée | F4: Pays | G4: Dep Km | H4: Dep Mn | I4: Nav Km | J4: Nav Mn | K4: Arr Km | L4: Arr Mn | M4: Mn Nav Total | N4: J Navig | O4: J Escale | P4: Date Départ | Q4: Date Arrivée | R4: Vitesse Nav | S4: Etat Planif Nab | T4: Type de Route | U4: Rap Nav Voil | V4: Mn Nav Voil | W4: Rap Nav Mot | X4: Mn Nav Mot | Y4: Mn Approch Mot | Z4: Mn Total Mot | AA4: Cout Carbu | AB4: Type Mouillage | AC4: J Cumul | AD4: Sol Nav2 | AE4: Ann | AF4: Mois | AG4: Sem
A5: =CONCATENATE(tab_Navigation[[#This Row],[N° Nav]]," - ",tab_Navigation[[#This Row],[Départ]]," > ",tab_Navigation[[#This Row],[Arrivée]]) -> 0001 - Port Louis > Les Glenans | B5: 001 - Port Louis > Port Louis | C5: 0001 | D5: Port Louis | E5: Les Glenans | F5: =VLOOKUP(tab_Navigation[[#This Row],[Arrivée]],tab_Port_Mouillage[],6,FALSE) -> Fr Metro | G5: 2 | H5: =tab_Navigation[[#This Row],[Dep Km]]/1.852 -> 1.079913607 | I5: 72 | J5: =tab_Navigation[[#This Row],[Nav Km]]/1.852 -> 38.87688985 | K5: 0 | L5: =tab_Navigation[[#This Row],[Arr Km]]/1.852 -> 0 | M5: =tab_Navigation[[#This Row],[Dep Mn]]+tab_Navigation[[#This Row],[Nav Mn]]+tab_Navigation[[#This Row],[Arr Mn]] -> 39.95680346 | N5: 0.5 | O5: =VLOOKUP(tab_Navigation[[#This Row],[Arrivée]],tab_Escale[[Nom Escale]:[Jour]],5,FALSE) -> 0.8 | P5: 2022-08-01T06:00:00 | Q5: =tab_Navigation[[#This Row],[Date Départ]]+tab_Navigation[[#This Row],[J Navig]] -> 2022-08-01T18:00:00 | R5: =tab_Navigation[[#This Row],[Mn Nav Total]]/(tab_Navigation[[#This Row],[J Navig]]*24) -> 3.329733621 | S5: 2.9 | T5: 01 - Voile selon Cond. | U5: 0.9 | V5: =tab_Navigation[[#This Row],[Nav Mn]]*tab_Navigation[[#This Row],[Rap Nav Voil]] -> 34.98920086 | W5: =1-tab_Navigation[[#This Row],[Rap Nav Voil]] -> 0.1 | X5: =tab_Navigation[[#This Row],[Nav Mn]]*tab_Navigation[[#This Row],[Rap Nav Mot]] -> 3.887688985 | Y5: =tab_Navigation[[#This Row],[Dep Mn]]+tab_Navigation[[#This Row],[Arr Mn]] -> 1.079913607 | Z5: =tab_Navigation[[#This Row],[Mn Nav Mot]]+tab_Navigation[[#This Row],[Mn Approch Mot]] -> 4.967602592 | AA5: =tab_Navigation[[#This Row],[Mn Total Mot]]*'Variable Constante'!$F$6*'Variable Constante'!$E$10 -> 12.91576674 | AB5: =VLOOKUP(tab_Navigation[[#This Row],[Arrivée]],tab_Port_Mouillage[],9,FALSE) -> 05 - Coffre Free | AC5: =VLOOKUP(tab_Navigation[[#This Row],[Conca Nav]],tab_Escale[[Nav Precedante]:[Nom Jour]],14,FALSE) -> 1.5 | AD5: 1 | AE5: =YEAR(tab_Navigation[[#This Row],[Date Arrivée]]) -> 2022 | AF5: =MONTH(tab_Navigation[[#This Row],[Date Arrivée]]) -> 8 | AG5: =WEEKNUM(tab_Navigation[[#This Row],[Date Arrivée]],2) -> 32
A6: =CONCATENATE(tab_Navigation[[#This Row],[N° Nav]]," - ",tab_Navigation[[#This Row],[Départ]]," > ",tab_Navigation[[#This Row],[Arrivée]]) -> 0002 - Les Glenans > Brest | B6: 001 - Port Louis > Port Louis | C6: 0002 | D6: Les Glenans | E6: Brest | F6: =VLOOKUP(tab_Navigation[[#This Row],[Arrivée]],tab_Port_Mouillage[],6,FALSE) -> Fr Metro | G6: 0 | H6: =tab_Navigation[[#This Row],[Dep Km]]/1.852 -> 0 | I6: 100 | J6: =tab_Navigation[[#This Row],[Nav Km]]/1.852 -> 53.99568035 | K6: 2 | L6: =tab_Navigation[[#This Row],[Arr Km]]/1.852 -> 1.079913607 | M6: =tab_Navigation[[#This Row],[Dep Mn]]+tab_Navigation[[#This Row],[Nav Mn]]+tab_Navigation[[#This Row],[Arr Mn]] -> 55.07559395 | N6: 0.75 | O6: =VLOOKUP(tab_Navigation[[#This Row],[Arrivée]],tab_Escale[[Nom Escale]:[Jour]],5,FALSE) -> 0.4 | P6: =Q5+O6 -> 2022-08-02T03:36:00 | Q6: =tab_Navigation[[#This Row],[Date Départ]]+tab_Navigation[[#This Row],[J Navig]] -> 2022-08-02T21:36:00 | R6: =tab_Navigation[[#This Row],[Mn Nav Total]]/(tab_Navigation[[#This Row],[J Navig]]*24) -> 3.05975522 | S6: 2.9 | T6: 01 - Voile selon Cond. | U6: 0.95 | V6: =tab_Navigation[[#This Row],[Nav Mn]]*tab_Navigation[[#This Row],[Rap Nav Voil]] -> 51.29589633 | W6: =1-tab_Navigation[[#This Row],[Rap Nav Voil]] -> 0.05 | X6: =tab_Navigation[[#This Row],[Nav Mn]]*tab_Navigation[[#This Row],[Rap Nav Mot]] -> 2.699784017 | Y6: =tab_Navigation[[#This Row],[Dep Mn]]+tab_Navigation[[#This Row],[Arr Mn]] -> 1.079913607 | Z6: =tab_Navigation[[#This Row],[Mn Nav Mot]]+tab_Navigation[[#This Row],[Mn Approch Mot]] -> 3.779697624 | AA6: =tab_Navigation[[#This Row],[Mn Total Mot]]*'Variable Constante'!$F$6*'Variable Constante'!$E$10 -> 9.827213823 | AB6: =VLOOKUP(tab_Navigation[[#This Row],[Arrivée]],tab_Port_Mouillage[],9,FALSE) -> 01 - Port Plein Eau Pay | AC6: =VLOOKUP(tab_Navigation[[#This Row],[Conca Nav]],tab_Escale[[Nav Precedante]:[Nom Jour]],14,FALSE) -> 2.65 | AD6: 2 | AE6: =YEAR(tab_Navigation[[#This Row],[Date Arrivée]]) -> 2022 | AF6: =MONTH(tab_Navigation[[#This Row],[Date Arrivée]]) -> 8 | AG6: =WEEKNUM(tab_Navigation[[#This Row],[Date Arrivée]],2) -> 32
A7: =CONCATENATE(tab_Navigation[[#This Row],[N° Nav]]," - ",tab_Navigation[[#This Row],[Départ]]," > ",tab_Navigation[[#This Row],[Arrivée]]) -> 0003 - Brest > Archipel Scilly | B7: 001 - Port Louis > Port Louis | C7: 0003 | D7: Brest | E7: Archipel Scilly | F7: =VLOOKUP(tab_Navigation[[#This Row],[Arrivée]],tab_Port_Mouillage[],6,FALSE) -> Royaume Uni | G7: 1 | H7: =tab_Navigation[[#This Row],[Dep Km]]/1.852 -> 0.5399568035 | I7: 210 | J7: =tab_Navigation[[#This Row],[Nav Km]]/1.852 -> 113.3909287 | K7: 1 | L7: =tab_Navigation[[#This Row],[Arr Km]]/1.852 -> 0.5399568035 | M7: =tab_Navigation[[#This Row],[Dep Mn]]+tab_Navigation[[#This Row],[Nav Mn]]+tab_Navigation[[#This Row],[Arr Mn]] -> 114.4708423 | N7: 1.5 | O7: =VLOOKUP(tab_Navigation[[#This Row],[Arrivée]],tab_Escale[[Nom Escale]:[Jour]],5,FALSE) -> 2.3 | P7: =Q6+O7 -> 2022-08-05T04:48:00 | Q7: =tab_Navigation[[#This Row],[Date Départ]]+tab_Navigation[[#This Row],[J Navig]] -> 2022-08-06T16:48:00 | R7: =tab_Navigation[[#This Row],[Mn Nav Total]]/(tab_Navigation[[#This Row],[J Navig]]*24) -> 3.17974562 | S7: 2.9 | T7: 01 - Voile selon Cond. | U7: 0.95 | V7: =tab_Navigation[[#This Row],[Nav Mn]]*tab_Navigation[[#This Row],[Rap Nav Voil]] -> 107.7213823 | W7: =1-tab_Navigation[[#This Row],[Rap Nav Voil]] -> 0.05 | X7: =tab_Navigation[[#This Row],[Nav Mn]]*tab_Navigation[[#This Row],[Rap Nav Mot]] -> 5.669546436 | Y7: =tab_Navigation[[#This Row],[Dep Mn]]+tab_Navigation[[#This Row],[Arr Mn]] -> 1.079913607 | Z7: =tab_Navigation[[#This Row],[Mn Nav Mot]]+tab_Navigation[[#This Row],[Mn Approch Mot]] -> 6.749460043 | AA7: =tab_Navigation[[#This Row],[Mn Total Mot]]*'Variable Constante'!$F$6*'Variable Constante'!$E$10 -> 17.54859611 | AB7: =VLOOKUP(tab_Navigation[[#This Row],[Arrivée]],tab_Port_Mouillage[],9,FALSE) -> 02 - Coffre Pay | AC7: =VLOOKUP(tab_Navigation[[#This Row],[Conca Nav]],tab_Escale[[Nav Precedante]:[Nom Jour]],14,FALSE) -> 6.45 | AD7: 3 | AE7: =YEAR(tab_Navigation[[#This Row],[Date Arrivée]]) -> 2022 | AF7: =MONTH(tab_Navigation[[#This Row],[Date Arrivée]]) -> 8 | AG7: =WEEKNUM(tab_Navigation[[#This Row],[Date Arrivée]],2) -> 32
A8: =CONCATENATE(tab_Navigation[[#This Row],[N° Nav]]," - ",tab_Navigation[[#This Row],[Départ]]," > ",tab_Navigation[[#This Row],[Arrivée]]) -> 0004 - Archipel Scilly > Kilmore | B8: 001 - Port Louis > Port Louis | C8: 0004 | D8: Archipel Scilly | E8: Kilmore | F8: =VLOOKUP(tab_Navigation[[#This Row],[Arrivée]],tab_Port_Mouillage[],6,FALSE) -> Irlande Sud | G8: 1 | H8: =tab_Navigation[[#This Row],[Dep Km]]/1.852 -> 0.5399568035 | I8: 243 | J8: =tab_Navigation[[#This Row],[Nav Km]]/1.852 -> 131.2095032 | K8: 6 | L8: =tab_Navigation[[#This Row],[Arr Km]]/1.852 -> 3.239740821 | M8: =tab_Navigation[[#This Row],[Dep Mn]]+tab_Navigation[[#This Row],[Nav Mn]]+tab_Navigation[[#This Row],[Arr Mn]] -> 134.9892009 | N8: 1.5 | O8: =VLOOKUP(tab_Navigation[[#This Row],[Arrivée]],tab_Escale[[Nom Escale]:[Jour]],5,FALSE) -> 1 | P8: 2022-08-07T16:48:00 | Q8: =tab_Navigation[[#This Row],[Date Départ]]+tab_Navigation[[#This Row],[J Navig]] -> 2022-08-09T04:48:00 | R8: =tab_Navigation[[#This Row],[Mn Nav Total]]/(tab_Navigation[[#This Row],[J Navig]]*24) -> 3.749700024 | S8: 2.9 | T8: 01 - Voile selon Cond. | U8: 0.95 | V8: =tab_Navigation[[#This Row],[Nav Mn]]*tab_Navigation[[#This Row],[Rap Nav Voil]] -> 124.6490281 | W8: =1-tab_Navigation[[#This Row],[Rap Nav Voil]] -> 0.05 | X8: =tab_Navigation[[#This Row],[Nav Mn]]*tab_Navigation[[#This Row],[Rap Nav Mot]] -> 6.560475162 | Y8: =tab_Navigation[[#This Row],[Dep Mn]]+tab_Navigation[[#This Row],[Arr Mn]] -> 3.779697624 | Z8: =tab_Navigation[[#This Row],[Mn Nav Mot]]+tab_Navigation[[#This Row],[Mn Approch Mot]] -> 10.34017279 | AA8: =tab_Navigation[[#This Row],[Mn Total Mot]]*'Variable Constante'!$F$6*'Variable Constante'!$E$10 -> 26.88444924 | AB8: =VLOOKUP(tab_Navigation[[#This Row],[Arrivée]],tab_Port_Mouillage[],9,FALSE) -> 01 - Port Plein Eau Pay | AC8: =VLOOKUP(tab_Navigation[[#This Row],[Conca Nav]],tab_Escale[[Nav Precedante]:[Nom Jour]],14,FALSE) -> 8.95 | AD8: 4 | AE8: =YEAR(tab_Navigation[[#This Row],[Date Arrivée]]) -> 2022 | AF8: =MONTH(tab_Navigation[[#This Row],[Date Arrivée]]) -> 8 | AG8: =WEEKNUM(tab_Navigation[[#This Row],[Date Arrivée]],2) -> 33
A9: =CONCATENATE(tab_Navigation[[#This Row],[N° Nav]]," - ",tab_Navigation[[#This Row],[Départ]]," > ",tab_Navigation[[#This Row],[Arrivée]]) -> 0005 - Kilmore > Dublin | B9: 001 - Port Louis > Port Louis | C9: 0005 | D9: Kilmore | E9: Dublin | F9: =VLOOKUP(tab_Navigation[[#This Row],[Arrivée]],tab_Port_Mouillage[],6,FALSE) -> Irlande Sud | G9: 1 | H9: =tab_Navigation[[#This Row],[Dep Km]]/1.852 -> 0.5399568035 | I9: 168 | J9: =tab_Navigation[[#This Row],[Nav Km]]/1.852 -> 90.71274298 | K9: 1 | L9: =tab_Navigation[[#This Row],[Arr Km]]/1.852 -> 0.5399568035 | M9: =tab_Navigation[[#This Row],[Dep Mn]]+tab_Navigation[[#This Row],[Nav Mn]]+tab_Navigation[[#This Row],[Arr Mn]] -> 91.79265659 | N9: 1 | O9: =VLOOKUP(tab_Navigation[[#This Row],[Arrivée]],tab_Escale[[Nom Escale]:[Jour]],5,FALSE) -> 3.8 | P9: 2022-08-13 | Q9: =tab_Navigation[[#This Row],[Date Départ]]+tab_Navigation[[#This Row],[J Navig]] -> 2022-08-14 | R9: =tab_Navigation[[#This Row],[Mn Nav Total]]/(tab_Navigation[[#This Row],[J Navig]]*24) -> 3.824694024 | S9: 2.1 | T9: 01 - Voile selon Cond. | U9: 0.95 | V9: =tab_Navigation[[#This Row],[Nav Mn]]*tab_Navigation[[#This Row],[Rap Nav Voil]] -> 86.17710583 | W9: =1-tab_Navigation[[#This Row],[Rap Nav Voil]] -> 0.05 | X9: =tab_Navigation[[#This Row],[Nav Mn]]*tab_Navigation[[#This Row],[Rap Nav Mot]] -> 4.535637149 | Y9: =tab_Navigation[[#This Row],[Dep Mn]]+tab_Navigation[[#This Row],[Arr Mn]] -> 1.079913607 | Z9: =tab_Navigation[[#This Row],[Mn Nav Mot]]+tab_Navigation[[#This Row],[Mn Approch Mot]] -> 5.615550756 | AA9: =tab_Navigation[[#This Row],[Mn Total Mot]]*'Variable Constante'!$F$6*'Variable Constante'!$E$10 -> 14.60043197 | AB9: =VLOOKUP(tab_Navigation[[#This Row],[Arrivée]],tab_Port_Mouillage[],9,FALSE) -> 01 - Port Plein Eau Pay | AC9: =VLOOKUP(tab_Navigation[[#This Row],[Conca Nav]],tab_Escale[[Nav Precedante]:[Nom Jour]],14,FALSE) -> 13.75 | AD9: 5 | AE9: =YEAR(tab_Navigation[[#This Row],[Date Arrivée]]) -> 2022 | AF9: =MONTH(tab_Navigation[[#This Row],[Date Arrivée]]) -> 8 | AG9: =WEEKNUM(tab_Navigation[[#This Row],[Date Arrivée]],2) -> 33
A10: =CONCATENATE(tab_Navigation[[#This Row],[N° Nav]]," - ",tab_Navigation[[#This Row],[Départ]]," > ",tab_Navigation[[#This Row],[Arrivée]]) -> 0006 - Dublin > Ardglass | B10: 001 - Port Louis > Port Louis | C10: 0006 | D10: Dublin | E10: Ardglass | F10: =VLOOKUP(tab_Navigation[[#This Row],[Arrivée]],tab_Port_Mouillage[],6,FALSE) -> Irlande Nord | G10: 1 | H10: =tab_Navigation[[#This Row],[Dep Km]]/1.852 -> 0.5399568035 | I10: 114 | J10: =tab_Navigation[[#This Row],[Nav Km]]/1.852 -> 61.55507559 | K10: 1 | L10: =tab_Navigation[[#This Row],[Arr Km]]/1.852 -> 0.5399568035 | M10: =tab_Navigation[[#This Row],[Dep Mn]]+tab_Navigation[[#This Row],[Nav Mn]]+tab_Navigation[[#This Row],[Arr Mn]] -> 62.6349892 | N10: 0.75 | O10: =VLOOKUP(tab_Navigation[[#This Row],[Arrivée]],tab_Escale[[Nom Escale]:[Jour]],5,FALSE) -> 1.2 | P10: 2022-08-15T04:48:00 | Q10: =tab_Navigation[[#This Row],[Date Départ]]+tab_Navigation[[#This Row],[J Navig]] -> 2022-08-15T22:48:00 | R10: =tab_Navigation[[#This Row],[Mn Nav Total]]/(tab_Navigation[[#This Row],[J Navig]]*24) -> 3.479721622 | S10: 2.1 | T10: 01 - Voile selon Cond. | U10: 0.95 | V10: =tab_Navigation[[#This Row],[Nav Mn]]*tab_Navigation[[#This Row],[Rap Nav Voil]] -> 58.47732181 | W10: =1-tab_Navigation[[#This Row],[Rap Nav Voil]] -> 0.05 | X10: =tab_Navigation[[#This Row],[Nav Mn]]*tab_Navigation[[#This Row],[Rap Nav Mot]] -> 3.07775378 | Y10: =tab_Navigation[[#This Row],[Dep Mn]]+tab_Navigation[[#This Row],[Arr Mn]] -> 1.079913607 | Z10: =tab_Navigation[[#This Row],[Mn Nav Mot]]+tab_Navigation[[#This Row],[Mn Approch Mot]] -> 4.157667387 | AA10: =tab_Navigation[[#This Row],[Mn Total Mot]]*'Variable Constante'!$F$6*'Variable Constante'!$E$10 -> 10.80993521 | AB10: =VLOOKUP(tab_Navigation[[#This Row],[Arrivée]],tab_Port_Mouillage[],9,FALSE) -> 01 - Port Plein Eau Pay | AC10: =VLOOKUP(tab_Navigation[[#This Row],[Conca Nav]],tab_Escale[[Nav Precedante]:[Nom Jour]],14,FALSE) -> 15.7 | AD10: 6 | AE10: =YEAR(tab_Navigation[[#This Row],[Date Arrivée]]) -> 2022 | AF10: =MONTH(tab_Navigation[[#This Row],[Date Arrivée]]) -> 8 | AG10: =WEEKNUM(tab_Navigation[[#This Row],[Date Arrivée]],2) -> 34
A11: =CONCATENATE(tab_Navigation[[#This Row],[N° Nav]]," - ",tab_Navigation[[#This Row],[Départ]]," > ",tab_Navigation[[#This Row],[Arrivée]]) -> 0007 - Ardglass > Belfast | B11: 001 - Port Louis > Port Louis | C11: 0007 | D11: Ardglass | E11: Belfast | F11: =VLOOKUP(tab_Navigation[[#This Row],[Arrivée]],tab_Port_Mouillage[],6,FALSE) -> Irlande Nord | G11: 1 | H11: =tab_Navigation[[#This Row],[Dep Km]]/1.852 -> 0.5399568035 | I11: 70 | J11: =tab_Navigation[[#This Row],[Nav Km]]/1.852 -> 37.79697624 | K11: 1 | L11: =tab_Navigation[[#This Row],[Arr Km]]/1.852 -> 0.5399568035 | M11: =tab_Navigation[[#This Row],[Dep Mn]]+tab_Navigation[[#This Row],[Nav Mn]]+tab_Navigation[[#This Row],[Arr Mn]] -> 38.87688985 | N11: 0.5 | O11: =VLOOKUP(tab_Navigation[[#This Row],[Arrivée]],tab_Escale[[Nom Escale]:[Jour]],5,FALSE) -> 1.3 | P11: 2022-08-17T06:00:00 | Q11: =tab_Navigation[[#This Row],[Date Départ]]+tab_Navigation[[#This Row],[J Navig]] -> 2022-08-17T18:00:00 | R11: =tab_Navigation[[#This Row],[Mn Nav Total]]/(tab_Navigation[[#This Row],[J Navig]]*24) -> 3.239740821 | S11: 2.1 | T11: 01 - Voile selon Cond. | U11: 0.95 | V11: =tab_Navigation[[#This Row],[Nav Mn]]*tab_Navigation[[#This Row],[Rap Nav Voil]] -> 35.90712743 | W11: =1-tab_Navigation[[#This Row],[Rap Nav Voil]] -> 0.05 | X11: =tab_Navigation[[#This Row],[Nav Mn]]*tab_Navigation[[#This Row],[Rap Nav Mot]] -> 1.889848812 | Y11: =tab_Navigation[[#This Row],[Dep Mn]]+tab_Navigation[[#This Row],[Arr Mn]] -> 1.079913607 | Z11: =tab_Navigation[[#This Row],[Mn Nav Mot]]+tab_Navigation[[#This Row],[Mn Approch Mot]] -> 2.969762419 | AA11: =tab_Navigation[[#This Row],[Mn Total Mot]]*'Variable Constante'!$F$6*'Variable Constante'!$E$10 -> 7.721382289 | AB11: =VLOOKUP(tab_Navigation[[#This Row],[Arrivée]],tab_Port_Mouillage[],9,FALSE) -> 01 - Port Plein Eau Pay | AC11: =VLOOKUP(tab_Navigation[[#This Row],[Conca Nav]],tab_Escale[[Nav Precedante]:[Nom Jour]],14,FALSE) -> 17.5 | AD11: 7 | AE11: =YEAR(tab_Navigation[[#This Row],[Date Arrivée]]) -> 2022 | AF11: =MONTH(tab_Navigation[[#This Row],[Date Arrivée]]) -> 8 | AG11: =WEEKNUM(tab_Navigation[[#This Row],[Date Arrivée]],2) -> 34
A12: =CONCATENATE(tab_Navigation[[#This Row],[N° Nav]]," - ",tab_Navigation[[#This Row],[Départ]]," > ",tab_Navigation[[#This Row],[Arrivée]]) -> 0008 - Belfast > Craighouse | B12: 001 - Port Louis > Port Louis | C12: 0008 | D12: Belfast | E12: Craighouse | F12: =VLOOKUP(tab_Navigation[[#This Row],[Arrivée]],tab_Port_Mouillage[],6,FALSE) -> Ecosse | G12: 1 | H12: =tab_Navigation[[#This Row],[Dep Km]]/1.852 -> 0.5399568035 | I12: 131 | J12: =tab_Navigation[[#This Row],[Nav Km]]/1.852 -> 70.73434125 | K12: 1 | L12: =tab_Navigation[[#This Row],[Arr Km]]/1.852 -> 0.5399568035 | M12: =tab_Navigation[[#This Row],[Dep Mn]]+tab_Navigation[[#This Row],[Nav Mn]]+tab_Navigation[[#This Row],[Arr Mn]] -> 71.81425486 | N12: 0.75 | O12: =VLOOKUP(tab_Navigation[[#This Row],[Arrivée]],tab_Escale[[Nom Escale]:[Jour]],5,FALSE) -> 1 | P12: 2022-08-18T18:00:00 | Q12: =tab_Navigation[[#This Row],[Date Départ]]+tab_Navigation[[#This Row],[J Navig]] -> 2022-08-19T12:00:00 | R12: =tab_Navigation[[#This Row],[Mn Nav Total]]/(tab_Navigation[[#This Row],[J Navig]]*24) -> 3.989680826 | S12: 2.1 | T12: 01 - Voile selon Cond. | U12: 0.95 | V12: =tab_Navigation[[#This Row],[Nav Mn]]*tab_Navigation[[#This Row],[Rap Nav Voil]] -> 67.19762419 | W12: =1-tab_Navigation[[#This Row],[Rap Nav Voil]] -> 0.05 | X12: =tab_Navigation[[#This Row],[Nav Mn]]*tab_Navigation[[#This Row],[Rap Nav Mot]] -> 3.536717063 | Y12: =tab_Navigation[[#This Row],[Dep Mn]]+tab_Navigation[[#This Row],[Arr Mn]] -> 1.079913607 | Z12: =tab_Navigation[[#This Row],[Mn Nav Mot]]+tab_Navigation[[#This Row],[Mn Approch Mot]] -> 4.61663067 | AA12: =tab_Navigation[[#This Row],[Mn Total Mot]]*'Variable Constante'!$F$6*'Variable Constante'!$E$10 -> 12.00323974 | AB12: =VLOOKUP(tab_Navigation[[#This Row],[Arrivée]],tab_Port_Mouillage[],9,FALSE) -> 06 - Mouillage Free | AC12: =VLOOKUP(tab_Navigation[[#This Row],[Conca Nav]],tab_Escale[[Nav Precedante]:[Nom Jour]],14,FALSE) -> 19.25 | AD12: 8 | AE12: =YEAR(tab_Navigation[[#This Row],[Date Arrivée]]) -> 2022 | AF12: =MONTH(tab_Navigation[[#This Row],[Date Arrivée]]) -> 8 | AG12: =WEEKNUM(tab_Navigation[[#This Row],[Date Arrivée]],2) -> 34
A13: =CONCATENATE(tab_Navigation[[#This Row],[N° Nav]]," - ",tab_Navigation[[#This Row],[Départ]]," > ",tab_Navigation[[#This Row],[Arrivée]]) -> 0009 - Craighouse > Crinan | B13: 001 - Port Louis > Port Louis | C13: 0009 | D13: Craighouse | E13: Crinan | F13: =VLOOKUP(tab_Navigation[[#This Row],[Arrivée]],tab_Port_Mouillage[],6,FALSE) -> Ecosse | G13: 1 | H13: =tab_Navigation[[#This Row],[Dep Km]]/1.852 -> 0.5399568035 | I13: 38 | J13: =tab_Navigation[[#This Row],[Nav Km]]/1.852 -> 20.51835853 | K13: 1 | L13: =tab_Navigation[[#This Row],[Arr Km]]/1.852 -> 0.5399568035 | M13: =tab_Navigation[[#This Row],[Dep Mn]]+tab_Navigation[[#This Row],[Nav Mn]]+tab_Navigation[[#This Row],[Arr Mn]] -> 21.59827214 | N13: 0.25 | O13: =VLOOKUP(tab_Navigation[[#This Row],[Arrivée]],tab_Escale[[Nom Escale]:[Jour]],5,FALSE) -> 0.7 | P13: 2022-08-20T04:48:00 | Q13: =tab_Navigation[[#This Row],[Date Départ]]+tab_Navigation[[#This Row],[J Navig]] -> 2022-08-20T10:48:00 | R13: =tab_Navigation[[#This Row],[Mn Nav Total]]/(tab_Navigation[[#This Row],[J Navig]]*24) -> 3.599712023 | S13: 2.1 | T13: 01 - Voile selon Cond. | U13: 0.95 | V13: =tab_Navigation[[#This Row],[Nav Mn]]*tab_Navigation[[#This Row],[Rap Nav Voil]] -> 19.4924406 | W13: =1-tab_Navigation[[#This Row],[Rap Nav Voil]] -> 0.05 | X13: =tab_Navigation[[#This Row],[Nav Mn]]*tab_Navigation[[#This Row],[Rap Nav Mot]] -> 1.025917927 | Y13: =tab_Navigation[[#This Row],[Dep Mn]]+tab_Navigation[[#This Row],[Arr Mn]] -> 1.079913607 | Z13: =tab_Navigation[[#This Row],[Mn Nav Mot]]+tab_Navigation[[#This Row],[Mn Approch Mot]] -> 2.105831533 | AA13: =tab_Navigation[[#This Row],[Mn Total Mot]]*'Variable Constante'!$F$6*'Variable Constante'!$E$10 -> 5.475161987 | AB13: =VLOOKUP(tab_Navigation[[#This Row],[Arrivée]],tab_Port_Mouillage[],9,FALSE) -> 02 - Coffre Pay | AC13: =VLOOKUP(tab_Navigation[[#This Row],[Conca Nav]],tab_Escale[[Nav Precedante]:[Nom Jour]],14,FALSE) -> 20.2 | AD13: 9 | AE13: =YEAR(tab_Navigation[[#This Row],[Date Arrivée]]) -> 2022 | AF13: =MONTH(tab_Navigation[[#This Row],[Date Arrivée]]) -> 8 | AG13: =WEEKNUM(tab_Navigation[[#This Row],[Date Arrivée]],2) -> 34
A14: =CONCATENATE(tab_Navigation[[#This Row],[N° Nav]]," - ",tab_Navigation[[#This Row],[Départ]]," > ",tab_Navigation[[#This Row],[Arrivée]]) -> 0060 - Crinan > Craobh Haven | B14: 001 - Port Louis > Port Louis | C14: 0060 | D14: Crinan | E14: Craobh Haven | F14: =VLOOKUP(tab_Navigation[[#This Row],[Arrivée]],tab_Port_Mouillage[],6,FALSE) -> Ecosse | G14: 1 | H14: =tab_Navigation[[#This Row],[Dep Km]]/1.852 -> 0.5399568035 | I14: 15 | J14: =tab_Navigation[[#This Row],[Nav Km]]/1.852 -> 8.099352052 | K14: 1 | L14: =tab_Navigation[[#This Row],[Arr Km]]/1.852 -> 0.5399568035 | M14: =tab_Navigation[[#This Row],[Dep Mn]]+tab_Navigation[[#This Row],[Nav Mn]]+tab_Navigation[[#This Row],[Arr Mn]] -> 9.179265659 | N14: 0.12 | O14: =VLOOKUP(tab_Navigation[[#This Row],[Arrivée]],tab_Escale[[Nom Escale]:[Jour]],5,FALSE) -> 0.9 | P14: 2022-08-21T08:24:00 | Q14: =tab_Navigation[[#This Row],[Date Départ]]+tab_Navigation[[#This Row],[J Navig]] -> 2022-08-21T11:16:48 | R14: =tab_Navigation[[#This Row],[Mn Nav Total]]/(tab_Navigation[[#This Row],[J Navig]]*24) -> 3.18724502 | S14: 2.1 | T14: 01 - Voile selon Cond. | U14: 0.95 | V14: =tab_Navigation[[#This Row],[Nav Mn]]*tab_Navigation[[#This Row],[Rap Nav Voil]] -> 7.694384449 | W14: =1-tab_Navigation[[#This Row],[Rap Nav Voil]] -> 0.05 | X14: =tab_Navigation[[#This Row],[Nav Mn]]*tab_Navigation[[#This Row],[Rap Nav Mot]] -> 0.4049676026 | Y14: =tab_Navigation[[#This Row],[Dep Mn]]+tab_Navigation[[#This Row],[Arr Mn]] -> 1.079913607 | Z14: =tab_Navigation[[#This Row],[Mn Nav Mot]]+tab_Navigation[[#This Row],[Mn Approch Mot]] -> 1.48488121 | AA14: =tab_Navigation[[#This Row],[Mn Total Mot]]*'Variable Constante'!$F$6*'Variable Constante'!$E$10 -> 3.860691145 | AB14: =VLOOKUP(tab_Navigation[[#This Row],[Arrivée]],tab_Port_Mouillage[],9,FALSE) -> 01 - Port Plein Eau Pay | AC14: =VLOOKUP(tab_Navigation[[#This Row],[Conca Nav]],tab_Escale[[Nav Precedante]:[Nom Jour]],14,FALSE) -> 21.22 | AD14: 10 | AE14: =YEAR(tab_Navigation[[#This Row],[Date Arrivée]]) -> 2022 | AF14: =MONTH(tab_Navigation[[#This Row],[Date Arrivée]]) -> 8 | AG14: =WEEKNUM(tab_Navigation[[#This Row],[Date Arrivée]],2) -> 34
A15: =CONCATENATE(tab_Navigation[[#This Row],[N° Nav]]," - ",tab_Navigation[[#This Row],[Départ]]," > ",tab_Navigation[[#This Row],[Arrivée]]) -> 0010 - Craobh Haven > Oban Marina | B15: 001 - Port Louis > Port Louis | C15: 0010 | D15: Craobh Haven | E15: Oban Marina | F15: =VLOOKUP(tab_Navigation[[#This Row],[Arrivée]],tab_Port_Mouillage[],6,FALSE) -> Ecosse | G15: 1 | H15: =tab_Navigation[[#This Row],[Dep Km]]/1.852 -> 0.5399568035 | I15: 31 | J15: =tab_Navigation[[#This Row],[Nav Km]]/1.852 -> 16.73866091 | K15: 1 | L15: =tab_Navigation[[#This Row],[Arr Km]]/1.852 -> 0.5399568035 | M15: =tab_Navigation[[#This Row],[Dep Mn]]+tab_Navigation[[#This Row],[Nav Mn]]+tab_Navigation[[#This Row],[Arr Mn]] -> 17.81857451 | N15: 0.15 | O15: =VLOOKUP(tab_Navigation[[#This Row],[Arrivée]],tab_Escale[[Nom Escale]:[Jour]],5,FALSE) -> 0.8 | P15: 2022-08-22T06:28:48 | Q15: =tab_Navigation[[#This Row],[Date Départ]]+tab_Navigation[[#This Row],[J Navig]] -> 2022-08-22T10:04:48 | R15: =tab_Navigation[[#This Row],[Mn Nav Total]]/(tab_Navigation[[#This Row],[J Navig]]*24) -> 4.949604032 | S15: 2.1 | T15: 01 - Voile selon Cond. | U15: 0.7 | V15: =tab_Navigation[[#This Row],[Nav Mn]]*tab_Navigation[[#This Row],[Rap Nav Voil]] -> 11.71706263 | W15: =1-tab_Navigation[[#This Row],[Rap Nav Voil]] -> 0.3 | X15: =tab_Navigation[[#This Row],[Nav Mn]]*tab_Navigation[[#This Row],[Rap Nav Mot]] -> 5.021598272 | Y15: =tab_Navigation[[#This Row],[Dep Mn]]+tab_Navigation[[#This Row],[Arr Mn]] -> 1.079913607 | Z15: =tab_Navigation[[#This Row],[Mn Nav Mot]]+tab_Navigation[[#This Row],[Mn Approch Mot]] -> 6.101511879 | AA15: =tab_Navigation[[#This Row],[Mn Total Mot]]*'Variable Constante'!$F$6*'Variable Constante'!$E$10 -> 15.86393089 | AB15: =VLOOKUP(tab_Navigation[[#This Row],[Arrivée]],tab_Port_Mouillage[],9,FALSE) -> 01 - Port Plein Eau Pay | AC15: =VLOOKUP(tab_Navigation[[#This Row],[Conca Nav]],tab_Escale[[Nav Precedante]:[Nom Jour]],14,FALSE) -> 22.17 | AD15: 11 | AE15: =YEAR(tab_Navigation[[#This Row],[Date Arrivée]]) -> 2022 | AF15: =MONTH(tab_Navigation[[#This Row],[Date Arrivée]]) -> 8 | AG15: =WEEKNUM(tab_Navigation[[#This Row],[Date Arrivée]],2) -> 35
A16: =CONCATENATE(tab_Navigation[[#This Row],[N° Nav]]," - ",tab_Navigation[[#This Row],[Départ]]," > ",tab_Navigation[[#This Row],[Arrivée]]) -> 0011 - Oban Marina > Fort William | B16: 001 - Port Louis > Port Louis | C16: 0011 | D16: Oban Marina | E16: Fort William | F16: =VLOOKUP(tab_Navigation[[#This Row],[Arrivée]],tab_Port_Mouillage[],6,FALSE) -> Ecosse | G16: 0.5 | H16: =tab_Navigation[[#This Row],[Dep Km]]/1.852 -> 0.2699784017 | I16: 66 | J16: =tab_Navigation[[#This Row],[Nav Km]]/1.852 -> 35.63714903 | K16: 0 | L16: =tab_Navigation[[#This Row],[Arr Km]]/1.852 -> 0 | M16: =tab_Navigation[[#This Row],[Dep Mn]]+tab_Navigation[[#This Row],[Nav Mn]]+tab_Navigation[[#This Row],[Arr Mn]] -> 35.90712743 | N16: 0.5 | O16: =VLOOKUP(tab_Navigation[[#This Row],[Arrivée]],tab_Escale[[Nom Escale]:[Jour]],5,FALSE) -> 0.9 | P16: 2022-08-23T07:40:48 | Q16: =tab_Navigation[[#This Row],[Date Départ]]+tab_Navigation[[#This Row],[J Navig]] -> 2022-08-23T19:40:48 | R16: =tab_Navigation[[#This Row],[Mn Nav Total]]/(tab_Navigation[[#This Row],[J Navig]]*24) -> 2.992260619 | S16: 2.1 | T16: 01 - Voile selon Cond. | U16: 0.5 | V16: =tab_Navigation[[#This Row],[Nav Mn]]*tab_Navigation[[#This Row],[Rap Nav Voil]] -> 17.81857451 | W16: =1-tab_Navigation[[#This Row],[Rap Nav Voil]] -> 0.5 | X16: =tab_Navigation[[#This Row],[Nav Mn]]*tab_Navigation[[#This Row],[Rap Nav Mot]] -> 17.81857451 | Y16: =tab_Navigation[[#This Row],[Dep Mn]]+tab_Navigation[[#This Row],[Arr Mn]] -> 0.2699784017 | Z16: =tab_Navigation[[#This Row],[Mn Nav Mot]]+tab_Navigation[[#This Row],[Mn Approch Mot]] -> 18.08855292 | AA16: =tab_Navigation[[#This Row],[Mn Total Mot]]*'Variable Constante'!$F$6*'Variable Constante'!$E$10 -> 47.03023758 | AB16: =VLOOKUP(tab_Navigation[[#This Row],[Arrivée]],tab_Port_Mouillage[],9,FALSE) -> 06 - Mouillage Free | AC16: =VLOOKUP(tab_Navigation[[#This Row],[Conca Nav]],tab_Escale[[Nav Precedante]:[Nom Jour]],14,FALSE) -> 23.57 | AD16: 12 | AE16: =YEAR(tab_Navigation[[#This Row],[Date Arrivée]]) -> 2022 | AF16: =MONTH(tab_Navigation[[#This Row],[Date Arrivée]]) -> 8 | AG16: =WEEKNUM(tab_Navigation[[#This Row],[Date Arrivée]],2) -> 35
A17: =CONCATENATE(tab_Navigation[[#This Row],[N° Nav]]," - ",tab_Navigation[[#This Row],[Départ]]," > ",tab_Navigation[[#This Row],[Arrivée]]) -> 0012 - Fort William > Laggan Pier | B17: 001 - Port Louis > Port Louis | C17: 0012 | D17: Fort William | E17: Laggan Pier | F17: =VLOOKUP(tab_Navigation[[#This Row],[Arrivée]],tab_Port_Mouillage[],6,FALSE) -> Ecosse | G17: 0 | H17: =tab_Navigation[[#This Row],[Dep Km]]/1.852 -> 0 | I17: 28 | J17: =tab_Navigation[[#This Row],[Nav Km]]/1.852 -> 15.1187905 | K17: 0 | L17: =tab_Navigation[[#This Row],[Arr Km]]/1.852 -> 0 | M17: =tab_Navigation[[#This Row],[Dep Mn]]+tab_Navigation[[#This Row],[Nav Mn]]+tab_Navigation[[#This Row],[Arr Mn]] -> 15.1187905 | N17: 0.125 | O17: =VLOOKUP(tab_Navigation[[#This Row],[Arrivée]],tab_Escale[[Nom Escale]:[Jour]],5,FALSE) -> 0.65 | P17: 2022-08-24T11:16:48 | Q17: =tab_Navigation[[#This Row],[Date Départ]]+tab_Navigation[[#This Row],[J Navig]] -> 2022-08-24T14:16:48 | R17: =tab_Navigation[[#This Row],[Mn Nav Total]]/(tab_Navigation[[#This Row],[J Navig]]*24) -> 5.039596832 | S17: 2.1 | T17: 02 - Au moteur Contraint | U17: 0 | V17: =tab_Navigation[[#This Row],[Nav Mn]]*tab_Navigation[[#This Row],[Rap Nav Voil]] -> 0 | W17: =1-tab_Navigation[[#This Row],[Rap Nav Voil]] -> 1 | X17: =tab_Navigation[[#This Row],[Nav Mn]]*tab_Navigation[[#This Row],[Rap Nav Mot]] -> 15.1187905 | Y17: =tab_Navigation[[#This Row],[Dep Mn]]+tab_Navigation[[#This Row],[Arr Mn]] -> 0 | Z17: =tab_Navigation[[#This Row],[Mn Nav Mot]]+tab_Navigation[[#This Row],[Mn Approch Mot]] -> 15.1187905 | AA17: =tab_Navigation[[#This Row],[Mn Total Mot]]*'Variable Constante'!$F$6*'Variable Constante'!$E$10 -> 39.30885529 | AB17: =VLOOKUP(tab_Navigation[[#This Row],[Arrivée]],tab_Port_Mouillage[],9,FALSE) -> 06 - Mouillage Free | AC17: =VLOOKUP(tab_Navigation[[#This Row],[Conca Nav]],tab_Escale[[Nav Precedante]:[Nom Jour]],14,FALSE) -> 24.345 | AD17: 13 | AE17: =YEAR(tab_Navigation[[#This Row],[Date Arrivée]]) -> 2022 | AF17: =MONTH(tab_Navigation[[#This Row],[Date Arrivée]]) -> 8 | AG17: =WEEKNUM(tab_Navigation[[#This Row],[Date Arrivée]],2) -> 35
A18: =CONCATENATE(tab_Navigation[[#This Row],[N° Nav]]," - ",tab_Navigation[[#This Row],[Départ]]," > ",tab_Navigation[[#This Row],[Arrivée]]) -> 0013 - Laggan Pier > Fort Augustus | B18: 001 - Port Louis > Port Louis | C18: 0013 | D18: Laggan Pier | E18: Fort Augustus | F18: =VLOOKUP(tab_Navigation[[#This Row],[Arrivée]],tab_Port_Mouillage[],6,FALSE) -> Ecosse | G18: 0 | H18: =tab_Navigation[[#This Row],[Dep Km]]/1.852 -> 0 | I18: 16 | J18: =tab_Navigation[[#This Row],[Nav Km]]/1.852 -> 8.639308855 | K18: 0 | L18: =tab_Navigation[[#This Row],[Arr Km]]/1.852 -> 0 | M18: =tab_Navigation[[#This Row],[Dep Mn]]+tab_Navigation[[#This Row],[Nav Mn]]+tab_Navigation[[#This Row],[Arr Mn]] -> 8.639308855 | N18: 0.12 | O18: =VLOOKUP(tab_Navigation[[#This Row],[Arrivée]],tab_Escale[[Nom Escale]:[Jour]],5,FALSE) -> 0.7 | P18: 2022-08-25T07:04:48 | Q18: =tab_Navigation[[#This Row],[Date Départ]]+tab_Navigation[[#This Row],[J Navig]] -> 2022-08-25T09:57:36 | R18: =tab_Navigation[[#This Row],[Mn Nav Total]]/(tab_Navigation[[#This Row],[J Navig]]*24) -> 2.999760019 | S18: 2.1 | T18: 02 - Au moteur Contraint | U18: 0 | V18: =tab_Navigation[[#This Row],[Nav Mn]]*tab_Navigation[[#This Row],[Rap Nav Voil]] -> 0 | W18: =1-tab_Navigation[[#This Row],[Rap Nav Voil]] -> 1 | X18: =tab_Navigation[[#This Row],[Nav Mn]]*tab_Navigation[[#This Row],[Rap Nav Mot]] -> 8.639308855 | Y18: =tab_Navigation[[#This Row],[Dep Mn]]+tab_Navigation[[#This Row],[Arr Mn]] -> 0 | Z18: =tab_Navigation[[#This Row],[Mn Nav Mot]]+tab_Navigation[[#This Row],[Mn Approch Mot]] -> 8.639308855 | AA18: =tab_Navigation[[#This Row],[Mn Total Mot]]*'Variable Constante'!$F$6*'Variable Constante'!$E$10 -> 22.46220302 | AB18: =VLOOKUP(tab_Navigation[[#This Row],[Arrivée]],tab_Port_Mouillage[],9,FALSE) -> 07 - Port Amarage Quai Free | AC18: =VLOOKUP(tab_Navigation[[#This Row],[Conca Nav]],tab_Escale[[Nav Precedante]:[Nom Jour]],14,FALSE) -> 25.165 | AD18: 14 | AE18: =YEAR(tab_Navigation[[#This Row],[Date Arrivée]]) -> 2022 | AF18: =MONTH(tab_Navigation[[#This Row],[Date Arrivée]]) -> 8 | AG18: =WEEKNUM(tab_Navigation[[#This Row],[Date Arrivée]],2) -> 35
A19: =CONCATENATE(tab_Navigation[[#This Row],[N° Nav]]," - ",tab_Navigation[[#This Row],[Départ]]," > ",tab_Navigation[[#This Row],[Arrivée]]) -> 0014 - Fort Augustus > Muir Town marina | B19: 001 - Port Louis > Port Louis | C19: 0014 | D19: Fort Augustus | E19: Muir Town marina | F19: =VLOOKUP(tab_Navigation[[#This Row],[Arrivée]],tab_Port_Mouillage[],6,FALSE) -> Ecosse | G19: 0 | H19: =tab_Navigation[[#This Row],[Dep Km]]/1.852 -> 0 | I19: 49 | J19: =tab_Navigation[[#This Row],[Nav Km]]/1.852 -> 26.45788337 | K19: 0 | L19: =tab_Navigation[[#This Row],[Arr Km]]/1.852 -> 0 | M19: =tab_Navigation[[#This Row],[Dep Mn]]+tab_Navigation[[#This Row],[Nav Mn]]+tab_Navigation[[#This Row],[Arr Mn]] -> 26.45788337 | N19: 0.5 | O19: =VLOOKUP(tab_Navigation[[#This Row],[Arrivée]],tab_Escale[[Nom Escale]:[Jour]],5,FALSE) -> 1.1 | P19: 2022-08-26T12:21:36 | Q19: =tab_Navigation[[#This Row],[Date Départ]]+tab_Navigation[[#This Row],[J Navig]] -> 2022-08-27T00:21:36 | R19: =tab_Navigation[[#This Row],[Mn Nav Total]]/(tab_Navigation[[#This Row],[J Navig]]*24) -> 2.204823614 | S19: 2.1 | T19: 02 - Au moteur Contraint | U19: 0 | V19: =tab_Navigation[[#This Row],[Nav Mn]]*tab_Navigation[[#This Row],[Rap Nav Voil]] -> 0 | W19: =1-tab_Navigation[[#This Row],[Rap Nav Voil]] -> 1 | X19: =tab_Navigation[[#This Row],[Nav Mn]]*tab_Navigation[[#This Row],[Rap Nav Mot]] -> 26.45788337 | Y19: =tab_Navigation[[#This Row],[Dep Mn]]+tab_Navigation[[#This Row],[Arr Mn]] -> 0 | Z19: =tab_Navigation[[#This Row],[Mn Nav Mot]]+tab_Navigation[[#This Row],[Mn Approch Mot]] -> 26.45788337 | AA19: =tab_Navigation[[#This Row],[Mn Total Mot]]*'Variable Constante'!$F$6*'Variable Constante'!$E$10 -> 68.79049676 | AB19: =VLOOKUP(tab_Navigation[[#This Row],[Arrivée]],tab_Port_Mouillage[],9,FALSE) -> 01 - Port Plein Eau Pay | AC19: =VLOOKUP(tab_Navigation[[#This Row],[Conca Nav]],tab_Escale[[Nav Precedante]:[Nom Jour]],14,FALSE) -> 26.765 | AD19: 15 | AE19: =YEAR(tab_Navigation[[#This Row],[Date Arrivée]]) -> 2022 | AF19: =MONTH(tab_Navigation[[#This Row],[Date Arrivée]]) -> 8 | AG19: =WEEKNUM(tab_Navigation[[#This Row],[Date Arrivée]],2) -> 35
A20: =CONCATENATE(tab_Navigation[[#This Row],[N° Nav]]," - ",tab_Navigation[[#This Row],[Départ]]," > ",tab_Navigation[[#This Row],[Arrivée]]) -> 0015 - Muir Town marina > Stromness | B20: 001 - Port Louis > Port Louis | C20: 0015 | D20: Muir Town marina | E20: Stromness | F20: =VLOOKUP(tab_Navigation[[#This Row],[Arrivée]],tab_Port_Mouillage[],6,FALSE) -> Ecosse | G20: 0.5 | H20: =tab_Navigation[[#This Row],[Dep Km]]/1.852 -> 0.2699784017 | I20: 205 | J20: =tab_Navigation[[#This Row],[Nav Km]]/1.852 -> 110.6911447 | K20: 1 | L20: =tab_Navigation[[#This Row],[Arr Km]]/1.852 -> 0.5399568035 | M20: =tab_Navigation[[#This Row],[Dep Mn]]+tab_Navigation[[#This Row],[Nav Mn]]+tab_Navigation[[#This Row],[Arr Mn]] -> 111.5010799 | N20: 1.5 | O20: =VLOOKUP(tab_Navigation[[#This Row],[Arrivée]],tab_Escale[[Nom Escale]:[Jour]],5,FALSE) -> 2.3 | P20: 2022-08-29T07:33:36 | Q20: =tab_Navigation[[#This Row],[Date Départ]]+tab_Navigation[[#This Row],[J Navig]] -> 2022-08-30T19:33:36 | R20: =tab_Navigation[[#This Row],[Mn Nav Total]]/(tab_Navigation[[#This Row],[J Navig]]*24) -> 3.09725222 | S20: 2.1 | T20: 01 - Voile selon Cond. | U20: 0.95 | V20: =tab_Navigation[[#This Row],[Nav Mn]]*tab_Navigation[[#This Row],[Rap Nav Voil]] -> 105.1565875 | W20: =1-tab_Navigation[[#This Row],[Rap Nav Voil]] -> 0.05 | X20: =tab_Navigation[[#This Row],[Nav Mn]]*tab_Navigation[[#This Row],[Rap Nav Mot]] -> 5.534557235 | Y20: =tab_Navigation[[#This Row],[Dep Mn]]+tab_Navigation[[#This Row],[Arr Mn]] -> 0.8099352052 | Z20: =tab_Navigation[[#This Row],[Mn Nav Mot]]+tab_Navigation[[#This Row],[Mn Approch Mot]] -> 6.344492441 | AA20: =tab_Navigation[[#This Row],[Mn Total Mot]]*'Variable Constante'!$F$6*'Variable Constante'!$E$10 -> 16.49568035 | AB20: =VLOOKUP(tab_Navigation[[#This Row],[Arrivée]],tab_Port_Mouillage[],9,FALSE) -> 01 - Port Plein Eau Pay | AC20: =VLOOKUP(tab_Navigation[[#This Row],[Conca Nav]],tab_Escale[[Nav Precedante]:[Nom Jour]],14,FALSE) -> 30.565 | AD20: 16 | AE20: =YEAR(tab_Navigation[[#This Row],[Date Arrivée]]) -> 2022 | AF20: =MONTH(tab_Navigation[[#This Row],[Date Arrivée]]) -> 8 | AG20: =WEEKNUM(tab_Navigation[[#This Row],[Date Arrivée]],2) -> 36
A21: =CONCATENATE(tab_Navigation[[#This Row],[N° Nav]]," - ",tab_Navigation[[#This Row],[Départ]]," > ",tab_Navigation[[#This Row],[Arrivée]]) -> 0016 - Stromness > Kinlochbervie | B21: 001 - Port Louis > Port Louis | C21: 0016 | D21: Stromness | E21: Kinlochbervie | F21: =VLOOKUP(tab_Navigation[[#This Row],[Arrivée]],tab_Port_Mouillage[],6,FALSE) -> Ecosse | G21: 1 | H21: =tab_Navigation[[#This Row],[Dep Km]]/1.852 -> 0.5399568035 | I21: 123 | J21: =tab_Navigation[[#This Row],[Nav Km]]/1.852 -> 66.41468683 | K21: 1 | L21: =tab_Navigation[[#This Row],[Arr Km]]/1.852 -> 0.5399568035 | M21: =tab_Navigation[[#This Row],[Dep Mn]]+tab_Navigation[[#This Row],[Nav Mn]]+tab_Navigation[[#This Row],[Arr Mn]] -> 67.49460043 | N21: 0.75 | O21: =VLOOKUP(tab_Navigation[[#This Row],[Arrivée]],tab_Escale[[Nom Escale]:[Jour]],5,FALSE) -> 0.85 | P21: 2022-08-31T15:57:36 | Q21: =tab_Navigation[[#This Row],[Date Départ]]+tab_Navigation[[#This Row],[J Navig]] -> 2022-09-01T09:57:36 | R21: =tab_Navigation[[#This Row],[Mn Nav Total]]/(tab_Navigation[[#This Row],[J Navig]]*24) -> 3.749700024 | S21: 2.1 | T21: 01 - Voile selon Cond. | U21: 0.95 | V21: =tab_Navigation[[#This Row],[Nav Mn]]*tab_Navigation[[#This Row],[Rap Nav Voil]] -> 63.09395248 | W21: =1-tab_Navigation[[#This Row],[Rap Nav Voil]] -> 0.05 | X21: =tab_Navigation[[#This Row],[Nav Mn]]*tab_Navigation[[#This Row],[Rap Nav Mot]] -> 3.320734341 | Y21: =tab_Navigation[[#This Row],[Dep Mn]]+tab_Navigation[[#This Row],[Arr Mn]] -> 1.079913607 | Z21: =tab_Navigation[[#This Row],[Mn Nav Mot]]+tab_Navigation[[#This Row],[Mn Approch Mot]] -> 4.400647948 | AA21: =tab_Navigation[[#This Row],[Mn Total Mot]]*'Variable Constante'!$F$6*'Variable Constante'!$E$10 -> 11.44168467 | AB21: =VLOOKUP(tab_Navigation[[#This Row],[Arrivée]],tab_Port_Mouillage[],9,FALSE) -> 07 - Port Amarage Quai Free | AC21: =VLOOKUP(tab_Navigation[[#This Row],[Conca Nav]],tab_Escale[[Nav Precedante]:[Nom Jour]],14,FALSE) -> 32.165 | AD21: 17 | AE21: =YEAR(tab_Navigation[[#This Row],[Date Arrivée]]) -> 2022 | AF21: =MONTH(tab_Navigation[[#This Row],[Date Arrivée]]) -> 9 | AG21: =WEEKNUM(tab_Navigation[[#This Row],[Date Arrivée]],2) -> 36
A22: =CONCATENATE(tab_Navigation[[#This Row],[N° Nav]]," - ",tab_Navigation[[#This Row],[Départ]]," > ",tab_Navigation[[#This Row],[Arrivée]]) -> 0017 - Kinlochbervie > Steornabhagh | B22: 001 - Port Louis > Port Louis | C22: 0017 | D22: Kinlochbervie | E22: Steornabhagh | F22: =VLOOKUP(tab_Navigation[[#This Row],[Arrivée]],tab_Port_Mouillage[],6,FALSE) -> Ecosse | G22: 2 | H22: =tab_Navigation[[#This Row],[Dep Km]]/1.852 -> 1.079913607 | I22: 81 | J22: =tab_Navigation[[#This Row],[Nav Km]]/1.852 -> 43.73650108 | K22: 2 | L22: =tab_Navigation[[#This Row],[Arr Km]]/1.852 -> 1.079913607 | M22: =tab_Navigation[[#This Row],[Dep Mn]]+tab_Navigation[[#This Row],[Nav Mn]]+tab_Navigation[[#This Row],[Arr Mn]] -> 45.89632829 | N22: 0.5 | O22: =VLOOKUP(tab_Navigation[[#This Row],[Arrivée]],tab_Escale[[Nom Escale]:[Jour]],5,FALSE) -> 0.75 | P22: 2022-09-02T03:57:36 | Q22: =tab_Navigation[[#This Row],[Date Départ]]+tab_Navigation[[#This Row],[J Navig]] -> 2022-09-02T15:57:36 | R22: =tab_Navigation[[#This Row],[Mn Nav Total]]/(tab_Navigation[[#This Row],[J Navig]]*24) -> 3.824694024 | S22: 2.1 | T22: 01 - Voile selon Cond. | U22: 0.95 | V22: =tab_Navigation[[#This Row],[Nav Mn]]*tab_Navigation[[#This Row],[Rap Nav Voil]] -> 41.54967603 | W22: =1-tab_Navigation[[#This Row],[Rap Nav Voil]] -> 0.05 | X22: =tab_Navigation[[#This Row],[Nav Mn]]*tab_Navigation[[#This Row],[Rap Nav Mot]] -> 2.186825054 | Y22: =tab_Navigation[[#This Row],[Dep Mn]]+tab_Navigation[[#This Row],[Arr Mn]] -> 2.159827214 | Z22: =tab_Navigation[[#This Row],[Mn Nav Mot]]+tab_Navigation[[#This Row],[Mn Approch Mot]] -> 4.346652268 | AA22: =tab_Navigation[[#This Row],[Mn Total Mot]]*'Variable Constante'!$F$6*'Variable Constante'!$E$10 -> 11.3012959 | AB22: =VLOOKUP(tab_Navigation[[#This Row],[Arrivée]],tab_Port_Mouillage[],9,FALSE) -> 01 - Port Plein Eau Pay | AC22: =VLOOKUP(tab_Navigation[[#This Row],[Conca Nav]],tab_Escale[[Nav Precedante]:[Nom Jour]],14,FALSE) -> 33.415 | AD22: 18 | AE22: =YEAR(tab_Navigation[[#This Row],[Date Arrivée]]) -> 2022 | AF22: =MONTH(tab_Navigation[[#This Row],[Date Arrivée]]) -> 9 | AG22: =WEEKNUM(tab_Navigation[[#This Row],[Date Arrivée]],2) -> 36
A23: =CONCATENATE(tab_Navigation[[#This Row],[N° Nav]]," - ",tab_Navigation[[#This Row],[Départ]]," > ",tab_Navigation[[#This Row],[Arrivée]]) -> 0061 - Steornabhagh > Stornoway | B23: 001 - Port Louis > Port Louis | C23: 0061 | D23: Steornabhagh | E23: Stornoway | F23: =VLOOKUP(tab_Navigation[[#This Row],[Arrivée]],tab_Port_Mouillage[],6,FALSE) -> Ecosse | G23: 0 | H23: =tab_Navigation[[#This Row],[Dep Km]]/1.852 -> 0 | I23: 1.5 | J23: =tab_Navigation[[#This Row],[Nav Km]]/1.852 -> 0.8099352052 | K23: 0 | L23: =tab_Navigation[[#This Row],[Arr Km]]/1.852 -> 0 | M23: =tab_Navigation[[#This Row],[Dep Mn]]+tab_Navigation[[#This Row],[Nav Mn]]+tab_Navigation[[#This Row],[Arr Mn]] -> 0.8099352052 | N23: 0.03 | O23: =VLOOKUP(tab_Navigation[[#This Row],[Arrivée]],tab_Escale[[Nom Escale]:[Jour]],5,FALSE) -> 1 | P23: 2022-09-03T15:57:36 | Q23: =tab_Navigation[[#This Row],[Date Départ]]+tab_Navigation[[#This Row],[J Navig]] -> 2022-09-03T16:40:48 | R23: =tab_Navigation[[#This Row],[Mn Nav Total]]/(tab_Navigation[[#This Row],[J Navig]]*24) -> 1.124910007 | S23: 2.1 | T23: 02 - Au moteur Contraint | U23: 0 | V23: =tab_Navigation[[#This Row],[Nav Mn]]*tab_Navigation[[#This Row],[Rap Nav Voil]] -> 0 | W23: =1-tab_Navigation[[#This Row],[Rap Nav Voil]] -> 1 | X23: =tab_Navigation[[#This Row],[Nav Mn]]*tab_Navigation[[#This Row],[Rap Nav Mot]] -> 0.8099352052 | Y23: =tab_Navigation[[#This Row],[Dep Mn]]+tab_Navigation[[#This Row],[Arr Mn]] -> 0 | Z23: =tab_Navigation[[#This Row],[Mn Nav Mot]]+tab_Navigation[[#This Row],[Mn Approch Mot]] -> 0.8099352052 | AA23: =tab_Navigation[[#This Row],[Mn Total Mot]]*'Variable Constante'!$F$6*'Variable Constante'!$E$10 -> 2.105831533 | AB23: =VLOOKUP(tab_Navigation[[#This Row],[Arrivée]],tab_Port_Mouillage[],9,FALSE) -> 06 - Mouillage Free | AC23: =VLOOKUP(tab_Navigation[[#This Row],[Conca Nav]],tab_Escale[[Nav Precedante]:[Nom Jour]],14,FALSE) -> 34.445 | AD23: 19 | AE23: =YEAR(tab_Navigation[[#This Row],[Date Arrivée]]) -> 2022 | AF23: =MONTH(tab_Navigation[[#This Row],[Date Arrivée]]) -> 9 | AG23: =WEEKNUM(tab_Navigation[[#This Row],[Date Arrivée]],2) -> 36
A24: =CONCATENATE(tab_Navigation[[#This Row],[N° Nav]]," - ",tab_Navigation[[#This Row],[Départ]]," > ",tab_Navigation[[#This Row],[Arrivée]]) -> 0062 - Stornoway > Lochboisdale | B24: 001 - Port Louis > Port Louis | C24: 0062 | D24: Stornoway | E24: Lochboisdale | F24: =VLOOKUP(tab_Navigation[[#This Row],[Arrivée]],tab_Port_Mouillage[],6,FALSE) -> Ecosse | G24: 2 | H24: =tab_Navigation[[#This Row],[Dep Km]]/1.852 -> 1.079913607 | I24: 145 | J24: =tab_Navigation[[#This Row],[Nav Km]]/1.852 -> 78.2937365 | K24: 2 | L24: =tab_Navigation[[#This Row],[Arr Km]]/1.852 -> 1.079913607 | M24: =tab_Navigation[[#This Row],[Dep Mn]]+tab_Navigation[[#This Row],[Nav Mn]]+tab_Navigation[[#This Row],[Arr Mn]] -> 80.45356371 | N24: 0.75 | O24: =VLOOKUP(tab_Navigation[[#This Row],[Arrivée]],tab_Escale[[Nom Escale]:[Jour]],5,FALSE) -> 2.5 | P24: 2022-09-06T04:40:48 | Q24: =tab_Navigation[[#This Row],[Date Départ]]+tab_Navigation[[#This Row],[J Navig]] -> 2022-09-06T22:40:48 | R24: =tab_Navigation[[#This Row],[Mn Nav Total]]/(tab_Navigation[[#This Row],[J Navig]]*24) -> 4.469642429 | S24: 2.1 | T24: 01 - Voile selon Cond. | U24: 0.95 | V24: =tab_Navigation[[#This Row],[Nav Mn]]*tab_Navigation[[#This Row],[Rap Nav Voil]] -> 74.37904968 | W24: =1-tab_Navigation[[#This Row],[Rap Nav Voil]] -> 0.05 | X24: =tab_Navigation[[#This Row],[Nav Mn]]*tab_Navigation[[#This Row],[Rap Nav Mot]] -> 3.914686825 | Y24: =tab_Navigation[[#This Row],[Dep Mn]]+tab_Navigation[[#This Row],[Arr Mn]] -> 2.159827214 | Z24: =tab_Navigation[[#This Row],[Mn Nav Mot]]+tab_Navigation[[#This Row],[Mn Approch Mot]] -> 6.074514039 | AA24: =tab_Navigation[[#This Row],[Mn Total Mot]]*'Variable Constante'!$F$6*'Variable Constante'!$E$10 -> 15.7937365 | AB24: =VLOOKUP(tab_Navigation[[#This Row],[Arrivée]],tab_Port_Mouillage[],9,FALSE) -> 01 - Port Plein Eau Pay | AC24: =VLOOKUP(tab_Navigation[[#This Row],[Conca Nav]],tab_Escale[[Nav Precedante]:[Nom Jour]],14,FALSE) -> 37.695 | AD24: 20 | AE24: =YEAR(tab_Navigation[[#This Row],[Date Arrivée]]) -> 2022 | AF24: =MONTH(tab_Navigation[[#This Row],[Date Arrivée]]) -> 9 | AG24: =WEEKNUM(tab_Navigation[[#This Row],[Date Arrivée]],2) -> 37
A25: =CONCATENATE(tab_Navigation[[#This Row],[N° Nav]]," - ",tab_Navigation[[#This Row],[Départ]]," > ",tab_Navigation[[#This Row],[Arrivée]]) -> 0063 - Lochboisdale > Port Ellen | B25: 001 - Port Louis > Port Louis | C25: 0063 | D25: Lochboisdale | E25: Port Ellen | F25: =VLOOKUP(tab_Navigation[[#This Row],[Arrivée]],tab_Port_Mouillage[],6,FALSE) -> Ecosse | G25: 2 | H25: =tab_Navigation[[#This Row],[Dep Km]]/1.852 -> 1.079913607 | I25: 209 | J25: =tab_Navigation[[#This Row],[Nav Km]]/1.852 -> 112.8509719 | K25: 2 | L25: =tab_Navigation[[#This Row],[Arr Km]]/1.852 -> 1.079913607 | M25: =tab_Navigation[[#This Row],[Dep Mn]]+tab_Navigation[[#This Row],[Nav Mn]]+tab_Navigation[[#This Row],[Arr Mn]] -> 115.0107991 | N25: 1 | O25: =VLOOKUP(tab_Navigation[[#This Row],[Arrivée]],tab_Escale[[Nom Escale]:[Jour]],5,FALSE) -> 1.5 | P25: 2022-09-08T10:40:48 | Q25: =tab_Navigation[[#This Row],[Date Départ]]+tab_Navigation[[#This Row],[J Navig]] -> 2022-09-09T10:40:48 | R25: =tab_Navigation[[#This Row],[Mn Nav Total]]/(tab_Navigation[[#This Row],[J Navig]]*24) -> 4.792116631 | S25: 2.1 | T25: 01 - Voile selon Cond. | U25: 0.95 | V25: =tab_Navigation[[#This Row],[Nav Mn]]*tab_Navigation[[#This Row],[Rap Nav Voil]] -> 107.2084233 | W25: =1-tab_Navigation[[#This Row],[Rap Nav Voil]] -> 0.05 | X25: =tab_Navigation[[#This Row],[Nav Mn]]*tab_Navigation[[#This Row],[Rap Nav Mot]] -> 5.642548596 | Y25: =tab_Navigation[[#This Row],[Dep Mn]]+tab_Navigation[[#This Row],[Arr Mn]] -> 2.159827214 | Z25: =tab_Navigation[[#This Row],[Mn Nav Mot]]+tab_Navigation[[#This Row],[Mn Approch Mot]] -> 7.80237581 | AA25: =tab_Navigation[[#This Row],[Mn Total Mot]]*'Variable Constante'!$F$6*'Variable Constante'!$E$10 -> 20.28617711 | AB25: =VLOOKUP(tab_Navigation[[#This Row],[Arrivée]],tab_Port_Mouillage[],9,FALSE) -> 01 - Port Plein Eau Pay | AC25: =VLOOKUP(tab_Navigation[[#This Row],[Conca Nav]],tab_Escale[[Nav Precedante]:[Nom Jour]],14,FALSE) -> 40.195 | AD25: 21 | AE25: =YEAR(tab_Navigation[[#This Row],[Date Arrivée]]) -> 2022 | AF25: =MONTH(tab_Navigation[[#This Row],[Date Arrivée]]) -> 9 | AG25: =WEEKNUM(tab_Navigation[[#This Row],[Date Arrivée]],2) -> 37
A26: =CONCATENATE(tab_Navigation[[#This Row],[N° Nav]]," - ",tab_Navigation[[#This Row],[Départ]]," > ",tab_Navigation[[#This Row],[Arrivée]]) -> 0020 - Port Ellen > Peel | B26: 001 - Port Louis > Port Louis | C26: 0020 | D26: Port Ellen | E26: Peel | F26: =VLOOKUP(tab_Navigation[[#This Row],[Arrivée]],tab_Port_Mouillage[],6,FALSE) -> Royaume Uni | G26: 3 | H26: =tab_Navigation[[#This Row],[Dep Km]]/1.852 -> 1.61987041 | I26: 189 | J26: =tab_Navigation[[#This Row],[Nav Km]]/1.852 -> 102.0518359 | K26: 1 | L26: =tab_Navigation[[#This Row],[Arr Km]]/1.852 -> 0.5399568035 | M26: =tab_Navigation[[#This Row],[Dep Mn]]+tab_Navigation[[#This Row],[Nav Mn]]+tab_Navigation[[#This Row],[Arr Mn]] -> 104.2116631 | N26: 1 | O26: =VLOOKUP(tab_Navigation[[#This Row],[Arrivée]],tab_Escale[[Nom Escale]:[Jour]],5,FALSE) -> 0.33 | P26: 2022-09-09T18:36:00 | Q26: =tab_Navigation[[#This Row],[Date Départ]]+tab_Navigation[[#This Row],[J Navig]] -> 2022-09-10T18:36:00 | R26: =tab_Navigation[[#This Row],[Mn Nav Total]]/(tab_Navigation[[#This Row],[J Navig]]*24) -> 4.342152628 | S26: 2.1 | T26: 01 - Voile selon Cond. | U26: 0.95 | V26: =tab_Navigation[[#This Row],[Nav Mn]]*tab_Navigation[[#This Row],[Rap Nav Voil]] -> 96.94924406 | W26: =1-tab_Navigation[[#This Row],[Rap Nav Voil]] -> 0.05 | X26: =tab_Navigation[[#This Row],[Nav Mn]]*tab_Navigation[[#This Row],[Rap Nav Mot]] -> 5.102591793 | Y26: =tab_Navigation[[#This Row],[Dep Mn]]+tab_Navigation[[#This Row],[Arr Mn]] -> 2.159827214 | Z26: =tab_Navigation[[#This Row],[Mn Nav Mot]]+tab_Navigation[[#This Row],[Mn Approch Mot]] -> 7.262419006 | AA26: =tab_Navigation[[#This Row],[Mn Total Mot]]*'Variable Constante'!$F$6*'Variable Constante'!$E$10 -> 18.88228942 | AB26: =VLOOKUP(tab_Navigation[[#This Row],[Arrivée]],tab_Port_Mouillage[],9,FALSE) -> 04 - Port Ecluse Pay | AC26: =VLOOKUP(tab_Navigation[[#This Row],[Conca Nav]],tab_Escale[[Nav Precedante]:[Nom Jour]],14,FALSE) -> 41.525 | AD26: 22 | AE26: =YEAR(tab_Navigation[[#This Row],[Date Arrivée]]) -> 2022 | AF26: =MONTH(tab_Navigation[[#This Row],[Date Arrivée]]) -> 9 | AG26: =WEEKNUM(tab_Navigation[[#This Row],[Date Arrivée]],2) -> 37
A27: =CONCATENATE(tab_Navigation[[#This Row],[N° Nav]]," - ",tab_Navigation[[#This Row],[Départ]]," > ",tab_Navigation[[#This Row],[Arrivée]]) -> 0021 - Peel > Holyhead | B27: 001 - Port Louis > Port Louis | C27: 0021 | D27: Peel | E27: Holyhead | F27: =VLOOKUP(tab_Navigation[[#This Row],[Arrivée]],tab_Port_Mouillage[],6,FALSE) -> Royaume Uni | G27: 1 | H27: =tab_Navigation[[#This Row],[Dep Km]]/1.852 -> 0.5399568035 | I27: 129 | J27: =tab_Navigation[[#This Row],[Nav Km]]/1.852 -> 69.65442765 | K27: 3 | L27: =tab_Navigation[[#This Row],[Arr Km]]/1.852 -> 1.61987041 | M27: =tab_Navigation[[#This Row],[Dep Mn]]+tab_Navigation[[#This Row],[Nav Mn]]+tab_Navigation[[#This Row],[Arr Mn]] -> 71.81425486 | N27: 0.75 | O27: =VLOOKUP(tab_Navigation[[#This Row],[Arrivée]],tab_Escale[[Nom Escale]:[Jour]],5,FALSE) -> 0.33 | P27: 2022-09-11T02:31:12 | Q27: =tab_Navigation[[#This Row],[Date Départ]]+tab_Navigation[[#This Row],[J Navig]] -> 2022-09-11T20:31:12 | R27: =tab_Navigation[[#This Row],[Mn Nav Total]]/(tab_Navigation[[#This Row],[J Navig]]*24) -> 3.989680826 | S27: 2.1 | T27: 01 - Voile selon Cond. | U27: 0.95 | V27: =tab_Navigation[[#This Row],[Nav Mn]]*tab_Navigation[[#This Row],[Rap Nav Voil]] -> 66.17170626 | W27: =1-tab_Navigation[[#This Row],[Rap Nav Voil]] -> 0.05 | X27: =tab_Navigation[[#This Row],[Nav Mn]]*tab_Navigation[[#This Row],[Rap Nav Mot]] -> 3.482721382 | Y27: =tab_Navigation[[#This Row],[Dep Mn]]+tab_Navigation[[#This Row],[Arr Mn]] -> 2.159827214 | Z27: =tab_Navigation[[#This Row],[Mn Nav Mot]]+tab_Navigation[[#This Row],[Mn Approch Mot]] -> 5.642548596 | AA27: =tab_Navigation[[#This Row],[Mn Total Mot]]*'Variable Constante'!$F$6*'Variable Constante'!$E$10 -> 14.67062635 | AB27: =VLOOKUP(tab_Navigation[[#This Row],[Arrivée]],tab_Port_Mouillage[],9,FALSE) -> 01 - Port Plein Eau Pay | AC27: =VLOOKUP(tab_Navigation[[#This Row],[Conca Nav]],tab_Escale[[Nav Precedante]:[Nom Jour]],14,FALSE) -> 42.605 | AD27: 23 | AE27: =YEAR(tab_Navigation[[#This Row],[Date Arrivée]]) -> 2022 | AF27: =MONTH(tab_Navigation[[#This Row],[Date Arrivée]]) -> 9 | AG27: =WEEKNUM(tab_Navigation[[#This Row],[Date Arrivée]],2) -> 37
A28: =CONCATENATE(tab_Navigation[[#This Row],[N° Nav]]," - ",tab_Navigation[[#This Row],[Départ]]," > ",tab_Navigation[[#This Row],[Arrivée]]) -> 0022 - Holyhead > Porthmadog | B28: 001 - Port Louis > Port Louis | C28: 0022 | D28: Holyhead | E28: Porthmadog | F28: =VLOOKUP(tab_Navigation[[#This Row],[Arrivée]],tab_Port_Mouillage[],6,FALSE) -> Royaume Uni | G28: 3 | H28: =tab_Navigation[[#This Row],[Dep Km]]/1.852 -> 1.61987041 | I28: 108 | J28: =tab_Navigation[[#This Row],[Nav Km]]/1.852 -> 58.31533477 | K28: 8 | L28: =tab_Navigation[[#This Row],[Arr Km]]/1.852 -> 4.319654428 | M28: =tab_Navigation[[#This Row],[Dep Mn]]+tab_Navigation[[#This Row],[Nav Mn]]+tab_Navigation[[#This Row],[Arr Mn]] -> 64.25485961 | N28: 0.75 | O28: =VLOOKUP(tab_Navigation[[#This Row],[Arrivée]],tab_Escale[[Nom Escale]:[Jour]],5,FALSE) -> 0.33 | P28: 2022-09-12T04:26:24 | Q28: =tab_Navigation[[#This Row],[Date Départ]]+tab_Navigation[[#This Row],[J Navig]] -> 2022-09-12T22:26:24 | R28: =tab_Navigation[[#This Row],[Mn Nav Total]]/(tab_Navigation[[#This Row],[J Navig]]*24) -> 3.569714423 | S28: 2.1 | T28: 01 - Voile selon Cond. | U28: 0.95 | V28: =tab_Navigation[[#This Row],[Nav Mn]]*tab_Navigation[[#This Row],[Rap Nav Voil]] -> 55.39956803 | W28: =1-tab_Navigation[[#This Row],[Rap Nav Voil]] -> 0.05 | X28: =tab_Navigation[[#This Row],[Nav Mn]]*tab_Navigation[[#This Row],[Rap Nav Mot]] -> 2.915766739 | Y28: =tab_Navigation[[#This Row],[Dep Mn]]+tab_Navigation[[#This Row],[Arr Mn]] -> 5.939524838 | Z28: =tab_Navigation[[#This Row],[Mn Nav Mot]]+tab_Navigation[[#This Row],[Mn Approch Mot]] -> 8.855291577 | AA28: =tab_Navigation[[#This Row],[Mn Total Mot]]*'Variable Constante'!$F$6*'Variable Constante'!$E$10 -> 23.0237581 | AB28: =VLOOKUP(tab_Navigation[[#This Row],[Arrivée]],tab_Port_Mouillage[],9,FALSE) -> 03 - Embossage Pay | AC28: =VLOOKUP(tab_Navigation[[#This Row],[Conca Nav]],tab_Escale[[Nav Precedante]:[Nom Jour]],14,FALSE) -> 43.685 | AD28: 24 | AE28: =YEAR(tab_Navigation[[#This Row],[Date Arrivée]]) -> 2022 | AF28: =MONTH(tab_Navigation[[#This Row],[Date Arrivée]]) -> 9 | AG28: =WEEKNUM(tab_Navigation[[#This Row],[Date Arrivée]],2) -> 38
A29: =CONCATENATE(tab_Navigation[[#This Row],[N° Nav]]," - ",tab_Navigation[[#This Row],[Départ]]," > ",tab_Navigation[[#This Row],[Arrivée]]) -> 0023 - Porthmadog > Dale | B29: 001 - Port Louis > Port Louis | C29: 0023 | D29: Porthmadog | E29: Dale | F29: =VLOOKUP(tab_Navigation[[#This Row],[Arrivée]],tab_Port_Mouillage[],6,FALSE) -> Royaume Uni | G29: 8 | H29: =tab_Navigation[[#This Row],[Dep Km]]/1.852 -> 4.319654428 | I29: 175 | J29: =tab_Navigation[[#This Row],[Nav Km]]/1.852 -> 94.4924406 | K29: 8 | L29: =tab_Navigation[[#This Row],[Arr Km]]/1.852 -> 4.319654428 | M29: =tab_Navigation[[#This Row],[Dep Mn]]+tab_Navigation[[#This Row],[Nav Mn]]+tab_Navigation[[#This Row],[Arr Mn]] -> 103.1317495 | N29: 1 | O29: =VLOOKUP(tab_Navigation[[#This Row],[Arrivée]],tab_Escale[[Nom Escale]:[Jour]],5,FALSE) -> 2 | P29: 2022-09-14T22:26:24 | Q29: =tab_Navigation[[#This Row],[Date Départ]]+tab_Navigation[[#This Row],[J Navig]] -> 2022-09-15T22:26:24 | R29: =tab_Navigation[[#This Row],[Mn Nav Total]]/(tab_Navigation[[#This Row],[J Navig]]*24) -> 4.297156228 | S29: 2.1 | T29: 01 - Voile selon Cond. | U29: 0.95 | V29: =tab_Navigation[[#This Row],[Nav Mn]]*tab_Navigation[[#This Row],[Rap Nav Voil]] -> 89.76781857 | W29: =1-tab_Navigation[[#This Row],[Rap Nav Voil]] -> 0.05 | X29: =tab_Navigation[[#This Row],[Nav Mn]]*tab_Navigation[[#This Row],[Rap Nav Mot]] -> 4.72462203 | Y29: =tab_Navigation[[#This Row],[Dep Mn]]+tab_Navigation[[#This Row],[Arr Mn]] -> 8.639308855 | Z29: =tab_Navigation[[#This Row],[Mn Nav Mot]]+tab_Navigation[[#This Row],[Mn Approch Mot]] -> 13.36393089 | AA29: =tab_Navigation[[#This Row],[Mn Total Mot]]*'Variable Constante'!$F$6*'Variable Constante'!$E$10 -> 34.7462203 | AB29: =VLOOKUP(tab_Navigation[[#This Row],[Arrivée]],tab_Port_Mouillage[],9,FALSE) -> 06 - Mouillage Free | AC29: =VLOOKUP(tab_Navigation[[#This Row],[Conca Nav]],tab_Escale[[Nav Precedante]:[Nom Jour]],14,FALSE) -> 46.685 | AD29: 25 | AE29: =YEAR(tab_Navigation[[#This Row],[Date Arrivée]]) -> 2022 | AF29: =MONTH(tab_Navigation[[#This Row],[Date Arrivée]]) -> 9 | AG29: =WEEKNUM(tab_Navigation[[#This Row],[Date Arrivée]],2) -> 38
A30: =CONCATENATE(tab_Navigation[[#This Row],[N° Nav]]," - ",tab_Navigation[[#This Row],[Départ]]," > ",tab_Navigation[[#This Row],[Arrivée]]) -> 0024 - Dale > Archipel Scilly | B30: 001 - Port Louis > Port Louis | C30: 0024 | D30: Dale | E30: Archipel Scilly | F30: =VLOOKUP(tab_Navigation[[#This Row],[Arrivée]],tab_Port_Mouillage[],6,FALSE) -> Royaume Uni | G30: 8 | H30: =tab_Navigation[[#This Row],[Dep Km]]/1.852 -> 4.319654428 | I30: 211 | J30: =tab_Navigation[[#This Row],[Nav Km]]/1.852 -> 113.9308855 | K30: 1 | L30: =tab_Navigation[[#This Row],[Arr Km]]/1.852 -> 0.5399568035 | M30: =tab_Navigation[[#This Row],[Dep Mn]]+tab_Navigation[[#This Row],[Nav Mn]]+tab_Navigation[[#This Row],[Arr Mn]] -> 118.7904968 | N30: 1 | O30: =VLOOKUP(tab_Navigation[[#This Row],[Arrivée]],tab_Escale[[Nom Escale]:[Jour]],5,FALSE) -> 2.3 | P30: 2022-09-18T05:38:24 | Q30: =tab_Navigation[[#This Row],[Date Départ]]+tab_Navigation[[#This Row],[J Navig]] -> 2022-09-19T05:38:24 | R30: =tab_Navigation[[#This Row],[Mn Nav Total]]/(tab_Navigation[[#This Row],[J Navig]]*24) -> 4.949604032 | S30: 2.1 | T30: 01 - Voile selon Cond. | U30: 0.95 | V30: =tab_Navigation[[#This Row],[Nav Mn]]*tab_Navigation[[#This Row],[Rap Nav Voil]] -> 108.2343413 | W30: =1-tab_Navigation[[#This Row],[Rap Nav Voil]] -> 0.05 | X30: =tab_Navigation[[#This Row],[Nav Mn]]*tab_Navigation[[#This Row],[Rap Nav Mot]] -> 5.696544276 | Y30: =tab_Navigation[[#This Row],[Dep Mn]]+tab_Navigation[[#This Row],[Arr Mn]] -> 4.859611231 | Z30: =tab_Navigation[[#This Row],[Mn Nav Mot]]+tab_Navigation[[#This Row],[Mn Approch Mot]] -> 10.55615551 | AA30: =tab_Navigation[[#This Row],[Mn Total Mot]]*'Variable Constante'!$F$6*'Variable Constante'!$E$10 -> 27.44600432 | AB30: =VLOOKUP(tab_Navigation[[#This Row],[Arrivée]],tab_Port_Mouillage[],9,FALSE) -> 02 - Coffre Pay | AC30: =VLOOKUP(tab_Navigation[[#This Row],[Conca Nav]],tab_Escale[[Nav Precedante]:[Nom Jour]],14,FALSE) -> 49.685 | AD30: 26 | AE30: =YEAR(tab_Navigation[[#This Row],[Date Arrivée]]) -> 2022 | AF30: =MONTH(tab_Navigation[[#This Row],[Date Arrivée]]) -> 9 | AG30: =WEEKNUM(tab_Navigation[[#This Row],[Date Arrivée]],2) -> 39
A31: =CONCATENATE(tab_Navigation[[#This Row],[N° Nav]]," - ",tab_Navigation[[#This Row],[Départ]]," > ",tab_Navigation[[#This Row],[Arrivée]]) -> 0025 - Archipel Scilly > Port Louis | B31: 001 - Port Louis > Port Louis | C31: 0025 | D31: Archipel Scilly | E31: Port Louis | F31: =VLOOKUP(tab_Navigation[[#This Row],[Arrivée]],tab_Port_Mouillage[],6,FALSE) -> Fr Metro | G31: 1 | H31: =tab_Navigation[[#This Row],[Dep Km]]/1.852 -> 0.5399568035 | I31: 378 | J31: =tab_Navigation[[#This Row],[Nav Km]]/1.852 -> 204.1036717 | K31: 4 | L31: =tab_Navigation[[#This Row],[Arr Km]]/1.852 -> 2.159827214 | M31: =tab_Navigation[[#This Row],[Dep Mn]]+tab_Navigation[[#This Row],[Nav Mn]]+tab_Navigation[[#This Row],[Arr Mn]] -> 206.8034557 | N31: 2 | O31: =VLOOKUP(tab_Navigation[[#This Row],[Arrivée]],tab_Escale[[Nom Escale]:[Jour]],5,FALSE) -> 1 | P31: 2022-09-20T05:38:24 | Q31: =tab_Navigation[[#This Row],[Date Départ]]+tab_Navigation[[#This Row],[J Navig]] -> 2022-09-22T05:38:24 | R31: =tab_Navigation[[#This Row],[Mn Nav Total]]/(tab_Navigation[[#This Row],[J Navig]]*24) -> 4.308405328 | S31: 2.1 | T31: 01 - Voile selon Cond. | U31: 0.95 | V31: =tab_Navigation[[#This Row],[Nav Mn]]*tab_Navigation[[#This Row],[Rap Nav Voil]] -> 193.8984881 | W31: =1-tab_Navigation[[#This Row],[Rap Nav Voil]] -> 0.05 | X31: =tab_Navigation[[#This Row],[Nav Mn]]*tab_Navigation[[#This Row],[Rap Nav Mot]] -> 10.20518359 | Y31: =tab_Navigation[[#This Row],[Dep Mn]]+tab_Navigation[[#This Row],[Arr Mn]] -> 2.699784017 | Z31: =tab_Navigation[[#This Row],[Mn Nav Mot]]+tab_Navigation[[#This Row],[Mn Approch Mot]] -> 12.9049676 | AA31: =tab_Navigation[[#This Row],[Mn Total Mot]]*'Variable Constante'!$F$6*'Variable Constante'!$E$10 -> 33.55291577 | AB31: =VLOOKUP(tab_Navigation[[#This Row],[Arrivée]],tab_Port_Mouillage[],9,FALSE) -> 01 - Port Plein Eau Pay | AC31: =VLOOKUP(tab_Navigation[[#This Row],[Conca Nav]],tab_Escale[[Nav Precedante]:[Nom Jour]],14,FALSE) -> 52.685 | AD31: 27 | AE31: =YEAR(tab_Navigation[[#This Row],[Date Arrivée]]) -> 2022 | AF31: =MONTH(tab_Navigation[[#This Row],[Date Arrivée]]) -> 9 | AG31: =WEEKNUM(tab_Navigation[[#This Row],[Date Arrivée]],2) -> 39
A32: =CONCATENATE(tab_Navigation[[#This Row],[N° Nav]]," - ",tab_Navigation[[#This Row],[Départ]]," > ",tab_Navigation[[#This Row],[Arrivée]]) -> 0026 - Port Louis > Port Louis | B32: 001 agd - > | C32: 0026 | D32: Port Louis | E32: Port Louis | F32: =VLOOKUP(tab_Navigation[[#This Row],[Arrivée]],tab_Port_Mouillage[],6,FALSE) -> Fr Metro | G32: 0 | H32: =tab_Navigation[[#This Row],[Dep Km]]/1.852 -> 0 | I32: 0 | J32: =tab_Navigation[[#This Row],[Nav Km]]/1.852 -> 0 | K32: 0 | L32: =tab_Navigation[[#This Row],[Arr Km]]/1.852 -> 0 | M32: =tab_Navigation[[#This Row],[Dep Mn]]+tab_Navigation[[#This Row],[Nav Mn]]+tab_Navigation[[#This Row],[Arr Mn]] -> 0 | N32: 0.03 | O32: =VLOOKUP(tab_Navigation[[#This Row],[Arrivée]],tab_Escale[[Nom Escale]:[Jour]],5,FALSE) -> 1 | P32: 2022-09-23T05:38:24 | Q32: =tab_Navigation[[#This Row],[Date Départ]]+tab_Navigation[[#This Row],[J Navig]] -> 2022-09-23T06:21:36 | R32: =tab_Navigation[[#This Row],[Mn Nav Total]]/(tab_Navigation[[#This Row],[J Navig]]*24) -> 0 | S32: 2.1 | T32: 01 - Voile selon Cond. | U32: 0 | V32: =tab_Navigation[[#This Row],[Nav Mn]]*tab_Navigation[[#This Row],[Rap Nav Voil]] -> 0 | W32: =1-tab_Navigation[[#This Row],[Rap Nav Voil]] -> 1 | X32: =tab_Navigation[[#This Row],[Nav Mn]]*tab_Navigation[[#This Row],[Rap Nav Mot]] -> 0 | Y32: =tab_Navigation[[#This Row],[Dep Mn]]+tab_Navigation[[#This Row],[Arr Mn]] -> 0 | Z32: =tab_Navigation[[#This Row],[Mn Nav Mot]]+tab_Navigation[[#This Row],[Mn Approch Mot]] -> 0 | AA32: =tab_Navigation[[#This Row],[Mn Total Mot]]*'Variable Constante'!$F$6*'Variable Constante'!$E$10 -> 0 | AB32: =VLOOKUP(tab_Navigation[[#This Row],[Arrivée]],tab_Port_Mouillage[],9,FALSE) -> 01 - Port Plein Eau Pay | AC32: =VLOOKUP(tab_Navigation[[#This Row],[Conca Nav]],tab_Escale[[Nav Precedante]:[Nom Jour]],14,FALSE) -> 72.715 | AD32: 28 | AE32: =YEAR(tab_Navigation[[#This Row],[Date Arrivée]]) -> 2022 | AF32: =MONTH(tab_Navigation[[#This Row],[Date Arrivée]]) -> 9 | AG32: =WEEKNUM(tab_Navigation[[#This Row],[Date Arrivée]],2) -> 39
A33: =CONCATENATE(tab_Navigation[[#This Row],[N° Nav]]," - ",tab_Navigation[[#This Row],[Départ]]," > ",tab_Navigation[[#This Row],[Arrivée]]) -> 0027 - Port Louis > Oeiras Marina | B33: 002 - Port Louis > Lisbonne | C33: 0027 | D33: Port Louis | E33: Oeiras Marina | F33: =VLOOKUP(tab_Navigation[[#This Row],[Arrivée]],tab_Port_Mouillage[],6,FALSE) -> Portugal | G33: 2 | H33: =tab_Navigation[[#This Row],[Dep Km]]/1.852 -> 1.079913607 | I33: 1300 | J33: =tab_Navigation[[#This Row],[Nav Km]]/1.852 -> 701.9438445 | K33: 2 | L33: =tab_Navigation[[#This Row],[Arr Km]]/1.852 -> 1.079913607 | M33: =tab_Navigation[[#This Row],[Dep Mn]]+tab_Navigation[[#This Row],[Nav Mn]]+tab_Navigation[[#This Row],[Arr Mn]] -> 704.1036717 | N33: 5 | O33: =VLOOKUP(tab_Navigation[[#This Row],[Arrivée]],tab_Escale[[Nom Escale]:[Jour]],5,FALSE) -> 3 | P33: 2022-09-26T06:21:36 | Q33: =tab_Navigation[[#This Row],[Date Départ]]+tab_Navigation[[#This Row],[J Navig]] -> 2022-10-01T06:21:36 | R33: =tab_Navigation[[#This Row],[Mn Nav Total]]/(tab_Navigation[[#This Row],[J Navig]]*24) -> 5.867530598 | S33: 2.1 | T33: 01 - Voile selon Cond. | U33: 0.98 | V33: =tab_Navigation[[#This Row],[Nav Mn]]*tab_Navigation[[#This Row],[Rap Nav Voil]] -> 687.9049676 | W33: =1-tab_Navigation[[#This Row],[Rap Nav Voil]] -> 0.02 | X33: =tab_Navigation[[#This Row],[Nav Mn]]*tab_Navigation[[#This Row],[Rap Nav Mot]] -> 14.03887689 | Y33: =tab_Navigation[[#This Row],[Dep Mn]]+tab_Navigation[[#This Row],[Arr Mn]] -> 2.159827214 | Z33: =tab_Navigation[[#This Row],[Mn Nav Mot]]+tab_Navigation[[#This Row],[Mn Approch Mot]] -> 16.1987041 | AA33: =tab_Navigation[[#This Row],[Mn Total Mot]]*'Variable Constante'!$F$6*'Variable Constante'!$E$10 -> 42.11663067 | AB33: =VLOOKUP(tab_Navigation[[#This Row],[Arrivée]],tab_Port_Mouillage[],9,FALSE) -> 01 - Port Plein Eau Pay | AC33: =VLOOKUP(tab_Navigation[[#This Row],[Conca Nav]],tab_Escale[[Nav Precedante]:[Nom Jour]],14,FALSE) -> 80.715 | AD33: 29 | AE33: =YEAR(tab_Navigation[[#This Row],[Date Arrivée]]) -> 2022 | AF33: =MONTH(tab_Navigation[[#This Row],[Date Arrivée]]) -> 10 | AG33: =WEEKNUM(tab_Navigation[[#This Row],[Date Arrivée]],2) -> 40
A34: =CONCATENATE(tab_Navigation[[#This Row],[N° Nav]]," - ",tab_Navigation[[#This Row],[Départ]]," > ",tab_Navigation[[#This Row],[Arrivée]]) -> 0064 - Oeiras Marina > Porto Santo Port | B34: 003 - Lisbonne > Cap Vert | C34: 0064 | D34: Oeiras Marina | E34: Porto Santo Port | F34: =VLOOKUP(tab_Navigation[[#This Row],[Arrivée]],tab_Port_Mouillage[],6,FALSE) -> Madère | G34: 2 | H34: =tab_Navigation[[#This Row],[Dep Km]]/1.852 -> 1.079913607 | I34: 883 | J34: =tab_Navigation[[#This Row],[Nav Km]]/1.852 -> 476.7818575 | K34: 1 | L34: =tab_Navigation[[#This Row],[Arr Km]]/1.852 -> 0.5399568035 | M34: =tab_Navigation[[#This Row],[Dep Mn]]+tab_Navigation[[#This Row],[Nav Mn]]+tab_Navigation[[#This Row],[Arr Mn]] -> 478.4017279 | N34: 4 | O34: =VLOOKUP(tab_Navigation[[#This Row],[Arrivée]],tab_Escale[[Nom Escale]:[Jour]],5,FALSE) -> 2.5 | P34: 2022-10-03T18:21:36 | Q34: =tab_Navigation[[#This Row],[Date Départ]]+tab_Navigation[[#This Row],[J Navig]] -> 2022-10-07T18:21:36 | R34: =tab_Navigation[[#This Row],[Mn Nav Total]]/(tab_Navigation[[#This Row],[J Navig]]*24) -> 4.983351332 | S34: 2.1 | T34: 01 - Voile selon Cond. | U34: 0.95 | V34: =tab_Navigation[[#This Row],[Nav Mn]]*tab_Navigation[[#This Row],[Rap Nav Voil]] -> 452.9427646 | W34: =1-tab_Navigation[[#This Row],[Rap Nav Voil]] -> 0.05 | X34: =tab_Navigation[[#This Row],[Nav Mn]]*tab_Navigation[[#This Row],[Rap Nav Mot]] -> 23.83909287 | Y34: =tab_Navigation[[#This Row],[Dep Mn]]+tab_Navigation[[#This Row],[Arr Mn]] -> 1.61987041 | Z34: =tab_Navigation[[#This Row],[Mn Nav Mot]]+tab_Navigation[[#This Row],[Mn Approch Mot]] -> 25.45896328 | AA34: =tab_Navigation[[#This Row],[Mn Total Mot]]*'Variable Constante'!$F$6*'Variable Constante'!$E$10 -> 66.19330454 | AB34: =VLOOKUP(tab_Navigation[[#This Row],[Arrivée]],tab_Port_Mouillage[],9,FALSE) -> 01 - Port Plein Eau Pay | AC34: =VLOOKUP(tab_Navigation[[#This Row],[Conca Nav]],tab_Escale[[Nav Precedante]:[Nom Jour]],14,FALSE) -> 87.215 | AD34: 30 | AE34: =YEAR(tab_Navigation[[#This Row],[Date Arrivée]]) -> 2022 | AF34: =MONTH(tab_Navigation[[#This Row],[Date Arrivée]]) -> 10 | AG34: =WEEKNUM(tab_Navigation[[#This Row],[Date Arrivée]],2) -> 41
A35: =CONCATENATE(tab_Navigation[[#This Row],[N° Nav]]," - ",tab_Navigation[[#This Row],[Départ]]," > ",tab_Navigation[[#This Row],[Arrivée]]) -> 0065 - Porto Santo Port > Machico | B35: 003 - Lisbonne > Cap Vert | C35: 0065 | D35: Porto Santo Port | E35: Machico | F35: =VLOOKUP(tab_Navigation[[#This Row],[Arrivée]],tab_Port_Mouillage[],6,FALSE) -> Madère | G35: 1 | H35: =tab_Navigation[[#This Row],[Dep Km]]/1.852 -> 0.5399568035 | I35: 59 | J35: =tab_Navigation[[#This Row],[Nav Km]]/1.852 -> 31.8574514 | K35: 1 | L35: =tab_Navigation[[#This Row],[Arr Km]]/1.852 -> 0.5399568035 | M35: =tab_Navigation[[#This Row],[Dep Mn]]+tab_Navigation[[#This Row],[Nav Mn]]+tab_Navigation[[#This Row],[Arr Mn]] -> 32.93736501 | N35: 0.4 | O35: =VLOOKUP(tab_Navigation[[#This Row],[Arrivée]],tab_Escale[[Nom Escale]:[Jour]],5,FALSE) -> 3.5 | P35: 2022-10-11T06:21:36 | Q35: =tab_Navigation[[#This Row],[Date Départ]]+tab_Navigation[[#This Row],[J Navig]] -> 2022-10-11T15:57:36 | R35: =tab_Navigation[[#This Row],[Mn Nav Total]]/(tab_Navigation[[#This Row],[J Navig]]*24) -> 3.430975522 | S35: 2.1 | T35: 01 - Voile selon Cond. | U35: 0.95 | V35: =tab_Navigation[[#This Row],[Nav Mn]]*tab_Navigation[[#This Row],[Rap Nav Voil]] -> 30.26457883 | W35: =1-tab_Navigation[[#This Row],[Rap Nav Voil]] -> 0.05 | X35: =tab_Navigation[[#This Row],[Nav Mn]]*tab_Navigation[[#This Row],[Rap Nav Mot]] -> 1.59287257 | Y35: =tab_Navigation[[#This Row],[Dep Mn]]+tab_Navigation[[#This Row],[Arr Mn]] -> 1.079913607 | Z35: =tab_Navigation[[#This Row],[Mn Nav Mot]]+tab_Navigation[[#This Row],[Mn Approch Mot]] -> 2.672786177 | AA35: =tab_Navigation[[#This Row],[Mn Total Mot]]*'Variable Constante'!$F$6*'Variable Constante'!$E$10 -> 6.94924406 | AB35: =VLOOKUP(tab_Navigation[[#This Row],[Arrivée]],tab_Port_Mouillage[],9,FALSE) -> 01 - Port Plein Eau Pay | AC35: =VLOOKUP(tab_Navigation[[#This Row],[Conca Nav]],tab_Escale[[Nav Precedante]:[Nom Jour]],14,FALSE) -> 91.115 | AD35: 31 | AE35: =YEAR(tab_Navigation[[#This Row],[Date Arrivée]]) -> 2022 | AF35: =MONTH(tab_Navigation[[#This Row],[Date Arrivée]]) -> 10 | AG35: =WEEKNUM(tab_Navigation[[#This Row],[Date Arrivée]],2) -> 42
A36: =CONCATENATE(tab_Navigation[[#This Row],[N° Nav]]," - ",tab_Navigation[[#This Row],[Départ]]," > ",tab_Navigation[[#This Row],[Arrivée]]) -> 0031 - Madère > Marina Lanzarote | B36: 003 - Lisbonne > Cap Vert | C36: 0031 | D36: Madère | E36: Marina Lanzarote | F36: =VLOOKUP(tab_Navigation[[#This Row],[Arrivée]],tab_Port_Mouillage[],6,FALSE) -> Canaris | G36: 3 | H36: =tab_Navigation[[#This Row],[Dep Km]]/1.852 -> 1.61987041 | I36: 650 | J36: =tab_Navigation[[#This Row],[Nav Km]]/1.852 -> 350.9719222 | K36: 2 | L36: =tab_Navigation[[#This Row],[Arr Km]]/1.852 -> 1.079913607 | M36: =tab_Navigation[[#This Row],[Dep Mn]]+tab_Navigation[[#This Row],[Nav Mn]]+tab_Navigation[[#This Row],[Arr Mn]] -> 353.6717063 | N36: 2.5 | O36: =VLOOKUP(tab_Navigation[[#This Row],[Arrivée]],tab_Escale[[Nom Escale]:[Jour]],5,FALSE) -> 2.5 | P36: 2022-10-14T03:57:36 | Q36: =tab_Navigation[[#This Row],[Date Départ]]+tab_Navigation[[#This Row],[J Navig]] -> 2022-10-16T15:57:36 | R36: =tab_Navigation[[#This Row],[Mn Nav Total]]/(tab_Navigation[[#This Row],[J Navig]]*24) -> 5.894528438 | S36: 2.1 | T36: 01 - Voile selon Cond. | U36: 0.95 | V36: =tab_Navigation[[#This Row],[Nav Mn]]*tab_Navigation[[#This Row],[Rap Nav Voil]] -> 333.4233261 | W36: =1-tab_Navigation[[#This Row],[Rap Nav Voil]] -> 0.05 | X36: =tab_Navigation[[#This Row],[Nav Mn]]*tab_Navigation[[#This Row],[Rap Nav Mot]] -> 17.54859611 | Y36: =tab_Navigation[[#This Row],[Dep Mn]]+tab_Navigation[[#This Row],[Arr Mn]] -> 2.699784017 | Z36: =tab_Navigation[[#This Row],[Mn Nav Mot]]+tab_Navigation[[#This Row],[Mn Approch Mot]] -> 20.24838013 | AA36: =tab_Navigation[[#This Row],[Mn Total Mot]]*'Variable Constante'!$F$6*'Variable Constante'!$E$10 -> 52.64578834 | AB36: =VLOOKUP(tab_Navigation[[#This Row],[Arrivée]],tab_Port_Mouillage[],9,FALSE) -> 01 - Port Plein Eau Pay | AC36: =VLOOKUP(tab_Navigation[[#This Row],[Conca Nav]],tab_Escale[[Nav Precedante]:[Nom Jour]],14,FALSE) -> 96.115 | AD36: 32 | AE36: =YEAR(tab_Navigation[[#This Row],[Date Arrivée]]) -> 2022 | AF36: =MONTH(tab_Navigation[[#This Row],[Date Arrivée]]) -> 10 | AG36: =WEEKNUM(tab_Navigation[[#This Row],[Date Arrivée]],2) -> 42
A37: =CONCATENATE(tab_Navigation[[#This Row],[N° Nav]]," - ",tab_Navigation[[#This Row],[Départ]]," > ",tab_Navigation[[#This Row],[Arrivée]]) -> 0069 - Marina Lanzarote > Paliarte | B37: 003 - Lisbonne > Cap Vert | C37: 0069 | D37: Marina Lanzarote | E37: Paliarte | F37: =VLOOKUP(tab_Navigation[[#This Row],[Arrivée]],tab_Port_Mouillage[],6,FALSE) -> Canaris | G37: 2 | H37: =tab_Navigation[[#This Row],[Dep Km]]/1.852 -> 1.079913607 | I37: 221 | J37: =tab_Navigation[[#This Row],[Nav Km]]/1.852 -> 119.3304536 | K37: 2 | L37: =tab_Navigation[[#This Row],[Arr Km]]/1.852 -> 1.079913607 | M37: =tab_Navigation[[#This Row],[Dep Mn]]+tab_Navigation[[#This Row],[Nav Mn]]+tab_Navigation[[#This Row],[Arr Mn]] -> 121.4902808 | N37: 1 | O37: =VLOOKUP(tab_Navigation[[#This Row],[Arrivée]],tab_Escale[[Nom Escale]:[Jour]],5,FALSE) -> 2.5 | P37: 2022-10-19T03:57:36 | Q37: =tab_Navigation[[#This Row],[Date Départ]]+tab_Navigation[[#This Row],[J Navig]] -> 2022-10-20T03:57:36 | R37: =tab_Navigation[[#This Row],[Mn Nav Total]]/(tab_Navigation[[#This Row],[J Navig]]*24) -> 5.062095032 | S37: 2.1 | T37: 01 - Voile selon Cond. | U37: 0.95 | V37: =tab_Navigation[[#This Row],[Nav Mn]]*tab_Navigation[[#This Row],[Rap Nav Voil]] -> 113.3639309 | W37: =1-tab_Navigation[[#This Row],[Rap Nav Voil]] -> 0.05 | X37: =tab_Navigation[[#This Row],[Nav Mn]]*tab_Navigation[[#This Row],[Rap Nav Mot]] -> 5.966522678 | Y37: =tab_Navigation[[#This Row],[Dep Mn]]+tab_Navigation[[#This Row],[Arr Mn]] -> 2.159827214 | Z37: =tab_Navigation[[#This Row],[Mn Nav Mot]]+tab_Navigation[[#This Row],[Mn Approch Mot]] -> 8.126349892 | AA37: =tab_Navigation[[#This Row],[Mn Total Mot]]*'Variable Constante'!$F$6*'Variable Constante'!$E$10 -> 21.12850972 | AB37: =VLOOKUP(tab_Navigation[[#This Row],[Arrivée]],tab_Port_Mouillage[],9,FALSE) -> 01 - Port Plein Eau Pay | AC37: =VLOOKUP(tab_Navigation[[#This Row],[Conca Nav]],tab_Escale[[Nav Precedante]:[Nom Jour]],14,FALSE) -> 99.615 | AD37: 33 | AE37: =YEAR(tab_Navigation[[#This Row],[Date Arrivée]]) -> 2022 | AF37: =MONTH(tab_Navigation[[#This Row],[Date Arrivée]]) -> 10 | AG37: =WEEKNUM(tab_Navigation[[#This Row],[Date Arrivée]],2) -> 43
A38: =CONCATENATE(tab_Navigation[[#This Row],[N° Nav]]," - ",tab_Navigation[[#This Row],[Départ]]," > ",tab_Navigation[[#This Row],[Arrivée]]) -> 0070 - Paliarte > Marina Santa Cruz | B38: 003 - Lisbonne > Cap Vert | C38: 0070 | D38: Paliarte | E38: Marina Santa Cruz | F38: =VLOOKUP(tab_Navigation[[#This Row],[Arrivée]],tab_Port_Mouillage[],6,FALSE) -> Canaris | G38: 2 | H38: =tab_Navigation[[#This Row],[Dep Km]]/1.852 -> 1.079913607 | I38: 116 | J38: =tab_Navigation[[#This Row],[Nav Km]]/1.852 -> 62.6349892 | K38: 2 | L38: =tab_Navigation[[#This Row],[Arr Km]]/1.852 -> 1.079913607 | M38: =tab_Navigation[[#This Row],[Dep Mn]]+tab_Navigation[[#This Row],[Nav Mn]]+tab_Navigation[[#This Row],[Arr Mn]] -> 64.79481641 | N38: 0.6 | O38: =VLOOKUP(tab_Navigation[[#This Row],[Arrivée]],tab_Escale[[Nom Escale]:[Jour]],5,FALSE) -> 3.5 | P38: 2022-10-23T15:57:36 | Q38: =tab_Navigation[[#This Row],[Date Départ]]+tab_Navigation[[#This Row],[J Navig]] -> 2022-10-24T06:21:36 | R38: =tab_Navigation[[#This Row],[Mn Nav Total]]/(tab_Navigation[[#This Row],[J Navig]]*24) -> 4.499640029 | S38: 2.1 | T38: 01 - Voile selon Cond. | U38: 0.95 | V38: =tab_Navigation[[#This Row],[Nav Mn]]*tab_Navigation[[#This Row],[Rap Nav Voil]] -> 59.50323974 | W38: =1-tab_Navigation[[#This Row],[Rap Nav Voil]] -> 0.05 | X38: =tab_Navigation[[#This Row],[Nav Mn]]*tab_Navigation[[#This Row],[Rap Nav Mot]] -> 3.13174946 | Y38: =tab_Navigation[[#This Row],[Dep Mn]]+tab_Navigation[[#This Row],[Arr Mn]] -> 2.159827214 | Z38: =tab_Navigation[[#This Row],[Mn Nav Mot]]+tab_Navigation[[#This Row],[Mn Approch Mot]] -> 5.291576674 | AA38: =tab_Navigation[[#This Row],[Mn Total Mot]]*'Variable Constante'!$F$6*'Variable Constante'!$E$10 -> 13.75809935 | AB38: =VLOOKUP(tab_Navigation[[#This Row],[Arrivée]],tab_Port_Mouillage[],9,FALSE) -> 01 - Port Plein Eau Pay | AC38: =VLOOKUP(tab_Navigation[[#This Row],[Conca Nav]],tab_Escale[[Nav Precedante]:[Nom Jour]],14,FALSE) -> 103.715 | AD38: 34 | AE38: =YEAR(tab_Navigation[[#This Row],[Date Arrivée]]) -> 2022 | AF38: =MONTH(tab_Navigation[[#This Row],[Date Arrivée]]) -> 10 | AG38: =WEEKNUM(tab_Navigation[[#This Row],[Date Arrivée]],2) -> 44
A39: =CONCATENATE(tab_Navigation[[#This Row],[N° Nav]]," - ",tab_Navigation[[#This Row],[Départ]]," > ",tab_Navigation[[#This Row],[Arrivée]]) -> 0071 - Marina Santa Cruz > Marina La Palma | B39: 003 - Lisbonne > Cap Vert | C39: 0071 | D39: Marina Santa Cruz | E39: Marina La Palma | F39: =VLOOKUP(tab_Navigation[[#This Row],[Arrivée]],tab_Port_Mouillage[],6,FALSE) -> Canaris | G39: 2 | H39: =tab_Navigation[[#This Row],[Dep Km]]/1.852 -> 1.079913607 | I39: 222 | J39: =tab_Navigation[[#This Row],[Nav Km]]/1.852 -> 119.8704104 | K39: 2 | L39: =tab_Navigation[[#This Row],[Arr Km]]/1.852 -> 1.079913607 | M39: =tab_Navigation[[#This Row],[Dep Mn]]+tab_Navigation[[#This Row],[Nav Mn]]+tab_Navigation[[#This Row],[Arr Mn]] -> 122.0302376 | N39: 1 | O39: =VLOOKUP(tab_Navigation[[#This Row],[Arrivée]],tab_Escale[[Nom Escale]:[Jour]],5,FALSE) -> 2.5 | P39: 2022-10-26T18:21:36 | Q39: =tab_Navigation[[#This Row],[Date Départ]]+tab_Navigation[[#This Row],[J Navig]] -> 2022-10-27T18:21:36 | R39: =tab_Navigation[[#This Row],[Mn Nav Total]]/(tab_Navigation[[#This Row],[J Navig]]*24) -> 5.084593233 | S39: 2.1 | T39: 01 - Voile selon Cond. | U39: 0.95 | V39: =tab_Navigation[[#This Row],[Nav Mn]]*tab_Navigation[[#This Row],[Rap Nav Voil]] -> 113.8768898 | W39: =1-tab_Navigation[[#This Row],[Rap Nav Voil]] -> 0.05 | X39: =tab_Navigation[[#This Row],[Nav Mn]]*tab_Navigation[[#This Row],[Rap Nav Mot]] -> 5.993520518 | Y39: =tab_Navigation[[#This Row],[Dep Mn]]+tab_Navigation[[#This Row],[Arr Mn]] -> 2.159827214 | Z39: =tab_Navigation[[#This Row],[Mn Nav Mot]]+tab_Navigation[[#This Row],[Mn Approch Mot]] -> 8.153347732 | AA39: =tab_Navigation[[#This Row],[Mn Total Mot]]*'Variable Constante'!$F$6*'Variable Constante'!$E$10 -> 21.1987041 | AB39: =VLOOKUP(tab_Navigation[[#This Row],[Arrivée]],tab_Port_Mouillage[],9,FALSE) -> 01 - Port Plein Eau Pay | AC39: =VLOOKUP(tab_Navigation[[#This Row],[Conca Nav]],tab_Escale[[Nav Precedante]:[Nom Jour]],14,FALSE) -> 107.215 | AD39: 35 | AE39: =YEAR(tab_Navigation[[#This Row],[Date Arrivée]]) -> 2022 | AF39: =MONTH(tab_Navigation[[#This Row],[Date Arrivée]]) -> 10 | AG39: =WEEKNUM(tab_Navigation[[#This Row],[Date Arrivée]],2) -> 44
A40: =CONCATENATE(tab_Navigation[[#This Row],[N° Nav]]," - ",tab_Navigation[[#This Row],[Départ]]," > ",tab_Navigation[[#This Row],[Arrivée]]) -> 0032 - Marina La Palma > Porto de Palmeira | B40: 003 - Lisbonne > Cap Vert | C40: 0032 | D40: Marina La Palma | E40: Porto de Palmeira | F40: =VLOOKUP(tab_Navigation[[#This Row],[Arrivée]],tab_Port_Mouillage[],6,FALSE) -> Cap Vert | G40: 2 | H40: =tab_Navigation[[#This Row],[Dep Km]]/1.852 -> 1.079913607 | I40: 1437 | J40: =tab_Navigation[[#This Row],[Nav Km]]/1.852 -> 775.9179266 | K40: 2 | L40: =tab_Navigation[[#This Row],[Arr Km]]/1.852 -> 1.079913607 | M40: =tab_Navigation[[#This Row],[Dep Mn]]+tab_Navigation[[#This Row],[Nav Mn]]+tab_Navigation[[#This Row],[Arr Mn]] -> 778.0777538 | N40: 6.5 | O40: =VLOOKUP(tab_Navigation[[#This Row],[Arrivée]],tab_Escale[[Nom Escale]:[Jour]],5,FALSE) -> 3.5 | P40: 2022-10-31T06:21:36 | Q40: =tab_Navigation[[#This Row],[Date Départ]]+tab_Navigation[[#This Row],[J Navig]] -> 2022-11-06T18:21:36 | R40: =tab_Navigation[[#This Row],[Mn Nav Total]]/(tab_Navigation[[#This Row],[J Navig]]*24) -> 4.987677909 | S40: 2.1 | T40: 01 - Voile selon Cond. | U40: 0.98 | V40: =tab_Navigation[[#This Row],[Nav Mn]]*tab_Navigation[[#This Row],[Rap Nav Voil]] -> 760.399568 | W40: =1-tab_Navigation[[#This Row],[Rap Nav Voil]] -> 0.02 | X40: =tab_Navigation[[#This Row],[Nav Mn]]*tab_Navigation[[#This Row],[Rap Nav Mot]] -> 15.51835853 | Y40: =tab_Navigation[[#This Row],[Dep Mn]]+tab_Navigation[[#This Row],[Arr Mn]] -> 2.159827214 | Z40: =tab_Navigation[[#This Row],[Mn Nav Mot]]+tab_Navigation[[#This Row],[Mn Approch Mot]] -> 17.67818575 | AA40: =tab_Navigation[[#This Row],[Mn Total Mot]]*'Variable Constante'!$F$6*'Variable Constante'!$E$10 -> 45.96328294 | AB40: =VLOOKUP(tab_Navigation[[#This Row],[Arrivée]],tab_Port_Mouillage[],9,FALSE) -> 06 - Mouillage Free | AC40: =VLOOKUP(tab_Navigation[[#This Row],[Conca Nav]],tab_Escale[[Nav Precedante]:[Nom Jour]],14,FALSE) -> 117.215 | AD40: 36 | AE40: =YEAR(tab_Navigation[[#This Row],[Date Arrivée]]) -> 2022 | AF40: =MONTH(tab_Navigation[[#This Row],[Date Arrivée]]) -> 11 | AG40: =WEEKNUM(tab_Navigation[[#This Row],[Date Arrivée]],2) -> 45
A41: =CONCATENATE(tab_Navigation[[#This Row],[N° Nav]]," - ",tab_Navigation[[#This Row],[Départ]]," > ",tab_Navigation[[#This Row],[Arrivée]]) -> 0066 - Porto de Palmeira > Porto Sal Rei | B41: 003 - Lisbonne > Cap Vert | C41: 0066 | D41: Porto de Palmeira | E41: Porto Sal Rei | F41: =VLOOKUP(tab_Navigation[[#This Row],[Arrivée]],tab_Port_Mouillage[],6,FALSE) -> Cap Vert | G41: 2 | H41: =tab_Navigation[[#This Row],[Dep Km]]/1.852 -> 1.079913607 | I41: 63 | J41: =tab_Navigation[[#This Row],[Nav Km]]/1.852 -> 34.01727862 | K41: 2 | L41: =tab_Navigation[[#This Row],[Arr Km]]/1.852 -> 1.079913607 | M41: =tab_Navigation[[#This Row],[Dep Mn]]+tab_Navigation[[#This Row],[Nav Mn]]+tab_Navigation[[#This Row],[Arr Mn]] -> 36.17710583 | N41: 0.35 | O41: =VLOOKUP(tab_Navigation[[#This Row],[Arrivée]],tab_Escale[[Nom Escale]:[Jour]],5,FALSE) -> 2.5 | P41: 2022-11-09T06:21:36 | Q41: =tab_Navigation[[#This Row],[Date Départ]]+tab_Navigation[[#This Row],[J Navig]] -> 2022-11-09T14:45:36 | R41: =tab_Navigation[[#This Row],[Mn Nav Total]]/(tab_Navigation[[#This Row],[J Navig]]*24) -> 4.306798313 | S41: 2.1 | T41: 01 - Voile selon Cond. | U41: 0.95 | V41: =tab_Navigation[[#This Row],[Nav Mn]]*tab_Navigation[[#This Row],[Rap Nav Voil]] -> 32.31641469 | W41: =1-tab_Navigation[[#This Row],[Rap Nav Voil]] -> 0.05 | X41: =tab_Navigation[[#This Row],[Nav Mn]]*tab_Navigation[[#This Row],[Rap Nav Mot]] -> 1.700863931 | Y41: =tab_Navigation[[#This Row],[Dep Mn]]+tab_Navigation[[#This Row],[Arr Mn]] -> 2.159827214 | Z41: =tab_Navigation[[#This Row],[Mn Nav Mot]]+tab_Navigation[[#This Row],[Mn Approch Mot]] -> 3.860691145 | AA41: =tab_Navigation[[#This Row],[Mn Total Mot]]*'Variable Constante'!$F$6*'Variable Constante'!$E$10 -> 10.03779698 | AB41: =VLOOKUP(tab_Navigation[[#This Row],[Arrivée]],tab_Port_Mouillage[],9,FALSE) -> 06 - Mouillage Free | AC41: =VLOOKUP(tab_Navigation[[#This Row],[Conca Nav]],tab_Escale[[Nav Precedante]:[Nom Jour]],14,FALSE) -> 120.065 | AD41: 37 | AE41: =YEAR(tab_Navigation[[#This Row],[Date Arrivée]]) -> 2022 | AF41: =MONTH(tab_Navigation[[#This Row],[Date Arrivée]]) -> 11 | AG41: =WEEKNUM(tab_Navigation[[#This Row],[Date Arrivée]],2) -> 46
A42: =CONCATENATE(tab_Navigation[[#This Row],[N° Nav]]," - ",tab_Navigation[[#This Row],[Départ]]," > ",tab_Navigation[[#This Row],[Arrivée]]) -> 0067 - Porto Sal Rei > Mindelo | B42: 003 - Lisbonne > Cap Vert | C42: 0067 | D42: Porto Sal Rei | E42: Mindelo | F42: =VLOOKUP(tab_Navigation[[#This Row],[Arrivée]],tab_Port_Mouillage[],6,FALSE) -> Cap Vert | G42: 2 | H42: =tab_Navigation[[#This Row],[Dep Km]]/1.852 -> 1.079913607 | I42: 242 | J42: =tab_Navigation[[#This Row],[Nav Km]]/1.852 -> 130.6695464 | K42: 2 | L42: =tab_Navigation[[#This Row],[Arr Km]]/1.852 -> 1.079913607 | M42: =tab_Navigation[[#This Row],[Dep Mn]]+tab_Navigation[[#This Row],[Nav Mn]]+tab_Navigation[[#This Row],[Arr Mn]] -> 132.8293737 | N42: 1 | O42: =VLOOKUP(tab_Navigation[[#This Row],[Arrivée]],tab_Escale[[Nom Escale]:[Jour]],5,FALSE) -> 5.5 | P42: 2022-11-15T02:45:36 | Q42: =tab_Navigation[[#This Row],[Date Départ]]+tab_Navigation[[#This Row],[J Navig]] -> 2022-11-16T02:45:36 | R42: =tab_Navigation[[#This Row],[Mn Nav Total]]/(tab_Navigation[[#This Row],[J Navig]]*24) -> 5.534557235 | S42: 2.1 | T42: 01 - Voile selon Cond. | U42: 0.95 | V42: =tab_Navigation[[#This Row],[Nav Mn]]*tab_Navigation[[#This Row],[Rap Nav Voil]] -> 124.1360691 | W42: =1-tab_Navigation[[#This Row],[Rap Nav Voil]] -> 0.05 | X42: =tab_Navigation[[#This Row],[Nav Mn]]*tab_Navigation[[#This Row],[Rap Nav Mot]] -> 6.533477322 | Y42: =tab_Navigation[[#This Row],[Dep Mn]]+tab_Navigation[[#This Row],[Arr Mn]] -> 2.159827214 | Z42: =tab_Navigation[[#This Row],[Mn Nav Mot]]+tab_Navigation[[#This Row],[Mn Approch Mot]] -> 8.693304536 | AA42: =tab_Navigation[[#This Row],[Mn Total Mot]]*'Variable Constante'!$F$6*'Variable Constante'!$E$10 -> 22.60259179 | AB42: =VLOOKUP(tab_Navigation[[#This Row],[Arrivée]],tab_Port_Mouillage[],9,FALSE) -> 01 - Port Plein Eau Pay | AC42: =VLOOKUP(tab_Navigation[[#This Row],[Conca Nav]],tab_Escale[[Nav Precedante]:[Nom Jour]],14,FALSE) -> 126.565 | AD42: 38 | AE42: =YEAR(tab_Navigation[[#This Row],[Date Arrivée]]) -> 2022 | AF42: =MONTH(tab_Navigation[[#This Row],[Date Arrivée]]) -> 11 | AG42: =WEEKNUM(tab_Navigation[[#This Row],[Date Arrivée]],2) -> 47
A43: =CONCATENATE(tab_Navigation[[#This Row],[N° Nav]]," - ",tab_Navigation[[#This Row],[Départ]]," > ",tab_Navigation[[#This Row],[Arrivée]]) -> 0068 - Mindelo > Porto de Praia | B43: 003 - Lisbonne > Cap Vert | C43: 0068 | D43: Mindelo | E43: Porto de Praia | F43: =VLOOKUP(tab_Navigation[[#This Row],[Arrivée]],tab_Port_Mouillage[],6,FALSE) -> Cap Vert | G43: 2 | H43: =tab_Navigation[[#This Row],[Dep Km]]/1.852 -> 1.079913607 | I43: 309 | J43: =tab_Navigation[[#This Row],[Nav Km]]/1.852 -> 166.8466523 | K43: 2 | L43: =tab_Navigation[[#This Row],[Arr Km]]/1.852 -> 1.079913607 | M43: =tab_Navigation[[#This Row],[Dep Mn]]+tab_Navigation[[#This Row],[Nav Mn]]+tab_Navigation[[#This Row],[Arr Mn]] -> 169.0064795 | N43: 1.4 | O43: =VLOOKUP(tab_Navigation[[#This Row],[Arrivée]],tab_Escale[[Nom Escale]:[Jour]],5,FALSE) -> 3.5 | P43: 2022-11-19T14:45:36 | Q43: =tab_Navigation[[#This Row],[Date Départ]]+tab_Navigation[[#This Row],[J Navig]] -> 2022-11-21T00:21:36 | R43: =tab_Navigation[[#This Row],[Mn Nav Total]]/(tab_Navigation[[#This Row],[J Navig]]*24) -> 5.029954746 | S43: 2.1 | T43: 01 - Voile selon Cond. | U43: 0.95 | V43: =tab_Navigation[[#This Row],[Nav Mn]]*tab_Navigation[[#This Row],[Rap Nav Voil]] -> 158.5043197 | W43: =1-tab_Navigation[[#This Row],[Rap Nav Voil]] -> 0.05 | X43: =tab_Navigation[[#This Row],[Nav Mn]]*tab_Navigation[[#This Row],[Rap Nav Mot]] -> 8.342332613 | Y43: =tab_Navigation[[#This Row],[Dep Mn]]+tab_Navigation[[#This Row],[Arr Mn]] -> 2.159827214 | Z43: =tab_Navigation[[#This Row],[Mn Nav Mot]]+tab_Navigation[[#This Row],[Mn Approch Mot]] -> 10.50215983 | AA43: =tab_Navigation[[#This Row],[Mn Total Mot]]*'Variable Constante'!$F$6*'Variable Constante'!$E$10 -> 27.30561555 | AB43: =VLOOKUP(tab_Navigation[[#This Row],[Arrivée]],tab_Port_Mouillage[],9,FALSE) -> 06 - Mouillage Free | AC43: =VLOOKUP(tab_Navigation[[#This Row],[Conca Nav]],tab_Escale[[Nav Precedante]:[Nom Jour]],14,FALSE) -> 131.465 | AD43: 39 | AE43: =YEAR(tab_Navigation[[#This Row],[Date Arrivée]]) -> 2022 | AF43: =MONTH(tab_Navigation[[#This Row],[Date Arrivée]]) -> 11 | AG43: =WEEKNUM(tab_Navigation[[#This Row],[Date Arrivée]],2) -> 48
A44: =CONCATENATE(tab_Navigation[[#This Row],[N° Nav]]," - ",tab_Navigation[[#This Row],[Départ]]," > ",tab_Navigation[[#This Row],[Arrivée]]) -> 0033 - Porto de Praia > Le Marin | B44: 004 - Cap Vert > Le Marin | C44: 0033 | D44: Porto de Praia | E44: Le Marin | F44: =VLOOKUP(tab_Navigation[[#This Row],[Arrivée]],tab_Port_Mouillage[],6,FALSE) -> Fr Martinique | G44: 2 | H44: =tab_Navigation[[#This Row],[Dep Km]]/1.852 -> 1.079913607 | I44: 4300 | J44: =tab_Navigation[[#This Row],[Nav Km]]/1.852 -> 2321.814255 | K44: 2 | L44: =tab_Navigation[[#This Row],[Arr Km]]/1.852 -> 1.079913607 | M44: =tab_Navigation[[#This Row],[Dep Mn]]+tab_Navigation[[#This Row],[Nav Mn]]+tab_Navigation[[#This Row],[Arr Mn]] -> 2323.974082 | N44: 17 | O44: =VLOOKUP(tab_Navigation[[#This Row],[Arrivée]],tab_Escale[[Nom Escale]:[Jour]],5,FALSE) -> 20.5 | P44: 2022-12-11T12:21:36 | Q44: =tab_Navigation[[#This Row],[Date Départ]]+tab_Navigation[[#This Row],[J Navig]] -> 2022-12-28T12:21:36 | R44: =tab_Navigation[[#This Row],[Mn Nav Total]]/(tab_Navigation[[#This Row],[J Navig]]*24) -> 5.696014907 | S44: 2.1 | T44: 01 - Voile selon Cond. | U44: 0.98 | V44: =tab_Navigation[[#This Row],[Nav Mn]]*tab_Navigation[[#This Row],[Rap Nav Voil]] -> 2275.37797 | W44: =1-tab_Navigation[[#This Row],[Rap Nav Voil]] -> 0.02 | X44: =tab_Navigation[[#This Row],[Nav Mn]]*tab_Navigation[[#This Row],[Rap Nav Mot]] -> 46.4362851 | Y44: =tab_Navigation[[#This Row],[Dep Mn]]+tab_Navigation[[#This Row],[Arr Mn]] -> 2.159827214 | Z44: =tab_Navigation[[#This Row],[Mn Nav Mot]]+tab_Navigation[[#This Row],[Mn Approch Mot]] -> 48.59611231 | AA44: =tab_Navigation[[#This Row],[Mn Total Mot]]*'Variable Constante'!$F$6*'Variable Constante'!$E$10 -> 126.349892 | AB44: =VLOOKUP(tab_Navigation[[#This Row],[Arrivée]],tab_Port_Mouillage[],9,FALSE) -> 01 - Port Plein Eau Pay | AC44: =VLOOKUP(tab_Navigation[[#This Row],[Conca Nav]],tab_Escale[[Nav Precedante]:[Nom Jour]],14,FALSE) -> 168.965 | AD44: 40 | AE44: =YEAR(tab_Navigation[[#This Row],[Date Arrivée]]) -> 2022 | AF44: =MONTH(tab_Navigation[[#This Row],[Date Arrivée]]) -> 12 | AG44: =WEEKNUM(tab_Navigation[[#This Row],[Date Arrivée]],2) -> 53
A45: =CONCATENATE(tab_Navigation[[#This Row],[N° Nav]]," - ",tab_Navigation[[#This Row],[Départ]]," > ",tab_Navigation[[#This Row],[Arrivée]]) -> 0050 - Le Marin > Saint Louis | B45: 006 - Le Marin > Panama | C45: 0050 | D45: Le Marin | E45: Saint Louis | F45: =VLOOKUP(tab_Navigation[[#This Row],[Arrivée]],tab_Port_Mouillage[],6,FALSE) -> Fr Guadeloupe | G45: 2 | H45: =tab_Navigation[[#This Row],[Dep Km]]/1.852 -> 1.079913607 | I45: 214 | J45: =tab_Navigation[[#This Row],[Nav Km]]/1.852 -> 115.5507559 | K45: 2 | L45: =tab_Navigation[[#This Row],[Arr Km]]/1.852 -> 1.079913607 | M45: =tab_Navigation[[#This Row],[Dep Mn]]+tab_Navigation[[#This Row],[Nav Mn]]+tab_Navigation[[#This Row],[Arr Mn]] -> 117.7105832 | N45: 1 | O45: =VLOOKUP(tab_Navigation[[#This Row],[Arrivée]],tab_Escale[[Nom Escale]:[Jour]],5,FALSE) -> 4.5 | P45: 2023-01-02T00:21:36 | Q45: =tab_Navigation[[#This Row],[Date Départ]]+tab_Navigation[[#This Row],[J Navig]] -> 2023-01-03T00:21:36 | R45: =tab_Navigation[[#This Row],[Mn Nav Total]]/(tab_Navigation[[#This Row],[J Navig]]*24) -> 4.904607631 | S45: 2.1 | T45: 01 - Voile selon Cond. | U45: 0.95 | V45: =tab_Navigation[[#This Row],[Nav Mn]]*tab_Navigation[[#This Row],[Rap Nav Voil]] -> 109.7732181 | W45: =1-tab_Navigation[[#This Row],[Rap Nav Voil]] -> 0.05 | X45: =tab_Navigation[[#This Row],[Nav Mn]]*tab_Navigation[[#This Row],[Rap Nav Mot]] -> 5.777537797 | Y45: =tab_Navigation[[#This Row],[Dep Mn]]+tab_Navigation[[#This Row],[Arr Mn]] -> 2.159827214 | Z45: =tab_Navigation[[#This Row],[Mn Nav Mot]]+tab_Navigation[[#This Row],[Mn Approch Mot]] -> 7.937365011 | AA45: =tab_Navigation[[#This Row],[Mn Total Mot]]*'Variable Constante'!$F$6*'Variable Constante'!$E$10 -> 20.63714903 | AB45: =VLOOKUP(tab_Navigation[[#This Row],[Arrivée]],tab_Port_Mouillage[],9,FALSE) -> 06 - Mouillage Free | AC45: =VLOOKUP(tab_Navigation[[#This Row],[Conca Nav]],tab_Escale[[Nav Precedante]:[Nom Jour]],14,FALSE) -> 174.465 | AD45: 41 | AE45: =YEAR(tab_Navigation[[#This Row],[Date Arrivée]]) -> 2023 | AF45: =MONTH(tab_Navigation[[#This Row],[Date Arrivée]]) -> 1 | AG45: =WEEKNUM(tab_Navigation[[#This Row],[Date Arrivée]],2) -> 2
A46: =CONCATENATE(tab_Navigation[[#This Row],[N° Nav]]," - ",tab_Navigation[[#This Row],[Départ]]," > ",tab_Navigation[[#This Row],[Arrivée]]) -> 0051 - Saint Louis > Pointe a Pitre | B46: 006 - Le Marin > Panama | C46: 0051 | D46: Saint Louis | E46: Pointe a Pitre | F46: =VLOOKUP(tab_Navigation[[#This Row],[Arrivée]],tab_Port_Mouillage[],6,FALSE) -> Fr Guadeloupe | G46: 2 | H46: =tab_Navigation[[#This Row],[Dep Km]]/1.852 -> 1.079913607 | I46: 27 | J46: =tab_Navigation[[#This Row],[Nav Km]]/1.852 -> 14.57883369 | K46: 2 | L46: =tab_Navigation[[#This Row],[Arr Km]]/1.852 -> 1.079913607 | M46: =tab_Navigation[[#This Row],[Dep Mn]]+tab_Navigation[[#This Row],[Nav Mn]]+tab_Navigation[[#This Row],[Arr Mn]] -> 16.73866091 | N46: 0.125 | O46: =VLOOKUP(tab_Navigation[[#This Row],[Arrivée]],tab_Escale[[Nom Escale]:[Jour]],5,FALSE) -> 5 | P46: 2023-01-08T00:21:36 | Q46: =tab_Navigation[[#This Row],[Date Départ]]+tab_Navigation[[#This Row],[J Navig]] -> 2023-01-08T03:21:36 | R46: =tab_Navigation[[#This Row],[Mn Nav Total]]/(tab_Navigation[[#This Row],[J Navig]]*24) -> 5.579553636 | S46: 2.1 | T46: 01 - Voile selon Cond. | U46: 0.95 | V46: =tab_Navigation[[#This Row],[Nav Mn]]*tab_Navigation[[#This Row],[Rap Nav Voil]] -> 13.84989201 | W46: =1-tab_Navigation[[#This Row],[Rap Nav Voil]] -> 0.05 | X46: =tab_Navigation[[#This Row],[Nav Mn]]*tab_Navigation[[#This Row],[Rap Nav Mot]] -> 0.7289416847 | Y46: =tab_Navigation[[#This Row],[Dep Mn]]+tab_Navigation[[#This Row],[Arr Mn]] -> 2.159827214 | Z46: =tab_Navigation[[#This Row],[Mn Nav Mot]]+tab_Navigation[[#This Row],[Mn Approch Mot]] -> 2.888768898 | AA46: =tab_Navigation[[#This Row],[Mn Total Mot]]*'Variable Constante'!$F$6*'Variable Constante'!$E$10 -> 7.510799136 | AB46: =VLOOKUP(tab_Navigation[[#This Row],[Arrivée]],tab_Port_Mouillage[],9,FALSE) -> 01 - Port Plein Eau Pay | AC46: =VLOOKUP(tab_Navigation[[#This Row],[Conca Nav]],tab_Escale[[Nav Precedante]:[Nom Jour]],14,FALSE) -> 179.59 | AD46: 42 | AE46: =YEAR(tab_Navigation[[#This Row],[Date Arrivée]]) -> 2023 | AF46: =MONTH(tab_Navigation[[#This Row],[Date Arrivée]]) -> 1 | AG46: =WEEKNUM(tab_Navigation[[#This Row],[Date Arrivée]],2) -> 2
A47: =CONCATENATE(tab_Navigation[[#This Row],[N° Nav]]," - ",tab_Navigation[[#This Row],[Départ]]," > ",tab_Navigation[[#This Row],[Arrivée]]) -> 0052 - Pointe a Pitre > Port Louis (Guadeloupe) Port | B47: 006 - Le Marin > Panama | C47: 0052 | D47: Pointe a Pitre | E47: Port Louis (Guadeloupe) Port | F47: =VLOOKUP(tab_Navigation[[#This Row],[Arrivée]],tab_Port_Mouillage[],6,FALSE) -> Fr Guadeloupe | G47: 2 | H47: =tab_Navigation[[#This Row],[Dep Km]]/1.852 -> 1.079913607 | I47: 128 | J47: =tab_Navigation[[#This Row],[Nav Km]]/1.852 -> 69.11447084 | K47: 2 | L47: =tab_Navigation[[#This Row],[Arr Km]]/1.852 -> 1.079913607 | M47: =tab_Navigation[[#This Row],[Dep Mn]]+tab_Navigation[[#This Row],[Nav Mn]]+tab_Navigation[[#This Row],[Arr Mn]] -> 71.27429806 | N47: 0.6 | O47: =VLOOKUP(tab_Navigation[[#This Row],[Arrivée]],tab_Escale[[Nom Escale]:[Jour]],5,FALSE) -> 5 | P47: 2023-01-13T03:21:36 | Q47: =tab_Navigation[[#This Row],[Date Départ]]+tab_Navigation[[#This Row],[J Navig]] -> 2023-01-13T17:45:36 | R47: =tab_Navigation[[#This Row],[Mn Nav Total]]/(tab_Navigation[[#This Row],[J Navig]]*24) -> 4.949604032 | S47: 2.1 | T47: 01 - Voile selon Cond. | U47: 0.95 | V47: =tab_Navigation[[#This Row],[Nav Mn]]*tab_Navigation[[#This Row],[Rap Nav Voil]] -> 65.6587473 | W47: =1-tab_Navigation[[#This Row],[Rap Nav Voil]] -> 0.05 | X47: =tab_Navigation[[#This Row],[Nav Mn]]*tab_Navigation[[#This Row],[Rap Nav Mot]] -> 3.455723542 | Y47: =tab_Navigation[[#This Row],[Dep Mn]]+tab_Navigation[[#This Row],[Arr Mn]] -> 2.159827214 | Z47: =tab_Navigation[[#This Row],[Mn Nav Mot]]+tab_Navigation[[#This Row],[Mn Approch Mot]] -> 5.615550756 | AA47: =tab_Navigation[[#This Row],[Mn Total Mot]]*'Variable Constante'!$F$6*'Variable Constante'!$E$10 -> 14.60043197 | AB47: =VLOOKUP(tab_Navigation[[#This Row],[Arrivée]],tab_Port_Mouillage[],9,FALSE) -> 07 - Port Amarage Quai Free | AC47: =VLOOKUP(tab_Navigation[[#This Row],[Conca Nav]],tab_Escale[[Nav Precedante]:[Nom Jour]],14,FALSE) -> 185.19 | AD47: 43 | AE47: =YEAR(tab_Navigation[[#This Row],[Date Arrivée]]) -> 2023 | AF47: =MONTH(tab_Navigation[[#This Row],[Date Arrivée]]) -> 1 | AG47: =WEEKNUM(tab_Navigation[[#This Row],[Date Arrivée]],2) -> 3
A48: =CONCATENATE(tab_Navigation[[#This Row],[N° Nav]]," - ",tab_Navigation[[#This Row],[Départ]]," > ",tab_Navigation[[#This Row],[Arrivée]]) -> 0053 - Port Louis (Guadeloupe) Port > LittleGood Harbour | B48: 006 - Le Marin > Panama | C48: 0053 | D48: Port Louis (Guadeloupe) Port | E48: LittleGood Harbour | F48: =VLOOKUP(tab_Navigation[[#This Row],[Arrivée]],tab_Port_Mouillage[],6,FALSE) -> Barbade | G48: 2 | H48: =tab_Navigation[[#This Row],[Dep Km]]/1.852 -> 1.079913607 | I48: 452 | J48: =tab_Navigation[[#This Row],[Nav Km]]/1.852 -> 244.0604752 | K48: 2 | L48: =tab_Navigation[[#This Row],[Arr Km]]/1.852 -> 1.079913607 | M48: =tab_Navigation[[#This Row],[Dep Mn]]+tab_Navigation[[#This Row],[Nav Mn]]+tab_Navigation[[#This Row],[Arr Mn]] -> 246.2203024 | N48: 2.5 | O48: =VLOOKUP(tab_Navigation[[#This Row],[Arrivée]],tab_Escale[[Nom Escale]:[Jour]],5,FALSE) -> 2.5 | P48: 2023-01-16T05:45:36 | Q48: =tab_Navigation[[#This Row],[Date Départ]]+tab_Navigation[[#This Row],[J Navig]] -> 2023-01-18T17:45:36 | R48: =tab_Navigation[[#This Row],[Mn Nav Total]]/(tab_Navigation[[#This Row],[J Navig]]*24) -> 4.103671706 | S48: 2.1 | T48: 01 - Voile selon Cond. | U48: 0.95 | V48: =tab_Navigation[[#This Row],[Nav Mn]]*tab_Navigation[[#This Row],[Rap Nav Voil]] -> 231.8574514 | W48: =1-tab_Navigation[[#This Row],[Rap Nav Voil]] -> 0.05 | X48: =tab_Navigation[[#This Row],[Nav Mn]]*tab_Navigation[[#This Row],[Rap Nav Mot]] -> 12.20302376 | Y48: =tab_Navigation[[#This Row],[Dep Mn]]+tab_Navigation[[#This Row],[Arr Mn]] -> 2.159827214 | Z48: =tab_Navigation[[#This Row],[Mn Nav Mot]]+tab_Navigation[[#This Row],[Mn Approch Mot]] -> 14.36285097 | AA48: =tab_Navigation[[#This Row],[Mn Total Mot]]*'Variable Constante'!$F$6*'Variable Constante'!$E$10 -> 37.34341253 | AB48: =VLOOKUP(tab_Navigation[[#This Row],[Arrivée]],tab_Port_Mouillage[],9,FALSE) -> 06 - Mouillage Free | AC48: =VLOOKUP(tab_Navigation[[#This Row],[Conca Nav]],tab_Escale[[Nav Precedante]:[Nom Jour]],14,FALSE) -> 190.19 | AD48: 44 | AE48: =YEAR(tab_Navigation[[#This Row],[Date Arrivée]]) -> 2023 | AF48: =MONTH(tab_Navigation[[#This Row],[Date Arrivée]]) -> 1 | AG48: =WEEKNUM(tab_Navigation[[#This Row],[Date Arrivée]],2) -> 4
A49: =CONCATENATE(tab_Navigation[[#This Row],[N° Nav]]," - ",tab_Navigation[[#This Row],[Départ]]," > ",tab_Navigation[[#This Row],[Arrivée]]) -> 0054 - LittleGood Harbour > Calliaqua Bay | B49: 006 - Le Marin > Panama | C49: 0054 | D49: LittleGood Harbour | E49: Calliaqua Bay | F49: =VLOOKUP(tab_Navigation[[#This Row],[Arrivée]],tab_Port_Mouillage[],6,FALSE) -> Saint Vincent et les Grenadines | G49: 2 | H49: =tab_Navigation[[#This Row],[Dep Km]]/1.852 -> 1.079913607 | I49: 169 | J49: =tab_Navigation[[#This Row],[Nav Km]]/1.852 -> 91.25269978 | K49: 2 | L49: =tab_Navigation[[#This Row],[Arr Km]]/1.852 -> 1.079913607 | M49: =tab_Navigation[[#This Row],[Dep Mn]]+tab_Navigation[[#This Row],[Nav Mn]]+tab_Navigation[[#This Row],[Arr Mn]] -> 93.412527 | N49: 1 | O49: =VLOOKUP(tab_Navigation[[#This Row],[Arrivée]],tab_Escale[[Nom Escale]:[Jour]],5,FALSE) -> 2.5 | P49: 2023-01-21T05:45:36 | Q49: =tab_Navigation[[#This Row],[Date Départ]]+tab_Navigation[[#This Row],[J Navig]] -> 2023-01-22T05:45:36 | R49: =tab_Navigation[[#This Row],[Mn Nav Total]]/(tab_Navigation[[#This Row],[J Navig]]*24) -> 3.892188625 | S49: 2.1 | T49: 01 - Voile selon Cond. | U49: 0.95 | V49: =tab_Navigation[[#This Row],[Nav Mn]]*tab_Navigation[[#This Row],[Rap Nav Voil]] -> 86.69006479 | W49: =1-tab_Navigation[[#This Row],[Rap Nav Voil]] -> 0.05 | X49: =tab_Navigation[[#This Row],[Nav Mn]]*tab_Navigation[[#This Row],[Rap Nav Mot]] -> 4.562634989 | Y49: =tab_Navigation[[#This Row],[Dep Mn]]+tab_Navigation[[#This Row],[Arr Mn]] -> 2.159827214 | Z49: =tab_Navigation[[#This Row],[Mn Nav Mot]]+tab_Navigation[[#This Row],[Mn Approch Mot]] -> 6.722462203 | AA49: =tab_Navigation[[#This Row],[Mn Total Mot]]*'Variable Constante'!$F$6*'Variable Constante'!$E$10 -> 17.47840173 | AB49: =VLOOKUP(tab_Navigation[[#This Row],[Arrivée]],tab_Port_Mouillage[],9,FALSE) -> 06 - Mouillage Free | AC49: =VLOOKUP(tab_Navigation[[#This Row],[Conca Nav]],tab_Escale[[Nav Precedante]:[Nom Jour]],14,FALSE) -> 193.69 | AD49: 45 | AE49: =YEAR(tab_Navigation[[#This Row],[Date Arrivée]]) -> 2023 | AF49: =MONTH(tab_Navigation[[#This Row],[Date Arrivée]]) -> 1 | AG49: =WEEKNUM(tab_Navigation[[#This Row],[Date Arrivée]],2) -> 4
A50: =CONCATENATE(tab_Navigation[[#This Row],[N° Nav]]," - ",tab_Navigation[[#This Row],[Départ]]," > ",tab_Navigation[[#This Row],[Arrivée]]) -> 0055 - Calliaqua Bay > Egmont | B50: 006 - Le Marin > Panama | C50: 0055 | D50: Calliaqua Bay | E50: Egmont | F50: =VLOOKUP(tab_Navigation[[#This Row],[Arrivée]],tab_Port_Mouillage[],6,FALSE) -> Saint Vincent et les Grenadines | G50: 2 | H50: =tab_Navigation[[#This Row],[Dep Km]]/1.852 -> 1.079913607 | I50: 149 | J50: =tab_Navigation[[#This Row],[Nav Km]]/1.852 -> 80.45356371 | K50: 2 | L50: =tab_Navigation[[#This Row],[Arr Km]]/1.852 -> 1.079913607 | M50: =tab_Navigation[[#This Row],[Dep Mn]]+tab_Navigation[[#This Row],[Nav Mn]]+tab_Navigation[[#This Row],[Arr Mn]] -> 82.61339093 | N50: 1 | O50: =VLOOKUP(tab_Navigation[[#This Row],[Arrivée]],tab_Escale[[Nom Escale]:[Jour]],5,FALSE) -> 2.5 | P50: 2023-01-24T17:45:36 | Q50: =tab_Navigation[[#This Row],[Date Départ]]+tab_Navigation[[#This Row],[J Navig]] -> 2023-01-25T17:45:36 | R50: =tab_Navigation[[#This Row],[Mn Nav Total]]/(tab_Navigation[[#This Row],[J Navig]]*24) -> 3.442224622 | S50: 2.1 | T50: 01 - Voile selon Cond. | U50: 0.95 | V50: =tab_Navigation[[#This Row],[Nav Mn]]*tab_Navigation[[#This Row],[Rap Nav Voil]] -> 76.43088553 | W50: =1-tab_Navigation[[#This Row],[Rap Nav Voil]] -> 0.05 | X50: =tab_Navigation[[#This Row],[Nav Mn]]*tab_Navigation[[#This Row],[Rap Nav Mot]] -> 4.022678186 | Y50: =tab_Navigation[[#This Row],[Dep Mn]]+tab_Navigation[[#This Row],[Arr Mn]] -> 2.159827214 | Z50: =tab_Navigation[[#This Row],[Mn Nav Mot]]+tab_Navigation[[#This Row],[Mn Approch Mot]] -> 6.1825054 | AA50: =tab_Navigation[[#This Row],[Mn Total Mot]]*'Variable Constante'!$F$6*'Variable Constante'!$E$10 -> 16.07451404 | AB50: =VLOOKUP(tab_Navigation[[#This Row],[Arrivée]],tab_Port_Mouillage[],9,FALSE) -> 06 - Mouillage Free | AC50: =VLOOKUP(tab_Navigation[[#This Row],[Conca Nav]],tab_Escale[[Nav Precedante]:[Nom Jour]],14,FALSE) -> 197.19 | AD50: 46 | AE50: =YEAR(tab_Navigation[[#This Row],[Date Arrivée]]) -> 2023 | AF50: =MONTH(tab_Navigation[[#This Row],[Date Arrivée]]) -> 1 | AG50: =WEEKNUM(tab_Navigation[[#This Row],[Date Arrivée]],2) -> 5
A51: =CONCATENATE(tab_Navigation[[#This Row],[N° Nav]]," - ",tab_Navigation[[#This Row],[Départ]]," > ",tab_Navigation[[#This Row],[Arrivée]]) -> 0056 - Egmont > Aves de Barlovento | B51: 006 - Le Marin > Panama | C51: 0056 | D51: Egmont | E51: Aves de Barlovento | F51: =VLOOKUP(tab_Navigation[[#This Row],[Arrivée]],tab_Port_Mouillage[],6,FALSE) -> Venezuela | G51: 2 | H51: =tab_Navigation[[#This Row],[Dep Km]]/1.852 -> 1.079913607 | I51: 638 | J51: =tab_Navigation[[#This Row],[Nav Km]]/1.852 -> 344.4924406 | K51: 2 | L51: =tab_Navigation[[#This Row],[Arr Km]]/1.852 -> 1.079913607 | M51: =tab_Navigation[[#This Row],[Dep Mn]]+tab_Navigation[[#This Row],[Nav Mn]]+tab_Navigation[[#This Row],[Arr Mn]] -> 346.6522678 | N51: 3 | O51: =VLOOKUP(tab_Navigation[[#This Row],[Arrivée]],tab_Escale[[Nom Escale]:[Jour]],5,FALSE) -> 3 | P51: 2023-01-28T17:45:36 | Q51: =tab_Navigation[[#This Row],[Date Départ]]+tab_Navigation[[#This Row],[J Navig]] -> 2023-01-31T17:45:36 | R51: =tab_Navigation[[#This Row],[Mn Nav Total]]/(tab_Navigation[[#This Row],[J Navig]]*24) -> 4.814614831 | S51: 2.1 | T51: 01 - Voile selon Cond. | U51: 0.95 | V51: =tab_Navigation[[#This Row],[Nav Mn]]*tab_Navigation[[#This Row],[Rap Nav Voil]] -> 327.2678186 | W51: =1-tab_Navigation[[#This Row],[Rap Nav Voil]] -> 0.05 | X51: =tab_Navigation[[#This Row],[Nav Mn]]*tab_Navigation[[#This Row],[Rap Nav Mot]] -> 17.22462203 | Y51: =tab_Navigation[[#This Row],[Dep Mn]]+tab_Navigation[[#This Row],[Arr Mn]] -> 2.159827214 | Z51: =tab_Navigation[[#This Row],[Mn Nav Mot]]+tab_Navigation[[#This Row],[Mn Approch Mot]] -> 19.38444924 | AA51: =tab_Navigation[[#This Row],[Mn Total Mot]]*'Variable Constante'!$F$6*'Variable Constante'!$E$10 -> 50.39956803 | AB51: =VLOOKUP(tab_Navigation[[#This Row],[Arrivée]],tab_Port_Mouillage[],9,FALSE) -> 06 - Mouillage Free | AC51: =VLOOKUP(tab_Navigation[[#This Row],[Conca Nav]],tab_Escale[[Nav Precedante]:[Nom Jour]],14,FALSE) -> 203.19 | AD51: 47 | AE51: =YEAR(tab_Navigation[[#This Row],[Date Arrivée]]) -> 2023 | AF51: =MONTH(tab_Navigation[[#This Row],[Date Arrivée]]) -> 1 | AG51: =WEEKNUM(tab_Navigation[[#This Row],[Date Arrivée]],2) -> 6
A52: =CONCATENATE(tab_Navigation[[#This Row],[N° Nav]]," - ",tab_Navigation[[#This Row],[Départ]]," > ",tab_Navigation[[#This Row],[Arrivée]]) -> 0057 - Aves de Barlovento > Ave de Sotavento | B52: 006 - Le Marin > Panama | C52: 0057 | D52: Aves de Barlovento | E52: Ave de Sotavento | F52: =VLOOKUP(tab_Navigation[[#This Row],[Arrivée]],tab_Port_Mouillage[],6,FALSE) -> Venezuela | G52: 2 | H52: =tab_Navigation[[#This Row],[Dep Km]]/1.852 -> 1.079913607 | I52: 22 | J52: =tab_Navigation[[#This Row],[Nav Km]]/1.852 -> 11.87904968 | K52: 2 | L52: =tab_Navigation[[#This Row],[Arr Km]]/1.852 -> 1.079913607 | M52: =tab_Navigation[[#This Row],[Dep Mn]]+tab_Navigation[[#This Row],[Nav Mn]]+tab_Navigation[[#This Row],[Arr Mn]] -> 14.03887689 | N52: 0.125 | O52: =VLOOKUP(tab_Navigation[[#This Row],[Arrivée]],tab_Escale[[Nom Escale]:[Jour]],5,FALSE) -> 2.5 | P52: 2023-02-03T05:45:36 | Q52: =tab_Navigation[[#This Row],[Date Départ]]+tab_Navigation[[#This Row],[J Navig]] -> 2023-02-03T08:45:36 | R52: =tab_Navigation[[#This Row],[Mn Nav Total]]/(tab_Navigation[[#This Row],[J Navig]]*24) -> 4.67962563 | S52: 2.1 | T52: 01 - Voile selon Cond. | U52: 0.95 | V52: =tab_Navigation[[#This Row],[Nav Mn]]*tab_Navigation[[#This Row],[Rap Nav Voil]] -> 11.28509719 | W52: =1-tab_Navigation[[#This Row],[Rap Nav Voil]] -> 0.05 | X52: =tab_Navigation[[#This Row],[Nav Mn]]*tab_Navigation[[#This Row],[Rap Nav Mot]] -> 0.5939524838 | Y52: =tab_Navigation[[#This Row],[Dep Mn]]+tab_Navigation[[#This Row],[Arr Mn]] -> 2.159827214 | Z52: =tab_Navigation[[#This Row],[Mn Nav Mot]]+tab_Navigation[[#This Row],[Mn Approch Mot]] -> 2.753779698 | AA52: =tab_Navigation[[#This Row],[Mn Total Mot]]*'Variable Constante'!$F$6*'Variable Constante'!$E$10 -> 7.159827214 | AB52: =VLOOKUP(tab_Navigation[[#This Row],[Arrivée]],tab_Port_Mouillage[],9,FALSE) -> 06 - Mouillage Free | AC52: =VLOOKUP(tab_Navigation[[#This Row],[Conca Nav]],tab_Escale[[Nav Precedante]:[Nom Jour]],14,FALSE) -> 205.815 | AD52: 48 | AE52: =YEAR(tab_Navigation[[#This Row],[Date Arrivée]]) -> 2023 | AF52: =MONTH(tab_Navigation[[#This Row],[Date Arrivée]]) -> 2 | AG52: =WEEKNUM(tab_Navigation[[#This Row],[Date Arrivée]],2) -> 6
A53: =CONCATENATE(tab_Navigation[[#This Row],[N° Nav]]," - ",tab_Navigation[[#This Row],[Départ]]," > ",tab_Navigation[[#This Row],[Arrivée]]) -> 0058 - Ave de Sotavento > Bonaire | B53: 006 - Le Marin > Panama | C53: 0058 | D53: Ave de Sotavento | E53: Bonaire | F53: =VLOOKUP(tab_Navigation[[#This Row],[Arrivée]],tab_Port_Mouillage[],6,FALSE) -> Venezuela | G53: 2 | H53: =tab_Navigation[[#This Row],[Dep Km]]/1.852 -> 1.079913607 | I53: 80 | J53: =tab_Navigation[[#This Row],[Nav Km]]/1.852 -> 43.19654428 | K53: 2 | L53: =tab_Navigation[[#This Row],[Arr Km]]/1.852 -> 1.079913607 | M53: =tab_Navigation[[#This Row],[Dep Mn]]+tab_Navigation[[#This Row],[Nav Mn]]+tab_Navigation[[#This Row],[Arr Mn]] -> 45.35637149 | N53: 0.4 | O53: =VLOOKUP(tab_Navigation[[#This Row],[Arrivée]],tab_Escale[[Nom Escale]:[Jour]],5,FALSE) -> 9.5 | P53: 2023-02-12T20:45:36 | Q53: =tab_Navigation[[#This Row],[Date Départ]]+tab_Navigation[[#This Row],[J Navig]] -> 2023-02-13T06:21:36 | R53: =tab_Navigation[[#This Row],[Mn Nav Total]]/(tab_Navigation[[#This Row],[J Navig]]*24) -> 4.72462203 | S53: 2.1 | T53: 01 - Voile selon Cond. | U53: 0.95 | V53: =tab_Navigation[[#This Row],[Nav Mn]]*tab_Navigation[[#This Row],[Rap Nav Voil]] -> 41.03671706 | W53: =1-tab_Navigation[[#This Row],[Rap Nav Voil]] -> 0.05 | X53: =tab_Navigation[[#This Row],[Nav Mn]]*tab_Navigation[[#This Row],[Rap Nav Mot]] -> 2.159827214 | Y53: =tab_Navigation[[#This Row],[Dep Mn]]+tab_Navigation[[#This Row],[Arr Mn]] -> 2.159827214 | Z53: =tab_Navigation[[#This Row],[Mn Nav Mot]]+tab_Navigation[[#This Row],[Mn Approch Mot]] -> 4.319654428 | AA53: =tab_Navigation[[#This Row],[Mn Total Mot]]*'Variable Constante'!$F$6*'Variable Constante'!$E$10 -> 11.23110151 | AB53: =VLOOKUP(tab_Navigation[[#This Row],[Arrivée]],tab_Port_Mouillage[],9,FALSE) -> 06 - Mouillage Free | AC53: =VLOOKUP(tab_Navigation[[#This Row],[Conca Nav]],tab_Escale[[Nav Precedante]:[Nom Jour]],14,FALSE) -> 215.715 | AD53: 49 | AE53: =YEAR(tab_Navigation[[#This Row],[Date Arrivée]]) -> 2023 | AF53: =MONTH(tab_Navigation[[#This Row],[Date Arrivée]]) -> 2 | AG53: =WEEKNUM(tab_Navigation[[#This Row],[Date Arrivée]],2) -> 8
A54: =CONCATENATE(tab_Navigation[[#This Row],[N° Nav]]," - ",tab_Navigation[[#This Row],[Départ]]," > ",tab_Navigation[[#This Row],[Arrivée]]) -> 0059 - Bonaire > Bahia Shelter Marina | B54: 006 - Le Marin > Panama | C54: 0059 | D54: Bonaire | E54: Bahia Shelter Marina | F54: =VLOOKUP(tab_Navigation[[#This Row],[Arrivée]],tab_Port_Mouillage[],6,FALSE) -> Panama | G54: 2 | H54: =tab_Navigation[[#This Row],[Dep Km]]/1.852 -> 1.079913607 | I54: 1528 | J54: =tab_Navigation[[#This Row],[Nav Km]]/1.852 -> 825.0539957 | K54: 1 | L54: =tab_Navigation[[#This Row],[Arr Km]]/1.852 -> 0.5399568035 | M54: =tab_Navigation[[#This Row],[Dep Mn]]+tab_Navigation[[#This Row],[Nav Mn]]+tab_Navigation[[#This Row],[Arr Mn]] -> 826.6738661 | N54: 7 | O54: =VLOOKUP(tab_Navigation[[#This Row],[Arrivée]],tab_Escale[[Nom Escale]:[Jour]],5,FALSE) -> 15 | P54: 2023-02-28T06:21:36 | Q54: =tab_Navigation[[#This Row],[Date Départ]]+tab_Navigation[[#This Row],[J Navig]] -> 2023-03-07T06:21:36 | R54: =tab_Navigation[[#This Row],[Mn Nav Total]]/(tab_Navigation[[#This Row],[J Navig]]*24) -> 4.920677774 | S54: 2.1 | T54: 01 - Voile selon Cond. | U54: 0.98 | V54: =tab_Navigation[[#This Row],[Nav Mn]]*tab_Navigation[[#This Row],[Rap Nav Voil]] -> 808.5529158 | W54: =1-tab_Navigation[[#This Row],[Rap Nav Voil]] -> 0.02 | X54: =tab_Navigation[[#This Row],[Nav Mn]]*tab_Navigation[[#This Row],[Rap Nav Mot]] -> 16.50107991 | Y54: =tab_Navigation[[#This Row],[Dep Mn]]+tab_Navigation[[#This Row],[Arr Mn]] -> 1.61987041 | Z54: =tab_Navigation[[#This Row],[Mn Nav Mot]]+tab_Navigation[[#This Row],[Mn Approch Mot]] -> 18.12095032 | AA54: =tab_Navigation[[#This Row],[Mn Total Mot]]*'Variable Constante'!$F$6*'Variable Constante'!$E$10 -> 47.11447084 | AB54: =VLOOKUP(tab_Navigation[[#This Row],[Arrivée]],tab_Port_Mouillage[],9,FALSE) -> 01 - Port Plein Eau Pay | AC54: =VLOOKUP(tab_Navigation[[#This Row],[Conca Nav]],tab_Escale[[Nav Precedante]:[Nom Jour]],14,FALSE) -> 237.715 | AD54: 50 | AE54: =YEAR(tab_Navigation[[#This Row],[Date Arrivée]]) -> 2023 | AF54: =MONTH(tab_Navigation[[#This Row],[Date Arrivée]]) -> 3 | AG54: =WEEKNUM(tab_Navigation[[#This Row],[Date Arrivée]],2) -> 11
A55: =CONCATENATE(tab_Navigation[[#This Row],[N° Nav]]," - ",tab_Navigation[[#This Row],[Départ]]," > ",tab_Navigation[[#This Row],[Arrivée]]) -> 0035 - Bahia Shelter Marina > La Playita | B55: 007 - Panama > Panama | C55: 0035 | D55: Bahia Shelter Marina | E55: La Playita | F55: =VLOOKUP(tab_Navigation[[#This Row],[Arrivée]],tab_Port_Mouillage[],6,FALSE) -> Panama | G55: 3 | H55: =tab_Navigation[[#This Row],[Dep Km]]/1.852 -> 1.61987041 | I55: 81 | J55: =tab_Navigation[[#This Row],[Nav Km]]/1.852 -> 43.73650108 | K55: 7 | L55: =tab_Navigation[[#This Row],[Arr Km]]/1.852 -> 3.779697624 | M55: =tab_Navigation[[#This Row],[Dep Mn]]+tab_Navigation[[#This Row],[Nav Mn]]+tab_Navigation[[#This Row],[Arr Mn]] -> 49.13606911 | N55: 0.4 | O55: =VLOOKUP(tab_Navigation[[#This Row],[Arrivée]],tab_Escale[[Nom Escale]:[Jour]],5,FALSE) -> 3 | P55: 2023-03-10T06:21:36 | Q55: =tab_Navigation[[#This Row],[Date Départ]]+tab_Navigation[[#This Row],[J Navig]] -> 2023-03-10T15:57:36 | R55: =tab_Navigation[[#This Row],[Mn Nav Total]]/(tab_Navigation[[#This Row],[J Navig]]*24) -> 5.118340533 | S55: 2.5 | T55: 02 - Au moteur Contraint | U55: 0 | V55: =tab_Navigation[[#This Row],[Nav Mn]]*tab_Navigation[[#This Row],[Rap Nav Voil]] -> 0 | W55: =1-tab_Navigation[[#This Row],[Rap Nav Voil]] -> 1 | X55: =tab_Navigation[[#This Row],[Nav Mn]]*tab_Navigation[[#This Row],[Rap Nav Mot]] -> 43.73650108 | Y55: =tab_Navigation[[#This Row],[Dep Mn]]+tab_Navigation[[#This Row],[Arr Mn]] -> 5.399568035 | Z55: =tab_Navigation[[#This Row],[Mn Nav Mot]]+tab_Navigation[[#This Row],[Mn Approch Mot]] -> 49.13606911 | AA55: =tab_Navigation[[#This Row],[Mn Total Mot]]*'Variable Constante'!$F$6*'Variable Constante'!$E$10 -> 127.7537797 | AB55: =VLOOKUP(tab_Navigation[[#This Row],[Arrivée]],tab_Port_Mouillage[],9,FALSE) -> 06 - Mouillage Free | AC55: =VLOOKUP(tab_Navigation[[#This Row],[Conca Nav]],tab_Escale[[Nav Precedante]:[Nom Jour]],14,FALSE) -> 241.115 | AD55: 51 | AE55: =YEAR(tab_Navigation[[#This Row],[Date Arrivée]]) -> 2023 | AF55: =MONTH(tab_Navigation[[#This Row],[Date Arrivée]]) -> 3 | AG55: =WEEKNUM(tab_Navigation[[#This Row],[Date Arrivée]],2) -> 11
A56: =CONCATENATE(tab_Navigation[[#This Row],[N° Nav]]," - ",tab_Navigation[[#This Row],[Départ]]," > ",tab_Navigation[[#This Row],[Arrivée]]) -> 0072 - La Playita > Rikitea Village | B56: 008 - Panama > Polynésie Est | C56: 0072 | D56: La Playita | E56: Rikitea Village | F56: =VLOOKUP(tab_Navigation[[#This Row],[Arrivée]],tab_Port_Mouillage[],6,FALSE) -> Fr Polynésie | G56: 7 | H56: =tab_Navigation[[#This Row],[Dep Km]]/1.852 -> 3.779697624 | I56: 7100 | J56: =tab_Navigation[[#This Row],[Nav Km]]/1.852 -> 3833.693305 | K56: 21 | L56: =tab_Navigation[[#This Row],[Arr Km]]/1.852 -> 11.33909287 | M56: =tab_Navigation[[#This Row],[Dep Mn]]+tab_Navigation[[#This Row],[Nav Mn]]+tab_Navigation[[#This Row],[Arr Mn]] -> 3848.812095 | N56: 30 | O56: =VLOOKUP(tab_Navigation[[#This Row],[Arrivée]],tab_Escale[[Nom Escale]:[Jour]],5,FALSE) -> 15 | P56: 2023-03-25T15:57:36 | Q56: =tab_Navigation[[#This Row],[Date Départ]]+tab_Navigation[[#This Row],[J Navig]] -> 2023-04-24T15:57:36 | R56: =tab_Navigation[[#This Row],[Mn Nav Total]]/(tab_Navigation[[#This Row],[J Navig]]*24) -> 5.345572354 | S56: 2.1 | T56: 01 - Voile selon Cond. | U56: 0.98 | V56: =tab_Navigation[[#This Row],[Nav Mn]]*tab_Navigation[[#This Row],[Rap Nav Voil]] -> 3757.019438 | W56: =1-tab_Navigation[[#This Row],[Rap Nav Voil]] -> 0.02 | X56: =tab_Navigation[[#This Row],[Nav Mn]]*tab_Navigation[[#This Row],[Rap Nav Mot]] -> 76.67386609 | Y56: =tab_Navigation[[#This Row],[Dep Mn]]+tab_Navigation[[#This Row],[Arr Mn]] -> 15.1187905 | Z56: =tab_Navigation[[#This Row],[Mn Nav Mot]]+tab_Navigation[[#This Row],[Mn Approch Mot]] -> 91.79265659 | AA56: =tab_Navigation[[#This Row],[Mn Total Mot]]*'Variable Constante'!$F$6*'Variable Constante'!$E$10 -> 238.6609071 | AB56: =VLOOKUP(tab_Navigation[[#This Row],[Arrivée]],tab_Port_Mouillage[],9,FALSE) -> 06 - Mouillage Free | AC56: =VLOOKUP(tab_Navigation[[#This Row],[Conca Nav]],tab_Escale[[Nav Precedante]:[Nom Jour]],14,FALSE) -> 286.115 | AD56: 52 | AE56: =YEAR(tab_Navigation[[#This Row],[Date Arrivée]]) -> 2023 | AF56: =MONTH(tab_Navigation[[#This Row],[Date Arrivée]]) -> 4 | AG56: =WEEKNUM(tab_Navigation[[#This Row],[Date Arrivée]],2) -> 18
A57: =CONCATENATE(tab_Navigation[[#This Row],[N° Nav]]," - ",tab_Navigation[[#This Row],[Départ]]," > ",tab_Navigation[[#This Row],[Arrivée]]) -> 0073 - Rikitea Village > Amanu | B57: 009 - Polynésie Est > Maupiti | C57: 0073 | D57: Rikitea Village | E57: Amanu | F57: =VLOOKUP(tab_Navigation[[#This Row],[Arrivée]],tab_Port_Mouillage[],6,FALSE) -> Fr Polynésie | G57: 3 | H57: =tab_Navigation[[#This Row],[Dep Km]]/1.852 -> 1.61987041 | I57: 845 | J57: =tab_Navigation[[#This Row],[Nav Km]]/1.852 -> 456.2634989 | K57: 3 | L57: =tab_Navigation[[#This Row],[Arr Km]]/1.852 -> 1.61987041 | M57: =tab_Navigation[[#This Row],[Dep Mn]]+tab_Navigation[[#This Row],[Nav Mn]]+tab_Navigation[[#This Row],[Arr Mn]] -> 459.5032397 | N57: 4 | O57: =VLOOKUP(tab_Navigation[[#This Row],[Arrivée]],tab_Escale[[Nom Escale]:[Jour]],5,FALSE) -> 3 | P57: 2023-04-27T15:57:36 | Q57: =tab_Navigation[[#This Row],[Date Départ]]+tab_Navigation[[#This Row],[J Navig]] -> 2023-05-01T15:57:36 | R57: =tab_Navigation[[#This Row],[Mn Nav Total]]/(tab_Navigation[[#This Row],[J Navig]]*24) -> 4.786492081 | S57: 2.1 | T57: 01 - Voile selon Cond. | U57: 0.95 | V57: =tab_Navigation[[#This Row],[Nav Mn]]*tab_Navigation[[#This Row],[Rap Nav Voil]] -> 433.450324 | W57: =1-tab_Navigation[[#This Row],[Rap Nav Voil]] -> 0.05 | X57: =tab_Navigation[[#This Row],[Nav Mn]]*tab_Navigation[[#This Row],[Rap Nav Mot]] -> 22.81317495 | Y57: =tab_Navigation[[#This Row],[Dep Mn]]+tab_Navigation[[#This Row],[Arr Mn]] -> 3.239740821 | Z57: =tab_Navigation[[#This Row],[Mn Nav Mot]]+tab_Navigation[[#This Row],[Mn Approch Mot]] -> 26.05291577 | AA57: =tab_Navigation[[#This Row],[Mn Total Mot]]*'Variable Constante'!$F$6*'Variable Constante'!$E$10 -> 67.73758099 | AB57: =VLOOKUP(tab_Navigation[[#This Row],[Arrivée]],tab_Port_Mouillage[],9,FALSE) -> 06 - Mouillage Free | AC57: =VLOOKUP(tab_Navigation[[#This Row],[Conca Nav]],tab_Escale[[Nav Precedante]:[Nom Jour]],14,FALSE) -> 293.115 | AD57: 53 | AE57: =YEAR(tab_Navigation[[#This Row],[Date Arrivée]]) -> 2023 | AF57: =MONTH(tab_Navigation[[#This Row],[Date Arrivée]]) -> 5 | AG57: =WEEKNUM(tab_Navigation[[#This Row],[Date Arrivée]],2) -> 19
A58: =CONCATENATE(tab_Navigation[[#This Row],[N° Nav]]," - ",tab_Navigation[[#This Row],[Départ]]," > ",tab_Navigation[[#This Row],[Arrivée]]) -> 0074 - Amanu > Raroia | B58: 009 - Polynésie Est > Maupiti | C58: 0074 | D58: Amanu | E58: Raroia | F58: =VLOOKUP(tab_Navigation[[#This Row],[Arrivée]],tab_Port_Mouillage[],6,FALSE) -> Fr Polynésie | G58: 3 | H58: =tab_Navigation[[#This Row],[Dep Km]]/1.852 -> 1.61987041 | I58: 282 | J58: =tab_Navigation[[#This Row],[Nav Km]]/1.852 -> 152.2678186 | K58: 3 | L58: =tab_Navigation[[#This Row],[Arr Km]]/1.852 -> 1.61987041 | M58: =tab_Navigation[[#This Row],[Dep Mn]]+tab_Navigation[[#This Row],[Nav Mn]]+tab_Navigation[[#This Row],[Arr Mn]] -> 155.5075594 | N58: 2 | O58: =VLOOKUP(tab_Navigation[[#This Row],[Arrivée]],tab_Escale[[Nom Escale]:[Jour]],5,FALSE) -> 3 | P58: 2023-05-04T15:57:36 | Q58: =tab_Navigation[[#This Row],[Date Départ]]+tab_Navigation[[#This Row],[J Navig]] -> 2023-05-06T15:57:36 | R58: =tab_Navigation[[#This Row],[Mn Nav Total]]/(tab_Navigation[[#This Row],[J Navig]]*24) -> 3.239740821 | S58: 2.1 | T58: 01 - Voile selon Cond. | U58: 0.95 | V58: =tab_Navigation[[#This Row],[Nav Mn]]*tab_Navigation[[#This Row],[Rap Nav Voil]] -> 144.6544276 | W58: =1-tab_Navigation[[#This Row],[Rap Nav Voil]] -> 0.05 | X58: =tab_Navigation[[#This Row],[Nav Mn]]*tab_Navigation[[#This Row],[Rap Nav Mot]] -> 7.613390929 | Y58: =tab_Navigation[[#This Row],[Dep Mn]]+tab_Navigation[[#This Row],[Arr Mn]] -> 3.239740821 | Z58: =tab_Navigation[[#This Row],[Mn Nav Mot]]+tab_Navigation[[#This Row],[Mn Approch Mot]] -> 10.85313175 | AA58: =tab_Navigation[[#This Row],[Mn Total Mot]]*'Variable Constante'!$F$6*'Variable Constante'!$E$10 -> 28.21814255 | AB58: =VLOOKUP(tab_Navigation[[#This Row],[Arrivée]],tab_Port_Mouillage[],9,FALSE) -> 06 - Mouillage Free | AC58: =VLOOKUP(tab_Navigation[[#This Row],[Conca Nav]],tab_Escale[[Nav Precedante]:[Nom Jour]],14,FALSE) -> 298.115 | AD58: 54 | AE58: =YEAR(tab_Navigation[[#This Row],[Date Arrivée]]) -> 2023 | AF58: =MONTH(tab_Navigation[[#This Row],[Date Arrivée]]) -> 5 | AG58: =WEEKNUM(tab_Navigation[[#This Row],[Date Arrivée]],2) -> 19
A59: =CONCATENATE(tab_Navigation[[#This Row],[N° Nav]]," - ",tab_Navigation[[#This Row],[Départ]]," > ",tab_Navigation[[#This Row],[Arrivée]]) -> 0075 - Raroia > Makemo | B59: 009 - Polynésie Est > Maupiti | C59: 0075 | D59: Raroia | E59: Makemo | F59: =VLOOKUP(tab_Navigation[[#This Row],[Arrivée]],tab_Port_Mouillage[],6,FALSE) -> Fr Polynésie | G59: 3 | H59: =tab_Navigation[[#This Row],[Dep Km]]/1.852 -> 1.61987041 | I59: 175 | J59: =tab_Navigation[[#This Row],[Nav Km]]/1.852 -> 94.4924406 | K59: 3 | L59: =tab_Navigation[[#This Row],[Arr Km]]/1.852 -> 1.61987041 | M59: =tab_Navigation[[#This Row],[Dep Mn]]+tab_Navigation[[#This Row],[Nav Mn]]+tab_Navigation[[#This Row],[Arr Mn]] -> 97.73218143 | N59: 1 | O59: =VLOOKUP(tab_Navigation[[#This Row],[Arrivée]],tab_Escale[[Nom Escale]:[Jour]],5,FALSE) -> 3 | P59: 2023-05-09T15:57:36 | Q59: =tab_Navigation[[#This Row],[Date Départ]]+tab_Navigation[[#This Row],[J Navig]] -> 2023-05-10T15:57:36 | R59: =tab_Navigation[[#This Row],[Mn Nav Total]]/(tab_Navigation[[#This Row],[J Navig]]*24) -> 4.072174226 | S59: 2.1 | T59: 01 - Voile selon Cond. | U59: 0.95 | V59: =tab_Navigation[[#This Row],[Nav Mn]]*tab_Navigation[[#This Row],[Rap Nav Voil]] -> 89.76781857 | W59: =1-tab_Navigation[[#This Row],[Rap Nav Voil]] -> 0.05 | X59: =tab_Navigation[[#This Row],[Nav Mn]]*tab_Navigation[[#This Row],[Rap Nav Mot]] -> 4.72462203 | Y59: =tab_Navigation[[#This Row],[Dep Mn]]+tab_Navigation[[#This Row],[Arr Mn]] -> 3.239740821 | Z59: =tab_Navigation[[#This Row],[Mn Nav Mot]]+tab_Navigation[[#This Row],[Mn Approch Mot]] -> 7.964362851 | AA59: =tab_Navigation[[#This Row],[Mn Total Mot]]*'Variable Constante'!$F$6*'Variable Constante'!$E$10 -> 20.70734341 | AB59: =VLOOKUP(tab_Navigation[[#This Row],[Arrivée]],tab_Port_Mouillage[],9,FALSE) -> 06 - Mouillage Free | AC59: =VLOOKUP(tab_Navigation[[#This Row],[Conca Nav]],tab_Escale[[Nav Precedante]:[Nom Jour]],14,FALSE) -> 302.115 | AD59: 55 | AE59: =YEAR(tab_Navigation[[#This Row],[Date Arrivée]]) -> 2023 | AF59: =MONTH(tab_Navigation[[#This Row],[Date Arrivée]]) -> 5 | AG59: =WEEKNUM(tab_Navigation[[#This Row],[Date Arrivée]],2) -> 20
A60: =CONCATENATE(tab_Navigation[[#This Row],[N° Nav]]," - ",tab_Navigation[[#This Row],[Départ]]," > ",tab_Navigation[[#This Row],[Arrivée]]) -> 0076 - Makemo > Tahanea | B60: 009 - Polynésie Est > Maupiti | C60: 0076 | D60: Makemo | E60: Tahanea | F60: =VLOOKUP(tab_Navigation[[#This Row],[Arrivée]],tab_Port_Mouillage[],6,FALSE) -> Fr Polynésie | G60: 3 | H60: =tab_Navigation[[#This Row],[Dep Km]]/1.852 -> 1.61987041 | I60: 135 | J60: =tab_Navigation[[#This Row],[Nav Km]]/1.852 -> 72.89416847 | K60: 3 | L60: =tab_Navigation[[#This Row],[Arr Km]]/1.852 -> 1.61987041 | M60: =tab_Navigation[[#This Row],[Dep Mn]]+tab_Navigation[[#This Row],[Nav Mn]]+tab_Navigation[[#This Row],[Arr Mn]] -> 76.13390929 | N60: 0.8 | O60: =VLOOKUP(tab_Navigation[[#This Row],[Arrivée]],tab_Escale[[Nom Escale]:[Jour]],5,FALSE) -> 3 | P60: 2023-05-13T15:57:36 | Q60: =tab_Navigation[[#This Row],[Date Départ]]+tab_Navigation[[#This Row],[J Navig]] -> 2023-05-14T11:09:36 | R60: =tab_Navigation[[#This Row],[Mn Nav Total]]/(tab_Navigation[[#This Row],[J Navig]]*24) -> 3.965307775 | S60: 2.1 | T60: 01 - Voile selon Cond. | U60: 0.95 | V60: =tab_Navigation[[#This Row],[Nav Mn]]*tab_Navigation[[#This Row],[Rap Nav Voil]] -> 69.24946004 | W60: =1-tab_Navigation[[#This Row],[Rap Nav Voil]] -> 0.05 | X60: =tab_Navigation[[#This Row],[Nav Mn]]*tab_Navigation[[#This Row],[Rap Nav Mot]] -> 3.644708423 | Y60: =tab_Navigation[[#This Row],[Dep Mn]]+tab_Navigation[[#This Row],[Arr Mn]] -> 3.239740821 | Z60: =tab_Navigation[[#This Row],[Mn Nav Mot]]+tab_Navigation[[#This Row],[Mn Approch Mot]] -> 6.884449244 | AA60: =tab_Navigation[[#This Row],[Mn Total Mot]]*'Variable Constante'!$F$6*'Variable Constante'!$E$10 -> 17.89956803 | AB60: =VLOOKUP(tab_Navigation[[#This Row],[Arrivée]],tab_Port_Mouillage[],9,FALSE) -> 06 - Mouillage Free | AC60: =VLOOKUP(tab_Navigation[[#This Row],[Conca Nav]],tab_Escale[[Nav Precedante]:[Nom Jour]],14,FALSE) -> 305.915 | AD60: 56 | AE60: =YEAR(tab_Navigation[[#This Row],[Date Arrivée]]) -> 2023 | AF60: =MONTH(tab_Navigation[[#This Row],[Date Arrivée]]) -> 5 | AG60: =WEEKNUM(tab_Navigation[[#This Row],[Date Arrivée]],2) -> 20
A61: =CONCATENATE(tab_Navigation[[#This Row],[N° Nav]]," - ",tab_Navigation[[#This Row],[Départ]]," > ",tab_Navigation[[#This Row],[Arrivée]]) -> 0077 - Tahanea > Toau | B61: 009 - Polynésie Est > Maupiti | C61: 0077 | D61: Tahanea | E61: Toau | F61: =VLOOKUP(tab_Navigation[[#This Row],[Arrivée]],tab_Port_Mouillage[],6,FALSE) -> Fr Polynésie | G61: 3 | H61: =tab_Navigation[[#This Row],[Dep Km]]/1.852 -> 1.61987041 | I61: 208 | J61: =tab_Navigation[[#This Row],[Nav Km]]/1.852 -> 112.3110151 | K61: 3 | L61: =tab_Navigation[[#This Row],[Arr Km]]/1.852 -> 1.61987041 | M61: =tab_Navigation[[#This Row],[Dep Mn]]+tab_Navigation[[#This Row],[Nav Mn]]+tab_Navigation[[#This Row],[Arr Mn]] -> 115.5507559 | N61: 1 | O61: =VLOOKUP(tab_Navigation[[#This Row],[Arrivée]],tab_Escale[[Nom Escale]:[Jour]],5,FALSE) -> 3 | P61: 2023-05-17T11:09:36 | Q61: =tab_Navigation[[#This Row],[Date Départ]]+tab_Navigation[[#This Row],[J Navig]] -> 2023-05-18T11:09:36 | R61: =tab_Navigation[[#This Row],[Mn Nav Total]]/(tab_Navigation[[#This Row],[J Navig]]*24) -> 4.814614831 | S61: 2.1 | T61: 01 - Voile selon Cond. | U61: 0.95 | V61: =tab_Navigation[[#This Row],[Nav Mn]]*tab_Navigation[[#This Row],[Rap Nav Voil]] -> 106.6954644 | W61: =1-tab_Navigation[[#This Row],[Rap Nav Voil]] -> 0.05 | X61: =tab_Navigation[[#This Row],[Nav Mn]]*tab_Navigation[[#This Row],[Rap Nav Mot]] -> 5.615550756 | Y61: =tab_Navigation[[#This Row],[Dep Mn]]+tab_Navigation[[#This Row],[Arr Mn]] -> 3.239740821 | Z61: =tab_Navigation[[#This Row],[Mn Nav Mot]]+tab_Navigation[[#This Row],[Mn Approch Mot]] -> 8.855291577 | AA61: =tab_Navigation[[#This Row],[Mn Total Mot]]*'Variable Constante'!$F$6*'Variable Constante'!$E$10 -> 23.0237581 | AB61: =VLOOKUP(tab_Navigation[[#This Row],[Arrivée]],tab_Port_Mouillage[],9,FALSE) -> 06 - Mouillage Free | AC61: =VLOOKUP(tab_Navigation[[#This Row],[Conca Nav]],tab_Escale[[Nav Precedante]:[Nom Jour]],14,FALSE) -> 309.915 | AD61: 57 | AE61: =YEAR(tab_Navigation[[#This Row],[Date Arrivée]]) -> 2023 | AF61: =MONTH(tab_Navigation[[#This Row],[Date Arrivée]]) -> 5 | AG61: =WEEKNUM(tab_Navigation[[#This Row],[Date Arrivée]],2) -> 21
A62: =CONCATENATE(tab_Navigation[[#This Row],[N° Nav]]," - ",tab_Navigation[[#This Row],[Départ]]," > ",tab_Navigation[[#This Row],[Arrivée]]) -> 0078 - Toau > Manihi | B62: 009 - Polynésie Est > Maupiti | C62: 0078 | D62: Toau | E62: Manihi | F62: =VLOOKUP(tab_Navigation[[#This Row],[Arrivée]],tab_Port_Mouillage[],6,FALSE) -> Fr Polynésie | G62: 3 | H62: =tab_Navigation[[#This Row],[Dep Km]]/1.852 -> 1.61987041 | I62: 147 | J62: =tab_Navigation[[#This Row],[Nav Km]]/1.852 -> 79.37365011 | K62: 3 | L62: =tab_Navigation[[#This Row],[Arr Km]]/1.852 -> 1.61987041 | M62: =tab_Navigation[[#This Row],[Dep Mn]]+tab_Navigation[[#This Row],[Nav Mn]]+tab_Navigation[[#This Row],[Arr Mn]] -> 82.61339093 | N62: 0.8 | O62: =VLOOKUP(tab_Navigation[[#This Row],[Arrivée]],tab_Escale[[Nom Escale]:[Jour]],5,FALSE) -> 3 | P62: 2023-05-21T11:09:36 | Q62: =tab_Navigation[[#This Row],[Date Départ]]+tab_Navigation[[#This Row],[J Navig]] -> 2023-05-22T06:21:36 | R62: =tab_Navigation[[#This Row],[Mn Nav Total]]/(tab_Navigation[[#This Row],[J Navig]]*24) -> 4.302780778 | S62: 2.1 | T62: 01 - Voile selon Cond. | U62: 0.95 | V62: =tab_Navigation[[#This Row],[Nav Mn]]*tab_Navigation[[#This Row],[Rap Nav Voil]] -> 75.4049676 | W62: =1-tab_Navigation[[#This Row],[Rap Nav Voil]] -> 0.05 | X62: =tab_Navigation[[#This Row],[Nav Mn]]*tab_Navigation[[#This Row],[Rap Nav Mot]] -> 3.968682505 | Y62: =tab_Navigation[[#This Row],[Dep Mn]]+tab_Navigation[[#This Row],[Arr Mn]] -> 3.239740821 | Z62: =tab_Navigation[[#This Row],[Mn Nav Mot]]+tab_Navigation[[#This Row],[Mn Approch Mot]] -> 7.208423326 | AA62: =tab_Navigation[[#This Row],[Mn Total Mot]]*'Variable Constante'!$F$6*'Variable Constante'!$E$10 -> 18.74190065 | AB62: =VLOOKUP(tab_Navigation[[#This Row],[Arrivée]],tab_Port_Mouillage[],9,FALSE) -> 06 - Mouillage Free | AC62: =VLOOKUP(tab_Navigation[[#This Row],[Conca Nav]],tab_Escale[[Nav Precedante]:[Nom Jour]],14,FALSE) -> 313.715 | AD62: 58 | AE62: =YEAR(tab_Navigation[[#This Row],[Date Arrivée]]) -> 2023 | AF62: =MONTH(tab_Navigation[[#This Row],[Date Arrivée]]) -> 5 | AG62: =WEEKNUM(tab_Navigation[[#This Row],[Date Arrivée]],2) -> 22
A63: =CONCATENATE(tab_Navigation[[#This Row],[N° Nav]]," - ",tab_Navigation[[#This Row],[Départ]]," > ",tab_Navigation[[#This Row],[Arrivée]]) -> 0079 - Manihi > Rangiroa | B63: 009 - Polynésie Est > Maupiti | C63: 0079 | D63: Manihi | E63: Rangiroa | F63: =VLOOKUP(tab_Navigation[[#This Row],[Arrivée]],tab_Port_Mouillage[],6,FALSE) -> Fr Polynésie | G63: 3 | H63: =tab_Navigation[[#This Row],[Dep Km]]/1.852 -> 1.61987041 | I63: 174 | J63: =tab_Navigation[[#This Row],[Nav Km]]/1.852 -> 93.9524838 | K63: 3 | L63: =tab_Navigation[[#This Row],[Arr Km]]/1.852 -> 1.61987041 | M63: =tab_Navigation[[#This Row],[Dep Mn]]+tab_Navigation[[#This Row],[Nav Mn]]+tab_Navigation[[#This Row],[Arr Mn]] -> 97.19222462 | N63: 0.8 | O63: =VLOOKUP(tab_Navigation[[#This Row],[Arrivée]],tab_Escale[[Nom Escale]:[Jour]],5,FALSE) -> 3 | P63: 2023-05-25T06:21:36 | Q63: =tab_Navigation[[#This Row],[Date Départ]]+tab_Navigation[[#This Row],[J Navig]] -> 2023-05-26T01:33:36 | R63: =tab_Navigation[[#This Row],[Mn Nav Total]]/(tab_Navigation[[#This Row],[J Navig]]*24) -> 5.062095032 | S63: 2.1 | T63: 01 - Voile selon Cond. | U63: 0.95 | V63: =tab_Navigation[[#This Row],[Nav Mn]]*tab_Navigation[[#This Row],[Rap Nav Voil]] -> 89.25485961 | W63: =1-tab_Navigation[[#This Row],[Rap Nav Voil]] -> 0.05 | X63: =tab_Navigation[[#This Row],[Nav Mn]]*tab_Navigation[[#This Row],[Rap Nav Mot]] -> 4.69762419 | Y63: =tab_Navigation[[#This Row],[Dep Mn]]+tab_Navigation[[#This Row],[Arr Mn]] -> 3.239740821 | Z63: =tab_Navigation[[#This Row],[Mn Nav Mot]]+tab_Navigation[[#This Row],[Mn Approch Mot]] -> 7.937365011 | AA63: =tab_Navigation[[#This Row],[Mn Total Mot]]*'Variable Constante'!$F$6*'Variable Constante'!$E$10 -> 20.63714903 | AB63: =VLOOKUP(tab_Navigation[[#This Row],[Arrivée]],tab_Port_Mouillage[],9,FALSE) -> 06 - Mouillage Free | AC63: =VLOOKUP(tab_Navigation[[#This Row],[Conca Nav]],tab_Escale[[Nav Precedante]:[Nom Jour]],14,FALSE) -> 317.515 | AD63: 59 | AE63: =YEAR(tab_Navigation[[#This Row],[Date Arrivée]]) -> 2023 | AF63: =MONTH(tab_Navigation[[#This Row],[Date Arrivée]]) -> 5 | AG63: =WEEKNUM(tab_Navigation[[#This Row],[Date Arrivée]],2) -> 22
A64: =CONCATENATE(tab_Navigation[[#This Row],[N° Nav]]," - ",tab_Navigation[[#This Row],[Départ]]," > ",tab_Navigation[[#This Row],[Arrivée]]) -> 0080 - Rangiroa > Tikehau | B64: 009 - Polynésie Est > Maupiti | C64: 0080 | D64: Rangiroa | E64: Tikehau | F64: =VLOOKUP(tab_Navigation[[#This Row],[Arrivée]],tab_Port_Mouillage[],6,FALSE) -> Fr Polynésie | G64: 3 | H64: =tab_Navigation[[#This Row],[Dep Km]]/1.852 -> 1.61987041 | I64: 104 | J64: =tab_Navigation[[#This Row],[Nav Km]]/1.852 -> 56.15550756 | K64: 3 | L64: =tab_Navigation[[#This Row],[Arr Km]]/1.852 -> 1.61987041 | M64: =tab_Navigation[[#This Row],[Dep Mn]]+tab_Navigation[[#This Row],[Nav Mn]]+tab_Navigation[[#This Row],[Arr Mn]] -> 59.39524838 | N64: 0.5 | O64: =VLOOKUP(tab_Navigation[[#This Row],[Arrivée]],tab_Escale[[Nom Escale]:[Jour]],5,FALSE) -> 2 | P64: 2023-05-28T01:33:36 | Q64: =tab_Navigation[[#This Row],[Date Départ]]+tab_Navigation[[#This Row],[J Navig]] -> 2023-05-28T13:33:36 | R64: =tab_Navigation[[#This Row],[Mn Nav Total]]/(tab_Navigation[[#This Row],[J Navig]]*24) -> 4.949604032 | S64: 2.1 | T64: 01 - Voile selon Cond. | U64: 0.95 | V64: =tab_Navigation[[#This Row],[Nav Mn]]*tab_Navigation[[#This Row],[Rap Nav Voil]] -> 53.34773218 | W64: =1-tab_Navigation[[#This Row],[Rap Nav Voil]] -> 0.05 | X64: =tab_Navigation[[#This Row],[Nav Mn]]*tab_Navigation[[#This Row],[Rap Nav Mot]] -> 2.807775378 | Y64: =tab_Navigation[[#This Row],[Dep Mn]]+tab_Navigation[[#This Row],[Arr Mn]] -> 3.239740821 | Z64: =tab_Navigation[[#This Row],[Mn Nav Mot]]+tab_Navigation[[#This Row],[Mn Approch Mot]] -> 6.047516199 | AA64: =tab_Navigation[[#This Row],[Mn Total Mot]]*'Variable Constante'!$F$6*'Variable Constante'!$E$10 -> 15.72354212 | AB64: =VLOOKUP(tab_Navigation[[#This Row],[Arrivée]],tab_Port_Mouillage[],9,FALSE) -> 06 - Mouillage Free | AC64: =VLOOKUP(tab_Navigation[[#This Row],[Conca Nav]],tab_Escale[[Nav Precedante]:[Nom Jour]],14,FALSE) -> 320.015 | AD64: 60 | AE64: =YEAR(tab_Navigation[[#This Row],[Date Arrivée]]) -> 2023 | AF64: =MONTH(tab_Navigation[[#This Row],[Date Arrivée]]) -> 5 | AG64: =WEEKNUM(tab_Navigation[[#This Row],[Date Arrivée]],2) -> 22
A65: =CONCATENATE(tab_Navigation[[#This Row],[N° Nav]]," - ",tab_Navigation[[#This Row],[Départ]]," > ",tab_Navigation[[#This Row],[Arrivée]]) -> 0081 - Tikehau > Tetiaroa | B65: 009 - Polynésie Est > Maupiti | C65: 0081 | D65: Tikehau | E65: Tetiaroa | F65: =VLOOKUP(tab_Navigation[[#This Row],[Arrivée]],tab_Port_Mouillage[],6,FALSE) -> Fr Polynésie | G65: 3 | H65: =tab_Navigation[[#This Row],[Dep Km]]/1.852 -> 1.61987041 | I65: 288 | J65: =tab_Navigation[[#This Row],[Nav Km]]/1.852 -> 155.5075594 | K65: 3 | L65: =tab_Navigation[[#This Row],[Arr Km]]/1.852 -> 1.61987041 | M65: =tab_Navigation[[#This Row],[Dep Mn]]+tab_Navigation[[#This Row],[Nav Mn]]+tab_Navigation[[#This Row],[Arr Mn]] -> 158.7473002 | N65: 1.3 | O65: =VLOOKUP(tab_Navigation[[#This Row],[Arrivée]],tab_Escale[[Nom Escale]:[Jour]],5,FALSE) -> 3 | P65: 2023-05-31T13:33:36 | Q65: =tab_Navigation[[#This Row],[Date Départ]]+tab_Navigation[[#This Row],[J Navig]] -> 2023-06-01T20:45:36 | R65: =tab_Navigation[[#This Row],[Mn Nav Total]]/(tab_Navigation[[#This Row],[J Navig]]*24) -> 5.088054494 | S65: 2.1 | T65: 01 - Voile selon Cond. | U65: 0.95 | V65: =tab_Navigation[[#This Row],[Nav Mn]]*tab_Navigation[[#This Row],[Rap Nav Voil]] -> 147.7321814 | W65: =1-tab_Navigation[[#This Row],[Rap Nav Voil]] -> 0.05 | X65: =tab_Navigation[[#This Row],[Nav Mn]]*tab_Navigation[[#This Row],[Rap Nav Mot]] -> 7.77537797 | Y65: =tab_Navigation[[#This Row],[Dep Mn]]+tab_Navigation[[#This Row],[Arr Mn]] -> 3.239740821 | Z65: =tab_Navigation[[#This Row],[Mn Nav Mot]]+tab_Navigation[[#This Row],[Mn Approch Mot]] -> 11.01511879 | AA65: =tab_Navigation[[#This Row],[Mn Total Mot]]*'Variable Constante'!$F$6*'Variable Constante'!$E$10 -> 28.63930886 | AB65: =VLOOKUP(tab_Navigation[[#This Row],[Arrivée]],tab_Port_Mouillage[],9,FALSE) -> 06 - Mouillage Free | AC65: =VLOOKUP(tab_Navigation[[#This Row],[Conca Nav]],tab_Escale[[Nav Precedante]:[Nom Jour]],14,FALSE) -> 324.315 | AD65: 61 | AE65: =YEAR(tab_Navigation[[#This Row],[Date Arrivée]]) -> 2023 | AF65: =MONTH(tab_Navigation[[#This Row],[Date Arrivée]]) -> 6 | AG65: =WEEKNUM(tab_Navigation[[#This Row],[Date Arrivée]],2) -> 23
A66: =CONCATENATE(tab_Navigation[[#This Row],[N° Nav]]," - ",tab_Navigation[[#This Row],[Départ]]," > ",tab_Navigation[[#This Row],[Arrivée]]) -> 0082 - Tetiaroa > Papeete | B66: 009 - Polynésie Est > Maupiti | C66: 0082 | D66: Tetiaroa | E66: Papeete | F66: =VLOOKUP(tab_Navigation[[#This Row],[Arrivée]],tab_Port_Mouillage[],6,FALSE) -> Fr Polynésie | G66: 3 | H66: =tab_Navigation[[#This Row],[Dep Km]]/1.852 -> 1.61987041 | I66: 54 | J66: =tab_Navigation[[#This Row],[Nav Km]]/1.852 -> 29.15766739 | K66: 3 | L66: =tab_Navigation[[#This Row],[Arr Km]]/1.852 -> 1.61987041 | M66: =tab_Navigation[[#This Row],[Dep Mn]]+tab_Navigation[[#This Row],[Nav Mn]]+tab_Navigation[[#This Row],[Arr Mn]] -> 32.39740821 | N66: 0.3 | O66: =VLOOKUP(tab_Navigation[[#This Row],[Arrivée]],tab_Escale[[Nom Escale]:[Jour]],5,FALSE) -> 5 | P66: 2023-06-06T20:45:36 | Q66: =tab_Navigation[[#This Row],[Date Départ]]+tab_Navigation[[#This Row],[J Navig]] -> 2023-06-07T03:57:36 | R66: =tab_Navigation[[#This Row],[Mn Nav Total]]/(tab_Navigation[[#This Row],[J Navig]]*24) -> 4.499640029 | S66: 2.1 | T66: 01 - Voile selon Cond. | U66: 0.95 | V66: =tab_Navigation[[#This Row],[Nav Mn]]*tab_Navigation[[#This Row],[Rap Nav Voil]] -> 27.69978402 | W66: =1-tab_Navigation[[#This Row],[Rap Nav Voil]] -> 0.05 | X66: =tab_Navigation[[#This Row],[Nav Mn]]*tab_Navigation[[#This Row],[Rap Nav Mot]] -> 1.457883369 | Y66: =tab_Navigation[[#This Row],[Dep Mn]]+tab_Navigation[[#This Row],[Arr Mn]] -> 3.239740821 | Z66: =tab_Navigation[[#This Row],[Mn Nav Mot]]+tab_Navigation[[#This Row],[Mn Approch Mot]] -> 4.69762419 | AA66: =tab_Navigation[[#This Row],[Mn Total Mot]]*'Variable Constante'!$F$6*'Variable Constante'!$E$10 -> 12.21382289 | AB66: =VLOOKUP(tab_Navigation[[#This Row],[Arrivée]],tab_Port_Mouillage[],9,FALSE) -> 01 - Port Plein Eau Pay | AC66: =VLOOKUP(tab_Navigation[[#This Row],[Conca Nav]],tab_Escale[[Nav Precedante]:[Nom Jour]],14,FALSE) -> 329.615 | AD66: 62 | AE66: =YEAR(tab_Navigation[[#This Row],[Date Arrivée]]) -> 2023 | AF66: =MONTH(tab_Navigation[[#This Row],[Date Arrivée]]) -> 6 | AG66: =WEEKNUM(tab_Navigation[[#This Row],[Date Arrivée]],2) -> 24
A67: =CONCATENATE(tab_Navigation[[#This Row],[N° Nav]]," - ",tab_Navigation[[#This Row],[Départ]]," > ",tab_Navigation[[#This Row],[Arrivée]]) -> 0083 - Papeete > Baie d'opunohu | B67: 009 - Polynésie Est > Maupiti | C67: 0083 | D67: Papeete | E67: Baie d'opunohu | F67: =VLOOKUP(tab_Navigation[[#This Row],[Arrivée]],tab_Port_Mouillage[],6,FALSE) -> Fr Polynésie | G67: 3 | H67: =tab_Navigation[[#This Row],[Dep Km]]/1.852 -> 1.61987041 | I67: 26 | J67: =tab_Navigation[[#This Row],[Nav Km]]/1.852 -> 14.03887689 | K67: 3 | L67: =tab_Navigation[[#This Row],[Arr Km]]/1.852 -> 1.61987041 | M67: =tab_Navigation[[#This Row],[Dep Mn]]+tab_Navigation[[#This Row],[Nav Mn]]+tab_Navigation[[#This Row],[Arr Mn]] -> 17.27861771 | N67: 0.15 | O67: =VLOOKUP(tab_Navigation[[#This Row],[Arrivée]],tab_Escale[[Nom Escale]:[Jour]],5,FALSE) -> 3 | P67: 2023-06-10T03:57:36 | Q67: =tab_Navigation[[#This Row],[Date Départ]]+tab_Navigation[[#This Row],[J Navig]] -> 2023-06-10T07:33:36 | R67: =tab_Navigation[[#This Row],[Mn Nav Total]]/(tab_Navigation[[#This Row],[J Navig]]*24) -> 4.799616031 | S67: 2.1 | T67: 01 - Voile selon Cond. | U67: 0.95 | V67: =tab_Navigation[[#This Row],[Nav Mn]]*tab_Navigation[[#This Row],[Rap Nav Voil]] -> 13.33693305 | W67: =1-tab_Navigation[[#This Row],[Rap Nav Voil]] -> 0.05 | X67: =tab_Navigation[[#This Row],[Nav Mn]]*tab_Navigation[[#This Row],[Rap Nav Mot]] -> 0.7019438445 | Y67: =tab_Navigation[[#This Row],[Dep Mn]]+tab_Navigation[[#This Row],[Arr Mn]] -> 3.239740821 | Z67: =tab_Navigation[[#This Row],[Mn Nav Mot]]+tab_Navigation[[#This Row],[Mn Approch Mot]] -> 3.941684665 | AA67: =tab_Navigation[[#This Row],[Mn Total Mot]]*'Variable Constante'!$F$6*'Variable Constante'!$E$10 -> 10.24838013 | AB67: =VLOOKUP(tab_Navigation[[#This Row],[Arrivée]],tab_Port_Mouillage[],9,FALSE) -> 06 - Mouillage Free | AC67: =VLOOKUP(tab_Navigation[[#This Row],[Conca Nav]],tab_Escale[[Nav Precedante]:[Nom Jour]],14,FALSE) -> 332.765 | AD67: 63 | AE67: =YEAR(tab_Navigation[[#This Row],[Date Arrivée]]) -> 2023 | AF67: =MONTH(tab_Navigation[[#This Row],[Date Arrivée]]) -> 6 | AG67: =WEEKNUM(tab_Navigation[[#This Row],[Date Arrivée]],2) -> 24
A68: =CONCATENATE(tab_Navigation[[#This Row],[N° Nav]]," - ",tab_Navigation[[#This Row],[Départ]]," > ",tab_Navigation[[#This Row],[Arrivée]]) -> 0084 - Baie d'opunohu > Huahine | B68: 009 - Polynésie Est > Maupiti | C68: 0084 | D68: Baie d'opunohu | E68: Huahine | F68: =VLOOKUP(tab_Navigation[[#This Row],[Arrivée]],tab_Port_Mouillage[],6,FALSE) -> Fr Polynésie | G68: 3 | H68: =tab_Navigation[[#This Row],[Dep Km]]/1.852 -> 1.61987041 | I68: 161 | J68: =tab_Navigation[[#This Row],[Nav Km]]/1.852 -> 86.93304536 | K68: 3 | L68: =tab_Navigation[[#This Row],[Arr Km]]/1.852 -> 1.61987041 | M68: =tab_Navigation[[#This Row],[Dep Mn]]+tab_Navigation[[#This Row],[Nav Mn]]+tab_Navigation[[#This Row],[Arr Mn]] -> 90.17278618 | N68: 0.7 | O68: =VLOOKUP(tab_Navigation[[#This Row],[Arrivée]],tab_Escale[[Nom Escale]:[Jour]],5,FALSE) -> 3 | P68: 2023-06-13T07:33:36 | Q68: =tab_Navigation[[#This Row],[Date Départ]]+tab_Navigation[[#This Row],[J Navig]] -> 2023-06-14T00:21:36 | R68: =tab_Navigation[[#This Row],[Mn Nav Total]]/(tab_Navigation[[#This Row],[J Navig]]*24) -> 5.367427749 | S68: 2.1 | T68: 01 - Voile selon Cond. | U68: 0.95 | V68: =tab_Navigation[[#This Row],[Nav Mn]]*tab_Navigation[[#This Row],[Rap Nav Voil]] -> 82.58639309 | W68: =1-tab_Navigation[[#This Row],[Rap Nav Voil]] -> 0.05 | X68: =tab_Navigation[[#This Row],[Nav Mn]]*tab_Navigation[[#This Row],[Rap Nav Mot]] -> 4.346652268 | Y68: =tab_Navigation[[#This Row],[Dep Mn]]+tab_Navigation[[#This Row],[Arr Mn]] -> 3.239740821 | Z68: =tab_Navigation[[#This Row],[Mn Nav Mot]]+tab_Navigation[[#This Row],[Mn Approch Mot]] -> 7.586393089 | AA68: =tab_Navigation[[#This Row],[Mn Total Mot]]*'Variable Constante'!$F$6*'Variable Constante'!$E$10 -> 19.72462203 | AB68: =VLOOKUP(tab_Navigation[[#This Row],[Arrivée]],tab_Port_Mouillage[],9,FALSE) -> 06 - Mouillage Free | AC68: =VLOOKUP(tab_Navigation[[#This Row],[Conca Nav]],tab_Escale[[Nav Precedante]:[Nom Jour]],14,FALSE) -> 336.465 | AD68: 64 | AE68: =YEAR(tab_Navigation[[#This Row],[Date Arrivée]]) -> 2023 | AF68: =MONTH(tab_Navigation[[#This Row],[Date Arrivée]]) -> 6 | AG68: =WEEKNUM(tab_Navigation[[#This Row],[Date Arrivée]],2) -> 25
A69: =CONCATENATE(tab_Navigation[[#This Row],[N° Nav]]," - ",tab_Navigation[[#This Row],[Départ]]," > ",tab_Navigation[[#This Row],[Arrivée]]) -> 0085 - Huahine > Tahaa Raiatea | B69: 009 - Polynésie Est > Maupiti | C69: 0085 | D69: Huahine | E69: Tahaa Raiatea | F69: =VLOOKUP(tab_Navigation[[#This Row],[Arrivée]],tab_Port_Mouillage[],6,FALSE) -> Fr Polynésie | G69: 3 | H69: =tab_Navigation[[#This Row],[Dep Km]]/1.852 -> 1.61987041 | I69: 38 | J69: =tab_Navigation[[#This Row],[Nav Km]]/1.852 -> 20.51835853 | K69: 3 | L69: =tab_Navigation[[#This Row],[Arr Km]]/1.852 -> 1.61987041 | M69: =tab_Navigation[[#This Row],[Dep Mn]]+tab_Navigation[[#This Row],[Nav Mn]]+tab_Navigation[[#This Row],[Arr Mn]] -> 23.75809935 | N69: 0.2 | O69: =VLOOKUP(tab_Navigation[[#This Row],[Arrivée]],tab_Escale[[Nom Escale]:[Jour]],5,FALSE) -> 3 | P69: 2023-06-17T00:21:36 | Q69: =tab_Navigation[[#This Row],[Date Départ]]+tab_Navigation[[#This Row],[J Navig]] -> 2023-06-17T05:09:36 | R69: =tab_Navigation[[#This Row],[Mn Nav Total]]/(tab_Navigation[[#This Row],[J Navig]]*24) -> 4.949604032 | S69: 2.1 | T69: 01 - Voile selon Cond. | U69: 0.95 | V69: =tab_Navigation[[#This Row],[Nav Mn]]*tab_Navigation[[#This Row],[Rap Nav Voil]] -> 19.4924406 | W69: =1-tab_Navigation[[#This Row],[Rap Nav Voil]] -> 0.05 | X69: =tab_Navigation[[#This Row],[Nav Mn]]*tab_Navigation[[#This Row],[Rap Nav Mot]] -> 1.025917927 | Y69: =tab_Navigation[[#This Row],[Dep Mn]]+tab_Navigation[[#This Row],[Arr Mn]] -> 3.239740821 | Z69: =tab_Navigation[[#This Row],[Mn Nav Mot]]+tab_Navigation[[#This Row],[Mn Approch Mot]] -> 4.265658747 | AA69: =tab_Navigation[[#This Row],[Mn Total Mot]]*'Variable Constante'!$F$6*'Variable Constante'!$E$10 -> 11.09071274 | AB69: =VLOOKUP(tab_Navigation[[#This Row],[Arrivée]],tab_Port_Mouillage[],9,FALSE) -> 06 - Mouillage Free | AC69: =VLOOKUP(tab_Navigation[[#This Row],[Conca Nav]],tab_Escale[[Nav Precedante]:[Nom Jour]],14,FALSE) -> 339.665 | AD69: 65 | AE69: =YEAR(tab_Navigation[[#This Row],[Date Arrivée]]) -> 2023 | AF69: =MONTH(tab_Navigation[[#This Row],[Date Arrivée]]) -> 6 | AG69: =WEEKNUM(tab_Navigation[[#This Row],[Date Arrivée]],2) -> 25
A70: =CONCATENATE(tab_Navigation[[#This Row],[N° Nav]]," - ",tab_Navigation[[#This Row],[Départ]]," > ",tab_Navigation[[#This Row],[Arrivée]]) -> 0086 - Tahaa Raiatea > Bora Bora | B70: 009 - Polynésie Est > Maupiti | C70: 0086 | D70: Tahaa Raiatea | E70: Bora Bora | F70: =VLOOKUP(tab_Navigation[[#This Row],[Arrivée]],tab_Port_Mouillage[],6,FALSE) -> Fr Polynésie | G70: 3 | H70: =tab_Navigation[[#This Row],[Dep Km]]/1.852 -> 1.61987041 | I70: 61 | J70: =tab_Navigation[[#This Row],[Nav Km]]/1.852 -> 32.93736501 | K70: 3 | L70: =tab_Navigation[[#This Row],[Arr Km]]/1.852 -> 1.61987041 | M70: =tab_Navigation[[#This Row],[Dep Mn]]+tab_Navigation[[#This Row],[Nav Mn]]+tab_Navigation[[#This Row],[Arr Mn]] -> 36.17710583 | N70: 0.3 | O70: =VLOOKUP(tab_Navigation[[#This Row],[Arrivée]],tab_Escale[[Nom Escale]:[Jour]],5,FALSE) -> 10 | P70: 2023-06-27T05:09:36 | Q70: =tab_Navigation[[#This Row],[Date Départ]]+tab_Navigation[[#This Row],[J Navig]] -> 2023-06-27T12:21:36 | R70: =tab_Navigation[[#This Row],[Mn Nav Total]]/(tab_Navigation[[#This Row],[J Navig]]*24) -> 5.024598032 | S70: 2.1 | T70: 01 - Voile selon Cond. | U70: 0.95 | V70: =tab_Navigation[[#This Row],[Nav Mn]]*tab_Navigation[[#This Row],[Rap Nav Voil]] -> 31.29049676 | W70: =1-tab_Navigation[[#This Row],[Rap Nav Voil]] -> 0.05 | X70: =tab_Navigation[[#This Row],[Nav Mn]]*tab_Navigation[[#This Row],[Rap Nav Mot]] -> 1.646868251 | Y70: =tab_Navigation[[#This Row],[Dep Mn]]+tab_Navigation[[#This Row],[Arr Mn]] -> 3.239740821 | Z70: =tab_Navigation[[#This Row],[Mn Nav Mot]]+tab_Navigation[[#This Row],[Mn Approch Mot]] -> 4.886609071 | AA70: =tab_Navigation[[#This Row],[Mn Total Mot]]*'Variable Constante'!$F$6*'Variable Constante'!$E$10 -> 12.70518359 | AB70: =VLOOKUP(tab_Navigation[[#This Row],[Arrivée]],tab_Port_Mouillage[],9,FALSE) -> 06 - Mouillage Free | AC70: =VLOOKUP(tab_Navigation[[#This Row],[Conca Nav]],tab_Escale[[Nav Precedante]:[Nom Jour]],14,FALSE) -> 349.965 | AD70: 66 | AE70: =YEAR(tab_Navigation[[#This Row],[Date Arrivée]]) -> 2023 | AF70: =MONTH(tab_Navigation[[#This Row],[Date Arrivée]]) -> 6 | AG70: =WEEKNUM(tab_Navigation[[#This Row],[Date Arrivée]],2) -> 27
A71: =CONCATENATE(tab_Navigation[[#This Row],[N° Nav]]," - ",tab_Navigation[[#This Row],[Départ]]," > ",tab_Navigation[[#This Row],[Arrivée]]) -> 0087 - Bora Bora > Maupiti | B71: 009 - Polynésie Est > Maupiti | C71: 0087 | D71: Bora Bora | E71: Maupiti | F71: =VLOOKUP(tab_Navigation[[#This Row],[Arrivée]],tab_Port_Mouillage[],6,FALSE) -> Fr Polynésie | G71: 3 | H71: =tab_Navigation[[#This Row],[Dep Km]]/1.852 -> 1.61987041 | I71: 47 | J71: =tab_Navigation[[#This Row],[Nav Km]]/1.852 -> 25.37796976 | K71: 3 | L71: =tab_Navigation[[#This Row],[Arr Km]]/1.852 -> 1.61987041 | M71: =tab_Navigation[[#This Row],[Dep Mn]]+tab_Navigation[[#This Row],[Nav Mn]]+tab_Navigation[[#This Row],[Arr Mn]] -> 28.61771058 | N71: 0.2 | O71: =VLOOKUP(tab_Navigation[[#This Row],[Arrivée]],tab_Escale[[Nom Escale]:[Jour]],5,FALSE) -> 10 | P71: =Q70+O71 -> 2023-07-07T12:21:36 | Q71: =tab_Navigation[[#This Row],[Date Départ]]+tab_Navigation[[#This Row],[J Navig]] -> 2023-07-07T17:09:36 | R71: =tab_Navigation[[#This Row],[Mn Nav Total]]/(tab_Navigation[[#This Row],[J Navig]]*24) -> 5.962023038 | S71: 2.1 | T71: 01 - Voile selon Cond. | U71: 0.95 | V71: =tab_Navigation[[#This Row],[Nav Mn]]*tab_Navigation[[#This Row],[Rap Nav Voil]] -> 24.10907127 | W71: =1-tab_Navigation[[#This Row],[Rap Nav Voil]] -> 0.05 | X71: =tab_Navigation[[#This Row],[Nav Mn]]*tab_Navigation[[#This Row],[Rap Nav Mot]] -> 1.268898488 | Y71: =tab_Navigation[[#This Row],[Dep Mn]]+tab_Navigation[[#This Row],[Arr Mn]] -> 3.239740821 | Z71: =tab_Navigation[[#This Row],[Mn Nav Mot]]+tab_Navigation[[#This Row],[Mn Approch Mot]] -> 4.508639309 | AA71: =tab_Navigation[[#This Row],[Mn Total Mot]]*'Variable Constante'!$F$6*'Variable Constante'!$E$10 -> 11.7224622 | AB71: =VLOOKUP(tab_Navigation[[#This Row],[Arrivée]],tab_Port_Mouillage[],9,FALSE) -> 06 - Mouillage Free | AC71: =VLOOKUP(tab_Navigation[[#This Row],[Conca Nav]],tab_Escale[[Nav Precedante]:[Nom Jour]],14,FALSE) -> 360.165 | AD71: 67 | AE71: =YEAR(tab_Navigation[[#This Row],[Date Arrivée]]) -> 2023 | AF71: =MONTH(tab_Navigation[[#This Row],[Date Arrivée]]) -> 7 | AG71: =WEEKNUM(tab_Navigation[[#This Row],[Date Arrivée]],2) -> 28
A72: =CONCATENATE(tab_Navigation[[#This Row],[N° Nav]]," - ",tab_Navigation[[#This Row],[Départ]]," > ",tab_Navigation[[#This Row],[Arrivée]]) -> 0088 - Maupiti > Pago Pago Harbour | B72: 010 - Maupiti > Nouméa | C72: 0088 | D72: Maupiti | E72: Pago Pago Harbour | F72: =VLOOKUP(tab_Navigation[[#This Row],[Arrivée]],tab_Port_Mouillage[],6,FALSE) -> Samoa Americaine | G72: 3 | H72: =tab_Navigation[[#This Row],[Dep Km]]/1.852 -> 1.61987041 | I72: 1990 | J72: =tab_Navigation[[#This Row],[Nav Km]]/1.852 -> 1074.514039 | K72: 4 | L72: =tab_Navigation[[#This Row],[Arr Km]]/1.852 -> 2.159827214 | M72: =tab_Navigation[[#This Row],[Dep Mn]]+tab_Navigation[[#This Row],[Nav Mn]]+tab_Navigation[[#This Row],[Arr Mn]] -> 1078.293737 | N72: 17 | O72: =VLOOKUP(tab_Navigation[[#This Row],[Arrivée]],tab_Escale[[Nom Escale]:[Jour]],5,FALSE) -> 4 | P72: 2023-07-11T17:09:36 | Q72: =tab_Navigation[[#This Row],[Date Départ]]+tab_Navigation[[#This Row],[J Navig]] -> 2023-07-28T17:09:36 | R72: =tab_Navigation[[#This Row],[Mn Nav Total]]/(tab_Navigation[[#This Row],[J Navig]]*24) -> 2.642876805 | S72: 2 | T72: 01 - Voile selon Cond. | U72: 0.98 | V72: =tab_Navigation[[#This Row],[Nav Mn]]*tab_Navigation[[#This Row],[Rap Nav Voil]] -> 1053.023758 | W72: =1-tab_Navigation[[#This Row],[Rap Nav Voil]] -> 0.02 | X72: =tab_Navigation[[#This Row],[Nav Mn]]*tab_Navigation[[#This Row],[Rap Nav Mot]] -> 21.49028078 | Y72: =tab_Navigation[[#This Row],[Dep Mn]]+tab_Navigation[[#This Row],[Arr Mn]] -> 3.779697624 | Z72: =tab_Navigation[[#This Row],[Mn Nav Mot]]+tab_Navigation[[#This Row],[Mn Approch Mot]] -> 25.2699784 | AA72: =tab_Navigation[[#This Row],[Mn Total Mot]]*'Variable Constante'!$F$6*'Variable Constante'!$E$10 -> 65.70194384 | AB72: =VLOOKUP(tab_Navigation[[#This Row],[Arrivée]],tab_Port_Mouillage[],9,FALSE) -> 06 - Mouillage Free | AC72: =VLOOKUP(tab_Navigation[[#This Row],[Conca Nav]],tab_Escale[[Nav Precedante]:[Nom Jour]],14,FALSE) -> 381.165 | AD72: 68 | AE72: =YEAR(tab_Navigation[[#This Row],[Date Arrivée]]) -> 2023 | AF72: =MONTH(tab_Navigation[[#This Row],[Date Arrivée]]) -> 7 | AG72: =WEEKNUM(tab_Navigation[[#This Row],[Date Arrivée]],2) -> 31
A73: =CONCATENATE(tab_Navigation[[#This Row],[N° Nav]]," - ",tab_Navigation[[#This Row],[Départ]]," > ",tab_Navigation[[#This Row],[Arrivée]]) -> 0089 - Pago Pago Harbour > Apia Harbour | B73: 010 - Maupiti > Nouméa | C73: 0089 | D73: Pago Pago Harbour | E73: Apia Harbour | F73: =VLOOKUP(tab_Navigation[[#This Row],[Arrivée]],tab_Port_Mouillage[],6,FALSE) -> A Faire | G73: 4 | H73: =tab_Navigation[[#This Row],[Dep Km]]/1.852 -> 2.159827214 | I73: 143 | J73: =tab_Navigation[[#This Row],[Nav Km]]/1.852 -> 77.21382289 | K73: 4 | L73: =tab_Navigation[[#This Row],[Arr Km]]/1.852 -> 2.159827214 | M73: =tab_Navigation[[#This Row],[Dep Mn]]+tab_Navigation[[#This Row],[Nav Mn]]+tab_Navigation[[#This Row],[Arr Mn]] -> 81.53347732 | N73: 0.8 | O73: =VLOOKUP(tab_Navigation[[#This Row],[Arrivée]],tab_Escale[[Nom Escale]:[Jour]],5,FALSE) -> 2 | P73: 2023-07-30T17:09:36 | Q73: =tab_Navigation[[#This Row],[Date Départ]]+tab_Navigation[[#This Row],[J Navig]] -> 2023-07-31T12:21:36 | R73: =tab_Navigation[[#This Row],[Mn Nav Total]]/(tab_Navigation[[#This Row],[J Navig]]*24) -> 4.246535277 | S73: 2 | T73: 01 - Voile selon Cond. | U73: 0.95 | V73: =tab_Navigation[[#This Row],[Nav Mn]]*tab_Navigation[[#This Row],[Rap Nav Voil]] -> 73.35313175 | W73: =1-tab_Navigation[[#This Row],[Rap Nav Voil]] -> 0.05 | X73: =tab_Navigation[[#This Row],[Nav Mn]]*tab_Navigation[[#This Row],[Rap Nav Mot]] -> 3.860691145 | Y73: =tab_Navigation[[#This Row],[Dep Mn]]+tab_Navigation[[#This Row],[Arr Mn]] -> 4.319654428 | Z73: =tab_Navigation[[#This Row],[Mn Nav Mot]]+tab_Navigation[[#This Row],[Mn Approch Mot]] -> 8.180345572 | AA73: =tab_Navigation[[#This Row],[Mn Total Mot]]*'Variable Constante'!$F$6*'Variable Constante'!$E$10 -> 21.26889849 | AB73: =VLOOKUP(tab_Navigation[[#This Row],[Arrivée]],tab_Port_Mouillage[],9,FALSE) -> 01 - Port Plein Eau Pay | AC73: =VLOOKUP(tab_Navigation[[#This Row],[Conca Nav]],tab_Escale[[Nav Precedante]:[Nom Jour]],14,FALSE) -> 383.965 | AD73: 69 | AE73: =YEAR(tab_Navigation[[#This Row],[Date Arrivée]]) -> 2023 | AF73: =MONTH(tab_Navigation[[#This Row],[Date Arrivée]]) -> 7 | AG73: =WEEKNUM(tab_Navigation[[#This Row],[Date Arrivée]],2) -> 32
A74: =CONCATENATE(tab_Navigation[[#This Row],[N° Nav]]," - ",tab_Navigation[[#This Row],[Départ]]," > ",tab_Navigation[[#This Row],[Arrivée]]) -> 0090 - Apia Harbour > Savai'i | B74: 010 - Maupiti > Nouméa | C74: 0090 | D74: Apia Harbour | E74: Savai'i | F74: =VLOOKUP(tab_Navigation[[#This Row],[Arrivée]],tab_Port_Mouillage[],6,FALSE) -> A Faire | G74: 4 | H74: =tab_Navigation[[#This Row],[Dep Km]]/1.852 -> 2.159827214 | I74: 107 | J74: =tab_Navigation[[#This Row],[Nav Km]]/1.852 -> 57.77537797 | K74: 1 | L74: =tab_Navigation[[#This Row],[Arr Km]]/1.852 -> 0.5399568035 | M74: =tab_Navigation[[#This Row],[Dep Mn]]+tab_Navigation[[#This Row],[Nav Mn]]+tab_Navigation[[#This Row],[Arr Mn]] -> 60.47516199 | N74: 0.5 | O74: =VLOOKUP(tab_Navigation[[#This Row],[Arrivée]],tab_Escale[[Nom Escale]:[Jour]],5,FALSE) -> 2 | P74: 2023-08-02T12:21:36 | Q74: =tab_Navigation[[#This Row],[Date Départ]]+tab_Navigation[[#This Row],[J Navig]] -> 2023-08-03T00:21:36 | R74: =tab_Navigation[[#This Row],[Mn Nav Total]]/(tab_Navigation[[#This Row],[J Navig]]*24) -> 5.039596832 | S74: 2 | T74: 01 - Voile selon Cond. | U74: 0.95 | V74: =tab_Navigation[[#This Row],[Nav Mn]]*tab_Navigation[[#This Row],[Rap Nav Voil]] -> 54.88660907 | W74: =1-tab_Navigation[[#This Row],[Rap Nav Voil]] -> 0.05 | X74: =tab_Navigation[[#This Row],[Nav Mn]]*tab_Navigation[[#This Row],[Rap Nav Mot]] -> 2.888768898 | Y74: =tab_Navigation[[#This Row],[Dep Mn]]+tab_Navigation[[#This Row],[Arr Mn]] -> 2.699784017 | Z74: =tab_Navigation[[#This Row],[Mn Nav Mot]]+tab_Navigation[[#This Row],[Mn Approch Mot]] -> 5.588552916 | AA74: =tab_Navigation[[#This Row],[Mn Total Mot]]*'Variable Constante'!$F$6*'Variable Constante'!$E$10 -> 14.53023758 | AB74: =VLOOKUP(tab_Navigation[[#This Row],[Arrivée]],tab_Port_Mouillage[],9,FALSE) -> 06 - Mouillage Free | AC74: =VLOOKUP(tab_Navigation[[#This Row],[Conca Nav]],tab_Escale[[Nav Precedante]:[Nom Jour]],14,FALSE) -> 386.465 | AD74: 70 | AE74: =YEAR(tab_Navigation[[#This Row],[Date Arrivée]]) -> 2023 | AF74: =MONTH(tab_Navigation[[#This Row],[Date Arrivée]]) -> 8 | AG74: =WEEKNUM(tab_Navigation[[#This Row],[Date Arrivée]],2) -> 32
A75: =CONCATENATE(tab_Navigation[[#This Row],[N° Nav]]," - ",tab_Navigation[[#This Row],[Départ]]," > ",tab_Navigation[[#This Row],[Arrivée]]) -> 0091 - Savai'i > Mata utu | B75: 010 - Maupiti > Nouméa | C75: 0091 | D75: Savai'i | E75: Mata utu | F75: =VLOOKUP(tab_Navigation[[#This Row],[Arrivée]],tab_Port_Mouillage[],6,FALSE) -> Fr Polynésie | G75: 1 | H75: =tab_Navigation[[#This Row],[Dep Km]]/1.852 -> 0.5399568035 | I75: 394 | J75: =tab_Navigation[[#This Row],[Nav Km]]/1.852 -> 212.7429806 | K75: 8 | L75: =tab_Navigation[[#This Row],[Arr Km]]/1.852 -> 4.319654428 | M75: =tab_Navigation[[#This Row],[Dep Mn]]+tab_Navigation[[#This Row],[Nav Mn]]+tab_Navigation[[#This Row],[Arr Mn]] -> 217.6025918 | N75: 2 | O75: =VLOOKUP(tab_Navigation[[#This Row],[Arrivée]],tab_Escale[[Nom Escale]:[Jour]],5,FALSE) -> 10 | P75: 2023-08-13T00:21:36 | Q75: =tab_Navigation[[#This Row],[Date Départ]]+tab_Navigation[[#This Row],[J Navig]] -> 2023-08-15T00:21:36 | R75: =tab_Navigation[[#This Row],[Mn Nav Total]]/(tab_Navigation[[#This Row],[J Navig]]*24) -> 4.533387329 | S75: 2 | T75: 01 - Voile selon Cond. | U75: 0.95 | V75: =tab_Navigation[[#This Row],[Nav Mn]]*tab_Navigation[[#This Row],[Rap Nav Voil]] -> 202.1058315 | W75: =1-tab_Navigation[[#This Row],[Rap Nav Voil]] -> 0.05 | X75: =tab_Navigation[[#This Row],[Nav Mn]]*tab_Navigation[[#This Row],[Rap Nav Mot]] -> 10.63714903 | Y75: =tab_Navigation[[#This Row],[Dep Mn]]+tab_Navigation[[#This Row],[Arr Mn]] -> 4.859611231 | Z75: =tab_Navigation[[#This Row],[Mn Nav Mot]]+tab_Navigation[[#This Row],[Mn Approch Mot]] -> 15.49676026 | AA75: =tab_Navigation[[#This Row],[Mn Total Mot]]*'Variable Constante'!$F$6*'Variable Constante'!$E$10 -> 40.29157667 | AB75: =VLOOKUP(tab_Navigation[[#This Row],[Arrivée]],tab_Port_Mouillage[],9,FALSE) -> 06 - Mouillage Free | AC75: =VLOOKUP(tab_Navigation[[#This Row],[Conca Nav]],tab_Escale[[Nav Precedante]:[Nom Jour]],14,FALSE) -> 398.465 | AD75: 71 | AE75: =YEAR(tab_Navigation[[#This Row],[Date Arrivée]]) -> 2023 | AF75: =MONTH(tab_Navigation[[#This Row],[Date Arrivée]]) -> 8 | AG75: =WEEKNUM(tab_Navigation[[#This Row],[Date Arrivée]],2) -> 34
A76: =CONCATENATE(tab_Navigation[[#This Row],[N° Nav]]," - ",tab_Navigation[[#This Row],[Départ]]," > ",tab_Navigation[[#This Row],[Arrivée]]) -> 0092 - Mata utu > Leava | B76: 010 - Maupiti > Nouméa | C76: 0092 | D76: Mata utu | E76: Leava | F76: =VLOOKUP(tab_Navigation[[#This Row],[Arrivée]],tab_Port_Mouillage[],6,FALSE) -> Fr Polynésie | G76: 8 | H76: =tab_Navigation[[#This Row],[Dep Km]]/1.852 -> 4.319654428 | I76: 238 | J76: =tab_Navigation[[#This Row],[Nav Km]]/1.852 -> 128.5097192 | K76: 2 | L76: =tab_Navigation[[#This Row],[Arr Km]]/1.852 -> 1.079913607 | M76: =tab_Navigation[[#This Row],[Dep Mn]]+tab_Navigation[[#This Row],[Nav Mn]]+tab_Navigation[[#This Row],[Arr Mn]] -> 133.9092873 | N76: 1.2 | O76: =VLOOKUP(tab_Navigation[[#This Row],[Arrivée]],tab_Escale[[Nom Escale]:[Jour]],5,FALSE) -> 10 | P76: 2023-08-25T00:21:36 | Q76: =tab_Navigation[[#This Row],[Date Départ]]+tab_Navigation[[#This Row],[J Navig]] -> 2023-08-26T05:09:36 | R76: =tab_Navigation[[#This Row],[Mn Nav Total]]/(tab_Navigation[[#This Row],[J Navig]]*24) -> 4.64962803 | S76: 2 | T76: 01 - Voile selon Cond. | U76: 0.95 | V76: =tab_Navigation[[#This Row],[Nav Mn]]*tab_Navigation[[#This Row],[Rap Nav Voil]] -> 122.0842333 | W76: =1-tab_Navigation[[#This Row],[Rap Nav Voil]] -> 0.05 | X76: =tab_Navigation[[#This Row],[Nav Mn]]*tab_Navigation[[#This Row],[Rap Nav Mot]] -> 6.425485961 | Y76: =tab_Navigation[[#This Row],[Dep Mn]]+tab_Navigation[[#This Row],[Arr Mn]] -> 5.399568035 | Z76: =tab_Navigation[[#This Row],[Mn Nav Mot]]+tab_Navigation[[#This Row],[Mn Approch Mot]] -> 11.825054 | AA76: =tab_Navigation[[#This Row],[Mn Total Mot]]*'Variable Constante'!$F$6*'Variable Constante'!$E$10 -> 30.74514039 | AB76: =VLOOKUP(tab_Navigation[[#This Row],[Arrivée]],tab_Port_Mouillage[],9,FALSE) -> 06 - Mouillage Free | AC76: =VLOOKUP(tab_Navigation[[#This Row],[Conca Nav]],tab_Escale[[Nav Precedante]:[Nom Jour]],14,FALSE) -> 409.665 | AD76: 72 | AE76: =YEAR(tab_Navigation[[#This Row],[Date Arrivée]]) -> 2023 | AF76: =MONTH(tab_Navigation[[#This Row],[Date Arrivée]]) -> 8 | AG76: =WEEKNUM(tab_Navigation[[#This Row],[Date Arrivée]],2) -> 35
A77: =CONCATENATE(tab_Navigation[[#This Row],[N° Nav]]," - ",tab_Navigation[[#This Row],[Départ]]," > ",tab_Navigation[[#This Row],[Arrivée]]) -> 0093 - Leava > Copra Shed Marina | B77: 010 - Maupiti > Nouméa | C77: 0093 | D77: Leava | E77: Copra Shed Marina | F77: =VLOOKUP(tab_Navigation[[#This Row],[Arrivée]],tab_Port_Mouillage[],6,FALSE) -> A Faire | G77: 2 | H77: =tab_Navigation[[#This Row],[Dep Km]]/1.852 -> 1.079913607 | I77: 490 | J77: =tab_Navigation[[#This Row],[Nav Km]]/1.852 -> 264.5788337 | K77: 1 | L77: =tab_Navigation[[#This Row],[Arr Km]]/1.852 -> 0.5399568035 | M77: =tab_Navigation[[#This Row],[Dep Mn]]+tab_Navigation[[#This Row],[Nav Mn]]+tab_Navigation[[#This Row],[Arr Mn]] -> 266.1987041 | N77: 2 | O77: =VLOOKUP(tab_Navigation[[#This Row],[Arrivée]],tab_Escale[[Nom Escale]:[Jour]],5,FALSE) -> 4 | P77: 2023-08-30T05:09:36 | Q77: =tab_Navigation[[#This Row],[Date Départ]]+tab_Navigation[[#This Row],[J Navig]] -> 2023-09-01T05:09:36 | R77: =tab_Navigation[[#This Row],[Mn Nav Total]]/(tab_Navigation[[#This Row],[J Navig]]*24) -> 5.545806335 | S77: 2 | T77: 01 - Voile selon Cond. | U77: 0.95 | V77: =tab_Navigation[[#This Row],[Nav Mn]]*tab_Navigation[[#This Row],[Rap Nav Voil]] -> 251.349892 | W77: =1-tab_Navigation[[#This Row],[Rap Nav Voil]] -> 0.05 | X77: =tab_Navigation[[#This Row],[Nav Mn]]*tab_Navigation[[#This Row],[Rap Nav Mot]] -> 13.22894168 | Y77: =tab_Navigation[[#This Row],[Dep Mn]]+tab_Navigation[[#This Row],[Arr Mn]] -> 1.61987041 | Z77: =tab_Navigation[[#This Row],[Mn Nav Mot]]+tab_Navigation[[#This Row],[Mn Approch Mot]] -> 14.8488121 | AA77: =tab_Navigation[[#This Row],[Mn Total Mot]]*'Variable Constante'!$F$6*'Variable Constante'!$E$10 -> 38.60691145 | AB77: =VLOOKUP(tab_Navigation[[#This Row],[Arrivée]],tab_Port_Mouillage[],9,FALSE) -> 06 - Mouillage Free | AC77: =VLOOKUP(tab_Navigation[[#This Row],[Conca Nav]],tab_Escale[[Nav Precedante]:[Nom Jour]],14,FALSE) -> 415.665 | AD77: 73 | AE77: =YEAR(tab_Navigation[[#This Row],[Date Arrivée]]) -> 2023 | AF77: =MONTH(tab_Navigation[[#This Row],[Date Arrivée]]) -> 9 | AG77: =WEEKNUM(tab_Navigation[[#This Row],[Date Arrivée]],2) -> 36
A78: =CONCATENATE(tab_Navigation[[#This Row],[N° Nav]]," - ",tab_Navigation[[#This Row],[Départ]]," > ",tab_Navigation[[#This Row],[Arrivée]]) -> 0094 - Copra Shed Marina > West Minig | B78: 010 - Maupiti > Nouméa | C78: 0094 | D78: Copra Shed Marina | E78: West Minig | F78: =VLOOKUP(tab_Navigation[[#This Row],[Arrivée]],tab_Port_Mouillage[],6,FALSE) -> A Faire | G78: 1 | H78: =tab_Navigation[[#This Row],[Dep Km]]/1.852 -> 0.5399568035 | I78: 226 | J78: =tab_Navigation[[#This Row],[Nav Km]]/1.852 -> 122.0302376 | K78: 17 | L78: =tab_Navigation[[#This Row],[Arr Km]]/1.852 -> 9.179265659 | M78: =tab_Navigation[[#This Row],[Dep Mn]]+tab_Navigation[[#This Row],[Nav Mn]]+tab_Navigation[[#This Row],[Arr Mn]] -> 131.74946 | N78: 1 | O78: =VLOOKUP(tab_Navigation[[#This Row],[Arrivée]],tab_Escale[[Nom Escale]:[Jour]],5,FALSE) -> 10 | P78: 2023-09-11T05:09:36 | Q78: =tab_Navigation[[#This Row],[Date Départ]]+tab_Navigation[[#This Row],[J Navig]] -> 2023-09-12T05:09:36 | R78: =tab_Navigation[[#This Row],[Mn Nav Total]]/(tab_Navigation[[#This Row],[J Navig]]*24) -> 5.489560835 | S78: 2.1 | T78: 01 - Voile selon Cond. | U78: 0.95 | V78: =tab_Navigation[[#This Row],[Nav Mn]]*tab_Navigation[[#This Row],[Rap Nav Voil]] -> 115.9287257 | W78: =1-tab_Navigation[[#This Row],[Rap Nav Voil]] -> 0.05 | X78: =tab_Navigation[[#This Row],[Nav Mn]]*tab_Navigation[[#This Row],[Rap Nav Mot]] -> 6.101511879 | Y78: =tab_Navigation[[#This Row],[Dep Mn]]+tab_Navigation[[#This Row],[Arr Mn]] -> 9.719222462 | Z78: =tab_Navigation[[#This Row],[Mn Nav Mot]]+tab_Navigation[[#This Row],[Mn Approch Mot]] -> 15.82073434 | AA78: =tab_Navigation[[#This Row],[Mn Total Mot]]*'Variable Constante'!$F$6*'Variable Constante'!$E$10 -> 41.13390929 | AB78: =VLOOKUP(tab_Navigation[[#This Row],[Arrivée]],tab_Port_Mouillage[],9,FALSE) -> 06 - Mouillage Free | AC78: =VLOOKUP(tab_Navigation[[#This Row],[Conca Nav]],tab_Escale[[Nav Precedante]:[Nom Jour]],14,FALSE) -> 426.665 | AD78: 74 | AE78: =YEAR(tab_Navigation[[#This Row],[Date Arrivée]]) -> 2023 | AF78: =MONTH(tab_Navigation[[#This Row],[Date Arrivée]]) -> 9 | AG78: =WEEKNUM(tab_Navigation[[#This Row],[Date Arrivée]],2) -> 38
A79: =CONCATENATE(tab_Navigation[[#This Row],[N° Nav]]," - ",tab_Navigation[[#This Row],[Départ]]," > ",tab_Navigation[[#This Row],[Arrivée]]) -> 0095 - West Minig > Hwaadrila | B79: 010 - Maupiti > Nouméa | C79: 0095 | D79: West Minig | E79: Hwaadrila | F79: =VLOOKUP(tab_Navigation[[#This Row],[Arrivée]],tab_Port_Mouillage[],6,FALSE) -> A Faire | G79: 1 | H79: =tab_Navigation[[#This Row],[Dep Km]]/1.852 -> 0.5399568035 | I79: 1258 | J79: =tab_Navigation[[#This Row],[Nav Km]]/1.852 -> 679.2656587 | K79: 17 | L79: =tab_Navigation[[#This Row],[Arr Km]]/1.852 -> 9.179265659 | M79: =tab_Navigation[[#This Row],[Dep Mn]]+tab_Navigation[[#This Row],[Nav Mn]]+tab_Navigation[[#This Row],[Arr Mn]] -> 688.9848812 | N79: 5 | O79: =VLOOKUP(tab_Navigation[[#This Row],[Arrivée]],tab_Escale[[Nom Escale]:[Jour]],5,FALSE) -> 5 | P79: 2023-09-17T05:09:36 | Q79: =tab_Navigation[[#This Row],[Date Départ]]+tab_Navigation[[#This Row],[J Navig]] -> 2023-09-22T05:09:36 | R79: =tab_Navigation[[#This Row],[Mn Nav Total]]/(tab_Navigation[[#This Row],[J Navig]]*24) -> 5.741540677 | S79: 2 | T79: 01 - Voile selon Cond. | U79: 0.95 | V79: =tab_Navigation[[#This Row],[Nav Mn]]*tab_Navigation[[#This Row],[Rap Nav Voil]] -> 645.3023758 | W79: =1-tab_Navigation[[#This Row],[Rap Nav Voil]] -> 0.05 | X79: =tab_Navigation[[#This Row],[Nav Mn]]*tab_Navigation[[#This Row],[Rap Nav Mot]] -> 33.96328294 | Y79: =tab_Navigation[[#This Row],[Dep Mn]]+tab_Navigation[[#This Row],[Arr Mn]] -> 9.719222462 | Z79: =tab_Navigation[[#This Row],[Mn Nav Mot]]+tab_Navigation[[#This Row],[Mn Approch Mot]] -> 43.6825054 | AA79: =tab_Navigation[[#This Row],[Mn Total Mot]]*'Variable Constante'!$F$6*'Variable Constante'!$E$10 -> 113.574514 | AB79: =VLOOKUP(tab_Navigation[[#This Row],[Arrivée]],tab_Port_Mouillage[],9,FALSE) -> 06 - Mouillage Free | AC79: =VLOOKUP(tab_Navigation[[#This Row],[Conca Nav]],tab_Escale[[Nav Precedante]:[Nom Jour]],14,FALSE) -> 436.665 | AD79: 75 | AE79: =YEAR(tab_Navigation[[#This Row],[Date Arrivée]]) -> 2023 | AF79: =MONTH(tab_Navigation[[#This Row],[Date Arrivée]]) -> 9 | AG79: =WEEKNUM(tab_Navigation[[#This Row],[Date Arrivée]],2) -> 39
A80: =CONCATENATE(tab_Navigation[[#This Row],[N° Nav]]," - ",tab_Navigation[[#This Row],[Départ]]," > ",tab_Navigation[[#This Row],[Arrivée]]) -> 0096 - Hwaadrila > Chepenehe | B80: 010 - Maupiti > Nouméa | C80: 0096 | D80: Hwaadrila | E80: Chepenehe | F80: =VLOOKUP(tab_Navigation[[#This Row],[Arrivée]],tab_Port_Mouillage[],6,FALSE) -> A Faire | G80: 36 | H80: =tab_Navigation[[#This Row],[Dep Km]]/1.852 -> 19.43844492 | I80: 83 | J80: =tab_Navigation[[#This Row],[Nav Km]]/1.852 -> 44.81641469 | K80: 0 | L80: =tab_Navigation[[#This Row],[Arr Km]]/1.852 -> 0 | M80: =tab_Navigation[[#This Row],[Dep Mn]]+tab_Navigation[[#This Row],[Nav Mn]]+tab_Navigation[[#This Row],[Arr Mn]] -> 64.25485961 | N80: 0.5 | O80: =VLOOKUP(tab_Navigation[[#This Row],[Arrivée]],tab_Escale[[Nom Escale]:[Jour]],5,FALSE) -> 3 | P80: 2023-09-25T05:09:36 | Q80: =tab_Navigation[[#This Row],[Date Départ]]+tab_Navigation[[#This Row],[J Navig]] -> 2023-09-25T17:09:36 | R80: =tab_Navigation[[#This Row],[Mn Nav Total]]/(tab_Navigation[[#This Row],[J Navig]]*24) -> 5.354571634 | S80: 2.1 | T80: 01 - Voile selon Cond. | U80: 0.95 | V80: =tab_Navigation[[#This Row],[Nav Mn]]*tab_Navigation[[#This Row],[Rap Nav Voil]] -> 42.57559395 | W80: =1-tab_Navigation[[#This Row],[Rap Nav Voil]] -> 0.05 | X80: =tab_Navigation[[#This Row],[Nav Mn]]*tab_Navigation[[#This Row],[Rap Nav Mot]] -> 2.240820734 | Y80: =tab_Navigation[[#This Row],[Dep Mn]]+tab_Navigation[[#This Row],[Arr Mn]] -> 19.43844492 | Z80: =tab_Navigation[[#This Row],[Mn Nav Mot]]+tab_Navigation[[#This Row],[Mn Approch Mot]] -> 21.67926566 | AA80: =tab_Navigation[[#This Row],[Mn Total Mot]]*'Variable Constante'!$F$6*'Variable Constante'!$E$10 -> 56.36609071 | AB80: =VLOOKUP(tab_Navigation[[#This Row],[Arrivée]],tab_Port_Mouillage[],9,FALSE) -> 06 - Mouillage Free | AC80: =VLOOKUP(tab_Navigation[[#This Row],[Conca Nav]],tab_Escale[[Nav Precedante]:[Nom Jour]],14,FALSE) -> 440.165 | AD80: 76 | AE80: =YEAR(tab_Navigation[[#This Row],[Date Arrivée]]) -> 2023 | AF80: =MONTH(tab_Navigation[[#This Row],[Date Arrivée]]) -> 9 | AG80: =WEEKNUM(tab_Navigation[[#This Row],[Date Arrivée]],2) -> 40
A81: =CONCATENATE(tab_Navigation[[#This Row],[N° Nav]]," - ",tab_Navigation[[#This Row],[Départ]]," > ",tab_Navigation[[#This Row],[Arrivée]]) -> 0097 - Chepenehe > Tadine | B81: 010 - Maupiti > Nouméa | C81: 0097 | D81: Chepenehe | E81: Tadine | F81: =VLOOKUP(tab_Navigation[[#This Row],[Arrivée]],tab_Port_Mouillage[],6,FALSE) -> A Faire | G81: 0 | H81: =tab_Navigation[[#This Row],[Dep Km]]/1.852 -> 0 | I81: 148 | J81: =tab_Navigation[[#This Row],[Nav Km]]/1.852 -> 79.91360691 | K81: 0 | L81: =tab_Navigation[[#This Row],[Arr Km]]/1.852 -> 0 | M81: =tab_Navigation[[#This Row],[Dep Mn]]+tab_Navigation[[#This Row],[Nav Mn]]+tab_Navigation[[#This Row],[Arr Mn]] -> 79.91360691 | N81: 0.8 | O81: =VLOOKUP(tab_Navigation[[#This Row],[Arrivée]],tab_Escale[[Nom Escale]:[Jour]],5,FALSE) -> 2 | P81: 2023-09-27T17:09:36 | Q81: =tab_Navigation[[#This Row],[Date Départ]]+tab_Navigation[[#This Row],[J Navig]] -> 2023-09-28T12:21:36 | R81: =tab_Navigation[[#This Row],[Mn Nav Total]]/(tab_Navigation[[#This Row],[J Navig]]*24) -> 4.162167027 | S81: 2 | T81: 01 - Voile selon Cond. | U81: 0.95 | V81: =tab_Navigation[[#This Row],[Nav Mn]]*tab_Navigation[[#This Row],[Rap Nav Voil]] -> 75.91792657 | W81: =1-tab_Navigation[[#This Row],[Rap Nav Voil]] -> 0.05 | X81: =tab_Navigation[[#This Row],[Nav Mn]]*tab_Navigation[[#This Row],[Rap Nav Mot]] -> 3.995680346 | Y81: =tab_Navigation[[#This Row],[Dep Mn]]+tab_Navigation[[#This Row],[Arr Mn]] -> 0 | Z81: =tab_Navigation[[#This Row],[Mn Nav Mot]]+tab_Navigation[[#This Row],[Mn Approch Mot]] -> 3.995680346 | AA81: =tab_Navigation[[#This Row],[Mn Total Mot]]*'Variable Constante'!$F$6*'Variable Constante'!$E$10 -> 10.3887689 | AB81: =VLOOKUP(tab_Navigation[[#This Row],[Arrivée]],tab_Port_Mouillage[],9,FALSE) -> 06 - Mouillage Free | AC81: =VLOOKUP(tab_Navigation[[#This Row],[Conca Nav]],tab_Escale[[Nav Precedante]:[Nom Jour]],14,FALSE) -> 442.965 | AD81: 77 | AE81: =YEAR(tab_Navigation[[#This Row],[Date Arrivée]]) -> 2023 | AF81: =MONTH(tab_Navigation[[#This Row],[Date Arrivée]]) -> 9 | AG81: =WEEKNUM(tab_Navigation[[#This Row],[Date Arrivée]],2) -> 40
A82: =CONCATENATE(tab_Navigation[[#This Row],[N° Nav]]," - ",tab_Navigation[[#This Row],[Départ]]," > ",tab_Navigation[[#This Row],[Arrivée]]) -> 0098 - Tadine > Kuto | B82: 010 - Maupiti > Nouméa | C82: 0098 | D82: Tadine | E82: Kuto | F82: =VLOOKUP(tab_Navigation[[#This Row],[Arrivée]],tab_Port_Mouillage[],6,FALSE) -> A Faire | G82: 0 | H82: =tab_Navigation[[#This Row],[Dep Km]]/1.852 -> 0 | I82: 160 | J82: =tab_Navigation[[#This Row],[Nav Km]]/1.852 -> 86.39308855 | K82: 8 | L82: =tab_Navigation[[#This Row],[Arr Km]]/1.852 -> 4.319654428 | M82: =tab_Navigation[[#This Row],[Dep Mn]]+tab_Navigation[[#This Row],[Nav Mn]]+tab_Navigation[[#This Row],[Arr Mn]] -> 90.71274298 | N82: 0.8 | O82: =VLOOKUP(tab_Navigation[[#This Row],[Arrivée]],tab_Escale[[Nom Escale]:[Jour]],5,FALSE) -> 5 | P82: 2023-10-03T12:21:36 | Q82: =tab_Navigation[[#This Row],[Date Départ]]+tab_Navigation[[#This Row],[J Navig]] -> 2023-10-04T07:33:36 | R82: =tab_Navigation[[#This Row],[Mn Nav Total]]/(tab_Navigation[[#This Row],[J Navig]]*24) -> 4.72462203 | S82: 2 | T82: 01 - Voile selon Cond. | U82: 0.95 | V82: =tab_Navigation[[#This Row],[Nav Mn]]*tab_Navigation[[#This Row],[Rap Nav Voil]] -> 82.07343413 | W82: =1-tab_Navigation[[#This Row],[Rap Nav Voil]] -> 0.05 | X82: =tab_Navigation[[#This Row],[Nav Mn]]*tab_Navigation[[#This Row],[Rap Nav Mot]] -> 4.319654428 | Y82: =tab_Navigation[[#This Row],[Dep Mn]]+tab_Navigation[[#This Row],[Arr Mn]] -> 4.319654428 | Z82: =tab_Navigation[[#This Row],[Mn Nav Mot]]+tab_Navigation[[#This Row],[Mn Approch Mot]] -> 8.639308855 | AA82: =tab_Navigation[[#This Row],[Mn Total Mot]]*'Variable Constante'!$F$6*'Variable Constante'!$E$10 -> 22.46220302 | AB82: =VLOOKUP(tab_Navigation[[#This Row],[Arrivée]],tab_Port_Mouillage[],9,FALSE) -> 06 - Mouillage Free | AC82: =VLOOKUP(tab_Navigation[[#This Row],[Conca Nav]],tab_Escale[[Nav Precedante]:[Nom Jour]],14,FALSE) -> 448.765 | AD82: 78 | AE82: =YEAR(tab_Navigation[[#This Row],[Date Arrivée]]) -> 2023 | AF82: =MONTH(tab_Navigation[[#This Row],[Date Arrivée]]) -> 10 | AG82: =WEEKNUM(tab_Navigation[[#This Row],[Date Arrivée]],2) -> 41
A83: =CONCATENATE(tab_Navigation[[#This Row],[N° Nav]]," - ",tab_Navigation[[#This Row],[Départ]]," > ",tab_Navigation[[#This Row],[Arrivée]]) -> 0099 - Kuto > Nouméa | B83: 010 - Maupiti > Nouméa | C83: 0099 | D83: Kuto | E83: Nouméa | F83: =VLOOKUP(tab_Navigation[[#This Row],[Arrivée]],tab_Port_Mouillage[],6,FALSE) -> Fr Nouméa | G83: 8 | H83: =tab_Navigation[[#This Row],[Dep Km]]/1.852 -> 4.319654428 | I83: 140 | J83: =tab_Navigation[[#This Row],[Nav Km]]/1.852 -> 75.59395248 | K83: 30 | L83: =tab_Navigation[[#This Row],[Arr Km]]/1.852 -> 16.1987041 | M83: =tab_Navigation[[#This Row],[Dep Mn]]+tab_Navigation[[#This Row],[Nav Mn]]+tab_Navigation[[#This Row],[Arr Mn]] -> 96.11231102 | N83: 0.8 | O83: =VLOOKUP(tab_Navigation[[#This Row],[Arrivée]],tab_Escale[[Nom Escale]:[Jour]],5,FALSE) -> 15 | P83: 2023-10-19T07:33:36 | Q83: =tab_Navigation[[#This Row],[Date Départ]]+tab_Navigation[[#This Row],[J Navig]] -> 2023-10-20T02:45:36 | R83: =tab_Navigation[[#This Row],[Mn Nav Total]]/(tab_Navigation[[#This Row],[J Navig]]*24) -> 5.005849532 | S83: 2.1 | T83: 01 - Voile selon Cond. | U83: 0.95 | V83: =tab_Navigation[[#This Row],[Nav Mn]]*tab_Navigation[[#This Row],[Rap Nav Voil]] -> 71.81425486 | W83: =1-tab_Navigation[[#This Row],[Rap Nav Voil]] -> 0.05 | X83: =tab_Navigation[[#This Row],[Nav Mn]]*tab_Navigation[[#This Row],[Rap Nav Mot]] -> 3.779697624 | Y83: =tab_Navigation[[#This Row],[Dep Mn]]+tab_Navigation[[#This Row],[Arr Mn]] -> 20.51835853 | Z83: =tab_Navigation[[#This Row],[Mn Nav Mot]]+tab_Navigation[[#This Row],[Mn Approch Mot]] -> 24.29805616 | AA83: =tab_Navigation[[#This Row],[Mn Total Mot]]*'Variable Constante'!$F$6*'Variable Constante'!$E$10 -> 63.174946 | AB83: =VLOOKUP(tab_Navigation[[#This Row],[Arrivée]],tab_Port_Mouillage[],9,FALSE) -> 06 - Mouillage Free | AC83: =VLOOKUP(tab_Navigation[[#This Row],[Conca Nav]],tab_Escale[[Nav Precedante]:[Nom Jour]],14,FALSE) -> 464.565 | AD83: 79 | AE83: =YEAR(tab_Navigation[[#This Row],[Date Arrivée]]) -> 2023 | AF83: =MONTH(tab_Navigation[[#This Row],[Date Arrivée]]) -> 10 | AG83: =WEEKNUM(tab_Navigation[[#This Row],[Date Arrivée]],2) -> 43
A84: =CONCATENATE(tab_Navigation[[#This Row],[N° Nav]]," - ",tab_Navigation[[#This Row],[Départ]]," > ",tab_Navigation[[#This Row],[Arrivée]]) -> 0100 - Nouméa > Sydney | B84: 012 - Nouméa > Sydney | C84: 0100 | D84: Nouméa | E84: Sydney | F84: =VLOOKUP(tab_Navigation[[#This Row],[Arrivée]],tab_Port_Mouillage[],6,FALSE) -> Australie | G84: 3 | H84: =tab_Navigation[[#This Row],[Dep Km]]/1.852 -> 1.61987041 | I84: 1931 | J84: =tab_Navigation[[#This Row],[Nav Km]]/1.852 -> 1042.656587 | K84: 10 | L84: =tab_Navigation[[#This Row],[Arr Km]]/1.852 -> 5.399568035 | M84: =tab_Navigation[[#This Row],[Dep Mn]]+tab_Navigation[[#This Row],[Nav Mn]]+tab_Navigation[[#This Row],[Arr Mn]] -> 1049.676026 | N84: 10 | O84: =VLOOKUP(tab_Navigation[[#This Row],[Arrivée]],tab_Escale[[Nom Escale]:[Jour]],5,FALSE) -> 20 | P84: 2023-11-09T02:45:36 | Q84: =tab_Navigation[[#This Row],[Date Départ]]+tab_Navigation[[#This Row],[J Navig]] -> 2023-11-19T02:45:36 | R84: =tab_Navigation[[#This Row],[Mn Nav Total]]/(tab_Navigation[[#This Row],[J Navig]]*24) -> 4.373650108 | S84: 1 | T84: 01 - Voile selon Cond. | U84: 0.95 | V84: =tab_Navigation[[#This Row],[Nav Mn]]*tab_Navigation[[#This Row],[Rap Nav Voil]] -> 990.5237581 | W84: =1-tab_Navigation[[#This Row],[Rap Nav Voil]] -> 0.05 | X84: =tab_Navigation[[#This Row],[Nav Mn]]*tab_Navigation[[#This Row],[Rap Nav Mot]] -> 52.13282937 | Y84: =tab_Navigation[[#This Row],[Dep Mn]]+tab_Navigation[[#This Row],[Arr Mn]] -> 7.019438445 | Z84: =tab_Navigation[[#This Row],[Mn Nav Mot]]+tab_Navigation[[#This Row],[Mn Approch Mot]] -> 59.15226782 | AA84: =tab_Navigation[[#This Row],[Mn Total Mot]]*'Variable Constante'!$F$6*'Variable Constante'!$E$10 -> 153.7958963 | AB84: =VLOOKUP(tab_Navigation[[#This Row],[Arrivée]],tab_Port_Mouillage[],9,FALSE) -> 01 - Port Plein Eau Pay | AC84: =VLOOKUP(tab_Navigation[[#This Row],[Conca Nav]],tab_Escale[[Nav Precedante]:[Nom Jour]],14,FALSE) -> 494.565 | AD84: 80 | AE84: =YEAR(tab_Navigation[[#This Row],[Date Arrivée]]) -> 2023 | AF84: =MONTH(tab_Navigation[[#This Row],[Date Arrivée]]) -> 11 | AG84: =WEEKNUM(tab_Navigation[[#This Row],[Date Arrivée]],2) -> 47
A85: =CONCATENATE(tab_Navigation[[#This Row],[N° Nav]]," - ",tab_Navigation[[#This Row],[Départ]]," > ",tab_Navigation[[#This Row],[Arrivée]]) -> 0043 - Sydney > Cairns | B85: 015 - Sydney > Darwin | C85: 0043 | D85: Sydney | E85: Cairns | F85: =VLOOKUP(tab_Navigation[[#This Row],[Arrivée]],tab_Port_Mouillage[],6,FALSE) -> Australie | G85: 10 | H85: =tab_Navigation[[#This Row],[Dep Km]]/1.852 -> 5.399568035 | I85: 2360 | J85: =tab_Navigation[[#This Row],[Nav Km]]/1.852 -> 1274.298056 | K85: 5 | L85: =tab_Navigation[[#This Row],[Arr Km]]/1.852 -> 2.699784017 | M85: =tab_Navigation[[#This Row],[Dep Mn]]+tab_Navigation[[#This Row],[Nav Mn]]+tab_Navigation[[#This Row],[Arr Mn]] -> 1282.397408 | N85: 10 | O85: =VLOOKUP(tab_Navigation[[#This Row],[Arrivée]],tab_Escale[[Nom Escale]:[Jour]],5,FALSE) -> 4.5 | P85: 2023-11-23T14:45:36 | Q85: =tab_Navigation[[#This Row],[Date Départ]]+tab_Navigation[[#This Row],[J Navig]] -> 2023-12-03T14:45:36 | R85: =tab_Navigation[[#This Row],[Mn Nav Total]]/(tab_Navigation[[#This Row],[J Navig]]*24) -> 5.343322534 | S85: 1 | T85: 01 - Voile selon Cond. | U85: 0.98 | V85: =tab_Navigation[[#This Row],[Nav Mn]]*tab_Navigation[[#This Row],[Rap Nav Voil]] -> 1248.812095 | W85: =1-tab_Navigation[[#This Row],[Rap Nav Voil]] -> 0.02 | X85: =tab_Navigation[[#This Row],[Nav Mn]]*tab_Navigation[[#This Row],[Rap Nav Mot]] -> 25.48596112 | Y85: =tab_Navigation[[#This Row],[Dep Mn]]+tab_Navigation[[#This Row],[Arr Mn]] -> 8.099352052 | Z85: =tab_Navigation[[#This Row],[Mn Nav Mot]]+tab_Navigation[[#This Row],[Mn Approch Mot]] -> 33.58531317 | AA85: =tab_Navigation[[#This Row],[Mn Total Mot]]*'Variable Constante'!$F$6*'Variable Constante'!$E$10 -> 87.32181425 | AB85: =VLOOKUP(tab_Navigation[[#This Row],[Arrivée]],tab_Port_Mouillage[],9,FALSE) -> 01 - Port Plein Eau Pay | AC85: =VLOOKUP(tab_Navigation[[#This Row],[Conca Nav]],tab_Escale[[Nav Precedante]:[Nom Jour]],14,FALSE) -> 509.065 | AD85: 81 | AE85: =YEAR(tab_Navigation[[#This Row],[Date Arrivée]]) -> 2023 | AF85: =MONTH(tab_Navigation[[#This Row],[Date Arrivée]]) -> 12 | AG85: =WEEKNUM(tab_Navigation[[#This Row],[Date Arrivée]],2) -> 49
A86: =CONCATENATE(tab_Navigation[[#This Row],[N° Nav]]," - ",tab_Navigation[[#This Row],[Départ]]," > ",tab_Navigation[[#This Row],[Arrivée]]) -> 0044 - Cairns > Darwin | B86: 015 - Sydney > Darwin | C86: 0044 | D86: Cairns | E86: Darwin | F86: =VLOOKUP(tab_Navigation[[#This Row],[Arrivée]],tab_Port_Mouillage[],6,FALSE) -> Australie | G86: 5 | H86: =tab_Navigation[[#This Row],[Dep Km]]/1.852 -> 2.699784017 | I86: 2300 | J86: =tab_Navigation[[#This Row],[Nav Km]]/1.852 -> 1241.900648 | K86: 5 | L86: =tab_Navigation[[#This Row],[Arr Km]]/1.852 -> 2.699784017 | M86: =tab_Navigation[[#This Row],[Dep Mn]]+tab_Navigation[[#This Row],[Nav Mn]]+tab_Navigation[[#This Row],[Arr Mn]] -> 1247.300216 | N86: 10 | O86: =VLOOKUP(tab_Navigation[[#This Row],[Arrivée]],tab_Escale[[Nom Escale]:[Jour]],5,FALSE) -> 5 | P86: 2023-12-08T14:45:36 | Q86: =tab_Navigation[[#This Row],[Date Départ]]+tab_Navigation[[#This Row],[J Navig]] -> 2023-12-18T14:45:36 | R86: =tab_Navigation[[#This Row],[Mn Nav Total]]/(tab_Navigation[[#This Row],[J Navig]]*24) -> 5.197084233 | S86: 1 | T86: 01 - Voile selon Cond. | U86: 0.98 | V86: =tab_Navigation[[#This Row],[Nav Mn]]*tab_Navigation[[#This Row],[Rap Nav Voil]] -> 1217.062635 | W86: =1-tab_Navigation[[#This Row],[Rap Nav Voil]] -> 0.02 | X86: =tab_Navigation[[#This Row],[Nav Mn]]*tab_Navigation[[#This Row],[Rap Nav Mot]] -> 24.83801296 | Y86: =tab_Navigation[[#This Row],[Dep Mn]]+tab_Navigation[[#This Row],[Arr Mn]] -> 5.399568035 | Z86: =tab_Navigation[[#This Row],[Mn Nav Mot]]+tab_Navigation[[#This Row],[Mn Approch Mot]] -> 30.23758099 | AA86: =tab_Navigation[[#This Row],[Mn Total Mot]]*'Variable Constante'!$F$6*'Variable Constante'!$E$10 -> 78.61771058 | AB86: =VLOOKUP(tab_Navigation[[#This Row],[Arrivée]],tab_Port_Mouillage[],9,FALSE) -> 01 - Port Plein Eau Pay | AC86: =VLOOKUP(tab_Navigation[[#This Row],[Conca Nav]],tab_Escale[[Nav Precedante]:[Nom Jour]],14,FALSE) -> 524.065 | AD86: 82 | AE86: =YEAR(tab_Navigation[[#This Row],[Date Arrivée]]) -> 2023 | AF86: =MONTH(tab_Navigation[[#This Row],[Date Arrivée]]) -> 12 | AG86: =WEEKNUM(tab_Navigation[[#This Row],[Date Arrivée]],2) -> 52
A87: =CONCATENATE(tab_Navigation[[#This Row],[N° Nav]]," - ",tab_Navigation[[#This Row],[Départ]]," > ",tab_Navigation[[#This Row],[Arrivée]]) -> 0101 - Darwin > Bantam | B87: 016 - Darwin > Rodrigues | C87: 0101 | D87: Darwin | E87: Bantam | F87: =VLOOKUP(tab_Navigation[[#This Row],[Arrivée]],tab_Port_Mouillage[],6,FALSE) -> A Faire | G87: 5 | H87: =tab_Navigation[[#This Row],[Dep Km]]/1.852 -> 2.699784017 | I87: 3704 | J87: =tab_Navigation[[#This Row],[Nav Km]]/1.852 -> 2000 | K87: 3 | L87: =tab_Navigation[[#This Row],[Arr Km]]/1.852 -> 1.61987041 | M87: =tab_Navigation[[#This Row],[Dep Mn]]+tab_Navigation[[#This Row],[Nav Mn]]+tab_Navigation[[#This Row],[Arr Mn]] -> 2004.319654 | N87: 16 | O87: =VLOOKUP(tab_Navigation[[#This Row],[Arrivée]],tab_Escale[[Nom Escale]:[Jour]],5,FALSE) -> 4 | P87: 2023-12-22T14:45:36 | Q87: =tab_Navigation[[#This Row],[Date Départ]]+tab_Navigation[[#This Row],[J Navig]] -> 2024-01-07T14:45:36 | R87: =tab_Navigation[[#This Row],[Mn Nav Total]]/(tab_Navigation[[#This Row],[J Navig]]*24) -> 5.219582433 | S87: 1 | T87: 01 - Voile selon Cond. | U87: 0.98 | V87: =tab_Navigation[[#This Row],[Nav Mn]]*tab_Navigation[[#This Row],[Rap Nav Voil]] -> 1960 | W87: =1-tab_Navigation[[#This Row],[Rap Nav Voil]] -> 0.02 | X87: =tab_Navigation[[#This Row],[Nav Mn]]*tab_Navigation[[#This Row],[Rap Nav Mot]] -> 40 | Y87: =tab_Navigation[[#This Row],[Dep Mn]]+tab_Navigation[[#This Row],[Arr Mn]] -> 4.319654428 | Z87: =tab_Navigation[[#This Row],[Mn Nav Mot]]+tab_Navigation[[#This Row],[Mn Approch Mot]] -> 44.31965443 | AA87: =tab_Navigation[[#This Row],[Mn Total Mot]]*'Variable Constante'!$F$6*'Variable Constante'!$E$10 -> 115.2311015 | AB87: =VLOOKUP(tab_Navigation[[#This Row],[Arrivée]],tab_Port_Mouillage[],9,FALSE) -> 14 - Je sais pas /!\ | AC87: =VLOOKUP(tab_Navigation[[#This Row],[Conca Nav]],tab_Escale[[Nav Precedante]:[Nom Jour]],14,FALSE) -> 544.065 | AD87: 83 | AE87: =YEAR(tab_Navigation[[#This Row],[Date Arrivée]]) -> 2024 | AF87: =MONTH(tab_Navigation[[#This Row],[Date Arrivée]]) -> 1 | AG87: =WEEKNUM(tab_Navigation[[#This Row],[Date Arrivée]],2) -> 1
A88: =CONCATENATE(tab_Navigation[[#This Row],[N° Nav]]," - ",tab_Navigation[[#This Row],[Départ]]," > ",tab_Navigation[[#This Row],[Arrivée]]) -> 0102 - Bantam > Port Mathurin | B88: 016 - Darwin > Rodrigues | C88: 0102 | D88: Bantam | E88: Port Mathurin | F88: =VLOOKUP(tab_Navigation[[#This Row],[Arrivée]],tab_Port_Mouillage[],6,FALSE) -> Rodrigues | G88: 2 | H88: =tab_Navigation[[#This Row],[Dep Km]]/1.852 -> 1.079913607 | I88: 3674 | J88: =tab_Navigation[[#This Row],[Nav Km]]/1.852 -> 1983.801296 | K88: 3 | L88: =tab_Navigation[[#This Row],[Arr Km]]/1.852 -> 1.61987041 | M88: =tab_Navigation[[#This Row],[Dep Mn]]+tab_Navigation[[#This Row],[Nav Mn]]+tab_Navigation[[#This Row],[Arr Mn]] -> 1986.50108 | N88: 15 | O88: =VLOOKUP(tab_Navigation[[#This Row],[Arrivée]],tab_Escale[[Nom Escale]:[Jour]],5,FALSE) -> 30 | P88: 2024-02-06T14:45:36 | Q88: =tab_Navigation[[#This Row],[Date Départ]]+tab_Navigation[[#This Row],[J Navig]] -> 2024-02-21T14:45:36 | R88: =tab_Navigation[[#This Row],[Mn Nav Total]]/(tab_Navigation[[#This Row],[J Navig]]*24) -> 5.518058555 | S88: 1 | T88: 01 - Voile selon Cond. | U88: 0.98 | V88: =tab_Navigation[[#This Row],[Nav Mn]]*tab_Navigation[[#This Row],[Rap Nav Voil]] -> 1944.12527 | W88: =1-tab_Navigation[[#This Row],[Rap Nav Voil]] -> 0.02 | X88: =tab_Navigation[[#This Row],[Nav Mn]]*tab_Navigation[[#This Row],[Rap Nav Mot]] -> 39.67602592 | Y88: =tab_Navigation[[#This Row],[Dep Mn]]+tab_Navigation[[#This Row],[Arr Mn]] -> 2.699784017 | Z88: =tab_Navigation[[#This Row],[Mn Nav Mot]]+tab_Navigation[[#This Row],[Mn Approch Mot]] -> 42.37580994 | AA88: =tab_Navigation[[#This Row],[Mn Total Mot]]*'Variable Constante'!$F$6*'Variable Constante'!$E$10 -> 110.1771058 | AB88: =VLOOKUP(tab_Navigation[[#This Row],[Arrivée]],tab_Port_Mouillage[],9,FALSE) -> 14 - Je sais pas /!\ | AC88: =VLOOKUP(tab_Navigation[[#This Row],[Conca Nav]],tab_Escale[[Nav Precedante]:[Nom Jour]],14,FALSE) -> 589.065 | AD88: 84 | AE88: =YEAR(tab_Navigation[[#This Row],[Date Arrivée]]) -> 2024 | AF88: =MONTH(tab_Navigation[[#This Row],[Date Arrivée]]) -> 2 | AG88: =WEEKNUM(tab_Navigation[[#This Row],[Date Arrivée]],2) -> 8
A89: =CONCATENATE(tab_Navigation[[#This Row],[N° Nav]]," - ",tab_Navigation[[#This Row],[Départ]]," > ",tab_Navigation[[#This Row],[Arrivée]]) -> 0103 - Port Mathurin > Port Louis (Maurice) | B89: 017 - Rodrigues > Le Cap | C89: 0103 | D89: Port Mathurin | E89: Port Louis (Maurice) | F89: =VLOOKUP(tab_Navigation[[#This Row],[Arrivée]],tab_Port_Mouillage[],6,FALSE) -> Maurice | G89: 3 | H89: =tab_Navigation[[#This Row],[Dep Km]]/1.852 -> 1.61987041 | I89: 650 | J89: =tab_Navigation[[#This Row],[Nav Km]]/1.852 -> 350.9719222 | K89: 3 | L89: =tab_Navigation[[#This Row],[Arr Km]]/1.852 -> 1.61987041 | M89: =tab_Navigation[[#This Row],[Dep Mn]]+tab_Navigation[[#This Row],[Nav Mn]]+tab_Navigation[[#This Row],[Arr Mn]] -> 354.2116631 | N89: 3 | O89: =VLOOKUP(tab_Navigation[[#This Row],[Arrivée]],tab_Escale[[Nom Escale]:[Jour]],5,FALSE) -> 5 | P89: 2024-02-26T14:45:36 | Q89: =tab_Navigation[[#This Row],[Date Départ]]+tab_Navigation[[#This Row],[J Navig]] -> 2024-02-29T14:45:36 | R89: =tab_Navigation[[#This Row],[Mn Nav Total]]/(tab_Navigation[[#This Row],[J Navig]]*24) -> 4.919606431 | S89: 1 | T89: 01 - Voile selon Cond. | U89: 0.98 | V89: =tab_Navigation[[#This Row],[Nav Mn]]*tab_Navigation[[#This Row],[Rap Nav Voil]] -> 343.9524838 | W89: =1-tab_Navigation[[#This Row],[Rap Nav Voil]] -> 0.02 | X89: =tab_Navigation[[#This Row],[Nav Mn]]*tab_Navigation[[#This Row],[Rap Nav Mot]] -> 7.019438445 | Y89: =tab_Navigation[[#This Row],[Dep Mn]]+tab_Navigation[[#This Row],[Arr Mn]] -> 3.239740821 | Z89: =tab_Navigation[[#This Row],[Mn Nav Mot]]+tab_Navigation[[#This Row],[Mn Approch Mot]] -> 10.25917927 | AA89: =tab_Navigation[[#This Row],[Mn Total Mot]]*'Variable Constante'!$F$6*'Variable Constante'!$E$10 -> 26.67386609 | AB89: =VLOOKUP(tab_Navigation[[#This Row],[Arrivée]],tab_Port_Mouillage[],9,FALSE) -> 14 - Je sais pas /!\ | AC89: =VLOOKUP(tab_Navigation[[#This Row],[Conca Nav]],tab_Escale[[Nav Precedante]:[Nom Jour]],14,FALSE) -> 597.065 | AD89: 85 | AE89: =YEAR(tab_Navigation[[#This Row],[Date Arrivée]]) -> 2024 | AF89: =MONTH(tab_Navigation[[#This Row],[Date Arrivée]]) -> 2 | AG89: =WEEKNUM(tab_Navigation[[#This Row],[Date Arrivée]],2) -> 9
A90: =CONCATENATE(tab_Navigation[[#This Row],[N° Nav]]," - ",tab_Navigation[[#This Row],[Départ]]," > ",tab_Navigation[[#This Row],[Arrivée]]) -> 0104 - Port Louis (Maurice) > Le Port | B90: 017 - Rodrigues > Le Cap | C90: 0104 | D90: Port Louis (Maurice) | E90: Le Port | F90: =VLOOKUP(tab_Navigation[[#This Row],[Arrivée]],tab_Port_Mouillage[],6,FALSE) -> Fr Réunion | G90: 3 | H90: =tab_Navigation[[#This Row],[Dep Km]]/1.852 -> 1.61987041 | I90: 246 | J90: =tab_Navigation[[#This Row],[Nav Km]]/1.852 -> 132.8293737 | K90: 3 | L90: =tab_Navigation[[#This Row],[Arr Km]]/1.852 -> 1.61987041 | M90: =tab_Navigation[[#This Row],[Dep Mn]]+tab_Navigation[[#This Row],[Nav Mn]]+tab_Navigation[[#This Row],[Arr Mn]] -> 136.0691145 | N90: 1.2 | O90: =VLOOKUP(tab_Navigation[[#This Row],[Arrivée]],tab_Escale[[Nom Escale]:[Jour]],5,FALSE) -> 15 | P90: 2024-03-15T14:45:36 | Q90: =tab_Navigation[[#This Row],[Date Départ]]+tab_Navigation[[#This Row],[J Navig]] -> 2024-03-16T19:33:36 | R90: =tab_Navigation[[#This Row],[Mn Nav Total]]/(tab_Navigation[[#This Row],[J Navig]]*24) -> 4.72462203 | S90: 1 | T90: 01 - Voile selon Cond. | U90: 0.98 | V90: =tab_Navigation[[#This Row],[Nav Mn]]*tab_Navigation[[#This Row],[Rap Nav Voil]] -> 130.1727862 | W90: =1-tab_Navigation[[#This Row],[Rap Nav Voil]] -> 0.02 | X90: =tab_Navigation[[#This Row],[Nav Mn]]*tab_Navigation[[#This Row],[Rap Nav Mot]] -> 2.656587473 | Y90: =tab_Navigation[[#This Row],[Dep Mn]]+tab_Navigation[[#This Row],[Arr Mn]] -> 3.239740821 | Z90: =tab_Navigation[[#This Row],[Mn Nav Mot]]+tab_Navigation[[#This Row],[Mn Approch Mot]] -> 5.896328294 | AA90: =tab_Navigation[[#This Row],[Mn Total Mot]]*'Variable Constante'!$F$6*'Variable Constante'!$E$10 -> 15.33045356 | AB90: =VLOOKUP(tab_Navigation[[#This Row],[Arrivée]],tab_Port_Mouillage[],9,FALSE) -> 14 - Je sais pas /!\ | AC90: =VLOOKUP(tab_Navigation[[#This Row],[Conca Nav]],tab_Escale[[Nav Precedante]:[Nom Jour]],14,FALSE) -> 613.265 | AD90: 86 | AE90: =YEAR(tab_Navigation[[#This Row],[Date Arrivée]]) -> 2024 | AF90: =MONTH(tab_Navigation[[#This Row],[Date Arrivée]]) -> 3 | AG90: =WEEKNUM(tab_Navigation[[#This Row],[Date Arrivée]],2) -> 11
A91: =CONCATENATE(tab_Navigation[[#This Row],[N° Nav]]," - ",tab_Navigation[[#This Row],[Départ]]," > ",tab_Navigation[[#This Row],[Arrivée]]) -> 0105 - Port Mathurin > Durban | B91: 017 - Rodrigues > Le Cap | C91: 0105 | D91: Port Mathurin | E91: Durban | F91: =VLOOKUP(tab_Navigation[[#This Row],[Arrivée]],tab_Port_Mouillage[],6,FALSE) -> Affrique du Sud | G91: 3 | H91: =tab_Navigation[[#This Row],[Dep Km]]/1.852 -> 1.61987041 | I91: 2648 | J91: =tab_Navigation[[#This Row],[Nav Km]]/1.852 -> 1429.805616 | K91: 20 | L91: =tab_Navigation[[#This Row],[Arr Km]]/1.852 -> 10.79913607 | M91: =tab_Navigation[[#This Row],[Dep Mn]]+tab_Navigation[[#This Row],[Nav Mn]]+tab_Navigation[[#This Row],[Arr Mn]] -> 1442.224622 | N91: 12 | O91: =VLOOKUP(tab_Navigation[[#This Row],[Arrivée]],tab_Escale[[Nom Escale]:[Jour]],5,FALSE) -> 15 | P91: 2024-03-31T19:33:36 | Q91: =tab_Navigation[[#This Row],[Date Départ]]+tab_Navigation[[#This Row],[J Navig]] -> 2024-04-12T19:33:36 | R91: =tab_Navigation[[#This Row],[Mn Nav Total]]/(tab_Navigation[[#This Row],[J Navig]]*24) -> 5.007724382 | S91: 1 | T91: 01 - Voile selon Cond. | U91: 0.98 | V91: =tab_Navigation[[#This Row],[Nav Mn]]*tab_Navigation[[#This Row],[Rap Nav Voil]] -> 1401.209503 | W91: =1-tab_Navigation[[#This Row],[Rap Nav Voil]] -> 0.02 | X91: =tab_Navigation[[#This Row],[Nav Mn]]*tab_Navigation[[#This Row],[Rap Nav Mot]] -> 28.59611231 | Y91: =tab_Navigation[[#This Row],[Dep Mn]]+tab_Navigation[[#This Row],[Arr Mn]] -> 12.41900648 | Z91: =tab_Navigation[[#This Row],[Mn Nav Mot]]+tab_Navigation[[#This Row],[Mn Approch Mot]] -> 41.01511879 | AA91: =tab_Navigation[[#This Row],[Mn Total Mot]]*'Variable Constante'!$F$6*'Variable Constante'!$E$10 -> 106.6393089 | AB91: =VLOOKUP(tab_Navigation[[#This Row],[Arrivée]],tab_Port_Mouillage[],9,FALSE) -> 14 - Je sais pas /!\ | AC91: =VLOOKUP(tab_Navigation[[#This Row],[Conca Nav]],tab_Escale[[Nav Precedante]:[Nom Jour]],14,FALSE) -> 640.265 | AD91: 87 | AE91: =YEAR(tab_Navigation[[#This Row],[Date Arrivée]]) -> 2024 | AF91: =MONTH(tab_Navigation[[#This Row],[Date Arrivée]]) -> 4 | AG91: =WEEKNUM(tab_Navigation[[#This Row],[Date Arrivée]],2) -> 15
A92: =CONCATENATE(tab_Navigation[[#This Row],[N° Nav]]," - ",tab_Navigation[[#This Row],[Départ]]," > ",tab_Navigation[[#This Row],[Arrivée]]) -> 0106 - Durban > Cape Town | B92: 017 - Rodrigues > Le Cap | C92: 0106 | D92: Durban | E92: Cape Town | F92: =VLOOKUP(tab_Navigation[[#This Row],[Arrivée]],tab_Port_Mouillage[],6,FALSE) -> Affrique du Sud | G92: 20 | H92: =tab_Navigation[[#This Row],[Dep Km]]/1.852 -> 10.79913607 | I92: 1555 | J92: =tab_Navigation[[#This Row],[Nav Km]]/1.852 -> 839.6328294 | K92: 3 | L92: =tab_Navigation[[#This Row],[Arr Km]]/1.852 -> 1.61987041 | M92: =tab_Navigation[[#This Row],[Dep Mn]]+tab_Navigation[[#This Row],[Nav Mn]]+tab_Navigation[[#This Row],[Arr Mn]] -> 852.0518359 | N92: 7 | O92: =VLOOKUP(tab_Navigation[[#This Row],[Arrivée]],tab_Escale[[Nom Escale]:[Jour]],5,FALSE) -> 15 | P92: 2024-04-27T19:33:36 | Q92: =tab_Navigation[[#This Row],[Date Départ]]+tab_Navigation[[#This Row],[J Navig]] -> 2024-05-04T19:33:36 | R92: =tab_Navigation[[#This Row],[Mn Nav Total]]/(tab_Navigation[[#This Row],[J Navig]]*24) -> 5.071737118 | S92: 1 | T92: 01 - Voile selon Cond. | U92: 0.98 | V92: =tab_Navigation[[#This Row],[Nav Mn]]*tab_Navigation[[#This Row],[Rap Nav Voil]] -> 822.8401728 | W92: =1-tab_Navigation[[#This Row],[Rap Nav Voil]] -> 0.02 | X92: =tab_Navigation[[#This Row],[Nav Mn]]*tab_Navigation[[#This Row],[Rap Nav Mot]] -> 16.79265659 | Y92: =tab_Navigation[[#This Row],[Dep Mn]]+tab_Navigation[[#This Row],[Arr Mn]] -> 12.41900648 | Z92: =tab_Navigation[[#This Row],[Mn Nav Mot]]+tab_Navigation[[#This Row],[Mn Approch Mot]] -> 29.21166307 | AA92: =tab_Navigation[[#This Row],[Mn Total Mot]]*'Variable Constante'!$F$6*'Variable Constante'!$E$10 -> 75.95032397 | AB92: =VLOOKUP(tab_Navigation[[#This Row],[Arrivée]],tab_Port_Mouillage[],9,FALSE) -> 14 - Je sais pas /!\ | AC92: =VLOOKUP(tab_Navigation[[#This Row],[Conca Nav]],tab_Escale[[Nav Precedante]:[Nom Jour]],14,FALSE) -> 662.265 | AD92: 88 | AE92: =YEAR(tab_Navigation[[#This Row],[Date Arrivée]]) -> 2024 | AF92: =MONTH(tab_Navigation[[#This Row],[Date Arrivée]]) -> 5 | AG92: =WEEKNUM(tab_Navigation[[#This Row],[Date Arrivée]],2) -> 18
A93: =CONCATENATE(tab_Navigation[[#This Row],[N° Nav]]," - ",tab_Navigation[[#This Row],[Départ]]," > ",tab_Navigation[[#This Row],[Arrivée]]) -> 0107 - Cape Town > James Town | B93: 018 - Le Cap > Cap Vert | C93: 0107 | D93: Cape Town | E93: James Town | F93: =VLOOKUP(tab_Navigation[[#This Row],[Arrivée]],tab_Port_Mouillage[],6,FALSE) -> Royaume Uni | G93: 3 | H93: =tab_Navigation[[#This Row],[Dep Km]]/1.852 -> 1.61987041 | I93: 3143 | J93: =tab_Navigation[[#This Row],[Nav Km]]/1.852 -> 1697.084233 | K93: 1 | L93: =tab_Navigation[[#This Row],[Arr Km]]/1.852 -> 0.5399568035 | M93: =tab_Navigation[[#This Row],[Dep Mn]]+tab_Navigation[[#This Row],[Nav Mn]]+tab_Navigation[[#This Row],[Arr Mn]] -> 1699.24406 | N93: 14 | O93: =VLOOKUP(tab_Navigation[[#This Row],[Arrivée]],tab_Escale[[Nom Escale]:[Jour]],5,FALSE) -> 4 | P93: 2024-05-08T19:33:36 | Q93: =tab_Navigation[[#This Row],[Date Départ]]+tab_Navigation[[#This Row],[J Navig]] -> 2024-05-22T19:33:36 | R93: =tab_Navigation[[#This Row],[Mn Nav Total]]/(tab_Navigation[[#This Row],[J Navig]]*24) -> 5.05727399 | S93: 1 | T93: 01 - Voile selon Cond. | U93: 0.98 | V93: =tab_Navigation[[#This Row],[Nav Mn]]*tab_Navigation[[#This Row],[Rap Nav Voil]] -> 1663.142549 | W93: =1-tab_Navigation[[#This Row],[Rap Nav Voil]] -> 0.02 | X93: =tab_Navigation[[#This Row],[Nav Mn]]*tab_Navigation[[#This Row],[Rap Nav Mot]] -> 33.94168467 | Y93: =tab_Navigation[[#This Row],[Dep Mn]]+tab_Navigation[[#This Row],[Arr Mn]] -> 2.159827214 | Z93: =tab_Navigation[[#This Row],[Mn Nav Mot]]+tab_Navigation[[#This Row],[Mn Approch Mot]] -> 36.10151188 | AA93: =tab_Navigation[[#This Row],[Mn Total Mot]]*'Variable Constante'!$F$6*'Variable Constante'!$E$10 -> 93.86393089 | AB93: =VLOOKUP(tab_Navigation[[#This Row],[Arrivée]],tab_Port_Mouillage[],9,FALSE) -> 05 - Coffre Free | AC93: =VLOOKUP(tab_Navigation[[#This Row],[Conca Nav]],tab_Escale[[Nav Precedante]:[Nom Jour]],14,FALSE) -> 680.265 | AD93: 89 | AE93: =YEAR(tab_Navigation[[#This Row],[Date Arrivée]]) -> 2024 | AF93: =MONTH(tab_Navigation[[#This Row],[Date Arrivée]]) -> 5 | AG93: =WEEKNUM(tab_Navigation[[#This Row],[Date Arrivée]],2) -> 21
A94: =CONCATENATE(tab_Navigation[[#This Row],[N° Nav]]," - ",tab_Navigation[[#This Row],[Départ]]," > ",tab_Navigation[[#This Row],[Arrivée]]) -> 0108 - James Town > Cearence Bay | B94: 018 - Le Cap > Cap Vert | C94: 0108 | D94: James Town | E94: Cearence Bay | F94: =VLOOKUP(tab_Navigation[[#This Row],[Arrivée]],tab_Port_Mouillage[],6,FALSE) -> Sainte Helene | G94: 1 | H94: =tab_Navigation[[#This Row],[Dep Km]]/1.852 -> 0.5399568035 | I94: 1300 | J94: =tab_Navigation[[#This Row],[Nav Km]]/1.852 -> 701.9438445 | K94: 1 | L94: =tab_Navigation[[#This Row],[Arr Km]]/1.852 -> 0.5399568035 | M94: =tab_Navigation[[#This Row],[Dep Mn]]+tab_Navigation[[#This Row],[Nav Mn]]+tab_Navigation[[#This Row],[Arr Mn]] -> 703.0237581 | N94: 5.5 | O94: =VLOOKUP(tab_Navigation[[#This Row],[Arrivée]],tab_Escale[[Nom Escale]:[Jour]],5,FALSE) -> 5 | P94: 2024-05-27T19:33:36 | Q94: =tab_Navigation[[#This Row],[Date Départ]]+tab_Navigation[[#This Row],[J Navig]] -> 2024-06-02T07:33:36 | R94: =tab_Navigation[[#This Row],[Mn Nav Total]]/(tab_Navigation[[#This Row],[J Navig]]*24) -> 5.325937561 | S94: 1 | T94: 01 - Voile selon Cond. | U94: 0.98 | V94: =tab_Navigation[[#This Row],[Nav Mn]]*tab_Navigation[[#This Row],[Rap Nav Voil]] -> 687.9049676 | W94: =1-tab_Navigation[[#This Row],[Rap Nav Voil]] -> 0.02 | X94: =tab_Navigation[[#This Row],[Nav Mn]]*tab_Navigation[[#This Row],[Rap Nav Mot]] -> 14.03887689 | Y94: =tab_Navigation[[#This Row],[Dep Mn]]+tab_Navigation[[#This Row],[Arr Mn]] -> 1.079913607 | Z94: =tab_Navigation[[#This Row],[Mn Nav Mot]]+tab_Navigation[[#This Row],[Mn Approch Mot]] -> 15.1187905 | AA94: =tab_Navigation[[#This Row],[Mn Total Mot]]*'Variable Constante'!$F$6*'Variable Constante'!$E$10 -> 39.30885529 | AB94: =VLOOKUP(tab_Navigation[[#This Row],[Arrivée]],tab_Port_Mouillage[],9,FALSE) -> 06 - Mouillage Free | AC94: =VLOOKUP(tab_Navigation[[#This Row],[Conca Nav]],tab_Escale[[Nav Precedante]:[Nom Jour]],14,FALSE) -> 690.765 | AD94: 90 | AE94: =YEAR(tab_Navigation[[#This Row],[Date Arrivée]]) -> 2024 | AF94: =MONTH(tab_Navigation[[#This Row],[Date Arrivée]]) -> 6 | AG94: =WEEKNUM(tab_Navigation[[#This Row],[Date Arrivée]],2) -> 22
A95: =CONCATENATE(tab_Navigation[[#This Row],[N° Nav]]," - ",tab_Navigation[[#This Row],[Départ]]," > ",tab_Navigation[[#This Row],[Arrivée]]) -> 0109 - Cearence Bay > Baia de Sant Antonio | B95: 018 - Le Cap > Cap Vert | C95: 0109 | D95: Cearence Bay | E95: Baia de Sant Antonio | F95: =VLOOKUP(tab_Navigation[[#This Row],[Arrivée]],tab_Port_Mouillage[],6,FALSE) -> Brésil | G95: 1 | H95: =tab_Navigation[[#This Row],[Dep Km]]/1.852 -> 0.5399568035 | I95: 2046 | J95: =tab_Navigation[[#This Row],[Nav Km]]/1.852 -> 1104.75162 | K95: 1 | L95: =tab_Navigation[[#This Row],[Arr Km]]/1.852 -> 0.5399568035 | M95: =tab_Navigation[[#This Row],[Dep Mn]]+tab_Navigation[[#This Row],[Nav Mn]]+tab_Navigation[[#This Row],[Arr Mn]] -> 1105.831533 | N95: 10 | O95: =VLOOKUP(tab_Navigation[[#This Row],[Arrivée]],tab_Escale[[Nom Escale]:[Jour]],5,FALSE) -> 5 | P95: 2024-06-07T07:33:36 | Q95: =tab_Navigation[[#This Row],[Date Départ]]+tab_Navigation[[#This Row],[J Navig]] -> 2024-06-17T07:33:36 | R95: =tab_Navigation[[#This Row],[Mn Nav Total]]/(tab_Navigation[[#This Row],[J Navig]]*24) -> 4.607631389 | S95: 1 | T95: 01 - Voile selon Cond. | U95: 0.98 | V95: =tab_Navigation[[#This Row],[Nav Mn]]*tab_Navigation[[#This Row],[Rap Nav Voil]] -> 1082.656587 | W95: =1-tab_Navigation[[#This Row],[Rap Nav Voil]] -> 0.02 | X95: =tab_Navigation[[#This Row],[Nav Mn]]*tab_Navigation[[#This Row],[Rap Nav Mot]] -> 22.0950324 | Y95: =tab_Navigation[[#This Row],[Dep Mn]]+tab_Navigation[[#This Row],[Arr Mn]] -> 1.079913607 | Z95: =tab_Navigation[[#This Row],[Mn Nav Mot]]+tab_Navigation[[#This Row],[Mn Approch Mot]] -> 23.174946 | AA95: =tab_Navigation[[#This Row],[Mn Total Mot]]*'Variable Constante'!$F$6*'Variable Constante'!$E$10 -> 60.25485961 | AB95: =VLOOKUP(tab_Navigation[[#This Row],[Arrivée]],tab_Port_Mouillage[],9,FALSE) -> 06 - Mouillage Free | AC95: =VLOOKUP(tab_Navigation[[#This Row],[Conca Nav]],tab_Escale[[Nav Precedante]:[Nom Jour]],14,FALSE) -> 705.765 | AD95: 91 | AE95: =YEAR(tab_Navigation[[#This Row],[Date Arrivée]]) -> 2024 | AF95: =MONTH(tab_Navigation[[#This Row],[Date Arrivée]]) -> 6 | AG95: =WEEKNUM(tab_Navigation[[#This Row],[Date Arrivée]],2) -> 25
A96: =CONCATENATE(tab_Navigation[[#This Row],[N° Nav]]," - ",tab_Navigation[[#This Row],[Départ]]," > ",tab_Navigation[[#This Row],[Arrivée]]) -> 0110 - Baia de Sant Antonio > Porto de Praia | B96: 018 - Le Cap > Cap Vert | C96: 0110 | D96: Baia de Sant Antonio | E96: Porto de Praia | F96: =VLOOKUP(tab_Navigation[[#This Row],[Arrivée]],tab_Port_Mouillage[],6,FALSE) -> Cap Vert | G96: 1 | H96: =tab_Navigation[[#This Row],[Dep Km]]/1.852 -> 0.5399568035 | I96: 2291 | J96: =tab_Navigation[[#This Row],[Nav Km]]/1.852 -> 1237.041037 | K96: 2 | L96: =tab_Navigation[[#This Row],[Arr Km]]/1.852 -> 1.079913607 | M96: =tab_Navigation[[#This Row],[Dep Mn]]+tab_Navigation[[#This Row],[Nav Mn]]+tab_Navigation[[#This Row],[Arr Mn]] -> 1238.660907 | N96: 14 | O96: =VLOOKUP(tab_Navigation[[#This Row],[Arrivée]],tab_Escale[[Nom Escale]:[Jour]],5,FALSE) -> 3.5 | P96: 2024-06-20T19:33:36 | Q96: =tab_Navigation[[#This Row],[Date Départ]]+tab_Navigation[[#This Row],[J Navig]] -> 2024-07-04T19:33:36 | R96: =tab_Navigation[[#This Row],[Mn Nav Total]]/(tab_Navigation[[#This Row],[J Navig]]*24) -> 3.686490795 | S96: 1 | T96: 01 - Voile selon Cond. | U96: 0.98 | V96: =tab_Navigation[[#This Row],[Nav Mn]]*tab_Navigation[[#This Row],[Rap Nav Voil]] -> 1212.300216 | W96: =1-tab_Navigation[[#This Row],[Rap Nav Voil]] -> 0.02 | X96: =tab_Navigation[[#This Row],[Nav Mn]]*tab_Navigation[[#This Row],[Rap Nav Mot]] -> 24.74082073 | Y96: =tab_Navigation[[#This Row],[Dep Mn]]+tab_Navigation[[#This Row],[Arr Mn]] -> 1.61987041 | Z96: =tab_Navigation[[#This Row],[Mn Nav Mot]]+tab_Navigation[[#This Row],[Mn Approch Mot]] -> 26.36069114 | AA96: =tab_Navigation[[#This Row],[Mn Total Mot]]*'Variable Constante'!$F$6*'Variable Constante'!$E$10 -> 68.53779698 | AB96: =VLOOKUP(tab_Navigation[[#This Row],[Arrivée]],tab_Port_Mouillage[],9,FALSE) -> 06 - Mouillage Free | AC96: =VLOOKUP(tab_Navigation[[#This Row],[Conca Nav]],tab_Escale[[Nav Precedante]:[Nom Jour]],14,FALSE) -> 724.765 | AD96: 92 | AE96: =YEAR(tab_Navigation[[#This Row],[Date Arrivée]]) -> 2024 | AF96: =MONTH(tab_Navigation[[#This Row],[Date Arrivée]]) -> 7 | AG96: =WEEKNUM(tab_Navigation[[#This Row],[Date Arrivée]],2) -> 27
A97: =CONCATENATE(tab_Navigation[[#This Row],[N° Nav]]," - ",tab_Navigation[[#This Row],[Départ]]," > ",tab_Navigation[[#This Row],[Arrivée]]) -> 0111 - Porto de Praia > Baia da Horta | B97: 019 - Cap Vert > Port Louis | C97: 0111 | D97: Porto de Praia | E97: Baia da Horta | F97: =VLOOKUP(tab_Navigation[[#This Row],[Arrivée]],tab_Port_Mouillage[],6,FALSE) -> Les Assores | G97: 2 | H97: =tab_Navigation[[#This Row],[Dep Km]]/1.852 -> 1.079913607 | I97: 2748 | J97: =tab_Navigation[[#This Row],[Nav Km]]/1.852 -> 1483.801296 | K97: 1 | L97: =tab_Navigation[[#This Row],[Arr Km]]/1.852 -> 0.5399568035 | M97: =tab_Navigation[[#This Row],[Dep Mn]]+tab_Navigation[[#This Row],[Nav Mn]]+tab_Navigation[[#This Row],[Arr Mn]] -> 1485.421166 | N97: 15 | O97: =VLOOKUP(tab_Navigation[[#This Row],[Arrivée]],tab_Escale[[Nom Escale]:[Jour]],5,FALSE) -> 10 | P97: 2024-07-14T19:33:36 | Q97: =tab_Navigation[[#This Row],[Date Départ]]+tab_Navigation[[#This Row],[J Navig]] -> 2024-07-29T19:33:36 | R97: =tab_Navigation[[#This Row],[Mn Nav Total]]/(tab_Navigation[[#This Row],[J Navig]]*24) -> 4.126169906 | S97: 1 | T97: 01 - Voile selon Cond. | U97: 0.98 | V97: =tab_Navigation[[#This Row],[Nav Mn]]*tab_Navigation[[#This Row],[Rap Nav Voil]] -> 1454.12527 | W97: =1-tab_Navigation[[#This Row],[Rap Nav Voil]] -> 0.02 | X97: =tab_Navigation[[#This Row],[Nav Mn]]*tab_Navigation[[#This Row],[Rap Nav Mot]] -> 29.67602592 | Y97: =tab_Navigation[[#This Row],[Dep Mn]]+tab_Navigation[[#This Row],[Arr Mn]] -> 1.61987041 | Z97: =tab_Navigation[[#This Row],[Mn Nav Mot]]+tab_Navigation[[#This Row],[Mn Approch Mot]] -> 31.29589633 | AA97: =tab_Navigation[[#This Row],[Mn Total Mot]]*'Variable Constante'!$F$6*'Variable Constante'!$E$10 -> 81.36933045 | AB97: =VLOOKUP(tab_Navigation[[#This Row],[Arrivée]],tab_Port_Mouillage[],9,FALSE) -> 01 - Port Plein Eau Pay | AC97: =VLOOKUP(tab_Navigation[[#This Row],[Conca Nav]],tab_Escale[[Nav Precedante]:[Nom Jour]],14,FALSE) -> 749.765 | AD97: 93 | AE97: =YEAR(tab_Navigation[[#This Row],[Date Arrivée]]) -> 2024 | AF97: =MONTH(tab_Navigation[[#This Row],[Date Arrivée]]) -> 7 | AG97: =WEEKNUM(tab_Navigation[[#This Row],[Date Arrivée]],2) -> 31
A98: =CONCATENATE(tab_Navigation[[#This Row],[N° Nav]]," - ",tab_Navigation[[#This Row],[Départ]]," > ",tab_Navigation[[#This Row],[Arrivée]]) -> 0112 - Baia da Horta > Port Louis | B98: 019 - Cap Vert > Port Louis | C98: 0112 | D98: Baia da Horta | E98: Port Louis | F98: =VLOOKUP(tab_Navigation[[#This Row],[Arrivée]],tab_Port_Mouillage[],6,FALSE) -> Fr Metro | G98: 1 | H98: =tab_Navigation[[#This Row],[Dep Km]]/1.852 -> 0.5399568035 | I98: 2292 | J98: =tab_Navigation[[#This Row],[Nav Km]]/1.852 -> 1237.580994 | K98: 2 | L98: =tab_Navigation[[#This Row],[Arr Km]]/1.852 -> 1.079913607 | M98: =tab_Navigation[[#This Row],[Dep Mn]]+tab_Navigation[[#This Row],[Nav Mn]]+tab_Navigation[[#This Row],[Arr Mn]] -> 1239.200864 | N98: 12 | O98: =VLOOKUP(tab_Navigation[[#This Row],[Arrivée]],tab_Escale[[Nom Escale]:[Jour]],5,FALSE) -> 1 | P98: 2024-07-30T19:33:36 | Q98: =tab_Navigation[[#This Row],[Date Départ]]+tab_Navigation[[#This Row],[J Navig]] -> 2024-08-11T19:33:36 | R98: =tab_Navigation[[#This Row],[Mn Nav Total]]/(tab_Navigation[[#This Row],[J Navig]]*24) -> 4.302780778 | S98: 1 | T98: 01 - Voile selon Cond. | U98: 0.98 | V98: =tab_Navigation[[#This Row],[Nav Mn]]*tab_Navigation[[#This Row],[Rap Nav Voil]] -> 1212.829374 | W98: =1-tab_Navigation[[#This Row],[Rap Nav Voil]] -> 0.02 | X98: =tab_Navigation[[#This Row],[Nav Mn]]*tab_Navigation[[#This Row],[Rap Nav Mot]] -> 24.75161987 | Y98: =tab_Navigation[[#This Row],[Dep Mn]]+tab_Navigation[[#This Row],[Arr Mn]] -> 1.61987041 | Z98: =tab_Navigation[[#This Row],[Mn Nav Mot]]+tab_Navigation[[#This Row],[Mn Approch Mot]] -> 26.37149028 | AA98: =tab_Navigation[[#This Row],[Mn Total Mot]]*'Variable Constante'!$F$6*'Variable Constante'!$E$10 -> 68.56587473 | AB98: =VLOOKUP(tab_Navigation[[#This Row],[Arrivée]],tab_Port_Mouillage[],9,FALSE) -> 01 - Port Plein Eau Pay | AC98: =VLOOKUP(tab_Navigation[[#This Row],[Conca Nav]],tab_Escale[[Nav Precedante]:[Nom Jour]],14,FALSE) -> 791.765 | AD98: 94 | AE98: =YEAR(tab_Navigation[[#This Row],[Date Arrivée]]) -> 2024 | AF98: =MONTH(tab_Navigation[[#This Row],[Date Arrivée]]) -> 8 | AG98: =WEEKNUM(tab_Navigation[[#This Row],[Date Arrivée]],2) -> 32
A99: Total | C99: =SUBTOTAL(103,tab_Navigation[N° Nav]) -> 94 | G99: =SUBTOTAL(109,tab_Navigation[Dep Km]) -> 273 | H99: =SUBTOTAL(109,tab_Navigation[Dep Mn]) -> 147.4082073 | I99: =SUBTOTAL(109,tab_Navigation[Nav Km]) -> 64705.5 | J99: =SUBTOTAL(109,tab_Navigation[Nav Mn]) -> 34938.17495 | K99: =SUBTOTAL(109,tab_Navigation[Arr Km]) -> 318 | L99: =SUBTOTAL(109,tab_Navigation[Arr Mn]) -> 171.7062635 | M99: =SUBTOTAL(109,tab_Navigation[Mn Nav Total]) -> 35257.28942 | N99: =SUBTOTAL(109,tab_Navigation[J Navig]) -> 309.125 | O99: =SUBTOTAL(109,tab_Navigation[J Escale]) -> 433.24 | R99: =SUBTOTAL(101,tab_Navigation[Vitesse Nav]) -> 4.432929904 | U99: =SUBTOTAL(101,tab_Navigation[Rap Nav Voil]) -> 0.8877659574 | V99: =SUBTOTAL(109,tab_Navigation[Mn Nav Voil]) -> 33866.52808 | W99: =SUBTOTAL(101,tab_Navigation[Rap Nav Mot]) -> 0.1122340426 | X99: =SUBTOTAL(109,tab_Navigation[Mn Nav Mot]) -> 1071.646868 | Y99: =SUBTOTAL(109,tab_Navigation[Mn Approch Mot]) -> 319.1144708 | Z99: =SUBTOTAL(109,tab_Navigation[Mn Total Mot]) -> 1390.761339 | AA99: =SUBTOTAL(109,tab_Navigation[Cout Carbu]) -> 3615.979482
A101: 0112 - Baia da Horta > Port Louis
A106: Archives
A107: =CONCATENATE(tab_Navigation[[#This Row],[N° Nav]]," - ",tab_Navigation[[#This Row],[Départ]]," > ",tab_Navigation[[#This Row],[Arrivée]]) ->  | B107: 003 - Lisbonne > Cap Vert | C107: 0029 | D107: Gibraltar | E107: Rabat | F107: =VLOOKUP(tab_Navigation[[#This Row],[Arrivée]],tab_Port_Mouillage[],6,FALSE) ->  | G107: 3 | H107: =tab_Navigation[[#This Row],[Dep Km]]/1.852 ->  | I107: 280 | J107: =tab_Navigation[[#This Row],[Nav Km]]/1.852 ->  | K107: 3 | L107: =tab_Navigation[[#This Row],[Arr Km]]/1.852 ->  | M107: =tab_Navigation[[#This Row],[Dep Mn]]+tab_Navigation[[#This Row],[Nav Mn]]+tab_Navigation[[#This Row],[Arr Mn]] ->  | N107: 1 | O107: =VLOOKUP(tab_Navigation[[#This Row],[Arrivée]],tab_Escale[[Nom Escale]:[Jour]],5,FALSE) ->  | P107: =#REF!+O107 ->  | Q107: =tab_Navigation[[#This Row],[Date Départ]]+tab_Navigation[[#This Row],[J Navig]] ->  | R107: =tab_Navigation[[#This Row],[Mn Nav Total]]/(tab_Navigation[[#This Row],[J Navig]]*24) ->  | S107: -1 | T107: 01 - Voile selon Cond. | U107: 0.95 | V107: =tab_Navigation[[#This Row],[Nav Mn]]*tab_Navigation[[#This Row],[Rap Nav Voil]] ->  | W107: =1-tab_Navigation[[#This Row],[Rap Nav Voil]] ->  | X107: =tab_Navigation[[#This Row],[Nav Mn]]*tab_Navigation[[#This Row],[Rap Nav Mot]] ->  | Y107: =tab_Navigation[[#This Row],[Dep Mn]]+tab_Navigation[[#This Row],[Arr Mn]] ->  | Z107: =tab_Navigation[[#This Row],[Mn Nav Mot]]+tab_Navigation[[#This Row],[Mn Approch Mot]] ->  | AA107: =tab_Navigation[[#This Row],[Mn Total Mot]]*'Variable Constante'!$F$6*'Variable Constante'!$E$10 ->  | AB107: =VLOOKUP(tab_Navigation[[#This Row],[Arrivée]],tab_Port_Mouillage[],9,FALSE) ->  | AC107: =VLOOKUP(tab_Navigation[[#This Row],[Conca Nav]],tab_Escale[[Nav Precedante]:[Nom Jour]],14,FALSE) ->  | AE107: =YEAR(tab_Navigation[[#This Row],[Date Arrivée]]) ->  | AF107: =MONTH(tab_Navigation[[#This Row],[Date Arrivée]]) ->  | AG107: =WEEKNUM(tab_Navigation[[#This Row],[Date Arrivée]],2) -> 
A108: =CONCATENATE(tab_Navigation[[#This Row],[N° Nav]]," - ",tab_Navigation[[#This Row],[Départ]]," > ",tab_Navigation[[#This Row],[Arrivée]]) ->  | B108: 003 - Lisbonne > Cap Vert | C108: 0030 | D108: Rabat | E108: Madère | F108: =VLOOKUP(tab_Navigation[[#This Row],[Arrivée]],tab_Port_Mouillage[],6,FALSE) ->  | G108: 2 | H108: =tab_Navigation[[#This Row],[Dep Km]]/1.852 ->  | I108: 930 | J108: =tab_Navigation[[#This Row],[Nav Km]]/1.852 ->  | K108: 2 | L108: =tab_Navigation[[#This Row],[Arr Km]]/1.852 ->  | M108: =tab_Navigation[[#This Row],[Dep Mn]]+tab_Navigation[[#This Row],[Nav Mn]]+tab_Navigation[[#This Row],[Arr Mn]] ->  | N108: 3 | O108: =VLOOKUP(tab_Navigation[[#This Row],[Arrivée]],tab_Escale[[Nom Escale]:[Jour]],5,FALSE) ->  | P108: =Q107+O108 ->  | Q108: =tab_Navigation[[#This Row],[Date Départ]]+tab_Navigation[[#This Row],[J Navig]] ->  | R108: =tab_Navigation[[#This Row],[Mn Nav Total]]/(tab_Navigation[[#This Row],[J Navig]]*24) ->  | S108: -1 | T108: 01 - Voile selon Cond. | U108: 0.98 | V108: =tab_Navigation[[#This Row],[Nav Mn]]*tab_Navigation[[#This Row],[Rap Nav Voil]] ->  | W108: =1-tab_Navigation[[#This Row],[Rap Nav Voil]] ->  | X108: =tab_Navigation[[#This Row],[Nav Mn]]*tab_Navigation[[#This Row],[Rap Nav Mot]] ->  | Y108: =tab_Navigation[[#This Row],[Dep Mn]]+tab_Navigation[[#This Row],[Arr Mn]] ->  | Z108: =tab_Navigation[[#This Row],[Mn Nav Mot]]+tab_Navigation[[#This Row],[Mn Approch Mot]] ->  | AA108: =tab_Navigation[[#This Row],[Mn Total Mot]]*'Variable Constante'!$F$6*'Variable Constante'!$E$10 ->  | AB108: =VLOOKUP(tab_Navigation[[#This Row],[Arrivée]],tab_Port_Mouillage[],9,FALSE) ->  | AC108: =VLOOKUP(tab_Navigation[[#This Row],[Conca Nav]],tab_Escale[[Nav Precedante]:[Nom Jour]],14,FALSE) ->  | AE108: =YEAR(tab_Navigation[[#This Row],[Date Arrivée]]) ->  | AF108: =MONTH(tab_Navigation[[#This Row],[Date Arrivée]]) ->  | AG108: =WEEKNUM(tab_Navigation[[#This Row],[Date Arrivée]],2) -> 
A109: =CONCATENATE(tab_Navigation[[#This Row],[N° Nav]]," - ",tab_Navigation[[#This Row],[Départ]]," > ",tab_Navigation[[#This Row],[Arrivée]]) ->  | B109: 003 - Lisbonne > Cap Vert | C109: 0028 | D109: Oeiras Marina | E109: Gibraltar | F109: =VLOOKUP(tab_Navigation[[#This Row],[Arrivée]],tab_Port_Mouillage[],6,FALSE) ->  | G109: 2 | H109: =tab_Navigation[[#This Row],[Dep Km]]/1.852 ->  | I109: 950 | J109: =tab_Navigation[[#This Row],[Nav Km]]/1.852 ->  | K109: 2 | L109: =tab_Navigation[[#This Row],[Arr Km]]/1.852 ->  | M109: =tab_Navigation[[#This Row],[Dep Mn]]+tab_Navigation[[#This Row],[Nav Mn]]+tab_Navigation[[#This Row],[Arr Mn]] ->  | N109: 3.5 | O109: =VLOOKUP(tab_Navigation[[#This Row],[Arrivée]],tab_Escale[[Nom Escale]:[Jour]],5,FALSE) ->  | Q109: =tab_Navigation[[#This Row],[Date Départ]]+tab_Navigation[[#This Row],[J Navig]] ->  | R109: =tab_Navigation[[#This Row],[Mn Nav Total]]/(tab_Navigation[[#This Row],[J Navig]]*24) ->  | S109: -1 | T109: 01 - Voile selon Cond. | U109: 0.98 | V109: =tab_Navigation[[#This Row],[Nav Mn]]*tab_Navigation[[#This Row],[Rap Nav Voil]] ->  | W109: =1-tab_Navigation[[#This Row],[Rap Nav Voil]] ->  | X109: =tab_Navigation[[#This Row],[Nav Mn]]*tab_Navigation[[#This Row],[Rap Nav Mot]] ->  | Y109: =tab_Navigation[[#This Row],[Dep Mn]]+tab_Navigation[[#This Row],[Arr Mn]] ->  | Z109: =tab_Navigation[[#This Row],[Mn Nav Mot]]+tab_Navigation[[#This Row],[Mn Approch Mot]] ->  | AA109: =tab_Navigation[[#This Row],[Mn Total Mot]]*'Variable Constante'!$F$6*'Variable Constante'!$E$10 ->  | AB109: =VLOOKUP(tab_Navigation[[#This Row],[Arrivée]],tab_Port_Mouillage[],9,FALSE) ->  | AC109: =VLOOKUP(tab_Navigation[[#This Row],[Conca Nav]],tab_Escale[[Nav Precedante]:[Nom Jour]],14,FALSE) ->  | AE109: =YEAR(tab_Navigation[[#This Row],[Date Arrivée]]) ->  | AF109: =MONTH(tab_Navigation[[#This Row],[Date Arrivée]]) ->  | AG109: =WEEKNUM(tab_Navigation[[#This Row],[Date Arrivée]],2) -> 
A110: =CONCATENATE(tab_Navigation[[#This Row],[N° Nav]]," - ",tab_Navigation[[#This Row],[Départ]]," > ",tab_Navigation[[#This Row],[Arrivée]]) ->  | B110: 006 - Le Marin > Panama | C110: 0049 | D110: Le Marin | E110: Panama | F110: =VLOOKUP(tab_Navigation[[#This Row],[Arrivée]],tab_Port_Mouillage[],6,FALSE) ->  | G110: 25 | H110: =tab_Navigation[[#This Row],[Dep Km]]/1.852 ->  | I110: 3428 | J110: =tab_Navigation[[#This Row],[Nav Km]]/1.852 ->  | K110: 25 | L110: =tab_Navigation[[#This Row],[Arr Km]]/1.852 ->  | M110: =tab_Navigation[[#This Row],[Dep Mn]]+tab_Navigation[[#This Row],[Nav Mn]]+tab_Navigation[[#This Row],[Arr Mn]] ->  | N110: 13 | O110: =VLOOKUP(tab_Navigation[[#This Row],[Arrivée]],tab_Escale[[Nom Escale]:[Jour]],5,FALSE) ->  | Q110: =tab_Navigation[[#This Row],[Date Départ]]+tab_Navigation[[#This Row],[J Navig]] ->  | R110: =tab_Navigation[[#This Row],[Mn Nav Total]]/(tab_Navigation[[#This Row],[J Navig]]*24) ->  | S110: -1 | T110: 01 - Voile selon Cond. | U110: 0.98 | V110: =tab_Navigation[[#This Row],[Nav Mn]]*tab_Navigation[[#This Row],[Rap Nav Voil]] ->  | W110: =1-tab_Navigation[[#This Row],[Rap Nav Voil]] ->  | X110: =tab_Navigation[[#This Row],[Nav Mn]]*tab_Navigation[[#This Row],[Rap Nav Mot]] ->  | Y110: =tab_Navigation[[#This Row],[Dep Mn]]+tab_Navigation[[#This Row],[Arr Mn]] ->  | Z110: =tab_Navigation[[#This Row],[Mn Nav Mot]]+tab_Navigation[[#This Row],[Mn Approch Mot]] ->  | AA110: =tab_Navigation[[#This Row],[Mn Total Mot]]*'Variable Constante'!$F$6*'Variable Constante'!$E$10 ->  | AB110: =VLOOKUP(tab_Navigation[[#This Row],[Arrivée]],tab_Port_Mouillage[],9,FALSE) ->  | AC110: =VLOOKUP(tab_Navigation[[#This Row],[Conca Nav]],tab_Escale[[Nav Precedante]:[Nom Jour]],14,FALSE) ->  | AE110: =YEAR(tab_Navigation[[#This Row],[Date Arrivée]]) ->  | AF110: =MONTH(tab_Navigation[[#This Row],[Date Arrivée]]) ->  | AG110: =WEEKNUM(tab_Navigation[[#This Row],[Date Arrivée]],2) -> 
A111: =CONCATENATE(tab_Navigation[[#This Row],[N° Nav]]," - ",tab_Navigation[[#This Row],[Départ]]," > ",tab_Navigation[[#This Row],[Arrivée]]) ->  | B111: 001 - Port Louis > Port Louis | C111: 0018 | D111: Stornoway | E111: Kyle Harbor | F111: =VLOOKUP(tab_Navigation[[#This Row],[Arrivée]],tab_Port_Mouillage[],6,FALSE) ->  | G111: 2 | H111: =tab_Navigation[[#This Row],[Dep Km]]/1.852 ->  | I111: 129 | J111: =tab_Navigation[[#This Row],[Nav Km]]/1.852 ->  | K111: 0.5 | L111: =tab_Navigation[[#This Row],[Arr Km]]/1.852 ->  | M111: =tab_Navigation[[#This Row],[Dep Mn]]+tab_Navigation[[#This Row],[Nav Mn]]+tab_Navigation[[#This Row],[Arr Mn]] ->  | N111: 0.75 | O111: =VLOOKUP(tab_Navigation[[#This Row],[Arrivée]],tab_Escale[[Nom Escale]:[Jour]],5,FALSE) ->  | Q111: =tab_Navigation[[#This Row],[Date Départ]]+tab_Navigation[[#This Row],[J Navig]] ->  | R111: =tab_Navigation[[#This Row],[Mn Nav Total]]/(tab_Navigation[[#This Row],[J Navig]]*24) ->  | S111: -1 | T111: 01 - Voile selon Cond. | U111: 0.95 | V111: =tab_Navigation[[#This Row],[Nav Mn]]*tab_Navigation[[#This Row],[Rap Nav Voil]] ->  | W111: =1-tab_Navigation[[#This Row],[Rap Nav Voil]] ->  | X111: =tab_Navigation[[#This Row],[Nav Mn]]*tab_Navigation[[#This Row],[Rap Nav Mot]] ->  | Y111: =tab_Navigation[[#This Row],[Dep Mn]]+tab_Navigation[[#This Row],[Arr Mn]] ->  | Z111: =tab_Navigation[[#This Row],[Mn Nav Mot]]+tab_Navigation[[#This Row],[Mn Approch Mot]] ->  | AA111: =tab_Navigation[[#This Row],[Mn Total Mot]]*'Variable Constante'!$F$6*'Variable Constante'!$E$10 ->  | AB111: =VLOOKUP(tab_Navigation[[#This Row],[Arrivée]],tab_Port_Mouillage[],9,FALSE) ->  | AC111: =VLOOKUP(tab_Navigation[[#This Row],[Conca Nav]],tab_Escale[[Nav Precedante]:[Nom Jour]],14,FALSE) ->  | AE111: =YEAR(tab_Navigation[[#This Row],[Date Arrivée]]) ->  | AF111: =MONTH(tab_Navigation[[#This Row],[Date Arrivée]]) ->  | AG111: =WEEKNUM(tab_Navigation[[#This Row],[Date Arrivée]],2) -> 
A112: =CONCATENATE(tab_Navigation[[#This Row],[N° Nav]]," - ",tab_Navigation[[#This Row],[Départ]]," > ",tab_Navigation[[#This Row],[Arrivée]]) ->  | B112: 001 - Port Louis > Port Louis | C112: 0019 | D112: Kyle Harbor | E112: Port Ellen | F112: =VLOOKUP(tab_Navigation[[#This Row],[Arrivée]],tab_Port_Mouillage[],6,FALSE) ->  | G112: 9 | H112: =tab_Navigation[[#This Row],[Dep Km]]/1.852 ->  | I112: 222 | J112: =tab_Navigation[[#This Row],[Nav Km]]/1.852 ->  | K112: 2 | L112: =tab_Navigation[[#This Row],[Arr Km]]/1.852 ->  | M112: =tab_Navigation[[#This Row],[Dep Mn]]+tab_Navigation[[#This Row],[Nav Mn]]+tab_Navigation[[#This Row],[Arr Mn]] ->  | N112: 1.5 | O112: =VLOOKUP(tab_Navigation[[#This Row],[Arrivée]],tab_Escale[[Nom Escale]:[Jour]],5,FALSE) ->  | Q112: =tab_Navigation[[#This Row],[Date Départ]]+tab_Navigation[[#This Row],[J Navig]] ->  | R112: =tab_Navigation[[#This Row],[Mn Nav Total]]/(tab_Navigation[[#This Row],[J Navig]]*24) ->  | S112: -1 | T112: 01 - Voile selon Cond. | U112: 0.95 | V112: =tab_Navigation[[#This Row],[Nav Mn]]*tab_Navigation[[#This Row],[Rap Nav Voil]] ->  | W112: =1-tab_Navigation[[#This Row],[Rap Nav Voil]] ->  | X112: =tab_Navigation[[#This Row],[Nav Mn]]*tab_Navigation[[#This Row],[Rap Nav Mot]] ->  | Y112: =tab_Navigation[[#This Row],[Dep Mn]]+tab_Navigation[[#This Row],[Arr Mn]] ->  | Z112: =tab_Navigation[[#This Row],[Mn Nav Mot]]+tab_Navigation[[#This Row],[Mn Approch Mot]] ->  | AA112: =tab_Navigation[[#This Row],[Mn Total Mot]]*'Variable Constante'!$F$6*'Variable Constante'!$E$10 ->  | AB112: =VLOOKUP(tab_Navigation[[#This Row],[Arrivée]],tab_Port_Mouillage[],9,FALSE) ->  | AC112: =VLOOKUP(tab_Navigation[[#This Row],[Conca Nav]],tab_Escale[[Nav Precedante]:[Nom Jour]],14,FALSE) ->  | AE112: =YEAR(tab_Navigation[[#This Row],[Date Arrivée]]) ->  | AF112: =MONTH(tab_Navigation[[#This Row],[Date Arrivée]]) ->  | AG112: =WEEKNUM(tab_Navigation[[#This Row],[Date Arrivée]],2) -> 
A113: =CONCATENATE(tab_Navigation[[#This Row],[N° Nav]]," - ",tab_Navigation[[#This Row],[Départ]]," > ",tab_Navigation[[#This Row],[Arrivée]]) ->  | B113: 005 - Le Marin > Panama | C113: 0034 | D113: Le Marin | E113: Panama | F113: =VLOOKUP(tab_Navigation[[#This Row],[Arrivée]],tab_Port_Mouillage[],6,FALSE) ->  | G113: 20 | H113: =tab_Navigation[[#This Row],[Dep Km]]/1.852 ->  | I113: 5300 | J113: =tab_Navigation[[#This Row],[Nav Km]]/1.852 ->  | K113: 20 | L113: =tab_Navigation[[#This Row],[Arr Km]]/1.852 ->  | M113: =tab_Navigation[[#This Row],[Dep Mn]]+tab_Navigation[[#This Row],[Nav Mn]]+tab_Navigation[[#This Row],[Arr Mn]] ->  | N113: 20 | O113: =VLOOKUP(tab_Navigation[[#This Row],[Arrivée]],tab_Escale[[Nom Escale]:[Jour]],5,FALSE) ->  | Q113: =tab_Navigation[[#This Row],[Date Départ]]+tab_Navigation[[#This Row],[J Navig]] ->  | R113: =tab_Navigation[[#This Row],[Mn Nav Total]]/(tab_Navigation[[#This Row],[J Navig]]*24) ->  | S113: -1 | T113: 01 - Voile selon Cond. | U113: 0.98 | V113: =tab_Navigation[[#This Row],[Nav Mn]]*tab_Navigation[[#This Row],[Rap Nav Voil]] ->  | W113: =1-tab_Navigation[[#This Row],[Rap Nav Voil]] ->  | X113: =tab_Navigation[[#This Row],[Nav Mn]]*tab_Navigation[[#This Row],[Rap Nav Mot]] ->  | Y113: =tab_Navigation[[#This Row],[Dep Mn]]+tab_Navigation[[#This Row],[Arr Mn]] ->  | Z113: =tab_Navigation[[#This Row],[Mn Nav Mot]]+tab_Navigation[[#This Row],[Mn Approch Mot]] ->  | AA113: =tab_Navigation[[#This Row],[Mn Total Mot]]*'Variable Constante'!$F$6*'Variable Constante'!$E$10 ->  | AB113: =VLOOKUP(tab_Navigation[[#This Row],[Arrivée]],tab_Port_Mouillage[],9,FALSE) ->  | AC113: =VLOOKUP(tab_Navigation[[#This Row],[Conca Nav]],tab_Escale[[Nav Precedante]:[Nom Jour]],14,FALSE) ->  | AE113: =YEAR(tab_Navigation[[#This Row],[Date Arrivée]]) ->  | AF113: =MONTH(tab_Navigation[[#This Row],[Date Arrivée]]) ->  | AG113: =WEEKNUM(tab_Navigation[[#This Row],[Date Arrivée]],2) -> 
A114: =CONCATENATE(tab_Navigation[[#This Row],[N° Nav]]," - ",tab_Navigation[[#This Row],[Départ]]," > ",tab_Navigation[[#This Row],[Arrivée]]) ->  | B114: 008 - Panama > Polynésie Est | C114: 0036 | D114: La Playita | E114: Galapagos | F114: =VLOOKUP(tab_Navigation[[#This Row],[Arrivée]],tab_Port_Mouillage[],6,FALSE) ->  | G114: 3 | H114: =tab_Navigation[[#This Row],[Dep Km]]/1.852 ->  | I114: 1900 | J114: =tab_Navigation[[#This Row],[Nav Km]]/1.852 ->  | K114: 3 | L114: =tab_Navigation[[#This Row],[Arr Km]]/1.852 ->  | M114: =tab_Navigation[[#This Row],[Dep Mn]]+tab_Navigation[[#This Row],[Nav Mn]]+tab_Navigation[[#This Row],[Arr Mn]] ->  | N114: 8 | O114: =VLOOKUP(tab_Navigation[[#This Row],[Arrivée]],tab_Escale[[Nom Escale]:[Jour]],5,FALSE) ->  | P114: =Q115+O114 ->  | Q114: =tab_Navigation[[#This Row],[Date Départ]]+tab_Navigation[[#This Row],[J Navig]] ->  | R114: =tab_Navigation[[#This Row],[Mn Nav Total]]/(tab_Navigation[[#This Row],[J Navig]]*24) ->  | S114: -1 | T114: 01 - Voile selon Cond. | U114: 0.98 | V114: =tab_Navigation[[#This Row],[Nav Mn]]*tab_Navigation[[#This Row],[Rap Nav Voil]] ->  | W114: =1-tab_Navigation[[#This Row],[Rap Nav Voil]] ->  | X114: =tab_Navigation[[#This Row],[Nav Mn]]*tab_Navigation[[#This Row],[Rap Nav Mot]] ->  | Y114: =tab_Navigation[[#This Row],[Dep Mn]]+tab_Navigation[[#This Row],[Arr Mn]] ->  | Z114: =tab_Navigation[[#This Row],[Mn Nav Mot]]+tab_Navigation[[#This Row],[Mn Approch Mot]] ->  | AA114: =tab_Navigation[[#This Row],[Mn Total Mot]]*'Variable Constante'!$F$6*'Variable Constante'!$E$10 ->  | AB114: =VLOOKUP(tab_Navigation[[#This Row],[Arrivée]],tab_Port_Mouillage[],9,FALSE) ->  | AC114: =VLOOKUP(tab_Navigation[[#This Row],[Conca Nav]],tab_Escale[[Nav Precedante]:[Nom Jour]],14,FALSE) ->  | AD114: 102 | AE114: =YEAR(tab_Navigation[[#This Row],[Date Arrivée]]) ->  | AF114: =MONTH(tab_Navigation[[#This Row],[Date Arrivée]]) ->  | AG114: =WEEKNUM(tab_Navigation[[#This Row],[Date Arrivée]],2) -> 
A115: =CONCATENATE(tab_Navigation[[#This Row],[N° Nav]]," - ",tab_Navigation[[#This Row],[Départ]]," > ",tab_Navigation[[#This Row],[Arrivée]]) ->  | B115: 008 - Panama > Polynésie Est | C115: 0037 | D115: Galapagos | E115: Les Marquise | F115: =VLOOKUP(tab_Navigation[[#This Row],[Arrivée]],tab_Port_Mouillage[],6,FALSE) ->  | G115: 3 | H115: =tab_Navigation[[#This Row],[Dep Km]]/1.852 ->  | I115: 6800 | J115: =tab_Navigation[[#This Row],[Nav Km]]/1.852 ->  | K115: 3 | L115: =tab_Navigation[[#This Row],[Arr Km]]/1.852 ->  | M115: =tab_Navigation[[#This Row],[Dep Mn]]+tab_Navigation[[#This Row],[Nav Mn]]+tab_Navigation[[#This Row],[Arr Mn]] ->  | N115: 30 | O115: =VLOOKUP(tab_Navigation[[#This Row],[Arrivée]],tab_Escale[[Nom Escale]:[Jour]],5,FALSE) ->  | P115: =Q113+O115 ->  | Q115: =tab_Navigation[[#This Row],[Date Départ]]+tab_Navigation[[#This Row],[J Navig]] ->  | R115: =tab_Navigation[[#This Row],[Mn Nav Total]]/(tab_Navigation[[#This Row],[J Navig]]*24) ->  | S115: -1 | T115: 01 - Voile selon Cond. | U115: 0.98 | V115: =tab_Navigation[[#This Row],[Nav Mn]]*tab_Navigation[[#This Row],[Rap Nav Voil]] ->  | W115: =1-tab_Navigation[[#This Row],[Rap Nav Voil]] ->  | X115: =tab_Navigation[[#This Row],[Nav Mn]]*tab_Navigation[[#This Row],[Rap Nav Mot]] ->  | Y115: =tab_Navigation[[#This Row],[Dep Mn]]+tab_Navigation[[#This Row],[Arr Mn]] ->  | Z115: =tab_Navigation[[#This Row],[Mn Nav Mot]]+tab_Navigation[[#This Row],[Mn Approch Mot]] ->  | AA115: =tab_Navigation[[#This Row],[Mn Total Mot]]*'Variable Constante'!$F$6*'Variable Constante'!$E$10 ->  | AB115: =VLOOKUP(tab_Navigation[[#This Row],[Arrivée]],tab_Port_Mouillage[],9,FALSE) ->  | AC115: =VLOOKUP(tab_Navigation[[#This Row],[Conca Nav]],tab_Escale[[Nav Precedante]:[Nom Jour]],14,FALSE) ->  | AD115: 103 | AE115: =YEAR(tab_Navigation[[#This Row],[Date Arrivée]]) ->  | AF115: =MONTH(tab_Navigation[[#This Row],[Date Arrivée]]) ->  | AG115: =WEEKNUM(tab_Navigation[[#This Row],[Date Arrivée]],2) -> 
A116: =CONCATENATE(tab_Navigation[[#This Row],[N° Nav]]," - ",tab_Navigation[[#This Row],[Départ]]," > ",tab_Navigation[[#This Row],[Arrivée]]) ->  | B116: 009 - Polynésie Est > Maupiti | C116: 0038 | D116: Les Marquise | E116: Maupiti | F116: =VLOOKUP(tab_Navigation[[#This Row],[Arrivée]],tab_Port_Mouillage[],6,FALSE) ->  | G116: 50 | H116: =tab_Navigation[[#This Row],[Dep Km]]/1.852 ->  | I116: 5500 | J116: =tab_Navigation[[#This Row],[Nav Km]]/1.852 ->  | K116: 50 | L116: =tab_Navigation[[#This Row],[Arr Km]]/1.852 ->  | M116: =tab_Navigation[[#This Row],[Dep Mn]]+tab_Navigation[[#This Row],[Nav Mn]]+tab_Navigation[[#This Row],[Arr Mn]] ->  | N116: 30 | O116: =VLOOKUP(tab_Navigation[[#This Row],[Arrivée]],tab_Escale[[Nom Escale]:[Jour]],5,FALSE) ->  | P116: =#REF!+O116 ->  | Q116: =tab_Navigation[[#This Row],[Date Départ]]+tab_Navigation[[#This Row],[J Navig]] ->  | R116: =tab_Navigation[[#This Row],[Mn Nav Total]]/(tab_Navigation[[#This Row],[J Navig]]*24) ->  | S116: -1 | T116: 01 - Voile selon Cond. | U116: 0.98 | V116: =tab_Navigation[[#This Row],[Nav Mn]]*tab_Navigation[[#This Row],[Rap Nav Voil]] ->  | W116: =1-tab_Navigation[[#This Row],[Rap Nav Voil]] ->  | X116: =tab_Navigation[[#This Row],[Nav Mn]]*tab_Navigation[[#This Row],[Rap Nav Mot]] ->  | Y116: =tab_Navigation[[#This Row],[Dep Mn]]+tab_Navigation[[#This Row],[Arr Mn]] ->  | Z116: =tab_Navigation[[#This Row],[Mn Nav Mot]]+tab_Navigation[[#This Row],[Mn Approch Mot]] ->  | AA116: =tab_Navigation[[#This Row],[Mn Total Mot]]*'Variable Constante'!$F$6*'Variable Constante'!$E$10 ->  | AB116: =VLOOKUP(tab_Navigation[[#This Row],[Arrivée]],tab_Port_Mouillage[],9,FALSE) ->  | AC116: =VLOOKUP(tab_Navigation[[#This Row],[Conca Nav]],tab_Escale[[Nav Precedante]:[Nom Jour]],14,FALSE) ->  | AD116: 104 | AE116: =YEAR(tab_Navigation[[#This Row],[Date Arrivée]]) ->  | AF116: =MONTH(tab_Navigation[[#This Row],[Date Arrivée]]) ->  | AG116: =WEEKNUM(tab_Navigation[[#This Row],[Date Arrivée]],2) -> 
A117: =CONCATENATE(tab_Navigation[[#This Row],[N° Nav]]," - ",tab_Navigation[[#This Row],[Départ]]," > ",tab_Navigation[[#This Row],[Arrivée]]) ->  | B117: 010 - Maupiti > Ouvea | C117: 0039 | D117: Maupiti | E117: Ouvea | F117: =VLOOKUP(tab_Navigation[[#This Row],[Arrivée]],tab_Port_Mouillage[],6,FALSE) ->  | G117: 50 | H117: =tab_Navigation[[#This Row],[Dep Km]]/1.852 ->  | I117: =1619+3080 -> 4699 | J117: =tab_Navigation[[#This Row],[Nav Km]]/1.852 ->  | K117: 50 | L117: =tab_Navigation[[#This Row],[Arr Km]]/1.852 ->  | M117: =tab_Navigation[[#This Row],[Dep Mn]]+tab_Navigation[[#This Row],[Nav Mn]]+tab_Navigation[[#This Row],[Arr Mn]] ->  | N117: 17 | O117: =VLOOKUP(tab_Navigation[[#This Row],[Arrivée]],tab_Escale[[Nom Escale]:[Jour]],5,FALSE) ->  | P117: =Q116+O117 ->  | Q117: =tab_Navigation[[#This Row],[Date Départ]]+tab_Navigation[[#This Row],[J Navig]] ->  | R117: =tab_Navigation[[#This Row],[Mn Nav Total]]/(tab_Navigation[[#This Row],[J Navig]]*24) ->  | S117: -1 | T117: 01 - Voile selon Cond. | U117: 0.98 | V117: =tab_Navigation[[#This Row],[Nav Mn]]*tab_Navigation[[#This Row],[Rap Nav Voil]] ->  | W117: =1-tab_Navigation[[#This Row],[Rap Nav Voil]] ->  | X117: =tab_Navigation[[#This Row],[Nav Mn]]*tab_Navigation[[#This Row],[Rap Nav Mot]] ->  | Y117: =tab_Navigation[[#This Row],[Dep Mn]]+tab_Navigation[[#This Row],[Arr Mn]] ->  | Z117: =tab_Navigation[[#This Row],[Mn Nav Mot]]+tab_Navigation[[#This Row],[Mn Approch Mot]] ->  | AA117: =tab_Navigation[[#This Row],[Mn Total Mot]]*'Variable Constante'!$F$6*'Variable Constante'!$E$10 ->  | AB117: =VLOOKUP(tab_Navigation[[#This Row],[Arrivée]],tab_Port_Mouillage[],9,FALSE) ->  | AC117: =VLOOKUP(tab_Navigation[[#This Row],[Conca Nav]],tab_Escale[[Nav Precedante]:[Nom Jour]],14,FALSE) ->  | AD117: 68 | AE117: =YEAR(tab_Navigation[[#This Row],[Date Arrivée]]) ->  | AF117: =MONTH(tab_Navigation[[#This Row],[Date Arrivée]]) ->  | AG117: =WEEKNUM(tab_Navigation[[#This Row],[Date Arrivée]],2) -> 
A118: =CONCATENATE(tab_Navigation[[#This Row],[N° Nav]]," - ",tab_Navigation[[#This Row],[Départ]]," > ",tab_Navigation[[#This Row],[Arrivée]]) ->  | B118: 011 - Ouvea > Nouméa | C118: 0040 | D118: Ouvea | E118: Nouméa | F118: =VLOOKUP(tab_Navigation[[#This Row],[Arrivée]],tab_Port_Mouillage[],6,FALSE) ->  | G118: 30 | H118: =tab_Navigation[[#This Row],[Dep Km]]/1.852 ->  | I118: 450 | J118: =tab_Navigation[[#This Row],[Nav Km]]/1.852 ->  | K118: 30 | L118: =tab_Navigation[[#This Row],[Arr Km]]/1.852 ->  | M118: =tab_Navigation[[#This Row],[Dep Mn]]+tab_Navigation[[#This Row],[Nav Mn]]+tab_Navigation[[#This Row],[Arr Mn]] ->  | N118: 4 | O118: =VLOOKUP(tab_Navigation[[#This Row],[Arrivée]],tab_Escale[[Nom Escale]:[Jour]],5,FALSE) ->  | Q118: =tab_Navigation[[#This Row],[Date Départ]]+tab_Navigation[[#This Row],[J Navig]] ->  | R118: =tab_Navigation[[#This Row],[Mn Nav Total]]/(tab_Navigation[[#This Row],[J Navig]]*24) ->  | S118: -1 | T118: 01 - Voile selon Cond. | U118: 0.95 | V118: =tab_Navigation[[#This Row],[Nav Mn]]*tab_Navigation[[#This Row],[Rap Nav Voil]] ->  | W118: =1-tab_Navigation[[#This Row],[Rap Nav Voil]] ->  | X118: =tab_Navigation[[#This Row],[Nav Mn]]*tab_Navigation[[#This Row],[Rap Nav Mot]] ->  | Y118: =tab_Navigation[[#This Row],[Dep Mn]]+tab_Navigation[[#This Row],[Arr Mn]] ->  | Z118: =tab_Navigation[[#This Row],[Mn Nav Mot]]+tab_Navigation[[#This Row],[Mn Approch Mot]] ->  | AA118: =tab_Navigation[[#This Row],[Mn Total Mot]]*'Variable Constante'!$F$6*'Variable Constante'!$E$10 ->  | AB118: =VLOOKUP(tab_Navigation[[#This Row],[Arrivée]],tab_Port_Mouillage[],9,FALSE) ->  | AC118: =VLOOKUP(tab_Navigation[[#This Row],[Conca Nav]],tab_Escale[[Nav Precedante]:[Nom Jour]],14,FALSE) ->  | AD118: 80 | AE118: =YEAR(tab_Navigation[[#This Row],[Date Arrivée]]) ->  | AF118: =MONTH(tab_Navigation[[#This Row],[Date Arrivée]]) ->  | AG118: =WEEKNUM(tab_Navigation[[#This Row],[Date Arrivée]],2) -> 
A119: =CONCATENATE(tab_Navigation[[#This Row],[N° Nav]]," - ",tab_Navigation[[#This Row],[Départ]]," > ",tab_Navigation[[#This Row],[Arrivée]]) ->  | B119: 012 - Nouméa > Auckland | C119: 0041 | D119: Nouméa | E119: Auckland | F119: =VLOOKUP(tab_Navigation[[#This Row],[Arrivée]],tab_Port_Mouillage[],6,FALSE) ->  | G119: 5 | H119: =tab_Navigation[[#This Row],[Dep Km]]/1.852 ->  | I119: 1850 | J119: =tab_Navigation[[#This Row],[Nav Km]]/1.852 ->  | K119: 5 | L119: =tab_Navigation[[#This Row],[Arr Km]]/1.852 ->  | M119: =tab_Navigation[[#This Row],[Dep Mn]]+tab_Navigation[[#This Row],[Nav Mn]]+tab_Navigation[[#This Row],[Arr Mn]] ->  | N119: 8 | O119: =VLOOKUP(tab_Navigation[[#This Row],[Arrivée]],tab_Escale[[Nom Escale]:[Jour]],5,FALSE) ->  | Q119: =tab_Navigation[[#This Row],[Date Départ]]+tab_Navigation[[#This Row],[J Navig]] ->  | R119: =tab_Navigation[[#This Row],[Mn Nav Total]]/(tab_Navigation[[#This Row],[J Navig]]*24) ->  | S119: -1 | T119: 01 - Voile selon Cond. | U119: 0.98 | V119: =tab_Navigation[[#This Row],[Nav Mn]]*tab_Navigation[[#This Row],[Rap Nav Voil]] ->  | W119: =1-tab_Navigation[[#This Row],[Rap Nav Voil]] ->  | X119: =tab_Navigation[[#This Row],[Nav Mn]]*tab_Navigation[[#This Row],[Rap Nav Mot]] ->  | Y119: =tab_Navigation[[#This Row],[Dep Mn]]+tab_Navigation[[#This Row],[Arr Mn]] ->  | Z119: =tab_Navigation[[#This Row],[Mn Nav Mot]]+tab_Navigation[[#This Row],[Mn Approch Mot]] ->  | AA119: =tab_Navigation[[#This Row],[Mn Total Mot]]*'Variable Constante'!$F$6*'Variable Constante'!$E$10 ->  | AB119: =VLOOKUP(tab_Navigation[[#This Row],[Arrivée]],tab_Port_Mouillage[],9,FALSE) ->  | AC119: =VLOOKUP(tab_Navigation[[#This Row],[Conca Nav]],tab_Escale[[Nav Precedante]:[Nom Jour]],14,FALSE) ->  | AD119: 81 | AE119: =YEAR(tab_Navigation[[#This Row],[Date Arrivée]]) ->  | AF119: =MONTH(tab_Navigation[[#This Row],[Date Arrivée]]) ->  | AG119: =WEEKNUM(tab_Navigation[[#This Row],[Date Arrivée]],2) -> 
A120: =CONCATENATE(tab_Navigation[[#This Row],[N° Nav]]," - ",tab_Navigation[[#This Row],[Départ]]," > ",tab_Navigation[[#This Row],[Arrivée]]) ->  | B120: 013 - Auckland > Sydney | C120: 0042 | D120: Auckland | E120: Sydney | F120: =VLOOKUP(tab_Navigation[[#This Row],[Arrivée]],tab_Port_Mouillage[],6,FALSE) ->  | G120: 5 | H120: =tab_Navigation[[#This Row],[Dep Km]]/1.852 ->  | I120: 2350 | J120: =tab_Navigation[[#This Row],[Nav Km]]/1.852 ->  | K120: 10 | L120: =tab_Navigation[[#This Row],[Arr Km]]/1.852 ->  | M120: =tab_Navigation[[#This Row],[Dep Mn]]+tab_Navigation[[#This Row],[Nav Mn]]+tab_Navigation[[#This Row],[Arr Mn]] ->  | N120: 9 | O120: =VLOOKUP(tab_Navigation[[#This Row],[Arrivée]],tab_Escale[[Nom Escale]:[Jour]],5,FALSE) ->  | P120: =#REF!+O120 ->  | Q120: =tab_Navigation[[#This Row],[Date Départ]]+tab_Navigation[[#This Row],[J Navig]] ->  | R120: =tab_Navigation[[#This Row],[Mn Nav Total]]/(tab_Navigation[[#This Row],[J Navig]]*24) ->  | S120: -1 | T120: 01 - Voile selon Cond. | U120: 0.98 | V120: =tab_Navigation[[#This Row],[Nav Mn]]*tab_Navigation[[#This Row],[Rap Nav Voil]] ->  | W120: =1-tab_Navigation[[#This Row],[Rap Nav Voil]] ->  | X120: =tab_Navigation[[#This Row],[Nav Mn]]*tab_Navigation[[#This Row],[Rap Nav Mot]] ->  | Y120: =tab_Navigation[[#This Row],[Dep Mn]]+tab_Navigation[[#This Row],[Arr Mn]] ->  | Z120: =tab_Navigation[[#This Row],[Mn Nav Mot]]+tab_Navigation[[#This Row],[Mn Approch Mot]] ->  | AA120: =tab_Navigation[[#This Row],[Mn Total Mot]]*'Variable Constante'!$F$6*'Variable Constante'!$E$10 ->  | AB120: =VLOOKUP(tab_Navigation[[#This Row],[Arrivée]],tab_Port_Mouillage[],9,FALSE) ->  | AC120: =VLOOKUP(tab_Navigation[[#This Row],[Conca Nav]],tab_Escale[[Nav Precedante]:[Nom Jour]],14,FALSE) ->  | AD120: 82 | AE120: =YEAR(tab_Navigation[[#This Row],[Date Arrivée]]) ->  | AF120: =MONTH(tab_Navigation[[#This Row],[Date Arrivée]]) ->  | AG120: =WEEKNUM(tab_Navigation[[#This Row],[Date Arrivée]],2) -> 
A121: =CONCATENATE(tab_Navigation[[#This Row],[N° Nav]]," - ",tab_Navigation[[#This Row],[Départ]]," > ",tab_Navigation[[#This Row],[Arrivée]]) ->  | B121: 016 - Darwin > Rodrigues | C121: 0045 | D121: Darwin | E121: Rodrigues | F121: =VLOOKUP(tab_Navigation[[#This Row],[Arrivée]],tab_Port_Mouillage[],6,FALSE) ->  | G121: 15 | H121: =tab_Navigation[[#This Row],[Dep Km]]/1.852 ->  | I121: 7400 | J121: =tab_Navigation[[#This Row],[Nav Km]]/1.852 ->  | K121: 15 | L121: =tab_Navigation[[#This Row],[Arr Km]]/1.852 ->  | M121: =tab_Navigation[[#This Row],[Dep Mn]]+tab_Navigation[[#This Row],[Nav Mn]]+tab_Navigation[[#This Row],[Arr Mn]] ->  | N121: 28 | O121: =VLOOKUP(tab_Navigation[[#This Row],[Arrivée]],tab_Escale[[Nom Escale]:[Jour]],5,FALSE) ->  | P121: =Q120+O121 ->  | Q121: =tab_Navigation[[#This Row],[Date Départ]]+tab_Navigation[[#This Row],[J Navig]] ->  | R121: =tab_Navigation[[#This Row],[Mn Nav Total]]/(tab_Navigation[[#This Row],[J Navig]]*24) ->  | S121: 1 | T121: 01 - Voile selon Cond. | U121: 0.98 | V121: =tab_Navigation[[#This Row],[Nav Mn]]*tab_Navigation[[#This Row],[Rap Nav Voil]] ->  | W121: =1-tab_Navigation[[#This Row],[Rap Nav Voil]] ->  | X121: =tab_Navigation[[#This Row],[Nav Mn]]*tab_Navigation[[#This Row],[Rap Nav Mot]] ->  | Y121: =tab_Navigation[[#This Row],[Dep Mn]]+tab_Navigation[[#This Row],[Arr Mn]] ->  | Z121: =tab_Navigation[[#This Row],[Mn Nav Mot]]+tab_Navigation[[#This Row],[Mn Approch Mot]] ->  | AA121: =tab_Navigation[[#This Row],[Mn Total Mot]]*'Variable Constante'!$F$6*'Variable Constante'!$E$10 ->  | AB121: =VLOOKUP(tab_Navigation[[#This Row],[Arrivée]],tab_Port_Mouillage[],9,FALSE) ->  | AC121: =VLOOKUP(tab_Navigation[[#This Row],[Conca Nav]],tab_Escale[[Nav Precedante]:[Nom Jour]],14,FALSE) ->  | AD121: 91 | AE121: =YEAR(tab_Navigation[[#This Row],[Date Arrivée]]) ->  | AF121: =MONTH(tab_Navigation[[#This Row],[Date Arrivée]]) ->  | AG121: =WEEKNUM(tab_Navigation[[#This Row],[Date Arrivée]],2) -> 
A122: =CONCATENATE(tab_Navigation[[#This Row],[N° Nav]]," - ",tab_Navigation[[#This Row],[Départ]]," > ",tab_Navigation[[#This Row],[Arrivée]]) ->  | B122: 017 - Rodrigues > Le Cap | C122: 0046 | D122: Port Mathurin | E122: Le Cap | F122: =VLOOKUP(tab_Navigation[[#This Row],[Arrivée]],tab_Port_Mouillage[],6,FALSE) ->  | G122: 20 | H122: =tab_Navigation[[#This Row],[Dep Km]]/1.852 ->  | I122: 5150 | J122: =tab_Navigation[[#This Row],[Nav Km]]/1.852 ->  | K122: 20 | L122: =tab_Navigation[[#This Row],[Arr Km]]/1.852 ->  | M122: =tab_Navigation[[#This Row],[Dep Mn]]+tab_Navigation[[#This Row],[Nav Mn]]+tab_Navigation[[#This Row],[Arr Mn]] ->  | N122: 19 | O122: =VLOOKUP(tab_Navigation[[#This Row],[Arrivée]],tab_Escale[[Nom Escale]:[Jour]],5,FALSE) ->  | P122: =Q119+O122 ->  | Q122: =tab_Navigation[[#This Row],[Date Départ]]+tab_Navigation[[#This Row],[J Navig]] ->  | R122: =tab_Navigation[[#This Row],[Mn Nav Total]]/(tab_Navigation[[#This Row],[J Navig]]*24) ->  | S122: 1 | T122: 01 - Voile selon Cond. | U122: 0.98 | V122: =tab_Navigation[[#This Row],[Nav Mn]]*tab_Navigation[[#This Row],[Rap Nav Voil]] ->  | W122: =1-tab_Navigation[[#This Row],[Rap Nav Voil]] ->  | X122: =tab_Navigation[[#This Row],[Nav Mn]]*tab_Navigation[[#This Row],[Rap Nav Mot]] ->  | Y122: =tab_Navigation[[#This Row],[Dep Mn]]+tab_Navigation[[#This Row],[Arr Mn]] ->  | Z122: =tab_Navigation[[#This Row],[Mn Nav Mot]]+tab_Navigation[[#This Row],[Mn Approch Mot]] ->  | AA122: =tab_Navigation[[#This Row],[Mn Total Mot]]*'Variable Constante'!$F$6*'Variable Constante'!$E$10 ->  | AB122: =VLOOKUP(tab_Navigation[[#This Row],[Arrivée]],tab_Port_Mouillage[],9,FALSE) ->  | AC122: =VLOOKUP(tab_Navigation[[#This Row],[Conca Nav]],tab_Escale[[Nav Precedante]:[Nom Jour]],14,FALSE) ->  | AD122: 94 | AE122: =YEAR(tab_Navigation[[#This Row],[Date Arrivée]]) ->  | AF122: =MONTH(tab_Navigation[[#This Row],[Date Arrivée]]) ->  | AG122: =WEEKNUM(tab_Navigation[[#This Row],[Date Arrivée]],2) -> 
A123: =CONCATENATE(tab_Navigation[[#This Row],[N° Nav]]," - ",tab_Navigation[[#This Row],[Départ]]," > ",tab_Navigation[[#This Row],[Arrivée]]) ->  | B123: 018 - Le Cap > Cap Vert | C123: 0047 | D123: Le Cap | E123: Porto de Praia | F123: =VLOOKUP(tab_Navigation[[#This Row],[Arrivée]],tab_Port_Mouillage[],6,FALSE) ->  | G123: 10 | H123: =tab_Navigation[[#This Row],[Dep Km]]/1.852 ->  | I123: 7100 | J123: =tab_Navigation[[#This Row],[Nav Km]]/1.852 ->  | K123: 10 | L123: =tab_Navigation[[#This Row],[Arr Km]]/1.852 ->  | M123: =tab_Navigation[[#This Row],[Dep Mn]]+tab_Navigation[[#This Row],[Nav Mn]]+tab_Navigation[[#This Row],[Arr Mn]] ->  | N123: 25 | O123: =VLOOKUP(tab_Navigation[[#This Row],[Arrivée]],tab_Escale[[Nom Escale]:[Jour]],5,FALSE) ->  | P123: =Q122+O123 ->  | Q123: =tab_Navigation[[#This Row],[Date Départ]]+tab_Navigation[[#This Row],[J Navig]] ->  | R123: =tab_Navigation[[#This Row],[Mn Nav Total]]/(tab_Navigation[[#This Row],[J Navig]]*24) ->  | S123: 1 | T123: 01 - Voile selon Cond. | U123: 0.98 | V123: =tab_Navigation[[#This Row],[Nav Mn]]*tab_Navigation[[#This Row],[Rap Nav Voil]] ->  | W123: =1-tab_Navigation[[#This Row],[Rap Nav Voil]] ->  | X123: =tab_Navigation[[#This Row],[Nav Mn]]*tab_Navigation[[#This Row],[Rap Nav Mot]] ->  | Y123: =tab_Navigation[[#This Row],[Dep Mn]]+tab_Navigation[[#This Row],[Arr Mn]] ->  | Z123: =tab_Navigation[[#This Row],[Mn Nav Mot]]+tab_Navigation[[#This Row],[Mn Approch Mot]] ->  | AA123: =tab_Navigation[[#This Row],[Mn Total Mot]]*'Variable Constante'!$F$6*'Variable Constante'!$E$10 ->  | AB123: =VLOOKUP(tab_Navigation[[#This Row],[Arrivée]],tab_Port_Mouillage[],9,FALSE) ->  | AC123: =VLOOKUP(tab_Navigation[[#This Row],[Conca Nav]],tab_Escale[[Nav Precedante]:[Nom Jour]],14,FALSE) ->  | AD123: 95 | AE123: =YEAR(tab_Navigation[[#This Row],[Date Arrivée]]) ->  | AF123: =MONTH(tab_Navigation[[#This Row],[Date Arrivée]]) ->  | AG123: =WEEKNUM(tab_Navigation[[#This Row],[Date Arrivée]],2) -> 
A124: =CONCATENATE(tab_Navigation[[#This Row],[N° Nav]]," - ",tab_Navigation[[#This Row],[Départ]]," > ",tab_Navigation[[#This Row],[Arrivée]]) ->  | B124: 019 - Cap Vert > Port Louis | C124: 0048 | D124: Cap Vert | E124: Port Louis | F124: =VLOOKUP(tab_Navigation[[#This Row],[Arrivée]],tab_Port_Mouillage[],6,FALSE) ->  | G124: 5 | H124: =tab_Navigation[[#This Row],[Dep Km]]/1.852 ->  | I124: 4500 | J124: =tab_Navigation[[#This Row],[Nav Km]]/1.852 ->  | K124: 5 | L124: =tab_Navigation[[#This Row],[Arr Km]]/1.852 ->  | M124: =tab_Navigation[[#This Row],[Dep Mn]]+tab_Navigation[[#This Row],[Nav Mn]]+tab_Navigation[[#This Row],[Arr Mn]] ->  | N124: 17 | O124: =VLOOKUP(tab_Navigation[[#This Row],[Arrivée]],tab_Escale[[Nom Escale]:[Jour]],5,FALSE) ->  | P124: =#REF!+O124 ->  | Q124: =tab_Navigation[[#This Row],[Date Départ]]+tab_Navigation[[#This Row],[J Navig]] ->  | R124: =tab_Navigation[[#This Row],[Mn Nav Total]]/(tab_Navigation[[#This Row],[J Navig]]*24) ->  | S124: 1 | T124: 01 - Voile selon Cond. | U124: 0.98 | V124: =tab_Navigation[[#This Row],[Nav Mn]]*tab_Navigation[[#This Row],[Rap Nav Voil]] ->  | W124: =1-tab_Navigation[[#This Row],[Rap Nav Voil]] ->  | X124: =tab_Navigation[[#This Row],[Nav Mn]]*tab_Navigation[[#This Row],[Rap Nav Mot]] ->  | Y124: =tab_Navigation[[#This Row],[Dep Mn]]+tab_Navigation[[#This Row],[Arr Mn]] ->  | Z124: =tab_Navigation[[#This Row],[Mn Nav Mot]]+tab_Navigation[[#This Row],[Mn Approch Mot]] ->  | AA124: =tab_Navigation[[#This Row],[Mn Total Mot]]*'Variable Constante'!$F$6*'Variable Constante'!$E$10 ->  | AB124: =VLOOKUP(tab_Navigation[[#This Row],[Arrivée]],tab_Port_Mouillage[],9,FALSE) ->  | AC124: =VLOOKUP(tab_Navigation[[#This Row],[Conca Nav]],tab_Escale[[Nav Precedante]:[Nom Jour]],14,FALSE) ->  | AD124: 101 | AE124: =YEAR(tab_Navigation[[#This Row],[Date Arrivée]]) ->  | AF124: =MONTH(tab_Navigation[[#This Row],[Date Arrivée]]) ->  | AG124: =WEEKNUM(tab_Navigation[[#This Row],[Date Arrivée]],2) -> 

Sheet Ana Nav
A3: Analyse des Escales
A5: Étiquettes de lignes | B5: Conca Nav | C5: sDep Mn | D5: sNav Mn | E5: sArr Mn | F5: sMn Nav Total | G5: sMn Nav Voil | H5: sMn Nav Mot | I5: sMn Approch Mot | J5: sMn Total Mot | K5: sJ Navig | L5: sJ Cumul
A6: 001 - Port Louis > Port Louis | C6: 23.21814255 | D6: 1784.827214 | E6: 26.45788337 | F6: 1834.50324 | G6: 1624.946004 | H6: 159.8812095 | I6: 49.67602592 | J6: 209.5572354 | K6: 20.045 | L6: 734.535
A7: Ecosse | C7: 6.479481641 | D7: 614.7408207 | E7: 6.479481641 | F7: 627.699784 | G7: 515.3077754 | H7: 99.43304536 | I7: 12.95896328 | J7: 112.3920086 | K7: 7.045 | L7: 391.165
A8: 8 | B8: 0008 - Belfast > Craighouse | C8: 0.5399568035 | D8: 70.73434125 | E8: 0.5399568035 | F8: 71.81425486 | G8: 67.19762419 | H8: 3.536717063 | I8: 1.079913607 | J8: 4.61663067 | K8: 0.75 | L8: 19.25
A9: 9 | B9: 0009 - Craighouse > Crinan | C9: 0.5399568035 | D9: 20.51835853 | E9: 0.5399568035 | F9: 21.59827214 | G9: 19.4924406 | H9: 1.025917927 | I9: 1.079913607 | J9: 2.105831533 | K9: 0.25 | L9: 20.2
A10: 10 | B10: 0060 - Crinan > Craobh Haven | C10: 0.5399568035 | D10: 8.099352052 | E10: 0.5399568035 | F10: 9.179265659 | G10: 7.694384449 | H10: 0.4049676026 | I10: 1.079913607 | J10: 1.48488121 | K10: 0.12 | L10: 21.22
A11: 11 | B11: 0010 - Craobh Haven > Oban Marina | C11: 0.5399568035 | D11: 16.73866091 | E11: 0.5399568035 | F11: 17.81857451 | G11: 11.71706263 | H11: 5.021598272 | I11: 1.079913607 | J11: 6.101511879 | K11: 0.15 | L11: 22.17
A12: 12 | B12: 0011 - Oban Marina > Fort William | C12: 0.2699784017 | D12: 35.63714903 | E12: 0 | F12: 35.90712743 | G12: 17.81857451 | H12: 17.81857451 | I12: 0.2699784017 | J12: 18.08855292 | K12: 0.5 | L12: 23.57
A13: 13 | B13: 0012 - Fort William > Laggan Pier | C13: 0 | D13: 15.1187905 | E13: 0 | F13: 15.1187905 | G13: 0 | H13: 15.1187905 | I13: 0 | J13: 15.1187905 | K13: 0.125 | L13: 24.345
A14: 14 | B14: 0013 - Laggan Pier > Fort Augustus | C14: 0 | D14: 8.639308855 | E14: 0 | F14: 8.639308855 | G14: 0 | H14: 8.639308855 | I14: 0 | J14: 8.639308855 | K14: 0.12 | L14: 25.165
A15: 15 | B15: 0014 - Fort Augustus > Muir Town marina | C15: 0 | D15: 26.45788337 | E15: 0 | F15: 26.45788337 | G15: 0 | H15: 26.45788337 | I15: 0 | J15: 26.45788337 | K15: 0.5 | L15: 26.765
A16: 16 | B16: 0015 - Muir Town marina > Stromness | C16: 0.2699784017 | D16: 110.6911447 | E16: 0.5399568035 | F16: 111.5010799 | G16: 105.1565875 | H16: 5.534557235 | I16: 0.8099352052 | J16: 6.344492441 | K16: 1.5 | L16: 30.565
A17: 17 | B17: 0016 - Stromness > Kinlochbervie | C17: 0.5399568035 | D17: 66.41468683 | E17: 0.5399568035 | F17: 67.49460043 | G17: 63.09395248 | H17: 3.320734341 | I17: 1.079913607 | J17: 4.400647948 | K17: 0.75 | L17: 32.165
A18: 18 | B18: 0017 - Kinlochbervie > Steornabhagh | C18: 1.079913607 | D18: 43.73650108 | E18: 1.079913607 | F18: 45.89632829 | G18: 41.54967603 | H18: 2.186825054 | I18: 2.159827214 | J18: 4.346652268 | K18: 0.5 | L18: 33.415
A19: 19 | B19: 0061 - Steornabhagh > Stornoway | C19: 0 | D19: 0.8099352052 | E19: 0 | F19: 0.8099352052 | G19: 0 | H19: 0.8099352052 | I19: 0 | J19: 0.8099352052 | K19: 0.03 | L19: 34.445
A20: 20 | B20: 0062 - Stornoway > Lochboisdale | C20: 1.079913607 | D20: 78.2937365 | E20: 1.079913607 | F20: 80.45356371 | G20: 74.37904968 | H20: 3.914686825 | I20: 2.159827214 | J20: 6.074514039 | K20: 0.75 | L20: 37.695
A21: 21 | B21: 0063 - Lochboisdale > Port Ellen | C21: 1.079913607 | D21: 112.8509719 | E21: 1.079913607 | F21: 115.0107991 | G21: 107.2084233 | H21: 5.642548596 | I21: 2.159827214 | J21: 7.80237581 | K21: 1 | L21: 40.195
A22: Fr Metro | C22: 1.61987041 | D22: 296.9762419 | E22: 3.239740821 | F22: 301.8358531 | G22: 280.1835853 | H22: 16.79265659 | I22: 4.859611231 | J22: 21.65226782 | K22: 3.25 | L22: 56.835
A23: 1 | B23: 0001 - Port Louis > Les Glenans | C23: 1.079913607 | D23: 38.87688985 | E23: 0 | F23: 39.95680346 | G23: 34.98920086 | H23: 3.887688985 | I23: 1.079913607 | J23: 4.967602592 | K23: 0.5 | L23: 1.5
A24: 2 | B24: 0002 - Les Glenans > Brest | C24: 0 | D24: 53.99568035 | E24: 1.079913607 | F24: 55.07559395 | G24: 51.29589633 | H24: 2.699784017 | I24: 1.079913607 | J24: 3.779697624 | K24: 0.75 | L24: 2.65
A25: 27 | B25: 0025 - Archipel Scilly > Port Louis | C25: 0.5399568035 | D25: 204.1036717 | E25: 2.159827214 | F25: 206.8034557 | G25: 193.8984881 | H25: 10.20518359 | I25: 2.699784017 | J25: 12.9049676 | K25: 2 | L25: 52.685
A26: Irlande Nord | C26: 1.079913607 | D26: 99.35205184 | E26: 1.079913607 | F26: 101.511879 | G26: 94.38444924 | H26: 4.967602592 | I26: 2.159827214 | J26: 7.127429806 | K26: 1.25 | L26: 33.2
A27: 6 | B27: 0006 - Dublin > Ardglass | C27: 0.5399568035 | D27: 61.55507559 | E27: 0.5399568035 | F27: 62.6349892 | G27: 58.47732181 | H27: 3.07775378 | I27: 1.079913607 | J27: 4.157667387 | K27: 0.75 | L27: 15.7
A28: 7 | B28: 0007 - Ardglass > Belfast | C28: 0.5399568035 | D28: 37.79697624 | E28: 0.5399568035 | F28: 38.87688985 | G28: 35.90712743 | H28: 1.889848812 | I28: 1.079913607 | J28: 2.969762419 | K28: 0.5 | L28: 17.5
A29: Irlande Sud | C29: 1.079913607 | D29: 221.9222462 | E29: 3.779697624 | F29: 226.7818575 | G29: 210.8261339 | H29: 11.09611231 | I29: 4.859611231 | J29: 15.95572354 | K29: 2.5 | L29: 22.7
A30: 4 | B30: 0004 - Archipel Scilly > Kilmore | C30: 0.5399568035 | D30: 131.2095032 | E30: 3.239740821 | F30: 134.9892009 | G30: 124.6490281 | H30: 6.560475162 | I30: 3.779697624 | J30: 10.34017279 | K30: 1.5 | L30: 8.95
A31: 5 | B31: 0005 - Kilmore > Dublin | C31: 0.5399568035 | D31: 90.71274298 | E31: 0.5399568035 | F31: 91.79265659 | G31: 86.17710583 | H31: 4.535637149 | I31: 1.079913607 | J31: 5.615550756 | K31: 1 | L31: 13.75
A32: Royaume Uni | C32: 12.95896328 | D32: 551.8358531 | E32: 11.87904968 | F32: 576.6738661 | G32: 524.2440605 | H32: 27.59179266 | I32: 24.83801296 | J32: 52.42980562 | K32: 6 | L32: 230.635
A33: 3 | B33: 0003 - Brest > Archipel Scilly | C33: 0.5399568035 | D33: 113.3909287 | E33: 0.5399568035 | F33: 114.4708423 | G33: 107.7213823 | H33: 5.669546436 | I33: 1.079913607 | J33: 6.749460043 | K33: 1.5 | L33: 6.45
A34: 22 | B34: 0020 - Port Ellen > Peel | C34: 1.61987041 | D34: 102.0518359 | E34: 0.5399568035 | F34: 104.2116631 | G34: 96.94924406 | H34: 5.102591793 | I34: 2.159827214 | J34: 7.262419006 | K34: 1 | L34: 41.525
A35: 23 | B35: 0021 - Peel > Holyhead | C35: 0.5399568035 | D35: 69.65442765 | E35: 1.61987041 | F35: 71.81425486 | G35: 66.17170626 | H35: 3.482721382 | I35: 2.159827214 | J35: 5.642548596 | K35: 0.75 | L35: 42.605
A36: 24 | B36: 0022 - Holyhead > Porthmadog | C36: 1.61987041 | D36: 58.31533477 | E36: 4.319654428 | F36: 64.25485961 | G36: 55.39956803 | H36: 2.915766739 | I36: 5.939524838 | J36: 8.855291577 | K36: 0.75 | L36: 43.685
A37: 25 | B37: 0023 - Porthmadog > Dale | C37: 4.319654428 | D37: 94.4924406 | E37: 4.319654428 | F37: 103.1317495 | G37: 89.76781857 | H37: 4.72462203 | I37: 8.639308855 | J37: 13.36393089 | K37: 1 | L37: 46.685
A38: 26 | B38: 0024 - Dale > Archipel Scilly | C38: 4.319654428 | D38: 113.9308855 | E38: 0.5399568035 | F38: 118.7904968 | G38: 108.2343413 | H38: 5.696544276 | I38: 4.859611231 | J38: 10.55615551 | K38: 1 | L38: 49.685
A39: 001 agd - > | C39: 0 | D39: 0 | E39: 0 | F39: 0 | G39: 0 | H39: 0 | I39: 0 | J39: 0 | K39: 0.03 | L39: 72.715
A40: Fr Metro | C40: 0 | D40: 0 | E40: 0 | F40: 0 | G40: 0 | H40: 0 | I40: 0 | J40: 0 | K40: 0.03 | L40: 72.715
A41: 28 | B41: 0026 - Port Louis > Port Louis | C41: 0 | D41: 0 | E41: 0 | F41: 0 | G41: 0 | H41: 0 | I41: 0 | J41: 0 | K41: 0.03 | L41: 72.715
A42: 002 - Port Louis > Lisbonne | C42: 1.079913607 | D42: 701.9438445 | E42: 1.079913607 | F42: 704.1036717 | G42: 687.9049676 | H42: 14.03887689 | I42: 2.159827214 | J42: 16.1987041 | K42: 5 | L42: 80.715
A43: Portugal | C43: 1.079913607 | D43: 701.9438445 | E43: 1.079913607 | F43: 704.1036717 | G43: 687.9049676 | H43: 14.03887689 | I43: 2.159827214 | J43: 16.1987041 | K43: 5 | L43: 80.715
A44: 29 | B44: 0027 - Port Louis > Oeiras Marina | C44: 1.079913607 | D44: 701.9438445 | E44: 1.079913607 | F44: 704.1036717 | G44: 687.9049676 | H44: 14.03887689 | I44: 2.159827214 | J44: 16.1987041 | K44: 5 | L44: 80.715
A45: 003 - Lisbonne > Cap Vert | C45: 10.79913607 | D45: 2268.898488 | E45: 9.719222462 | F45: 2289.416847 | G45: 2178.731102 | H45: 90.16738661 | I45: 20.51835853 | J45: 110.6857451 | K45: 18.75 | L45: 1080.3
A46: Canaris | C46: 4.859611231 | D46: 652.8077754 | E46: 4.319654428 | F46: 661.987041 | G46: 620.1673866 | H46: 32.64038877 | I46: 9.179265659 | J46: 41.81965443 | K46: 5.1 | L46: 406.66
A47: 33 | B47: 0069 - Marina Lanzarote > Paliarte | C47: 1.079913607 | D47: 119.3304536 | E47: 1.079913607 | F47: 121.4902808 | G47: 113.3639309 | H47: 5.966522678 | I47: 2.159827214 | J47: 8.126349892 | K47: 1 | L47: 99.615
A48: 35 | B48: 0071 - Marina Santa Cruz > Marina La Palma | C48: 1.079913607 | D48: 119.8704104 | E48: 1.079913607 | F48: 122.0302376 | G48: 113.8768898 | H48: 5.993520518 | I48: 2.159827214 | J48: 8.153347732 | K48: 1 | L48: 107.215
A49: 34 | B49: 0070 - Paliarte > Marina Santa Cruz | C49: 1.079913607 | D49: 62.6349892 | E49: 1.079913607 | F49: 64.79481641 | G49: 59.50323974 | H49: 3.13174946 | I49: 2.159827214 | J49: 5.291576674 | K49: 0.6 | L49: 103.715
A50: 32 | B50: 0031 - Madère > Marina Lanzarote | C50: 1.61987041 | D50: 350.9719222 | E50: 1.079913607 | F50: 353.6717063 | G50: 333.4233261 | H50: 17.54859611 | I50: 2.699784017 | J50: 20.24838013 | K50: 2.5 | L50: 96.115
A51: Cap Vert | C51: 4.319654428 | D51: 1107.451404 | E51: 4.319654428 | F51: 1116.090713 | G51: 1075.356371 | H51: 32.0950324 | I51: 8.639308855 | J51: 40.73434125 | K51: 9.25 | L51: 495.31
A52: 36 | B52: 0032 - Marina La Palma > Porto de Palmeira | C52: 1.079913607 | D52: 775.9179266 | E52: 1.079913607 | F52: 778.0777538 | G52: 760.399568 | H52: 15.51835853 | I52: 2.159827214 | J52: 17.67818575 | K52: 6.5 | L52: 117.215
A53: 37 | B53: 0066 - Porto de Palmeira > Porto Sal Rei | C53: 1.079913607 | D53: 34.01727862 | E53: 1.079913607 | F53: 36.17710583 | G53: 32.31641469 | H53: 1.700863931 | I53: 2.159827214 | J53: 3.860691145 | K53: 0.35 | L53: 120.065
A54: 38 | B54: 0067 - Porto Sal Rei > Mindelo | C54: 1.079913607 | D54: 130.6695464 | E54: 1.079913607 | F54: 132.8293737 | G54: 124.1360691 | H54: 6.533477322 | I54: 2.159827214 | J54: 8.693304536 | K54: 1 | L54: 126.565
A55: 39 | B55: 0068 - Mindelo > Porto de Praia | C55: 1.079913607 | D55: 166.8466523 | E55: 1.079913607 | F55: 169.0064795 | G55: 158.5043197 | H55: 8.342332613 | I55: 2.159827214 | J55: 10.50215983 | K55: 1.4 | L55: 131.465
A56: Madère | C56: 1.61987041 | D56: 508.6393089 | E56: 1.079913607 | F56: 511.3390929 | G56: 483.2073434 | H56: 25.43196544 | I56: 2.699784017 | J56: 28.13174946 | K56: 4.4 | L56: 178.33
A57: 30 | B57: 0064 - Oeiras Marina > Porto Santo Port | C57: 1.079913607 | D57: 476.7818575 | E57: 0.5399568035 | F57: 478.4017279 | G57: 452.9427646 | H57: 23.83909287 | I57: 1.61987041 | J57: 25.45896328 | K57: 4 | L57: 87.215
A58: 31 | B58: 0065 - Porto Santo Port > Machico | C58: 0.5399568035 | D58: 31.8574514 | E58: 0.5399568035 | F58: 32.93736501 | G58: 30.26457883 | H58: 1.59287257 | I58: 1.079913607 | J58: 2.672786177 | K58: 0.4 | L58: 91.115
A59: 004 - Cap Vert > Le Marin | C59: 1.079913607 | D59: 2321.814255 | E59: 1.079913607 | F59: 2323.974082 | G59: 2275.37797 | H59: 46.4362851 | I59: 2.159827214 | J59: 48.59611231 | K59: 17 | L59: 168.965
A60: Fr Martinique | C60: 1.079913607 | D60: 2321.814255 | E60: 1.079913607 | F60: 2323.974082 | G60: 2275.37797 | H60: 46.4362851 | I60: 2.159827214 | J60: 48.59611231 | K60: 17 | L60: 168.965
A61: 40 | B61: 0033 - Porto de Praia > Le Marin | C61: 1.079913607 | D61: 2321.814255 | E61: 1.079913607 | F61: 2323.974082 | G61: 2275.37797 | H61: 46.4362851 | I61: 2.159827214 | J61: 48.59611231 | K61: 17 | L61: 168.965
A62: 006 - Le Marin > Panama | C62: 10.79913607 | D62: 1839.632829 | E62: 10.25917927 | F62: 1860.691145 | G62: 1772.402808 | H62: 67.2300216 | I62: 21.05831533 | J62: 88.28833693 | K62: 16.75 | L62: 1982.75
A63: Barbade | C63: 1.079913607 | D63: 244.0604752 | E63: 1.079913607 | F63: 246.2203024 | G63: 231.8574514 | H63: 12.20302376 | I63: 2.159827214 | J63: 14.36285097 | K63: 2.5 | L63: 190.19
A64: 44 | B64: 0053 - Port Louis (Guadeloupe) Port > LittleGood Harbour | C64: 1.079913607 | D64: 244.0604752 | E64: 1.079913607 | F64: 246.2203024 | G64: 231.8574514 | H64: 12.20302376 | I64: 2.159827214 | J64: 14.36285097 | K64: 2.5 | L64: 190.19
A65: Fr Guadeloupe | C65: 3.239740821 | D65: 199.2440605 | E65: 3.239740821 | F65: 205.7235421 | G65: 189.2818575 | H65: 9.962203024 | I65: 6.479481641 | J65: 16.44168467 | K65: 1.725 | L65: 539.245
A66: 41 | B66: 0050 - Le Marin > Saint Louis | C66: 1.079913607 | D66: 115.5507559 | E66: 1.079913607 | F66: 117.7105832 | G66: 109.7732181 | H66: 5.777537797 | I66: 2.159827214 | J66: 7.937365011 | K66: 1 | L66: 174.465
A67: 42 | B67: 0051 - Saint Louis > Pointe a Pitre | C67: 1.079913607 | D67: 14.57883369 | E67: 1.079913607 | F67: 16.73866091 | G67: 13.84989201 | H67: 0.7289416847 | I67: 2.159827214 | J67: 2.888768898 | K67: 0.125 | L67: 179.59
A68: 43 | B68: 0052 - Pointe a Pitre > Port Louis (Guadeloupe) Port | C68: 1.079913607 | D68: 69.11447084 | E68: 1.079913607 | F68: 71.27429806 | G68: 65.6587473 | H68: 3.455723542 | I68: 2.159827214 | J68: 5.615550756 | K68: 0.6 | L68: 185.19
A69: Panama | C69: 1.079913607 | D69: 825.0539957 | E69: 0.5399568035 | F69: 826.6738661 | G69: 808.5529158 | H69: 16.50107991 | I69: 1.61987041 | J69: 18.12095032 | K69: 7 | L69: 237.715
A70: 50 | B70: 0059 - Bonaire > Bahia Shelter Marina | C70: 1.079913607 | D70: 825.0539957 | E70: 0.5399568035 | F70: 826.6738661 | G70: 808.5529158 | H70: 16.50107991 | I70: 1.61987041 | J70: 18.12095032 | K70: 7 | L70: 237.715
A71: Saint Vincent et les Grenadines | C71: 2.159827214 | D71: 171.7062635 | E71: 2.159827214 | F71: 176.0259179 | G71: 163.1209503 | H71: 8.585313175 | I71: 4.319654428 | J71: 12.9049676 | K71: 2 | L71: 390.88
A72: 45 | B72: 0054 - LittleGood Harbour > Calliaqua Bay | C72: 1.079913607 | D72: 91.25269978 | E72: 1.079913607 | F72: 93.412527 | G72: 86.69006479 | H72: 4.562634989 | I72: 2.159827214 | J72: 6.722462203 | K72: 1 | L72: 193.69
A73: 46 | B73: 0055 - Calliaqua Bay > Egmont | C73: 1.079913607 | D73: 80.45356371 | E73: 1.079913607 | F73: 82.61339093 | G73: 76.43088553 | H73: 4.022678186 | I73: 2.159827214 | J73: 6.1825054 | K73: 1 | L73: 197.19
A74: Venezuela | C74: 3.239740821 | D74: 399.5680346 | E74: 3.239740821 | F74: 406.0475162 | G74: 379.5896328 | H74: 19.97840173 | I74: 6.479481641 | J74: 26.45788337 | K74: 3.525 | L74: 624.72
A75: 47 | B75: 0056 - Egmont > Aves de Barlovento | C75: 1.079913607 | D75: 344.4924406 | E75: 1.079913607 | F75: 346.6522678 | G75: 327.2678186 | H75: 17.22462203 | I75: 2.159827214 | J75: 19.38444924 | K75: 3 | L75: 203.19
A76: 48 | B76: 0057 - Aves de Barlovento > Ave de Sotavento | C76: 1.079913607 | D76: 11.87904968 | E76: 1.079913607 | F76: 14.03887689 | G76: 11.28509719 | H76: 0.5939524838 | I76: 2.159827214 | J76: 2.753779698 | K76: 0.125 | L76: 205.815
A77: 49 | B77: 0058 - Ave de Sotavento > Bonaire | C77: 1.079913607 | D77: 43.19654428 | E77: 1.079913607 | F77: 45.35637149 | G77: 41.03671706 | H77: 2.159827214 | I77: 2.159827214 | J77: 4.319654428 | K77: 0.4 | L77: 215.715
A78: 007 - Panama > Panama | C78: 1.61987041 | D78: 43.73650108 | E78: 3.779697624 | F78: 49.13606911 | G78: 0 | H78: 43.73650108 | I78: 5.399568035 | J78: 49.13606911 | K78: 0.4 | L78: 241.115
A79: Panama | C79: 1.61987041 | D79: 43.73650108 | E79: 3.779697624 | F79: 49.13606911 | G79: 0 | H79: 43.73650108 | I79: 5.399568035 | J79: 49.13606911 | K79: 0.4 | L79: 241.115
A80: 51 | B80: 0035 - Bahia Shelter Marina > La Playita | C80: 1.61987041 | D80: 43.73650108 | E80: 3.779697624 | F80: 49.13606911 | G80: 0 | H80: 43.73650108 | I80: 5.399568035 | J80: 49.13606911 | K80: 0.4 | L80: 241.115
A81: 008 - Panama > Polynésie Est | C81: 3.779697624 | D81: 3833.693305 | E81: 11.33909287 | F81: 3848.812095 | G81: 3757.019438 | H81: 76.67386609 | I81: 15.1187905 | J81: 91.79265659 | K81: 30 | L81: 286.115
A82: Fr Polynésie | C82: 3.779697624 | D82: 3833.693305 | E82: 11.33909287 | F82: 3848.812095 | G82: 3757.019438 | H82: 76.67386609 | I82: 15.1187905 | J82: 91.79265659 | K82: 30 | L82: 286.115
A83: 52 | B83: 0072 - La Playita > Rikitea Village | C83: 3.779697624 | D83: 3833.693305 | E83: 11.33909287 | F83: 3848.812095 | G83: 3757.019438 | H83: 76.67386609 | I83: 15.1187905 | J83: 91.79265659 | K83: 30 | L83: 286.115
A84: 009 - Polynésie Est > Maupiti | C84: 24.29805616 | D84: 1482.181425 | E84: 24.29805616 | F84: 1530.777538 | G84: 1408.072354 | H84: 74.10907127 | I84: 48.59611231 | J84: 122.7051836 | K84: 14.05 | L84: 4833.375
A85: Fr Polynésie | C85: 24.29805616 | D85: 1482.181425 | E85: 24.29805616 | F85: 1530.777538 | G85: 1408.072354 | H85: 74.10907127 | I85: 48.59611231 | J85: 122.7051836 | K85: 14.05 | L85: 4833.375
A86: 53 | B86: 0073 - Rikitea Village > Amanu | C86: 1.61987041 | D86: 456.2634989 | E86: 1.61987041 | F86: 459.5032397 | G86: 433.450324 | H86: 22.81317495 | I86: 3.239740821 | J86: 26.05291577 | K86: 4 | L86: 293.115
A87: 54 | B87: 0074 - Amanu > Raroia | C87: 1.61987041 | D87: 152.2678186 | E87: 1.61987041 | F87: 155.5075594 | G87: 144.6544276 | H87: 7.613390929 | I87: 3.239740821 | J87: 10.85313175 | K87: 2 | L87: 298.115
A88: 55 | B88: 0075 - Raroia > Makemo | C88: 1.61987041 | D88: 94.4924406 | E88: 1.61987041 | F88: 97.73218143 | G88: 89.76781857 | H88: 4.72462203 | I88: 3.239740821 | J88: 7.964362851 | K88: 1 | L88: 302.115
A89: 56 | B89: 0076 - Makemo > Tahanea | C89: 1.61987041 | D89: 72.89416847 | E89: 1.61987041 | F89: 76.13390929 | G89: 69.24946004 | H89: 3.644708423 | I89: 3.239740821 | J89: 6.884449244 | K89: 0.8 | L89: 305.915
A90: 57 | B90: 0077 - Tahanea > Toau | C90: 1.61987041 | D90: 112.3110151 | E90: 1.61987041 | F90: 115.5507559 | G90: 106.6954644 | H90: 5.615550756 | I90: 3.239740821 | J90: 8.855291577 | K90: 1 | L90: 309.915
A91: 58 | B91: 0078 - Toau > Manihi | C91: 1.61987041 | D91: 79.37365011 | E91: 1.61987041 | F91: 82.61339093 | G91: 75.4049676 | H91: 3.968682505 | I91: 3.239740821 | J91: 7.208423326 | K91: 0.8 | L91: 313.715
A92: 59 | B92: 0079 - Manihi > Rangiroa | C92: 1.61987041 | D92: 93.9524838 | E92: 1.61987041 | F92: 97.19222462 | G92: 89.25485961 | H92: 4.69762419 | I92: 3.239740821 | J92: 7.937365011 | K92: 0.8 | L92: 317.515
A93: 60 | B93: 0080 - Rangiroa > Tikehau | C93: 1.61987041 | D93: 56.15550756 | E93: 1.61987041 | F93: 59.39524838 | G93: 53.34773218 | H93: 2.807775378 | I93: 3.239740821 | J93: 6.047516199 | K93: 0.5 | L93: 320.015
A94: 61 | B94: 0081 - Tikehau > Tetiaroa | C94: 1.61987041 | D94: 155.5075594 | E94: 1.61987041 | F94: 158.7473002 | G94: 147.7321814 | H94: 7.77537797 | I94: 3.239740821 | J94: 11.01511879 | K94: 1.3 | L94: 324.315
A95: 62 | B95: 0082 - Tetiaroa > Papeete | C95: 1.61987041 | D95: 29.15766739 | E95: 1.61987041 | F95: 32.39740821 | G95: 27.69978402 | H95: 1.457883369 | I95: 3.239740821 | J95: 4.69762419 | K95: 0.3 | L95: 329.615
A96: 63 | B96: 0083 - Papeete > Baie d'opunohu | C96: 1.61987041 | D96: 14.03887689 | E96: 1.61987041 | F96: 17.27861771 | G96: 13.33693305 | H96: 0.7019438445 | I96: 3.239740821 | J96: 3.941684665 | K96: 0.15 | L96: 332.765
A97: 64 | B97: 0084 - Baie d'opunohu > Huahine | C97: 1.61987041 | D97: 86.93304536 | E97: 1.61987041 | F97: 90.17278618 | G97: 82.58639309 | H97: 4.346652268 | I97: 3.239740821 | J97: 7.586393089 | K97: 0.7 | L97: 336.465
A98: 65 | B98: 0085 - Huahine > Tahaa Raiatea | C98: 1.61987041 | D98: 20.51835853 | E98: 1.61987041 | F98: 23.75809935 | G98: 19.4924406 | H98: 1.025917927 | I98: 3.239740821 | J98: 4.265658747 | K98: 0.2 | L98: 339.665
A99: 66 | B99: 0086 - Tahaa Raiatea > Bora Bora | C99: 1.61987041 | D99: 32.93736501 | E99: 1.61987041 | F99: 36.17710583 | G99: 31.29049676 | H99: 1.646868251 | I99: 3.239740821 | J99: 4.886609071 | K99: 0.3 | L99: 349.965
A100: 67 | B100: 0087 - Bora Bora > Maupiti | C100: 1.61987041 | D100: 25.37796976 | E100: 1.61987041 | F100: 28.61771058 | G100: 24.10907127 | H100: 1.268898488 | I100: 3.239740821 | J100: 4.508639309 | K100: 0.2 | L100: 360.165
A101: 010 - Maupiti > Nouméa | C101: 36.71706263 | D101: 2903.347732 | E101: 49.67602592 | F101: 2989.740821 | G101: 2790.415767 | H101: 112.9319654 | I101: 86.39308855 | J101: 199.325054 | K101: 32.4 | L101: 5035.18
A102: Fr Nouméa | C102: 4.319654428 | D102: 75.59395248 | E102: 16.1987041 | F102: 96.11231102 | G102: 71.81425486 | H102: 3.779697624 | I102: 20.51835853 | J102: 24.29805616 | K102: 0.8 | L102: 464.565
A103: 79 | B103: 0099 - Kuto > Nouméa | C103: 4.319654428 | D103: 75.59395248 | E103: 16.1987041 | F103: 96.11231102 | G103: 71.81425486 | H103: 3.779697624 | I103: 20.51835853 | J103: 24.29805616 | K103: 0.8 | L103: 464.565
A104: Fr Polynésie | C104: 4.859611231 | D104: 341.2526998 | E104: 5.399568035 | F104: 351.511879 | G104: 324.1900648 | H104: 17.06263499 | I104: 10.25917927 | J104: 27.32181425 | K104: 3.2 | L104: 808.13
A105: 71 | B105: 0091 - Savai'i > Mata utu | C105: 0.5399568035 | D105: 212.7429806 | E105: 4.319654428 | F105: 217.6025918 | G105: 202.1058315 | H105: 10.63714903 | I105: 4.859611231 | J105: 15.49676026 | K105: 2 | L105: 398.465
A106: 72 | B106: 0092 - Mata utu > Leava | C106: 4.319654428 | D106: 128.5097192 | E106: 1.079913607 | F106: 133.9092873 | G106: 122.0842333 | H106: 6.425485961 | I106: 5.399568035 | J106: 11.825054 | K106: 1.2 | L106: 409.665
A107: Samoa Americaine | C107: 1.61987041 | D107: 1074.514039 | E107: 2.159827214 | F107: 1078.293737 | G107: 1053.023758 | H107: 21.49028078 | I107: 3.779697624 | J107: 25.2699784 | K107: 17 | L107: 381.165
A108: 68 | B108: 0088 - Maupiti > Pago Pago Harbour | C108: 1.61987041 | D108: 1074.514039 | E108: 2.159827214 | F108: 1078.293737 | G108: 1053.023758 | H108: 21.49028078 | I108: 3.779697624 | J108: 25.2699784 | K108: 17 | L108: 381.165
A109: A Faire | C109: 25.91792657 | D109: 1411.987041 | E109: 25.91792657 | F109: 1463.822894 | G109: 1341.387689 | H109: 70.59935205 | I109: 51.83585313 | J109: 122.4352052 | K109: 11.4 | L109: 3381.32
A110: 69 | B110: 0089 - Pago Pago Harbour > Apia Harbour | C110: 2.159827214 | D110: 77.21382289 | E110: 2.159827214 | F110: 81.53347732 | G110: 73.35313175 | H110: 3.860691145 | I110: 4.319654428 | J110: 8.180345572 | K110: 0.8 | L110: 383.965
A111: 70 | B111: 0090 - Apia Harbour > Savai'i | C111: 2.159827214 | D111: 57.77537797 | E111: 0.5399568035 | F111: 60.47516199 | G111: 54.88660907 | H111: 2.888768898 | I111: 2.699784017 | J111: 5.588552916 | K111: 0.5 | L111: 386.465
A112: 73 | B112: 0093 - Leava > Copra Shed Marina | C112: 1.079913607 | D112: 264.5788337 | E112: 0.5399568035 | F112: 266.1987041 | G112: 251.349892 | H112: 13.22894168 | I112: 1.61987041 | J112: 14.8488121 | K112: 2 | L112: 415.665
A113: 74 | B113: 0094 - Copra Shed Marina > West Minig | C113: 0.5399568035 | D113: 122.0302376 | E113: 9.179265659 | F113: 131.74946 | G113: 115.9287257 | H113: 6.101511879 | I113: 9.719222462 | J113: 15.82073434 | K113: 1 | L113: 426.665
A114: 75 | B114: 0095 - West Minig > Hwaadrila | C114: 0.5399568035 | D114: 679.2656587 | E114: 9.179265659 | F114: 688.9848812 | G114: 645.3023758 | H114: 33.96328294 | I114: 9.719222462 | J114: 43.6825054 | K114: 5 | L114: 436.665
A115: 76 | B115: 0096 - Hwaadrila > Chepenehe | C115: 19.43844492 | D115: 44.81641469 | E115: 0 | F115: 64.25485961 | G115: 42.57559395 | H115: 2.240820734 | I115: 19.43844492 | J115: 21.67926566 | K115: 0.5 | L115: 440.165
A116: 77 | B116: 0097 - Chepenehe > Tadine | C116: 0 | D116: 79.91360691 | E116: 0 | F116: 79.91360691 | G116: 75.91792657 | H116: 3.995680346 | I116: 0 | J116: 3.995680346 | K116: 0.8 | L116: 442.965
A117: 78 | B117: 0098 - Tadine > Kuto | C117: 0 | D117: 86.39308855 | E117: 4.319654428 | F117: 90.71274298 | G117: 82.07343413 | H117: 4.319654428 | I117: 4.319654428 | J117: 8.639308855 | K117: 0.8 | L117: 448.765
A118: 012 - Nouméa > Sydney | C118: 1.61987041 | D118: 1042.656587 | E118: 5.399568035 | F118: 1049.676026 | G118: 990.5237581 | H118: 52.13282937 | I118: 7.019438445 | J118: 59.15226782 | K118: 10 | L118: 494.565
A119: Australie | C119: 1.61987041 | D119: 1042.656587 | E119: 5.399568035 | F119: 1049.676026 | G119: 990.5237581 | H119: 52.13282937 | I119: 7.019438445 | J119: 59.15226782 | K119: 10 | L119: 494.565
A120: 80 | B120: 0100 - Nouméa > Sydney | C120: 1.61987041 | D120: 1042.656587 | E120: 5.399568035 | F120: 1049.676026 | G120: 990.5237581 | H120: 52.13282937 | I120: 7.019438445 | J120: 59.15226782 | K120: 10 | L120: 494.565
A121: 015 - Sydney > Darwin | C121: 8.099352052 | D121: 2516.198704 | E121: 5.399568035 | F121: 2529.697624 | G121: 2465.87473 | H121: 50.32397408 | I121: 13.49892009 | J121: 63.82289417 | K121: 20 | L121: 1033.13
A122: Australie | C122: 8.099352052 | D122: 2516.198704 | E122: 5.399568035 | F122: 2529.697624 | G122: 2465.87473 | H122: 50.32397408 | I122: 13.49892009 | J122: 63.82289417 | K122: 20 | L122: 1033.13
A123: 81 | B123: 0043 - Sydney > Cairns | C123: 5.399568035 | D123: 1274.298056 | E123: 2.699784017 | F123: 1282.397408 | G123: 1248.812095 | H123: 25.48596112 | I123: 8.099352052 | J123: 33.58531317 | K123: 10 | L123: 509.065
A124: 82 | B124: 0044 - Cairns > Darwin | C124: 2.699784017 | D124: 1241.900648 | E124: 2.699784017 | F124: 1247.300216 | G124: 1217.062635 | H124: 24.83801296 | I124: 5.399568035 | J124: 30.23758099 | K124: 10 | L124: 524.065
A125: 016 - Darwin > Rodrigues | C125: 3.779697624 | D125: 3983.801296 | E125: 3.239740821 | F125: 3990.820734 | G125: 3904.12527 | H125: 79.67602592 | I125: 7.019438445 | J125: 86.69546436 | K125: 31 | L125: 1133.13
A126: Rodrigues | C126: 1.079913607 | D126: 1983.801296 | E126: 1.61987041 | F126: 1986.50108 | G126: 1944.12527 | H126: 39.67602592 | I126: 2.699784017 | J126: 42.37580994 | K126: 15 | L126: 589.065
A127: 84 | B127: 0102 - Bantam > Port Mathurin | C127: 1.079913607 | D127: 1983.801296 | E127: 1.61987041 | F127: 1986.50108 | G127: 1944.12527 | H127: 39.67602592 | I127: 2.699784017 | J127: 42.37580994 | K127: 15 | L127: 589.065
A128: A Faire | C128: 2.699784017 | D128: 2000 | E128: 1.61987041 | F128: 2004.319654 | G128: 1960 | H128: 40 | I128: 4.319654428 | J128: 44.31965443 | K128: 16 | L128: 544.065
A129: 83 | B129: 0101 - Darwin > Bantam | C129: 2.699784017 | D129: 2000 | E129: 1.61987041 | F129: 2004.319654 | G129: 1960 | H129: 40 | I129: 4.319654428 | J129: 44.31965443 | K129: 16 | L129: 544.065
A130: 017 - Rodrigues > Le Cap | C130: 15.6587473 | D130: 2753.239741 | E130: 15.6587473 | F130: 2784.557235 | G130: 2698.174946 | H130: 55.06479482 | I130: 31.3174946 | J130: 86.38228942 | K130: 23.2 | L130: 2512.86
A131: Affrique du Sud | C131: 12.41900648 | D131: 2269.438445 | E131: 12.41900648 | F131: 2294.276458 | G131: 2224.049676 | H131: 45.3887689 | I131: 24.83801296 | J131: 70.22678186 | K131: 19 | L131: 1302.53
A132: 87 | B132: 0105 - Port Mathurin > Durban | C132: 1.61987041 | D132: 1429.805616 | E132: 10.79913607 | F132: 1442.224622 | G132: 1401.209503 | H132: 28.59611231 | I132: 12.41900648 | J132: 41.01511879 | K132: 12 | L132: 640.265
A133: 88 | B133: 0106 - Durban > Cape Town | C133: 10.79913607 | D133: 839.6328294 | E133: 1.61987041 | F133: 852.0518359 | G133: 822.8401728 | H133: 16.79265659 | I133: 12.41900648 | J133: 29.21166307 | K133: 7 | L133: 662.265
A134: Maurice | C134: 1.61987041 | D134: 350.9719222 | E134: 1.61987041 | F134: 354.2116631 | G134: 343.9524838 | H134: 7.019438445 | I134: 3.239740821 | J134: 10.25917927 | K134: 3 | L134: 597.065
A135: 85 | B135: 0103 - Port Mathurin > Port Louis (Maurice) | C135: 1.61987041 | D135: 350.9719222 | E135: 1.61987041 | F135: 354.2116631 | G135: 343.9524838 | H135: 7.019438445 | I135: 3.239740821 | J135: 10.25917927 | K135: 3 | L135: 597.065
